Workbook

Sheet Control
A3: State Inventory Tool - CH4 and N2O Emissions from Mobile Combustion Module
A4: This module provides default activity data, emission factors, and other relevant metrics for 1990-2019. Emissions factors for 2020 onward are proxied to 2019 so users can still calculate emissions for subsequent inventory years.
A5: 1. Select those modes of transport you wish to analyze.
A6: Select any or all of the modes listed below.
A15: 2. Choose a State
A16: This is very important - it selects the correct default variables for your state.
A18: 3. Would you like to conduct optional CO2 calculations?
A19: The CO2FFC module is responsible for the main CO2 calculations from the mobile sector, but this module provides a mode-specific analysis if you wish.
A24: 4. - 11. Proceed with transportation mode-specific analysis. . .
A28: You will be led through the following series of worksheets using navigational arrows located at the top of each worksheet:
A31: 4. Highway Vehicle Worksheets
A32: 4a. Highway Vehicles - Emission Factors and VMT Worksheet
A33: 4b. Highway Vehicles - Allocating VMT by Model Year Worksheet
A34: 4c. Highway Vehicles - Allocating Control Technology by Model Year Worksheet
A35: 5. Aviation Worksheet
A36: 6. Marine Worksheet
A37: 7. Locomotive Worksheet
A38: 8. Other Non-Highway Worksheet
A39: 9. Alternative Fuel Vehicles Worksheet
A40: 10. Highway CO2 Worksheet
A41: 11. Non-Highway CO2 Worksheet
A43: 12. Review the Summary Information
A50: 13. Export the results for use in the Synthesis Tool.
A58: Constants and/or Factors Used Throughout the Module | E58: Default
A59: The default GWPs used in this module are from the IPCC Fourth Assessment Report (AR4) but can be adjusted in the cells below to reflect other sources.
A60: Methane GWP | E60: 25
A61: Nitrous Oxide GWP | E61: 298
A62: Number of Days per Year | E62: 365
A63: Gallons/Barrel | E63: 42
A64: Kilometers/Mile | E64: 1.609347228
A65: Carbon / CO2 | E65: =12/44 -> 0.2727272727
A66: Grams / Teragram (g / Tg) | E66: =10^12 -> 1000000000000

Sheet Dataframe (hidden)
A1: MMTCO2e | B1: Category | C1: 1990 | D1: 1991 | E1: 1992 | F1: 1993 | G1: 1994 | H1: 1995 | I1: 1996 | J1: 1997 | K1: 1998 | L1: 1999 | M1: 2000 | N1: 2001 | O1: 2002 | P1: 2003 | Q1: 2004 | R1: 2005 | S1: 2006 | T1: 2007 | U1: 2008 | V1: 2009 | W1: 2010 | X1: 2011 | Y1: 2012 | Z1: 2013 | AA1: 2014 | AB1: 2015 | AC1: 2016 | AD1: 2017 | AE1: 2018 | AF1: 2019 | AG1: 2020
A2: Gasoline Highway | B2: ="Energy - Mobile Combustion - CH4 - "&$A$2 -> Energy - Mobile Combustion - CH4 - Gasoline Highway | C2: =(Summary!C57)/1000000 -> 0 | D2: =(Summary!D57)/1000000 -> 0 | E2: =(Summary!E57)/1000000 -> 0 | F2: =(Summary!F57)/1000000 -> 0 | G2: =(Summary!G57)/1000000 -> 0 | H2: =(Summary!H57)/1000000 -> 0 | I2: =(Summary!I57)/1000000 -> 0 | J2: =(Summary!J57)/1000000 -> 0 | K2: =(Summary!K57)/1000000 -> 0 | L2: =(Summary!L57)/1000000 -> 0 | M2: =(Summary!M57)/1000000 -> 0 | N2: =(Summary!N57)/1000000 -> 0 | O2: =(Summary!O57)/1000000 -> 0 | P2: =(Summary!P57)/1000000 -> 0 | Q2: =(Summary!Q57)/1000000 -> 0 | R2: =(Summary!R57)/1000000 -> 0 | S2: =(Summary!S57)/1000000 -> 0 | T2: =(Summary!T57)/1000000 -> 0 | U2: =(Summary!U57)/1000000 -> 0 | V2: =(Summary!V57)/1000000 -> 0 | W2: =(Summary!W57)/1000000 -> 0 | X2: =(Summary!X57)/1000000 -> 0 | Y2: =(Summary!Y57)/1000000 -> 0 | Z2: =(Summary!Z57)/1000000 -> 0 | AA2: =(Summary!AA57)/1000000 -> 0 | AB2: =(Summary!AB57)/1000000 -> 0 | AC2: =(Summary!AC57)/1000000 -> 0 | AD2: =(Summary!AD57)/1000000 -> 0 | AE2: =(Summary!AE57)/1000000 -> 0 | AF2: =(Summary!AF57)/1000000 -> 0 | AG2: =(Summary!AG57)/1000000 -> 0
A3: Passenger Cars | B3: ="Energy - Mobile Combustion - CH4 - "&$A$2&" - "&A3 -> Energy - Mobile Combustion - CH4 - Gasoline Highway - Passenger Cars | C3: =(Summary!C58)/1000000 -> 0 | D3: =(Summary!D58)/1000000 -> 0 | E3: =(Summary!E58)/1000000 -> 0 | F3: =(Summary!F58)/1000000 -> 0 | G3: =(Summary!G58)/1000000 -> 0 | H3: =(Summary!H58)/1000000 -> 0 | I3: =(Summary!I58)/1000000 -> 0 | J3: =(Summary!J58)/1000000 -> 0 | K3: =(Summary!K58)/1000000 -> 0 | L3: =(Summary!L58)/1000000 -> 0 | M3: =(Summary!M58)/1000000 -> 0 | N3: =(Summary!N58)/1000000 -> 0 | O3: =(Summary!O58)/1000000 -> 0 | P3: =(Summary!P58)/1000000 -> 0 | Q3: =(Summary!Q58)/1000000 -> 0 | R3: =(Summary!R58)/1000000 -> 0 | S3: =(Summary!S58)/1000000 -> 0 | T3: =(Summary!T58)/1000000 -> 0 | U3: =(Summary!U58)/1000000 -> 0 | V3: =(Summary!V58)/1000000 -> 0 | W3: =(Summary!W58)/1000000 -> 0 | X3: =(Summary!X58)/1000000 -> 0 | Y3: =(Summary!Y58)/1000000 -> 0 | Z3: =(Summary!Z58)/1000000 -> 0 | AA3: =(Summary!AA58)/1000000 -> 0 | AB3: =(Summary!AB58)/1000000 -> 0 | AC3: =(Summary!AC58)/1000000 -> 0 | AD3: =(Summary!AD58)/1000000 -> 0 | AE3: =(Summary!AE58)/1000000 -> 0 | AF3: =(Summary!AF58)/1000000 -> 0 | AG3: =(Summary!AG58)/1000000 -> 0
A4: Light-Duty Trucks | B4: ="Energy - Mobile Combustion - CH4 - "&$A$2&" - "&A4 -> Energy - Mobile Combustion - CH4 - Gasoline Highway - Light-Duty Trucks | C4: =(Summary!C59)/1000000 -> 0 | D4: =(Summary!D59)/1000000 -> 0 | E4: =(Summary!E59)/1000000 -> 0 | F4: =(Summary!F59)/1000000 -> 0 | G4: =(Summary!G59)/1000000 -> 0 | H4: =(Summary!H59)/1000000 -> 0 | I4: =(Summary!I59)/1000000 -> 0 | J4: =(Summary!J59)/1000000 -> 0 | K4: =(Summary!K59)/1000000 -> 0 | L4: =(Summary!L59)/1000000 -> 0 | M4: =(Summary!M59)/1000000 -> 0 | N4: =(Summary!N59)/1000000 -> 0 | O4: =(Summary!O59)/1000000 -> 0 | P4: =(Summary!P59)/1000000 -> 0 | Q4: =(Summary!Q59)/1000000 -> 0 | R4: =(Summary!R59)/1000000 -> 0 | S4: =(Summary!S59)/1000000 -> 0 | T4: =(Summary!T59)/1000000 -> 0 | U4: =(Summary!U59)/1000000 -> 0 | V4: =(Summary!V59)/1000000 -> 0 | W4: =(Summary!W59)/1000000 -> 0 | X4: =(Summary!X59)/1000000 -> 0 | Y4: =(Summary!Y59)/1000000 -> 0 | Z4: =(Summary!Z59)/1000000 -> 0 | AA4: =(Summary!AA59)/1000000 -> 0 | AB4: =(Summary!AB59)/1000000 -> 0 | AC4: =(Summary!AC59)/1000000 -> 0 | AD4: =(Summary!AD59)/1000000 -> 0 | AE4: =(Summary!AE59)/1000000 -> 0 | AF4: =(Summary!AF59)/1000000 -> 0 | AG4: =(Summary!AG59)/1000000 -> 0
A5: Heavy-Duty Vehicles | B5: ="Energy - Mobile Combustion - CH4 - "&$A$2&" - "&A5 -> Energy - Mobile Combustion - CH4 - Gasoline Highway - Heavy-Duty Vehicles | C5: =(Summary!C60)/1000000 -> 0 | D5: =(Summary!D60)/1000000 -> 0 | E5: =(Summary!E60)/1000000 -> 0 | F5: =(Summary!F60)/1000000 -> 0 | G5: =(Summary!G60)/1000000 -> 0 | H5: =(Summary!H60)/1000000 -> 0 | I5: =(Summary!I60)/1000000 -> 0 | J5: =(Summary!J60)/1000000 -> 0 | K5: =(Summary!K60)/1000000 -> 0 | L5: =(Summary!L60)/1000000 -> 0 | M5: =(Summary!M60)/1000000 -> 0 | N5: =(Summary!N60)/1000000 -> 0 | O5: =(Summary!O60)/1000000 -> 0 | P5: =(Summary!P60)/1000000 -> 0 | Q5: =(Summary!Q60)/1000000 -> 0 | R5: =(Summary!R60)/1000000 -> 0 | S5: =(Summary!S60)/1000000 -> 0 | T5: =(Summary!T60)/1000000 -> 0 | U5: =(Summary!U60)/1000000 -> 0 | V5: =(Summary!V60)/1000000 -> 0 | W5: =(Summary!W60)/1000000 -> 0 | X5: =(Summary!X60)/1000000 -> 0 | Y5: =(Summary!Y60)/1000000 -> 0 | Z5: =(Summary!Z60)/1000000 -> 0 | AA5: =(Summary!AA60)/1000000 -> 0 | AB5: =(Summary!AB60)/1000000 -> 0 | AC5: =(Summary!AC60)/1000000 -> 0 | AD5: =(Summary!AD60)/1000000 -> 0 | AE5: =(Summary!AE60)/1000000 -> 0 | AF5: =(Summary!AF60)/1000000 -> 0 | AG5: =(Summary!AG60)/1000000 -> 0
A6: Motorcycles | B6: ="Energy - Mobile Combustion - CH4 - "&$A$2&" - "&A6 -> Energy - Mobile Combustion - CH4 - Gasoline Highway - Motorcycles | C6: =(Summary!C61)/1000000 -> 0 | D6: =(Summary!D61)/1000000 -> 0 | E6: =(Summary!E61)/1000000 -> 0 | F6: =(Summary!F61)/1000000 -> 0 | G6: =(Summary!G61)/1000000 -> 0 | H6: =(Summary!H61)/1000000 -> 0 | I6: =(Summary!I61)/1000000 -> 0 | J6: =(Summary!J61)/1000000 -> 0 | K6: =(Summary!K61)/1000000 -> 0 | L6: =(Summary!L61)/1000000 -> 0 | M6: =(Summary!M61)/1000000 -> 0 | N6: =(Summary!N61)/1000000 -> 0 | O6: =(Summary!O61)/1000000 -> 0 | P6: =(Summary!P61)/1000000 -> 0 | Q6: =(Summary!Q61)/1000000 -> 0 | R6: =(Summary!R61)/1000000 -> 0 | S6: =(Summary!S61)/1000000 -> 0 | T6: =(Summary!T61)/1000000 -> 0 | U6: =(Summary!U61)/1000000 -> 0 | V6: =(Summary!V61)/1000000 -> 0 | W6: =(Summary!W61)/1000000 -> 0 | X6: =(Summary!X61)/1000000 -> 0 | Y6: =(Summary!Y61)/1000000 -> 0 | Z6: =(Summary!Z61)/1000000 -> 0 | AA6: =(Summary!AA61)/1000000 -> 0 | AB6: =(Summary!AB61)/1000000 -> 0 | AC6: =(Summary!AC61)/1000000 -> 0 | AD6: =(Summary!AD61)/1000000 -> 0 | AE6: =(Summary!AE61)/1000000 -> 0 | AF6: =(Summary!AF61)/1000000 -> 0 | AG6: =(Summary!AG61)/1000000 -> 0
A7: Diesel Highway | B7: ="Energy - Mobile Combustion - CH4 - "&$A$7 -> Energy - Mobile Combustion - CH4 - Diesel Highway | C7: =(Summary!C62)/1000000 -> 0 | D7: =(Summary!D62)/1000000 -> 0 | E7: =(Summary!E62)/1000000 -> 0 | F7: =(Summary!F62)/1000000 -> 0 | G7: =(Summary!G62)/1000000 -> 0 | H7: =(Summary!H62)/1000000 -> 0 | I7: =(Summary!I62)/1000000 -> 0 | J7: =(Summary!J62)/1000000 -> 0 | K7: =(Summary!K62)/1000000 -> 0 | L7: =(Summary!L62)/1000000 -> 0 | M7: =(Summary!M62)/1000000 -> 0 | N7: =(Summary!N62)/1000000 -> 0 | O7: =(Summary!O62)/1000000 -> 0 | P7: =(Summary!P62)/1000000 -> 0 | Q7: =(Summary!Q62)/1000000 -> 0 | R7: =(Summary!R62)/1000000 -> 0 | S7: =(Summary!S62)/1000000 -> 0 | T7: =(Summary!T62)/1000000 -> 0 | U7: =(Summary!U62)/1000000 -> 0 | V7: =(Summary!V62)/1000000 -> 0 | W7: =(Summary!W62)/1000000 -> 0 | X7: =(Summary!X62)/1000000 -> 0 | Y7: =(Summary!Y62)/1000000 -> 0 | Z7: =(Summary!Z62)/1000000 -> 0 | AA7: =(Summary!AA62)/1000000 -> 0 | AB7: =(Summary!AB62)/1000000 -> 0 | AC7: =(Summary!AC62)/1000000 -> 0 | AD7: =(Summary!AD62)/1000000 -> 0 | AE7: =(Summary!AE62)/1000000 -> 0 | AF7: =(Summary!AF62)/1000000 -> 0 | AG7: =(Summary!AG62)/1000000 -> 0
A8: Passenger Cars | B8: ="Energy - Mobile Combustion - CH4 - "&$A$7&" - "&A8 -> Energy - Mobile Combustion - CH4 - Diesel Highway - Passenger Cars | C8: =(Summary!C63)/1000000 -> 0 | D8: =(Summary!D63)/1000000 -> 0 | E8: =(Summary!E63)/1000000 -> 0 | F8: =(Summary!F63)/1000000 -> 0 | G8: =(Summary!G63)/1000000 -> 0 | H8: =(Summary!H63)/1000000 -> 0 | I8: =(Summary!I63)/1000000 -> 0 | J8: =(Summary!J63)/1000000 -> 0 | K8: =(Summary!K63)/1000000 -> 0 | L8: =(Summary!L63)/1000000 -> 0 | M8: =(Summary!M63)/1000000 -> 0 | N8: =(Summary!N63)/1000000 -> 0 | O8: =(Summary!O63)/1000000 -> 0 | P8: =(Summary!P63)/1000000 -> 0 | Q8: =(Summary!Q63)/1000000 -> 0 | R8: =(Summary!R63)/1000000 -> 0 | S8: =(Summary!S63)/1000000 -> 0 | T8: =(Summary!T63)/1000000 -> 0 | U8: =(Summary!U63)/1000000 -> 0 | V8: =(Summary!V63)/1000000 -> 0 | W8: =(Summary!W63)/1000000 -> 0 | X8: =(Summary!X63)/1000000 -> 0 | Y8: =(Summary!Y63)/1000000 -> 0 | Z8: =(Summary!Z63)/1000000 -> 0 | AA8: =(Summary!AA63)/1000000 -> 0 | AB8: =(Summary!AB63)/1000000 -> 0 | AC8: =(Summary!AC63)/1000000 -> 0 | AD8: =(Summary!AD63)/1000000 -> 0 | AE8: =(Summary!AE63)/1000000 -> 0 | AF8: =(Summary!AF63)/1000000 -> 0 | AG8: =(Summary!AG63)/1000000 -> 0
A9: Light-Duty Trucks | B9: ="Energy - Mobile Combustion - CH4 - "&$A$7&" - "&A9 -> Energy - Mobile Combustion - CH4 - Diesel Highway - Light-Duty Trucks | C9: =(Summary!C64)/1000000 -> 0 | D9: =(Summary!D64)/1000000 -> 0 | E9: =(Summary!E64)/1000000 -> 0 | F9: =(Summary!F64)/1000000 -> 0 | G9: =(Summary!G64)/1000000 -> 0 | H9: =(Summary!H64)/1000000 -> 0 | I9: =(Summary!I64)/1000000 -> 0 | J9: =(Summary!J64)/1000000 -> 0 | K9: =(Summary!K64)/1000000 -> 0 | L9: =(Summary!L64)/1000000 -> 0 | M9: =(Summary!M64)/1000000 -> 0 | N9: =(Summary!N64)/1000000 -> 0 | O9: =(Summary!O64)/1000000 -> 0 | P9: =(Summary!P64)/1000000 -> 0 | Q9: =(Summary!Q64)/1000000 -> 0 | R9: =(Summary!R64)/1000000 -> 0 | S9: =(Summary!S64)/1000000 -> 0 | T9: =(Summary!T64)/1000000 -> 0 | U9: =(Summary!U64)/1000000 -> 0 | V9: =(Summary!V64)/1000000 -> 0 | W9: =(Summary!W64)/1000000 -> 0 | X9: =(Summary!X64)/1000000 -> 0 | Y9: =(Summary!Y64)/1000000 -> 0 | Z9: =(Summary!Z64)/1000000 -> 0 | AA9: =(Summary!AA64)/1000000 -> 0 | AB9: =(Summary!AB64)/1000000 -> 0 | AC9: =(Summary!AC64)/1000000 -> 0 | AD9: =(Summary!AD64)/1000000 -> 0 | AE9: =(Summary!AE64)/1000000 -> 0 | AF9: =(Summary!AF64)/1000000 -> 0 | AG9: =(Summary!AG64)/1000000 -> 0
A10: Heavy-Duty Vehicles | B10: ="Energy - Mobile Combustion - CH4 - "&$A$7&" - "&A10 -> Energy - Mobile Combustion - CH4 - Diesel Highway - Heavy-Duty Vehicles | C10: =(Summary!C65)/1000000 -> 0 | D10: =(Summary!D65)/1000000 -> 0 | E10: =(Summary!E65)/1000000 -> 0 | F10: =(Summary!F65)/1000000 -> 0 | G10: =(Summary!G65)/1000000 -> 0 | H10: =(Summary!H65)/1000000 -> 0 | I10: =(Summary!I65)/1000000 -> 0 | J10: =(Summary!J65)/1000000 -> 0 | K10: =(Summary!K65)/1000000 -> 0 | L10: =(Summary!L65)/1000000 -> 0 | M10: =(Summary!M65)/1000000 -> 0 | N10: =(Summary!N65)/1000000 -> 0 | O10: =(Summary!O65)/1000000 -> 0 | P10: =(Summary!P65)/1000000 -> 0 | Q10: =(Summary!Q65)/1000000 -> 0 | R10: =(Summary!R65)/1000000 -> 0 | S10: =(Summary!S65)/1000000 -> 0 | T10: =(Summary!T65)/1000000 -> 0 | U10: =(Summary!U65)/1000000 -> 0 | V10: =(Summary!V65)/1000000 -> 0 | W10: =(Summary!W65)/1000000 -> 0 | X10: =(Summary!X65)/1000000 -> 0 | Y10: =(Summary!Y65)/1000000 -> 0 | Z10: =(Summary!Z65)/1000000 -> 0 | AA10: =(Summary!AA65)/1000000 -> 0 | AB10: =(Summary!AB65)/1000000 -> 0 | AC10: =(Summary!AC65)/1000000 -> 0 | AD10: =(Summary!AD65)/1000000 -> 0 | AE10: =(Summary!AE65)/1000000 -> 0 | AF10: =(Summary!AF65)/1000000 -> 0 | AG10: =(Summary!AG65)/1000000 -> 0
A11: Non-Highway | B11: ="Energy - Mobile Combustion - CH4 - "&$A$11 -> Energy - Mobile Combustion - CH4 - Non-Highway | C11: =(Summary!C66)/1000000 -> 0 | D11: =(Summary!D66)/1000000 -> 0 | E11: =(Summary!E66)/1000000 -> 0 | F11: =(Summary!F66)/1000000 -> 0 | G11: =(Summary!G66)/1000000 -> 0 | H11: =(Summary!H66)/1000000 -> 0 | I11: =(Summary!I66)/1000000 -> 0 | J11: =(Summary!J66)/1000000 -> 0 | K11: =(Summary!K66)/1000000 -> 0 | L11: =(Summary!L66)/1000000 -> 0 | M11: =(Summary!M66)/1000000 -> 0 | N11: =(Summary!N66)/1000000 -> 0 | O11: =(Summary!O66)/1000000 -> 0 | P11: =(Summary!P66)/1000000 -> 0 | Q11: =(Summary!Q66)/1000000 -> 0 | R11: =(Summary!R66)/1000000 -> 0 | S11: =(Summary!S66)/1000000 -> 0 | T11: =(Summary!T66)/1000000 -> 0 | U11: =(Summary!U66)/1000000 -> 0 | V11: =(Summary!V66)/1000000 -> 0 | W11: =(Summary!W66)/1000000 -> 0 | X11: =(Summary!X66)/1000000 -> 0 | Y11: =(Summary!Y66)/1000000 -> 0 | Z11: =(Summary!Z66)/1000000 -> 0 | AA11: =(Summary!AA66)/1000000 -> 0 | AB11: =(Summary!AB66)/1000000 -> 0 | AC11: =(Summary!AC66)/1000000 -> 0 | AD11: =(Summary!AD66)/1000000 -> 0 | AE11: =(Summary!AE66)/1000000 -> 0 | AF11: =(Summary!AF66)/1000000 -> 0 | AG11: =(Summary!AG66)/1000000 -> 0
A12: Boats | B12: ="Energy - Mobile Combustion - CH4 - "&$A$11&" - "&A12 -> Energy - Mobile Combustion - CH4 - Non-Highway - Boats | C12: =(Summary!C67)/1000000 -> 0 | D12: =(Summary!D67)/1000000 -> 0 | E12: =(Summary!E67)/1000000 -> 0 | F12: =(Summary!F67)/1000000 -> 0 | G12: =(Summary!G67)/1000000 -> 0 | H12: =(Summary!H67)/1000000 -> 0 | I12: =(Summary!I67)/1000000 -> 0 | J12: =(Summary!J67)/1000000 -> 0 | K12: =(Summary!K67)/1000000 -> 0 | L12: =(Summary!L67)/1000000 -> 0 | M12: =(Summary!M67)/1000000 -> 0 | N12: =(Summary!N67)/1000000 -> 0 | O12: =(Summary!O67)/1000000 -> 0 | P12: =(Summary!P67)/1000000 -> 0 | Q12: =(Summary!Q67)/1000000 -> 0 | R12: =(Summary!R67)/1000000 -> 0 | S12: =(Summary!S67)/1000000 -> 0 | T12: =(Summary!T67)/1000000 -> 0 | U12: =(Summary!U67)/1000000 -> 0 | V12: =(Summary!V67)/1000000 -> 0 | W12: =(Summary!W67)/1000000 -> 0 | X12: =(Summary!X67)/1000000 -> 0 | Y12: =(Summary!Y67)/1000000 -> 0 | Z12: =(Summary!Z67)/1000000 -> 0 | AA12: =(Summary!AA67)/1000000 -> 0 | AB12: =(Summary!AB67)/1000000 -> 0 | AC12: =(Summary!AC67)/1000000 -> 0 | AD12: =(Summary!AD67)/1000000 -> 0 | AE12: =(Summary!AE67)/1000000 -> 0 | AF12: =(Summary!AF67)/1000000 -> 0 | AG12: =(Summary!AG67)/1000000 -> 0
A13: Locomotives | B13: Energy - Mobile Combustion - CH4 - Non-Highway - Locomotives | C13: =(Summary!C68)/1000000 -> 0 | D13: =(Summary!D68)/1000000 -> 0 | E13: =(Summary!E68)/1000000 -> 0 | F13: =(Summary!F68)/1000000 -> 0 | G13: =(Summary!G68)/1000000 -> 0 | H13: =(Summary!H68)/1000000 -> 0 | I13: =(Summary!I68)/1000000 -> 0 | J13: =(Summary!J68)/1000000 -> 0 | K13: =(Summary!K68)/1000000 -> 0 | L13: =(Summary!L68)/1000000 -> 0 | M13: =(Summary!M68)/1000000 -> 0 | N13: =(Summary!N68)/1000000 -> 0 | O13: =(Summary!O68)/1000000 -> 0 | P13: =(Summary!P68)/1000000 -> 0 | Q13: =(Summary!Q68)/1000000 -> 0 | R13: =(Summary!R68)/1000000 -> 0 | S13: =(Summary!S68)/1000000 -> 0 | T13: =(Summary!T68)/1000000 -> 0 | U13: =(Summary!U68)/1000000 -> 0 | V13: =(Summary!V68)/1000000 -> 0 | W13: =(Summary!W68)/1000000 -> 0 | X13: =(Summary!X68)/1000000 -> 0 | Y13: =(Summary!Y68)/1000000 -> 0 | Z13: =(Summary!Z68)/1000000 -> 0 | AA13: =(Summary!AA68)/1000000 -> 0 | AB13: =(Summary!AB68)/1000000 -> 0 | AC13: =(Summary!AC68)/1000000 -> 0 | AD13: =(Summary!AD68)/1000000 -> 0 | AE13: =(Summary!AE68)/1000000 -> 0 | AF13: =(Summary!AF68)/1000000 -> 0 | AG13: =(Summary!AG68)/1000000 -> 0
A14: Farm Equipment | B14: Energy - Mobile Combustion - CH4 - Non-Highway - Farm Equipment | C14: =(Summary!C69)/1000000 -> 0 | D14: =(Summary!D69)/1000000 -> 0 | E14: =(Summary!E69)/1000000 -> 0 | F14: =(Summary!F69)/1000000 -> 0 | G14: =(Summary!G69)/1000000 -> 0 | H14: =(Summary!H69)/1000000 -> 0 | I14: =(Summary!I69)/1000000 -> 0 | J14: =(Summary!J69)/1000000 -> 0 | K14: =(Summary!K69)/1000000 -> 0 | L14: =(Summary!L69)/1000000 -> 0 | M14: =(Summary!M69)/1000000 -> 0 | N14: =(Summary!N69)/1000000 -> 0 | O14: =(Summary!O69)/1000000 -> 0 | P14: =(Summary!P69)/1000000 -> 0 | Q14: =(Summary!Q69)/1000000 -> 0 | R14: =(Summary!R69)/1000000 -> 0 | S14: =(Summary!S69)/1000000 -> 0 | T14: =(Summary!T69)/1000000 -> 0 | U14: =(Summary!U69)/1000000 -> 0 | V14: =(Summary!V69)/1000000 -> 0 | W14: =(Summary!W69)/1000000 -> 0 | X14: =(Summary!X69)/1000000 -> 0 | Y14: =(Summary!Y69)/1000000 -> 0 | Z14: =(Summary!Z69)/1000000 -> 0 | AA14: =(Summary!AA69)/1000000 -> 0 | AB14: =(Summary!AB69)/1000000 -> 0 | AC14: =(Summary!AC69)/1000000 -> 0 | AD14: =(Summary!AD69)/1000000 -> 0 | AE14: =(Summary!AE69)/1000000 -> 0 | AF14: =(Summary!AF69)/1000000 -> 0 | AG14: =(Summary!AG69)/1000000 -> 0
A15: Construction Equipment | B15: Energy - Mobile Combustion - CH4 - Non-Highway - Construction Equipment | C15: =(Summary!C70)/1000000 -> 0 | D15: =(Summary!D70)/1000000 -> 0 | E15: =(Summary!E70)/1000000 -> 0 | F15: =(Summary!F70)/1000000 -> 0 | G15: =(Summary!G70)/1000000 -> 0 | H15: =(Summary!H70)/1000000 -> 0 | I15: =(Summary!I70)/1000000 -> 0 | J15: =(Summary!J70)/1000000 -> 0 | K15: =(Summary!K70)/1000000 -> 0 | L15: =(Summary!L70)/1000000 -> 0 | M15: =(Summary!M70)/1000000 -> 0 | N15: =(Summary!N70)/1000000 -> 0 | O15: =(Summary!O70)/1000000 -> 0 | P15: =(Summary!P70)/1000000 -> 0 | Q15: =(Summary!Q70)/1000000 -> 0 | R15: =(Summary!R70)/1000000 -> 0 | S15: =(Summary!S70)/1000000 -> 0 | T15: =(Summary!T70)/1000000 -> 0 | U15: =(Summary!U70)/1000000 -> 0 | V15: =(Summary!V70)/1000000 -> 0 | W15: =(Summary!W70)/1000000 -> 0 | X15: =(Summary!X70)/1000000 -> 0 | Y15: =(Summary!Y70)/1000000 -> 0 | Z15: =(Summary!Z70)/1000000 -> 0 | AA15: =(Summary!AA70)/1000000 -> 0 | AB15: =(Summary!AB70)/1000000 -> 0 | AC15: =(Summary!AC70)/1000000 -> 0 | AD15: =(Summary!AD70)/1000000 -> 0 | AE15: =(Summary!AE70)/1000000 -> 0 | AF15: =(Summary!AF70)/1000000 -> 0 | AG15: =(Summary!AG70)/1000000 -> 0
A16: Aircraft | B16: Energy - Mobile Combustion - CH4 - Non-Highway - Aircraft | C16: =(Summary!C71)/1000000 -> 0 | D16: =(Summary!D71)/1000000 -> 0 | E16: =(Summary!E71)/1000000 -> 0 | F16: =(Summary!F71)/1000000 -> 0 | G16: =(Summary!G71)/1000000 -> 0 | H16: =(Summary!H71)/1000000 -> 0 | I16: =(Summary!I71)/1000000 -> 0 | J16: =(Summary!J71)/1000000 -> 0 | K16: =(Summary!K71)/1000000 -> 0 | L16: =(Summary!L71)/1000000 -> 0 | M16: =(Summary!M71)/1000000 -> 0 | N16: =(Summary!N71)/1000000 -> 0 | O16: =(Summary!O71)/1000000 -> 0 | P16: =(Summary!P71)/1000000 -> 0 | Q16: =(Summary!Q71)/1000000 -> 0 | R16: =(Summary!R71)/1000000 -> 0 | S16: =(Summary!S71)/1000000 -> 0 | T16: =(Summary!T71)/1000000 -> 0 | U16: =(Summary!U71)/1000000 -> 0 | V16: =(Summary!V71)/1000000 -> 0 | W16: =(Summary!W71)/1000000 -> 0 | X16: =(Summary!X71)/1000000 -> 0 | Y16: =(Summary!Y71)/1000000 -> 0 | Z16: =(Summary!Z71)/1000000 -> 0 | AA16: =(Summary!AA71)/1000000 -> 0 | AB16: =(Summary!AB71)/1000000 -> 0 | AC16: =(Summary!AC71)/1000000 -> 0 | AD16: =(Summary!AD71)/1000000 -> 0 | AE16: =(Summary!AE71)/1000000 -> 0 | AF16: =(Summary!AF71)/1000000 -> 0 | AG16: =(Summary!AG71)/1000000 -> 0
A17: Other* | B17: Energy - Mobile Combustion - CH4 - Non-Highway - Other* | C17: =(Summary!C72)/1000000 -> 0 | D17: =(Summary!D72)/1000000 -> 0 | E17: =(Summary!E72)/1000000 -> 0 | F17: =(Summary!F72)/1000000 -> 0 | G17: =(Summary!G72)/1000000 -> 0 | H17: =(Summary!H72)/1000000 -> 0 | I17: =(Summary!I72)/1000000 -> 0 | J17: =(Summary!J72)/1000000 -> 0 | K17: =(Summary!K72)/1000000 -> 0 | L17: =(Summary!L72)/1000000 -> 0 | M17: =(Summary!M72)/1000000 -> 0 | N17: =(Summary!N72)/1000000 -> 0 | O17: =(Summary!O72)/1000000 -> 0 | P17: =(Summary!P72)/1000000 -> 0 | Q17: =(Summary!Q72)/1000000 -> 0 | R17: =(Summary!R72)/1000000 -> 0 | S17: =(Summary!S72)/1000000 -> 0 | T17: =(Summary!T72)/1000000 -> 0 | U17: =(Summary!U72)/1000000 -> 0 | V17: =(Summary!V72)/1000000 -> 0 | W17: =(Summary!W72)/1000000 -> 0 | X17: =(Summary!X72)/1000000 -> 0 | Y17: =(Summary!Y72)/1000000 -> 0 | Z17: =(Summary!Z72)/1000000 -> 0 | AA17: =(Summary!AA72)/1000000 -> 0 | AB17: =(Summary!AB72)/1000000 -> 0 | AC17: =(Summary!AC72)/1000000 -> 0 | AD17: =(Summary!AD72)/1000000 -> 0 | AE17: =(Summary!AE72)/1000000 -> 0 | AF17: =(Summary!AF72)/1000000 -> 0 | AG17: =(Summary!AG72)/1000000 -> 0
A18: Alternative Fuel Vehicles | B18: ="Energy - Mobile Combustion - CH4 - "&$A$18 -> Energy - Mobile Combustion - CH4 - Alternative Fuel Vehicles | C18: =(Summary!C73)/1000000 -> 0 | D18: =(Summary!D73)/1000000 -> 0 | E18: =(Summary!E73)/1000000 -> 0 | F18: =(Summary!F73)/1000000 -> 0 | G18: =(Summary!G73)/1000000 -> 0 | H18: =(Summary!H73)/1000000 -> 0 | I18: =(Summary!I73)/1000000 -> 0 | J18: =(Summary!J73)/1000000 -> 0 | K18: =(Summary!K73)/1000000 -> 0 | L18: =(Summary!L73)/1000000 -> 0 | M18: =(Summary!M73)/1000000 -> 0 | N18: =(Summary!N73)/1000000 -> 0 | O18: =(Summary!O73)/1000000 -> 0 | P18: =(Summary!P73)/1000000 -> 0 | Q18: =(Summary!Q73)/1000000 -> 0 | R18: =(Summary!R73)/1000000 -> 0 | S18: =(Summary!S73)/1000000 -> 0 | T18: =(Summary!T73)/1000000 -> 0 | U18: =(Summary!U73)/1000000 -> 0 | V18: =(Summary!V73)/1000000 -> 0 | W18: =(Summary!W73)/1000000 -> 0 | X18: =(Summary!X73)/1000000 -> 0 | Y18: =(Summary!Y73)/1000000 -> 0 | Z18: =(Summary!Z73)/1000000 -> 0 | AA18: =(Summary!AA73)/1000000 -> 0 | AB18: =(Summary!AB73)/1000000 -> 0 | AC18: =(Summary!AC73)/1000000 -> 0 | AD18: =(Summary!AD73)/1000000 -> 0 | AE18: =(Summary!AE73)/1000000 -> 0 | AF18: =(Summary!AF73)/1000000 -> 0 | AG18: =(Summary!AG73)/1000000 -> 0
A19: Light Duty Vehicles | B19: ="Energy - Mobile Combustion - CH4 - "&$A$18&" - "&A19 -> Energy - Mobile Combustion - CH4 - Alternative Fuel Vehicles - Light Duty Vehicles | C19: =(Summary!C74)/1000000 -> 0 | D19: =(Summary!D74)/1000000 -> 0 | E19: =(Summary!E74)/1000000 -> 0 | F19: =(Summary!F74)/1000000 -> 0 | G19: =(Summary!G74)/1000000 -> 0 | H19: =(Summary!H74)/1000000 -> 0 | I19: =(Summary!I74)/1000000 -> 0 | J19: =(Summary!J74)/1000000 -> 0 | K19: =(Summary!K74)/1000000 -> 0 | L19: =(Summary!L74)/1000000 -> 0 | M19: =(Summary!M74)/1000000 -> 0 | N19: =(Summary!N74)/1000000 -> 0 | O19: =(Summary!O74)/1000000 -> 0 | P19: =(Summary!P74)/1000000 -> 0 | Q19: =(Summary!Q74)/1000000 -> 0 | R19: =(Summary!R74)/1000000 -> 0 | S19: =(Summary!S74)/1000000 -> 0 | T19: =(Summary!T74)/1000000 -> 0 | U19: =(Summary!U74)/1000000 -> 0 | V19: =(Summary!V74)/1000000 -> 0 | W19: =(Summary!W74)/1000000 -> 0 | X19: =(Summary!X74)/1000000 -> 0 | Y19: =(Summary!Y74)/1000000 -> 0 | Z19: =(Summary!Z74)/1000000 -> 0 | AA19: =(Summary!AA74)/1000000 -> 0 | AB19: =(Summary!AB74)/1000000 -> 0 | AC19: =(Summary!AC74)/1000000 -> 0 | AD19: =(Summary!AD74)/1000000 -> 0 | AE19: =(Summary!AE74)/1000000 -> 0 | AF19: =(Summary!AF74)/1000000 -> 0 | AG19: =(Summary!AG74)/1000000 -> 0
A20: Heavy Duty Vehicles | B20: ="Energy - Mobile Combustion - CH4 - "&$A$18&" - "&A20 -> Energy - Mobile Combustion - CH4 - Alternative Fuel Vehicles - Heavy Duty Vehicles | C20: =(Summary!C75)/1000000 -> 0 | D20: =(Summary!D75)/1000000 -> 0 | E20: =(Summary!E75)/1000000 -> 0 | F20: =(Summary!F75)/1000000 -> 0 | G20: =(Summary!G75)/1000000 -> 0 | H20: =(Summary!H75)/1000000 -> 0 | I20: =(Summary!I75)/1000000 -> 0 | J20: =(Summary!J75)/1000000 -> 0 | K20: =(Summary!K75)/1000000 -> 0 | L20: =(Summary!L75)/1000000 -> 0 | M20: =(Summary!M75)/1000000 -> 0 | N20: =(Summary!N75)/1000000 -> 0 | O20: =(Summary!O75)/1000000 -> 0 | P20: =(Summary!P75)/1000000 -> 0 | Q20: =(Summary!Q75)/1000000 -> 0 | R20: =(Summary!R75)/1000000 -> 0 | S20: =(Summary!S75)/1000000 -> 0 | T20: =(Summary!T75)/1000000 -> 0 | U20: =(Summary!U75)/1000000 -> 0 | V20: =(Summary!V75)/1000000 -> 0 | W20: =(Summary!W75)/1000000 -> 0 | X20: =(Summary!X75)/1000000 -> 0 | Y20: =(Summary!Y75)/1000000 -> 0 | Z20: =(Summary!Z75)/1000000 -> 0 | AA20: =(Summary!AA75)/1000000 -> 0 | AB20: =(Summary!AB75)/1000000 -> 0 | AC20: =(Summary!AC75)/1000000 -> 0 | AD20: =(Summary!AD75)/1000000 -> 0 | AE20: =(Summary!AE75)/1000000 -> 0 | AF20: =(Summary!AF75)/1000000 -> 0 | AG20: =(Summary!AG75)/1000000 -> 0
A21: Buses | B21: ="Energy - Mobile Combustion - CH4 - "&$A$18&" - "&A21 -> Energy - Mobile Combustion - CH4 - Alternative Fuel Vehicles - Buses | C21: =(Summary!C76)/1000000 -> 0 | D21: =(Summary!D76)/1000000 -> 0 | E21: =(Summary!E76)/1000000 -> 0 | F21: =(Summary!F76)/1000000 -> 0 | G21: =(Summary!G76)/1000000 -> 0 | H21: =(Summary!H76)/1000000 -> 0 | I21: =(Summary!I76)/1000000 -> 0 | J21: =(Summary!J76)/1000000 -> 0 | K21: =(Summary!K76)/1000000 -> 0 | L21: =(Summary!L76)/1000000 -> 0 | M21: =(Summary!M76)/1000000 -> 0 | N21: =(Summary!N76)/1000000 -> 0 | O21: =(Summary!O76)/1000000 -> 0 | P21: =(Summary!P76)/1000000 -> 0 | Q21: =(Summary!Q76)/1000000 -> 0 | R21: =(Summary!R76)/1000000 -> 0 | S21: =(Summary!S76)/1000000 -> 0 | T21: =(Summary!T76)/1000000 -> 0 | U21: =(Summary!U76)/1000000 -> 0 | V21: =(Summary!V76)/1000000 -> 0 | W21: =(Summary!W76)/1000000 -> 0 | X21: =(Summary!X76)/1000000 -> 0 | Y21: =(Summary!Y76)/1000000 -> 0 | Z21: =(Summary!Z76)/1000000 -> 0 | AA21: =(Summary!AA76)/1000000 -> 0 | AB21: =(Summary!AB76)/1000000 -> 0 | AC21: =(Summary!AC76)/1000000 -> 0 | AD21: =(Summary!AD76)/1000000 -> 0 | AE21: =(Summary!AE76)/1000000 -> 0 | AF21: =(Summary!AF76)/1000000 -> 0 | AG21: =(Summary!AG76)/1000000 -> 0
A22: Gasoline Highway | B22: ="Energy - Mobile Combustion - N2O - "&$A$2 -> Energy - Mobile Combustion - N2O - Gasoline Highway | C22: =(Summary!C82)/1000000 -> 0 | D22: =(Summary!D82)/1000000 -> 0 | E22: =(Summary!E82)/1000000 -> 0 | F22: =(Summary!F82)/1000000 -> 0 | G22: =(Summary!G82)/1000000 -> 0 | H22: =(Summary!H82)/1000000 -> 0 | I22: =(Summary!I82)/1000000 -> 0 | J22: =(Summary!J82)/1000000 -> 0 | K22: =(Summary!K82)/1000000 -> 0 | L22: =(Summary!L82)/1000000 -> 0 | M22: =(Summary!M82)/1000000 -> 0 | N22: =(Summary!N82)/1000000 -> 0 | O22: =(Summary!O82)/1000000 -> 0 | P22: =(Summary!P82)/1000000 -> 0 | Q22: =(Summary!Q82)/1000000 -> 0 | R22: =(Summary!R82)/1000000 -> 0 | S22: =(Summary!S82)/1000000 -> 0 | T22: =(Summary!T82)/1000000 -> 0 | U22: =(Summary!U82)/1000000 -> 0 | V22: =(Summary!V82)/1000000 -> 0 | W22: =(Summary!W82)/1000000 -> 0 | X22: =(Summary!X82)/1000000 -> 0 | Y22: =(Summary!Y82)/1000000 -> 0 | Z22: =(Summary!Z82)/1000000 -> 0 | AA22: =(Summary!AA82)/1000000 -> 0 | AB22: =(Summary!AB82)/1000000 -> 0 | AC22: =(Summary!AC82)/1000000 -> 0 | AD22: =(Summary!AD82)/1000000 -> 0 | AE22: =(Summary!AE82)/1000000 -> 0 | AF22: =(Summary!AF82)/1000000 -> 0 | AG22: =(Summary!AG82)/1000000 -> 0
A23: Passenger Cars | B23: ="Energy - Mobile Combustion - N2O - "&$A$2&" - "&A23 -> Energy - Mobile Combustion - N2O - Gasoline Highway - Passenger Cars | C23: =(Summary!C83)/1000000 -> 0 | D23: =(Summary!D83)/1000000 -> 0 | E23: =(Summary!E83)/1000000 -> 0 | F23: =(Summary!F83)/1000000 -> 0 | G23: =(Summary!G83)/1000000 -> 0 | H23: =(Summary!H83)/1000000 -> 0 | I23: =(Summary!I83)/1000000 -> 0 | J23: =(Summary!J83)/1000000 -> 0 | K23: =(Summary!K83)/1000000 -> 0 | L23: =(Summary!L83)/1000000 -> 0 | M23: =(Summary!M83)/1000000 -> 0 | N23: =(Summary!N83)/1000000 -> 0 | O23: =(Summary!O83)/1000000 -> 0 | P23: =(Summary!P83)/1000000 -> 0 | Q23: =(Summary!Q83)/1000000 -> 0 | R23: =(Summary!R83)/1000000 -> 0 | S23: =(Summary!S83)/1000000 -> 0 | T23: =(Summary!T83)/1000000 -> 0 | U23: =(Summary!U83)/1000000 -> 0 | V23: =(Summary!V83)/1000000 -> 0 | W23: =(Summary!W83)/1000000 -> 0 | X23: =(Summary!X83)/1000000 -> 0 | Y23: =(Summary!Y83)/1000000 -> 0 | Z23: =(Summary!Z83)/1000000 -> 0 | AA23: =(Summary!AA83)/1000000 -> 0 | AB23: =(Summary!AB83)/1000000 -> 0 | AC23: =(Summary!AC83)/1000000 -> 0 | AD23: =(Summary!AD83)/1000000 -> 0 | AE23: =(Summary!AE83)/1000000 -> 0 | AF23: =(Summary!AF83)/1000000 -> 0 | AG23: =(Summary!AG83)/1000000 -> 0
A24: Light-Duty Trucks | B24: ="Energy - Mobile Combustion - N2O - "&$A$2&" - "&A24 -> Energy - Mobile Combustion - N2O - Gasoline Highway - Light-Duty Trucks | C24: =(Summary!C84)/1000000 -> 0 | D24: =(Summary!D84)/1000000 -> 0 | E24: =(Summary!E84)/1000000 -> 0 | F24: =(Summary!F84)/1000000 -> 0 | G24: =(Summary!G84)/1000000 -> 0 | H24: =(Summary!H84)/1000000 -> 0 | I24: =(Summary!I84)/1000000 -> 0 | J24: =(Summary!J84)/1000000 -> 0 | K24: =(Summary!K84)/1000000 -> 0 | L24: =(Summary!L84)/1000000 -> 0 | M24: =(Summary!M84)/1000000 -> 0 | N24: =(Summary!N84)/1000000 -> 0 | O24: =(Summary!O84)/1000000 -> 0 | P24: =(Summary!P84)/1000000 -> 0 | Q24: =(Summary!Q84)/1000000 -> 0 | R24: =(Summary!R84)/1000000 -> 0 | S24: =(Summary!S84)/1000000 -> 0 | T24: =(Summary!T84)/1000000 -> 0 | U24: =(Summary!U84)/1000000 -> 0 | V24: =(Summary!V84)/1000000 -> 0 | W24: =(Summary!W84)/1000000 -> 0 | X24: =(Summary!X84)/1000000 -> 0 | Y24: =(Summary!Y84)/1000000 -> 0 | Z24: =(Summary!Z84)/1000000 -> 0 | AA24: =(Summary!AA84)/1000000 -> 0 | AB24: =(Summary!AB84)/1000000 -> 0 | AC24: =(Summary!AC84)/1000000 -> 0 | AD24: =(Summary!AD84)/1000000 -> 0 | AE24: =(Summary!AE84)/1000000 -> 0 | AF24: =(Summary!AF84)/1000000 -> 0 | AG24: =(Summary!AG84)/1000000 -> 0
A25: Heavy-Duty Vehicles | B25: ="Energy - Mobile Combustion - N2O - "&$A$2&" - "&A25 -> Energy - Mobile Combustion - N2O - Gasoline Highway - Heavy-Duty Vehicles | C25: =(Summary!C85)/1000000 -> 0 | D25: =(Summary!D85)/1000000 -> 0 | E25: =(Summary!E85)/1000000 -> 0 | F25: =(Summary!F85)/1000000 -> 0 | G25: =(Summary!G85)/1000000 -> 0 | H25: =(Summary!H85)/1000000 -> 0 | I25: =(Summary!I85)/1000000 -> 0 | J25: =(Summary!J85)/1000000 -> 0 | K25: =(Summary!K85)/1000000 -> 0 | L25: =(Summary!L85)/1000000 -> 0 | M25: =(Summary!M85)/1000000 -> 0 | N25: =(Summary!N85)/1000000 -> 0 | O25: =(Summary!O85)/1000000 -> 0 | P25: =(Summary!P85)/1000000 -> 0 | Q25: =(Summary!Q85)/1000000 -> 0 | R25: =(Summary!R85)/1000000 -> 0 | S25: =(Summary!S85)/1000000 -> 0 | T25: =(Summary!T85)/1000000 -> 0 | U25: =(Summary!U85)/1000000 -> 0 | V25: =(Summary!V85)/1000000 -> 0 | W25: =(Summary!W85)/1000000 -> 0 | X25: =(Summary!X85)/1000000 -> 0 | Y25: =(Summary!Y85)/1000000 -> 0 | Z25: =(Summary!Z85)/1000000 -> 0 | AA25: =(Summary!AA85)/1000000 -> 0 | AB25: =(Summary!AB85)/1000000 -> 0 | AC25: =(Summary!AC85)/1000000 -> 0 | AD25: =(Summary!AD85)/1000000 -> 0 | AE25: =(Summary!AE85)/1000000 -> 0 | AF25: =(Summary!AF85)/1000000 -> 0 | AG25: =(Summary!AG85)/1000000 -> 0
A26: Motorcycles | B26: ="Energy - Mobile Combustion - N2O - "&$A$2&" - "&A26 -> Energy - Mobile Combustion - N2O - Gasoline Highway - Motorcycles | C26: =(Summary!C86)/1000000 -> 0 | D26: =(Summary!D86)/1000000 -> 0 | E26: =(Summary!E86)/1000000 -> 0 | F26: =(Summary!F86)/1000000 -> 0 | G26: =(Summary!G86)/1000000 -> 0 | H26: =(Summary!H86)/1000000 -> 0 | I26: =(Summary!I86)/1000000 -> 0 | J26: =(Summary!J86)/1000000 -> 0 | K26: =(Summary!K86)/1000000 -> 0 | L26: =(Summary!L86)/1000000 -> 0 | M26: =(Summary!M86)/1000000 -> 0 | N26: =(Summary!N86)/1000000 -> 0 | O26: =(Summary!O86)/1000000 -> 0 | P26: =(Summary!P86)/1000000 -> 0 | Q26: =(Summary!Q86)/1000000 -> 0 | R26: =(Summary!R86)/1000000 -> 0 | S26: =(Summary!S86)/1000000 -> 0 | T26: =(Summary!T86)/1000000 -> 0 | U26: =(Summary!U86)/1000000 -> 0 | V26: =(Summary!V86)/1000000 -> 0 | W26: =(Summary!W86)/1000000 -> 0 | X26: =(Summary!X86)/1000000 -> 0 | Y26: =(Summary!Y86)/1000000 -> 0 | Z26: =(Summary!Z86)/1000000 -> 0 | AA26: =(Summary!AA86)/1000000 -> 0 | AB26: =(Summary!AB86)/1000000 -> 0 | AC26: =(Summary!AC86)/1000000 -> 0 | AD26: =(Summary!AD86)/1000000 -> 0 | AE26: =(Summary!AE86)/1000000 -> 0 | AF26: =(Summary!AF86)/1000000 -> 0 | AG26: =(Summary!AG86)/1000000 -> 0
A27: Diesel Highway | B27: ="Energy - Mobile Combustion - N2O - "&$A$7 -> Energy - Mobile Combustion - N2O - Diesel Highway | C27: =(Summary!C87)/1000000 -> 0 | D27: =(Summary!D87)/1000000 -> 0 | E27: =(Summary!E87)/1000000 -> 0 | F27: =(Summary!F87)/1000000 -> 0 | G27: =(Summary!G87)/1000000 -> 0 | H27: =(Summary!H87)/1000000 -> 0 | I27: =(Summary!I87)/1000000 -> 0 | J27: =(Summary!J87)/1000000 -> 0 | K27: =(Summary!K87)/1000000 -> 0 | L27: =(Summary!L87)/1000000 -> 0 | M27: =(Summary!M87)/1000000 -> 0 | N27: =(Summary!N87)/1000000 -> 0 | O27: =(Summary!O87)/1000000 -> 0 | P27: =(Summary!P87)/1000000 -> 0 | Q27: =(Summary!Q87)/1000000 -> 0 | R27: =(Summary!R87)/1000000 -> 0 | S27: =(Summary!S87)/1000000 -> 0 | T27: =(Summary!T87)/1000000 -> 0 | U27: =(Summary!U87)/1000000 -> 0 | V27: =(Summary!V87)/1000000 -> 0 | W27: =(Summary!W87)/1000000 -> 0 | X27: =(Summary!X87)/1000000 -> 0 | Y27: =(Summary!Y87)/1000000 -> 0 | Z27: =(Summary!Z87)/1000000 -> 0 | AA27: =(Summary!AA87)/1000000 -> 0 | AB27: =(Summary!AB87)/1000000 -> 0 | AC27: =(Summary!AC87)/1000000 -> 0 | AD27: =(Summary!AD87)/1000000 -> 0 | AE27: =(Summary!AE87)/1000000 -> 0 | AF27: =(Summary!AF87)/1000000 -> 0 | AG27: =(Summary!AG87)/1000000 -> 0
A28: Passenger Cars | B28: ="Energy - Mobile Combustion - N2O - "&$A$7&" - "&A28 -> Energy - Mobile Combustion - N2O - Diesel Highway - Passenger Cars | C28: =(Summary!C88)/1000000 -> 0 | D28: =(Summary!D88)/1000000 -> 0 | E28: =(Summary!E88)/1000000 -> 0 | F28: =(Summary!F88)/1000000 -> 0 | G28: =(Summary!G88)/1000000 -> 0 | H28: =(Summary!H88)/1000000 -> 0 | I28: =(Summary!I88)/1000000 -> 0 | J28: =(Summary!J88)/1000000 -> 0 | K28: =(Summary!K88)/1000000 -> 0 | L28: =(Summary!L88)/1000000 -> 0 | M28: =(Summary!M88)/1000000 -> 0 | N28: =(Summary!N88)/1000000 -> 0 | O28: =(Summary!O88)/1000000 -> 0 | P28: =(Summary!P88)/1000000 -> 0 | Q28: =(Summary!Q88)/1000000 -> 0 | R28: =(Summary!R88)/1000000 -> 0 | S28: =(Summary!S88)/1000000 -> 0 | T28: =(Summary!T88)/1000000 -> 0 | U28: =(Summary!U88)/1000000 -> 0 | V28: =(Summary!V88)/1000000 -> 0 | W28: =(Summary!W88)/1000000 -> 0 | X28: =(Summary!X88)/1000000 -> 0 | Y28: =(Summary!Y88)/1000000 -> 0 | Z28: =(Summary!Z88)/1000000 -> 0 | AA28: =(Summary!AA88)/1000000 -> 0 | AB28: =(Summary!AB88)/1000000 -> 0 | AC28: =(Summary!AC88)/1000000 -> 0 | AD28: =(Summary!AD88)/1000000 -> 0 | AE28: =(Summary!AE88)/1000000 -> 0 | AF28: =(Summary!AF88)/1000000 -> 0 | AG28: =(Summary!AG88)/1000000 -> 0
A29: Light-Duty Trucks | B29: ="Energy - Mobile Combustion - N2O - "&$A$7&" - "&A29 -> Energy - Mobile Combustion - N2O - Diesel Highway - Light-Duty Trucks | C29: =(Summary!C89)/1000000 -> 0 | D29: =(Summary!D89)/1000000 -> 0 | E29: =(Summary!E89)/1000000 -> 0 | F29: =(Summary!F89)/1000000 -> 0 | G29: =(Summary!G89)/1000000 -> 0 | H29: =(Summary!H89)/1000000 -> 0 | I29: =(Summary!I89)/1000000 -> 0 | J29: =(Summary!J89)/1000000 -> 0 | K29: =(Summary!K89)/1000000 -> 0 | L29: =(Summary!L89)/1000000 -> 0 | M29: =(Summary!M89)/1000000 -> 0 | N29: =(Summary!N89)/1000000 -> 0 | O29: =(Summary!O89)/1000000 -> 0 | P29: =(Summary!P89)/1000000 -> 0 | Q29: =(Summary!Q89)/1000000 -> 0 | R29: =(Summary!R89)/1000000 -> 0 | S29: =(Summary!S89)/1000000 -> 0 | T29: =(Summary!T89)/1000000 -> 0 | U29: =(Summary!U89)/1000000 -> 0 | V29: =(Summary!V89)/1000000 -> 0 | W29: =(Summary!W89)/1000000 -> 0 | X29: =(Summary!X89)/1000000 -> 0 | Y29: =(Summary!Y89)/1000000 -> 0 | Z29: =(Summary!Z89)/1000000 -> 0 | AA29: =(Summary!AA89)/1000000 -> 0 | AB29: =(Summary!AB89)/1000000 -> 0 | AC29: =(Summary!AC89)/1000000 -> 0 | AD29: =(Summary!AD89)/1000000 -> 0 | AE29: =(Summary!AE89)/1000000 -> 0 | AF29: =(Summary!AF89)/1000000 -> 0 | AG29: =(Summary!AG89)/1000000 -> 0
A30: Heavy-Duty Vehicles | B30: ="Energy - Mobile Combustion - N2O - "&$A$7&" - "&A30 -> Energy - Mobile Combustion - N2O - Diesel Highway - Heavy-Duty Vehicles | C30: =(Summary!C90)/1000000 -> 0 | D30: =(Summary!D90)/1000000 -> 0 | E30: =(Summary!E90)/1000000 -> 0 | F30: =(Summary!F90)/1000000 -> 0 | G30: =(Summary!G90)/1000000 -> 0 | H30: =(Summary!H90)/1000000 -> 0 | I30: =(Summary!I90)/1000000 -> 0 | J30: =(Summary!J90)/1000000 -> 0 | K30: =(Summary!K90)/1000000 -> 0 | L30: =(Summary!L90)/1000000 -> 0 | M30: =(Summary!M90)/1000000 -> 0 | N30: =(Summary!N90)/1000000 -> 0 | O30: =(Summary!O90)/1000000 -> 0 | P30: =(Summary!P90)/1000000 -> 0 | Q30: =(Summary!Q90)/1000000 -> 0 | R30: =(Summary!R90)/1000000 -> 0 | S30: =(Summary!S90)/1000000 -> 0 | T30: =(Summary!T90)/1000000 -> 0 | U30: =(Summary!U90)/1000000 -> 0 | V30: =(Summary!V90)/1000000 -> 0 | W30: =(Summary!W90)/1000000 -> 0 | X30: =(Summary!X90)/1000000 -> 0 | Y30: =(Summary!Y90)/1000000 -> 0 | Z30: =(Summary!Z90)/1000000 -> 0 | AA30: =(Summary!AA90)/1000000 -> 0 | AB30: =(Summary!AB90)/1000000 -> 0 | AC30: =(Summary!AC90)/1000000 -> 0 | AD30: =(Summary!AD90)/1000000 -> 0 | AE30: =(Summary!AE90)/1000000 -> 0 | AF30: =(Summary!AF90)/1000000 -> 0 | AG30: =(Summary!AG90)/1000000 -> 0
A31: Non-Highway | B31: ="Energy - Mobile Combustion - N2O - "&$A$11 -> Energy - Mobile Combustion - N2O - Non-Highway | C31: =(Summary!C91)/1000000 -> 0 | D31: =(Summary!D91)/1000000 -> 0 | E31: =(Summary!E91)/1000000 -> 0 | F31: =(Summary!F91)/1000000 -> 0 | G31: =(Summary!G91)/1000000 -> 0 | H31: =(Summary!H91)/1000000 -> 0 | I31: =(Summary!I91)/1000000 -> 0 | J31: =(Summary!J91)/1000000 -> 0 | K31: =(Summary!K91)/1000000 -> 0 | L31: =(Summary!L91)/1000000 -> 0 | M31: =(Summary!M91)/1000000 -> 0 | N31: =(Summary!N91)/1000000 -> 0 | O31: =(Summary!O91)/1000000 -> 0 | P31: =(Summary!P91)/1000000 -> 0 | Q31: =(Summary!Q91)/1000000 -> 0 | R31: =(Summary!R91)/1000000 -> 0 | S31: =(Summary!S91)/1000000 -> 0 | T31: =(Summary!T91)/1000000 -> 0 | U31: =(Summary!U91)/1000000 -> 0 | V31: =(Summary!V91)/1000000 -> 0 | W31: =(Summary!W91)/1000000 -> 0 | X31: =(Summary!X91)/1000000 -> 0 | Y31: =(Summary!Y91)/1000000 -> 0 | Z31: =(Summary!Z91)/1000000 -> 0 | AA31: =(Summary!AA91)/1000000 -> 0 | AB31: =(Summary!AB91)/1000000 -> 0 | AC31: =(Summary!AC91)/1000000 -> 0 | AD31: =(Summary!AD91)/1000000 -> 0 | AE31: =(Summary!AE91)/1000000 -> 0 | AF31: =(Summary!AF91)/1000000 -> 0 | AG31: =(Summary!AG91)/1000000 -> 0
A32: Boats | B32: ="Energy - Mobile Combustion - N2O - "&$A$11&" - "&A32 -> Energy - Mobile Combustion - N2O - Non-Highway - Boats | C32: =(Summary!C92)/1000000 -> 0 | D32: =(Summary!D92)/1000000 -> 0 | E32: =(Summary!E92)/1000000 -> 0 | F32: =(Summary!F92)/1000000 -> 0 | G32: =(Summary!G92)/1000000 -> 0 | H32: =(Summary!H92)/1000000 -> 0 | I32: =(Summary!I92)/1000000 -> 0 | J32: =(Summary!J92)/1000000 -> 0 | K32: =(Summary!K92)/1000000 -> 0 | L32: =(Summary!L92)/1000000 -> 0 | M32: =(Summary!M92)/1000000 -> 0 | N32: =(Summary!N92)/1000000 -> 0 | O32: =(Summary!O92)/1000000 -> 0 | P32: =(Summary!P92)/1000000 -> 0 | Q32: =(Summary!Q92)/1000000 -> 0 | R32: =(Summary!R92)/1000000 -> 0 | S32: =(Summary!S92)/1000000 -> 0 | T32: =(Summary!T92)/1000000 -> 0 | U32: =(Summary!U92)/1000000 -> 0 | V32: =(Summary!V92)/1000000 -> 0 | W32: =(Summary!W92)/1000000 -> 0 | X32: =(Summary!X92)/1000000 -> 0 | Y32: =(Summary!Y92)/1000000 -> 0 | Z32: =(Summary!Z92)/1000000 -> 0 | AA32: =(Summary!AA92)/1000000 -> 0 | AB32: =(Summary!AB92)/1000000 -> 0 | AC32: =(Summary!AC92)/1000000 -> 0 | AD32: =(Summary!AD92)/1000000 -> 0 | AE32: =(Summary!AE92)/1000000 -> 0 | AF32: =(Summary!AF92)/1000000 -> 0 | AG32: =(Summary!AG92)/1000000 -> 0
A33: Locomotives | B33: Energy - Mobile Combustion - N2O - Non-Highway - Locomotives | C33: =(Summary!C93)/1000000 -> 0 | D33: =(Summary!D93)/1000000 -> 0 | E33: =(Summary!E93)/1000000 -> 0 | F33: =(Summary!F93)/1000000 -> 0 | G33: =(Summary!G93)/1000000 -> 0 | H33: =(Summary!H93)/1000000 -> 0 | I33: =(Summary!I93)/1000000 -> 0 | J33: =(Summary!J93)/1000000 -> 0 | K33: =(Summary!K93)/1000000 -> 0 | L33: =(Summary!L93)/1000000 -> 0 | M33: =(Summary!M93)/1000000 -> 0 | N33: =(Summary!N93)/1000000 -> 0 | O33: =(Summary!O93)/1000000 -> 0 | P33: =(Summary!P93)/1000000 -> 0 | Q33: =(Summary!Q93)/1000000 -> 0 | R33: =(Summary!R93)/1000000 -> 0 | S33: =(Summary!S93)/1000000 -> 0 | T33: =(Summary!T93)/1000000 -> 0 | U33: =(Summary!U93)/1000000 -> 0 | V33: =(Summary!V93)/1000000 -> 0 | W33: =(Summary!W93)/1000000 -> 0 | X33: =(Summary!X93)/1000000 -> 0 | Y33: =(Summary!Y93)/1000000 -> 0 | Z33: =(Summary!Z93)/1000000 -> 0 | AA33: =(Summary!AA93)/1000000 -> 0 | AB33: =(Summary!AB93)/1000000 -> 0 | AC33: =(Summary!AC93)/1000000 -> 0 | AD33: =(Summary!AD93)/1000000 -> 0 | AE33: =(Summary!AE93)/1000000 -> 0 | AF33: =(Summary!AF93)/1000000 -> 0 | AG33: =(Summary!AG93)/1000000 -> 0
A34: Farm Equipment | B34: Energy - Mobile Combustion - N2O - Non-Highway - Farm Equipment | C34: =(Summary!C94)/1000000 -> 0 | D34: =(Summary!D94)/1000000 -> 0 | E34: =(Summary!E94)/1000000 -> 0 | F34: =(Summary!F94)/1000000 -> 0 | G34: =(Summary!G94)/1000000 -> 0 | H34: =(Summary!H94)/1000000 -> 0 | I34: =(Summary!I94)/1000000 -> 0 | J34: =(Summary!J94)/1000000 -> 0 | K34: =(Summary!K94)/1000000 -> 0 | L34: =(Summary!L94)/1000000 -> 0 | M34: =(Summary!M94)/1000000 -> 0 | N34: =(Summary!N94)/1000000 -> 0 | O34: =(Summary!O94)/1000000 -> 0 | P34: =(Summary!P94)/1000000 -> 0 | Q34: =(Summary!Q94)/1000000 -> 0 | R34: =(Summary!R94)/1000000 -> 0 | S34: =(Summary!S94)/1000000 -> 0 | T34: =(Summary!T94)/1000000 -> 0 | U34: =(Summary!U94)/1000000 -> 0 | V34: =(Summary!V94)/1000000 -> 0 | W34: =(Summary!W94)/1000000 -> 0 | X34: =(Summary!X94)/1000000 -> 0 | Y34: =(Summary!Y94)/1000000 -> 0 | Z34: =(Summary!Z94)/1000000 -> 0 | AA34: =(Summary!AA94)/1000000 -> 0 | AB34: =(Summary!AB94)/1000000 -> 0 | AC34: =(Summary!AC94)/1000000 -> 0 | AD34: =(Summary!AD94)/1000000 -> 0 | AE34: =(Summary!AE94)/1000000 -> 0 | AF34: =(Summary!AF94)/1000000 -> 0 | AG34: =(Summary!AG94)/1000000 -> 0
A35: Construction Equipment | B35: Energy - Mobile Combustion - N2O - Non-Highway - Construction Equipment | C35: =(Summary!C95)/1000000 -> 0 | D35: =(Summary!D95)/1000000 -> 0 | E35: =(Summary!E95)/1000000 -> 0 | F35: =(Summary!F95)/1000000 -> 0 | G35: =(Summary!G95)/1000000 -> 0 | H35: =(Summary!H95)/1000000 -> 0 | I35: =(Summary!I95)/1000000 -> 0 | J35: =(Summary!J95)/1000000 -> 0 | K35: =(Summary!K95)/1000000 -> 0 | L35: =(Summary!L95)/1000000 -> 0 | M35: =(Summary!M95)/1000000 -> 0 | N35: =(Summary!N95)/1000000 -> 0 | O35: =(Summary!O95)/1000000 -> 0 | P35: =(Summary!P95)/1000000 -> 0 | Q35: =(Summary!Q95)/1000000 -> 0 | R35: =(Summary!R95)/1000000 -> 0 | S35: =(Summary!S95)/1000000 -> 0 | T35: =(Summary!T95)/1000000 -> 0 | U35: =(Summary!U95)/1000000 -> 0 | V35: =(Summary!V95)/1000000 -> 0 | W35: =(Summary!W95)/1000000 -> 0 | X35: =(Summary!X95)/1000000 -> 0 | Y35: =(Summary!Y95)/1000000 -> 0 | Z35: =(Summary!Z95)/1000000 -> 0 | AA35: =(Summary!AA95)/1000000 -> 0 | AB35: =(Summary!AB95)/1000000 -> 0 | AC35: =(Summary!AC95)/1000000 -> 0 | AD35: =(Summary!AD95)/1000000 -> 0 | AE35: =(Summary!AE95)/1000000 -> 0 | AF35: =(Summary!AF95)/1000000 -> 0 | AG35: =(Summary!AG95)/1000000 -> 0
A36: Aircraft | B36: Energy - Mobile Combustion - N2O - Non-Highway - Aircraft | C36: =(Summary!C96)/1000000 -> 0 | D36: =(Summary!D96)/1000000 -> 0 | E36: =(Summary!E96)/1000000 -> 0 | F36: =(Summary!F96)/1000000 -> 0 | G36: =(Summary!G96)/1000000 -> 0 | H36: =(Summary!H96)/1000000 -> 0 | I36: =(Summary!I96)/1000000 -> 0 | J36: =(Summary!J96)/1000000 -> 0 | K36: =(Summary!K96)/1000000 -> 0 | L36: =(Summary!L96)/1000000 -> 0 | M36: =(Summary!M96)/1000000 -> 0 | N36: =(Summary!N96)/1000000 -> 0 | O36: =(Summary!O96)/1000000 -> 0 | P36: =(Summary!P96)/1000000 -> 0 | Q36: =(Summary!Q96)/1000000 -> 0 | R36: =(Summary!R96)/1000000 -> 0 | S36: =(Summary!S96)/1000000 -> 0 | T36: =(Summary!T96)/1000000 -> 0 | U36: =(Summary!U96)/1000000 -> 0 | V36: =(Summary!V96)/1000000 -> 0 | W36: =(Summary!W96)/1000000 -> 0 | X36: =(Summary!X96)/1000000 -> 0 | Y36: =(Summary!Y96)/1000000 -> 0 | Z36: =(Summary!Z96)/1000000 -> 0 | AA36: =(Summary!AA96)/1000000 -> 0 | AB36: =(Summary!AB96)/1000000 -> 0 | AC36: =(Summary!AC96)/1000000 -> 0 | AD36: =(Summary!AD96)/1000000 -> 0 | AE36: =(Summary!AE96)/1000000 -> 0 | AF36: =(Summary!AF96)/1000000 -> 0 | AG36: =(Summary!AG96)/1000000 -> 0
A37: Other* | B37: Energy - Mobile Combustion - N2O - Non-Highway - Other* | C37: =(Summary!C97)/1000000 -> 0 | D37: =(Summary!D97)/1000000 -> 0 | E37: =(Summary!E97)/1000000 -> 0 | F37: =(Summary!F97)/1000000 -> 0 | G37: =(Summary!G97)/1000000 -> 0 | H37: =(Summary!H97)/1000000 -> 0 | I37: =(Summary!I97)/1000000 -> 0 | J37: =(Summary!J97)/1000000 -> 0 | K37: =(Summary!K97)/1000000 -> 0 | L37: =(Summary!L97)/1000000 -> 0 | M37: =(Summary!M97)/1000000 -> 0 | N37: =(Summary!N97)/1000000 -> 0 | O37: =(Summary!O97)/1000000 -> 0 | P37: =(Summary!P97)/1000000 -> 0 | Q37: =(Summary!Q97)/1000000 -> 0 | R37: =(Summary!R97)/1000000 -> 0 | S37: =(Summary!S97)/1000000 -> 0 | T37: =(Summary!T97)/1000000 -> 0 | U37: =(Summary!U97)/1000000 -> 0 | V37: =(Summary!V97)/1000000 -> 0 | W37: =(Summary!W97)/1000000 -> 0 | X37: =(Summary!X97)/1000000 -> 0 | Y37: =(Summary!Y97)/1000000 -> 0 | Z37: =(Summary!Z97)/1000000 -> 0 | AA37: =(Summary!AA97)/1000000 -> 0 | AB37: =(Summary!AB97)/1000000 -> 0 | AC37: =(Summary!AC97)/1000000 -> 0 | AD37: =(Summary!AD97)/1000000 -> 0 | AE37: =(Summary!AE97)/1000000 -> 0 | AF37: =(Summary!AF97)/1000000 -> 0 | AG37: =(Summary!AG97)/1000000 -> 0
A38: Alternative Fuel Vehicles | B38: ="Energy - Mobile Combustion - N2O - "&$A$18 -> Energy - Mobile Combustion - N2O - Alternative Fuel Vehicles | C38: =(Summary!C98)/1000000 -> 0 | D38: =(Summary!D98)/1000000 -> 0 | E38: =(Summary!E98)/1000000 -> 0 | F38: =(Summary!F98)/1000000 -> 0 | G38: =(Summary!G98)/1000000 -> 0 | H38: =(Summary!H98)/1000000 -> 0 | I38: =(Summary!I98)/1000000 -> 0 | J38: =(Summary!J98)/1000000 -> 0 | K38: =(Summary!K98)/1000000 -> 0 | L38: =(Summary!L98)/1000000 -> 0 | M38: =(Summary!M98)/1000000 -> 0 | N38: =(Summary!N98)/1000000 -> 0 | O38: =(Summary!O98)/1000000 -> 0 | P38: =(Summary!P98)/1000000 -> 0 | Q38: =(Summary!Q98)/1000000 -> 0 | R38: =(Summary!R98)/1000000 -> 0 | S38: =(Summary!S98)/1000000 -> 0 | T38: =(Summary!T98)/1000000 -> 0 | U38: =(Summary!U98)/1000000 -> 0 | V38: =(Summary!V98)/1000000 -> 0 | W38: =(Summary!W98)/1000000 -> 0 | X38: =(Summary!X98)/1000000 -> 0 | Y38: =(Summary!Y98)/1000000 -> 0 | Z38: =(Summary!Z98)/1000000 -> 0 | AA38: =(Summary!AA98)/1000000 -> 0 | AB38: =(Summary!AB98)/1000000 -> 0 | AC38: =(Summary!AC98)/1000000 -> 0 | AD38: =(Summary!AD98)/1000000 -> 0 | AE38: =(Summary!AE98)/1000000 -> 0 | AF38: =(Summary!AF98)/1000000 -> 0 | AG38: =(Summary!AG98)/1000000 -> 0
A39: Light Duty Vehicles | B39: ="Energy - Mobile Combustion - N2O - "&$A$18&" - "&A39 -> Energy - Mobile Combustion - N2O - Alternative Fuel Vehicles - Light Duty Vehicles | C39: =(Summary!C99)/1000000 -> 0 | D39: =(Summary!D99)/1000000 -> 0 | E39: =(Summary!E99)/1000000 -> 0 | F39: =(Summary!F99)/1000000 -> 0 | G39: =(Summary!G99)/1000000 -> 0 | H39: =(Summary!H99)/1000000 -> 0 | I39: =(Summary!I99)/1000000 -> 0 | J39: =(Summary!J99)/1000000 -> 0 | K39: =(Summary!K99)/1000000 -> 0 | L39: =(Summary!L99)/1000000 -> 0 | M39: =(Summary!M99)/1000000 -> 0 | N39: =(Summary!N99)/1000000 -> 0 | O39: =(Summary!O99)/1000000 -> 0 | P39: =(Summary!P99)/1000000 -> 0 | Q39: =(Summary!Q99)/1000000 -> 0 | R39: =(Summary!R99)/1000000 -> 0 | S39: =(Summary!S99)/1000000 -> 0 | T39: =(Summary!T99)/1000000 -> 0 | U39: =(Summary!U99)/1000000 -> 0 | V39: =(Summary!V99)/1000000 -> 0 | W39: =(Summary!W99)/1000000 -> 0 | X39: =(Summary!X99)/1000000 -> 0 | Y39: =(Summary!Y99)/1000000 -> 0 | Z39: =(Summary!Z99)/1000000 -> 0 | AA39: =(Summary!AA99)/1000000 -> 0 | AB39: =(Summary!AB99)/1000000 -> 0 | AC39: =(Summary!AC99)/1000000 -> 0 | AD39: =(Summary!AD99)/1000000 -> 0 | AE39: =(Summary!AE99)/1000000 -> 0 | AF39: =(Summary!AF99)/1000000 -> 0 | AG39: =(Summary!AG99)/1000000 -> 0
A40: Heavy Duty Vehicles | B40: ="Energy - Mobile Combustion - N2O - "&$A$18&" - "&A40 -> Energy - Mobile Combustion - N2O - Alternative Fuel Vehicles - Heavy Duty Vehicles | C40: =(Summary!C100)/1000000 -> 0 | D40: =(Summary!D100)/1000000 -> 0 | E40: =(Summary!E100)/1000000 -> 0 | F40: =(Summary!F100)/1000000 -> 0 | G40: =(Summary!G100)/1000000 -> 0 | H40: =(Summary!H100)/1000000 -> 0 | I40: =(Summary!I100)/1000000 -> 0 | J40: =(Summary!J100)/1000000 -> 0 | K40: =(Summary!K100)/1000000 -> 0 | L40: =(Summary!L100)/1000000 -> 0 | M40: =(Summary!M100)/1000000 -> 0 | N40: =(Summary!N100)/1000000 -> 0 | O40: =(Summary!O100)/1000000 -> 0 | P40: =(Summary!P100)/1000000 -> 0 | Q40: =(Summary!Q100)/1000000 -> 0 | R40: =(Summary!R100)/1000000 -> 0 | S40: =(Summary!S100)/1000000 -> 0 | T40: =(Summary!T100)/1000000 -> 0 | U40: =(Summary!U100)/1000000 -> 0 | V40: =(Summary!V100)/1000000 -> 0 | W40: =(Summary!W100)/1000000 -> 0 | X40: =(Summary!X100)/1000000 -> 0 | Y40: =(Summary!Y100)/1000000 -> 0 | Z40: =(Summary!Z100)/1000000 -> 0 | AA40: =(Summary!AA100)/1000000 -> 0 | AB40: =(Summary!AB100)/1000000 -> 0 | AC40: =(Summary!AC100)/1000000 -> 0 | AD40: =(Summary!AD100)/1000000 -> 0 | AE40: =(Summary!AE100)/1000000 -> 0 | AF40: =(Summary!AF100)/1000000 -> 0 | AG40: =(Summary!AG100)/1000000 -> 0
A41: Buses | B41: ="Energy - Mobile Combustion - N2O - "&$A$18&" - "&A41 -> Energy - Mobile Combustion - N2O - Alternative Fuel Vehicles - Buses | C41: =(Summary!C101)/1000000 -> 0 | D41: =(Summary!D101)/1000000 -> 0 | E41: =(Summary!E101)/1000000 -> 0 | F41: =(Summary!F101)/1000000 -> 0 | G41: =(Summary!G101)/1000000 -> 0 | H41: =(Summary!H101)/1000000 -> 0 | I41: =(Summary!I101)/1000000 -> 0 | J41: =(Summary!J101)/1000000 -> 0 | K41: =(Summary!K101)/1000000 -> 0 | L41: =(Summary!L101)/1000000 -> 0 | M41: =(Summary!M101)/1000000 -> 0 | N41: =(Summary!N101)/1000000 -> 0 | O41: =(Summary!O101)/1000000 -> 0 | P41: =(Summary!P101)/1000000 -> 0 | Q41: =(Summary!Q101)/1000000 -> 0 | R41: =(Summary!R101)/1000000 -> 0 | S41: =(Summary!S101)/1000000 -> 0 | T41: =(Summary!T101)/1000000 -> 0 | U41: =(Summary!U101)/1000000 -> 0 | V41: =(Summary!V101)/1000000 -> 0 | W41: =(Summary!W101)/1000000 -> 0 | X41: =(Summary!X101)/1000000 -> 0 | Y41: =(Summary!Y101)/1000000 -> 0 | Z41: =(Summary!Z101)/1000000 -> 0 | AA41: =(Summary!AA101)/1000000 -> 0 | AB41: =(Summary!AB101)/1000000 -> 0 | AC41: =(Summary!AC101)/1000000 -> 0 | AD41: =(Summary!AD101)/1000000 -> 0 | AE41: =(Summary!AE101)/1000000 -> 0 | AF41: =(Summary!AF101)/1000000 -> 0 | AG41: =(Summary!AG101)/1000000 -> 0
A42: Gasoline Highway | B42: ="Energy - Mobile Combustion - CO2 - "&$A$42 -> Energy - Mobile Combustion - CO2 - Gasoline Highway | C42: =('CO2 Summary'!D9)/1000000 -> 0 | D42: =('CO2 Summary'!E9)/1000000 -> 0 | E42: =('CO2 Summary'!F9)/1000000 -> 0 | F42: =('CO2 Summary'!G9)/1000000 -> 0 | G42: =('CO2 Summary'!H9)/1000000 -> 0 | H42: =('CO2 Summary'!I9)/1000000 -> 0 | I42: =('CO2 Summary'!J9)/1000000 -> 0 | J42: =('CO2 Summary'!K9)/1000000 -> 0 | K42: =('CO2 Summary'!L9)/1000000 -> 0 | L42: =('CO2 Summary'!M9)/1000000 -> 0 | M42: =('CO2 Summary'!N9)/1000000 -> 0 | N42: =('CO2 Summary'!O9)/1000000 -> 0 | O42: =('CO2 Summary'!P9)/1000000 -> 0 | P42: =('CO2 Summary'!Q9)/1000000 -> 0 | Q42: =('CO2 Summary'!R9)/1000000 -> 0 | R42: =('CO2 Summary'!S9)/1000000 -> 0 | S42: =('CO2 Summary'!T9)/1000000 -> 0 | T42: =('CO2 Summary'!U9)/1000000 -> 0 | U42: =('CO2 Summary'!V9)/1000000 -> 0 | V42: =('CO2 Summary'!W9)/1000000 -> 0 | W42: =('CO2 Summary'!X9)/1000000 -> 0 | X42: =('CO2 Summary'!Y9)/1000000 -> 0 | Y42: =('CO2 Summary'!Z9)/1000000 -> 0 | Z42: =('CO2 Summary'!AA9)/1000000 -> 0 | AA42: =('CO2 Summary'!AB9)/1000000 -> 0 | AB42: =('CO2 Summary'!AC9)/1000000 -> 0 | AC42: =('CO2 Summary'!AD9)/1000000 -> 0 | AD42: =('CO2 Summary'!AE9)/1000000 -> 0 | AE42: =('CO2 Summary'!AF9)/1000000 -> 0 | AF42: =('CO2 Summary'!AG9)/1000000 -> 0 | AG42: =('CO2 Summary'!AH9)/1000000 -> 0
A43: Passenger Cars | B43: ="Energy - Mobile Combustion - CO2 - "&$A$42&" - "&A43 -> Energy - Mobile Combustion - CO2 - Gasoline Highway - Passenger Cars | C43: =('CO2 Summary'!D10)/1000000 -> 0 | D43: =('CO2 Summary'!E10)/1000000 -> 0 | E43: =('CO2 Summary'!F10)/1000000 -> 0 | F43: =('CO2 Summary'!G10)/1000000 -> 0 | G43: =('CO2 Summary'!H10)/1000000 -> 0 | H43: =('CO2 Summary'!I10)/1000000 -> 0 | I43: =('CO2 Summary'!J10)/1000000 -> 0 | J43: =('CO2 Summary'!K10)/1000000 -> 0 | K43: =('CO2 Summary'!L10)/1000000 -> 0 | L43: =('CO2 Summary'!M10)/1000000 -> 0 | M43: =('CO2 Summary'!N10)/1000000 -> 0 | N43: =('CO2 Summary'!O10)/1000000 -> 0 | O43: =('CO2 Summary'!P10)/1000000 -> 0 | P43: =('CO2 Summary'!Q10)/1000000 -> 0 | Q43: =('CO2 Summary'!R10)/1000000 -> 0 | R43: =('CO2 Summary'!S10)/1000000 -> 0 | S43: =('CO2 Summary'!T10)/1000000 -> 0 | T43: =('CO2 Summary'!U10)/1000000 -> 0 | U43: =('CO2 Summary'!V10)/1000000 -> 0 | V43: =('CO2 Summary'!W10)/1000000 -> 0 | W43: =('CO2 Summary'!X10)/1000000 -> 0 | X43: =('CO2 Summary'!Y10)/1000000 -> 0 | Y43: =('CO2 Summary'!Z10)/1000000 -> 0 | Z43: =('CO2 Summary'!AA10)/1000000 -> 0 | AA43: =('CO2 Summary'!AB10)/1000000 -> 0 | AB43: =('CO2 Summary'!AC10)/1000000 -> 0 | AC43: =('CO2 Summary'!AD10)/1000000 -> 0 | AD43: =('CO2 Summary'!AE10)/1000000 -> 0 | AE43: =('CO2 Summary'!AF10)/1000000 -> 0 | AF43: =('CO2 Summary'!AG10)/1000000 -> 0 | AG43: =('CO2 Summary'!AH10)/1000000 -> 0
A44: Light-Duty Trucks | B44: ="Energy - Mobile Combustion - CO2 - "&$A$42&" - "&A44 -> Energy - Mobile Combustion - CO2 - Gasoline Highway - Light-Duty Trucks | C44: =('CO2 Summary'!D11)/1000000 -> 0 | D44: =('CO2 Summary'!E11)/1000000 -> 0 | E44: =('CO2 Summary'!F11)/1000000 -> 0 | F44: =('CO2 Summary'!G11)/1000000 -> 0 | G44: =('CO2 Summary'!H11)/1000000 -> 0 | H44: =('CO2 Summary'!I11)/1000000 -> 0 | I44: =('CO2 Summary'!J11)/1000000 -> 0 | J44: =('CO2 Summary'!K11)/1000000 -> 0 | K44: =('CO2 Summary'!L11)/1000000 -> 0 | L44: =('CO2 Summary'!M11)/1000000 -> 0 | M44: =('CO2 Summary'!N11)/1000000 -> 0 | N44: =('CO2 Summary'!O11)/1000000 -> 0 | O44: =('CO2 Summary'!P11)/1000000 -> 0 | P44: =('CO2 Summary'!Q11)/1000000 -> 0 | Q44: =('CO2 Summary'!R11)/1000000 -> 0 | R44: =('CO2 Summary'!S11)/1000000 -> 0 | S44: =('CO2 Summary'!T11)/1000000 -> 0 | T44: =('CO2 Summary'!U11)/1000000 -> 0 | U44: =('CO2 Summary'!V11)/1000000 -> 0 | V44: =('CO2 Summary'!W11)/1000000 -> 0 | W44: =('CO2 Summary'!X11)/1000000 -> 0 | X44: =('CO2 Summary'!Y11)/1000000 -> 0 | Y44: =('CO2 Summary'!Z11)/1000000 -> 0 | Z44: =('CO2 Summary'!AA11)/1000000 -> 0 | AA44: =('CO2 Summary'!AB11)/1000000 -> 0 | AB44: =('CO2 Summary'!AC11)/1000000 -> 0 | AC44: =('CO2 Summary'!AD11)/1000000 -> 0 | AD44: =('CO2 Summary'!AE11)/1000000 -> 0 | AE44: =('CO2 Summary'!AF11)/1000000 -> 0 | AF44: =('CO2 Summary'!AG11)/1000000 -> 0 | AG44: =('CO2 Summary'!AH11)/1000000 -> 0
A45: Heavy-Duty Vehicles | B45: ="Energy - Mobile Combustion - CO2 - "&$A$42&" - "&A45 -> Energy - Mobile Combustion - CO2 - Gasoline Highway - Heavy-Duty Vehicles | C45: =('CO2 Summary'!D12)/1000000 -> 0 | D45: =('CO2 Summary'!E12)/1000000 -> 0 | E45: =('CO2 Summary'!F12)/1000000 -> 0 | F45: =('CO2 Summary'!G12)/1000000 -> 0 | G45: =('CO2 Summary'!H12)/1000000 -> 0 | H45: =('CO2 Summary'!I12)/1000000 -> 0 | I45: =('CO2 Summary'!J12)/1000000 -> 0 | J45: =('CO2 Summary'!K12)/1000000 -> 0 | K45: =('CO2 Summary'!L12)/1000000 -> 0 | L45: =('CO2 Summary'!M12)/1000000 -> 0 | M45: =('CO2 Summary'!N12)/1000000 -> 0 | N45: =('CO2 Summary'!O12)/1000000 -> 0 | O45: =('CO2 Summary'!P12)/1000000 -> 0 | P45: =('CO2 Summary'!Q12)/1000000 -> 0 | Q45: =('CO2 Summary'!R12)/1000000 -> 0 | R45: =('CO2 Summary'!S12)/1000000 -> 0 | S45: =('CO2 Summary'!T12)/1000000 -> 0 | T45: =('CO2 Summary'!U12)/1000000 -> 0 | U45: =('CO2 Summary'!V12)/1000000 -> 0 | V45: =('CO2 Summary'!W12)/1000000 -> 0 | W45: =('CO2 Summary'!X12)/1000000 -> 0 | X45: =('CO2 Summary'!Y12)/1000000 -> 0 | Y45: =('CO2 Summary'!Z12)/1000000 -> 0 | Z45: =('CO2 Summary'!AA12)/1000000 -> 0 | AA45: =('CO2 Summary'!AB12)/1000000 -> 0 | AB45: =('CO2 Summary'!AC12)/1000000 -> 0 | AC45: =('CO2 Summary'!AD12)/1000000 -> 0 | AD45: =('CO2 Summary'!AE12)/1000000 -> 0 | AE45: =('CO2 Summary'!AF12)/1000000 -> 0 | AF45: =('CO2 Summary'!AG12)/1000000 -> 0 | AG45: =('CO2 Summary'!AH12)/1000000 -> 0
A46: Motorcycles | B46: ="Energy - Mobile Combustion - CO2 - "&$A$42&" - "&A46 -> Energy - Mobile Combustion - CO2 - Gasoline Highway - Motorcycles | C46: =('CO2 Summary'!D13)/1000000 -> 0 | D46: =('CO2 Summary'!E13)/1000000 -> 0 | E46: =('CO2 Summary'!F13)/1000000 -> 0 | F46: =('CO2 Summary'!G13)/1000000 -> 0 | G46: =('CO2 Summary'!H13)/1000000 -> 0 | H46: =('CO2 Summary'!I13)/1000000 -> 0 | I46: =('CO2 Summary'!J13)/1000000 -> 0 | J46: =('CO2 Summary'!K13)/1000000 -> 0 | K46: =('CO2 Summary'!L13)/1000000 -> 0 | L46: =('CO2 Summary'!M13)/1000000 -> 0 | M46: =('CO2 Summary'!N13)/1000000 -> 0 | N46: =('CO2 Summary'!O13)/1000000 -> 0 | O46: =('CO2 Summary'!P13)/1000000 -> 0 | P46: =('CO2 Summary'!Q13)/1000000 -> 0 | Q46: =('CO2 Summary'!R13)/1000000 -> 0 | R46: =('CO2 Summary'!S13)/1000000 -> 0 | S46: =('CO2 Summary'!T13)/1000000 -> 0 | T46: =('CO2 Summary'!U13)/1000000 -> 0 | U46: =('CO2 Summary'!V13)/1000000 -> 0 | V46: =('CO2 Summary'!W13)/1000000 -> 0 | W46: =('CO2 Summary'!X13)/1000000 -> 0 | X46: =('CO2 Summary'!Y13)/1000000 -> 0 | Y46: =('CO2 Summary'!Z13)/1000000 -> 0 | Z46: =('CO2 Summary'!AA13)/1000000 -> 0 | AA46: =('CO2 Summary'!AB13)/1000000 -> 0 | AB46: =('CO2 Summary'!AC13)/1000000 -> 0 | AC46: =('CO2 Summary'!AD13)/1000000 -> 0 | AD46: =('CO2 Summary'!AE13)/1000000 -> 0 | AE46: =('CO2 Summary'!AF13)/1000000 -> 0 | AF46: =('CO2 Summary'!AG13)/1000000 -> 0 | AG46: =('CO2 Summary'!AH13)/1000000 -> 0
A47: Diesel Highway | B47: ="Energy - Mobile Combustion - CO2 - "&$A$47 -> Energy - Mobile Combustion - CO2 - Diesel Highway | C47: =('CO2 Summary'!D14)/1000000 -> 0 | D47: =('CO2 Summary'!E14)/1000000 -> 0 | E47: =('CO2 Summary'!F14)/1000000 -> 0 | F47: =('CO2 Summary'!G14)/1000000 -> 0 | G47: =('CO2 Summary'!H14)/1000000 -> 0 | H47: =('CO2 Summary'!I14)/1000000 -> 0 | I47: =('CO2 Summary'!J14)/1000000 -> 0 | J47: =('CO2 Summary'!K14)/1000000 -> 0 | K47: =('CO2 Summary'!L14)/1000000 -> 0 | L47: =('CO2 Summary'!M14)/1000000 -> 0 | M47: =('CO2 Summary'!N14)/1000000 -> 0 | N47: =('CO2 Summary'!O14)/1000000 -> 0 | O47: =('CO2 Summary'!P14)/1000000 -> 0 | P47: =('CO2 Summary'!Q14)/1000000 -> 0 | Q47: =('CO2 Summary'!R14)/1000000 -> 0 | R47: =('CO2 Summary'!S14)/1000000 -> 0 | S47: =('CO2 Summary'!T14)/1000000 -> 0 | T47: =('CO2 Summary'!U14)/1000000 -> 0 | U47: =('CO2 Summary'!V14)/1000000 -> 0 | V47: =('CO2 Summary'!W14)/1000000 -> 0 | W47: =('CO2 Summary'!X14)/1000000 -> 0 | X47: =('CO2 Summary'!Y14)/1000000 -> 0 | Y47: =('CO2 Summary'!Z14)/1000000 -> 0 | Z47: =('CO2 Summary'!AA14)/1000000 -> 0 | AA47: =('CO2 Summary'!AB14)/1000000 -> 0 | AB47: =('CO2 Summary'!AC14)/1000000 -> 0 | AC47: =('CO2 Summary'!AD14)/1000000 -> 0 | AD47: =('CO2 Summary'!AE14)/1000000 -> 0 | AE47: =('CO2 Summary'!AF14)/1000000 -> 0 | AF47: =('CO2 Summary'!AG14)/1000000 -> 0 | AG47: =('CO2 Summary'!AH14)/1000000 -> 0
A48: Passenger Cars | B48: ="Energy - Mobile Combustion - CO2 - "&$A$47&" - "&A48 -> Energy - Mobile Combustion - CO2 - Diesel Highway - Passenger Cars | C48: =('CO2 Summary'!D15)/1000000 -> 0 | D48: =('CO2 Summary'!E15)/1000000 -> 0 | E48: =('CO2 Summary'!F15)/1000000 -> 0 | F48: =('CO2 Summary'!G15)/1000000 -> 0 | G48: =('CO2 Summary'!H15)/1000000 -> 0 | H48: =('CO2 Summary'!I15)/1000000 -> 0 | I48: =('CO2 Summary'!J15)/1000000 -> 0 | J48: =('CO2 Summary'!K15)/1000000 -> 0 | K48: =('CO2 Summary'!L15)/1000000 -> 0 | L48: =('CO2 Summary'!M15)/1000000 -> 0 | M48: =('CO2 Summary'!N15)/1000000 -> 0 | N48: =('CO2 Summary'!O15)/1000000 -> 0 | O48: =('CO2 Summary'!P15)/1000000 -> 0 | P48: =('CO2 Summary'!Q15)/1000000 -> 0 | Q48: =('CO2 Summary'!R15)/1000000 -> 0 | R48: =('CO2 Summary'!S15)/1000000 -> 0 | S48: =('CO2 Summary'!T15)/1000000 -> 0 | T48: =('CO2 Summary'!U15)/1000000 -> 0 | U48: =('CO2 Summary'!V15)/1000000 -> 0 | V48: =('CO2 Summary'!W15)/1000000 -> 0 | W48: =('CO2 Summary'!X15)/1000000 -> 0 | X48: =('CO2 Summary'!Y15)/1000000 -> 0 | Y48: =('CO2 Summary'!Z15)/1000000 -> 0 | Z48: =('CO2 Summary'!AA15)/1000000 -> 0 | AA48: =('CO2 Summary'!AB15)/1000000 -> 0 | AB48: =('CO2 Summary'!AC15)/1000000 -> 0 | AC48: =('CO2 Summary'!AD15)/1000000 -> 0 | AD48: =('CO2 Summary'!AE15)/1000000 -> 0 | AE48: =('CO2 Summary'!AF15)/1000000 -> 0 | AF48: =('CO2 Summary'!AG15)/1000000 -> 0 | AG48: =('CO2 Summary'!AH15)/1000000 -> 0
A49: Light-Duty Trucks | B49: ="Energy - Mobile Combustion - CO2 - "&$A$47&" - "&A49 -> Energy - Mobile Combustion - CO2 - Diesel Highway - Light-Duty Trucks | C49: =('CO2 Summary'!D16)/1000000 -> 0 | D49: =('CO2 Summary'!E16)/1000000 -> 0 | E49: =('CO2 Summary'!F16)/1000000 -> 0 | F49: =('CO2 Summary'!G16)/1000000 -> 0 | G49: =('CO2 Summary'!H16)/1000000 -> 0 | H49: =('CO2 Summary'!I16)/1000000 -> 0 | I49: =('CO2 Summary'!J16)/1000000 -> 0 | J49: =('CO2 Summary'!K16)/1000000 -> 0 | K49: =('CO2 Summary'!L16)/1000000 -> 0 | L49: =('CO2 Summary'!M16)/1000000 -> 0 | M49: =('CO2 Summary'!N16)/1000000 -> 0 | N49: =('CO2 Summary'!O16)/1000000 -> 0 | O49: =('CO2 Summary'!P16)/1000000 -> 0 | P49: =('CO2 Summary'!Q16)/1000000 -> 0 | Q49: =('CO2 Summary'!R16)/1000000 -> 0 | R49: =('CO2 Summary'!S16)/1000000 -> 0 | S49: =('CO2 Summary'!T16)/1000000 -> 0 | T49: =('CO2 Summary'!U16)/1000000 -> 0 | U49: =('CO2 Summary'!V16)/1000000 -> 0 | V49: =('CO2 Summary'!W16)/1000000 -> 0 | W49: =('CO2 Summary'!X16)/1000000 -> 0 | X49: =('CO2 Summary'!Y16)/1000000 -> 0 | Y49: =('CO2 Summary'!Z16)/1000000 -> 0 | Z49: =('CO2 Summary'!AA16)/1000000 -> 0 | AA49: =('CO2 Summary'!AB16)/1000000 -> 0 | AB49: =('CO2 Summary'!AC16)/1000000 -> 0 | AC49: =('CO2 Summary'!AD16)/1000000 -> 0 | AD49: =('CO2 Summary'!AE16)/1000000 -> 0 | AE49: =('CO2 Summary'!AF16)/1000000 -> 0 | AF49: =('CO2 Summary'!AG16)/1000000 -> 0 | AG49: =('CO2 Summary'!AH16)/1000000 -> 0
A50: Heavy-Duty Vehicles | B50: ="Energy - Mobile Combustion - CO2 - "&$A$47&" - "&A50 -> Energy - Mobile Combustion - CO2 - Diesel Highway - Heavy-Duty Vehicles | C50: =('CO2 Summary'!D17)/1000000 -> 0 | D50: =('CO2 Summary'!E17)/1000000 -> 0 | E50: =('CO2 Summary'!F17)/1000000 -> 0 | F50: =('CO2 Summary'!G17)/1000000 -> 0 | G50: =('CO2 Summary'!H17)/1000000 -> 0 | H50: =('CO2 Summary'!I17)/1000000 -> 0 | I50: =('CO2 Summary'!J17)/1000000 -> 0 | J50: =('CO2 Summary'!K17)/1000000 -> 0 | K50: =('CO2 Summary'!L17)/1000000 -> 0 | L50: =('CO2 Summary'!M17)/1000000 -> 0 | M50: =('CO2 Summary'!N17)/1000000 -> 0 | N50: =('CO2 Summary'!O17)/1000000 -> 0 | O50: =('CO2 Summary'!P17)/1000000 -> 0 | P50: =('CO2 Summary'!Q17)/1000000 -> 0 | Q50: =('CO2 Summary'!R17)/1000000 -> 0 | R50: =('CO2 Summary'!S17)/1000000 -> 0 | S50: =('CO2 Summary'!T17)/1000000 -> 0 | T50: =('CO2 Summary'!U17)/1000000 -> 0 | U50: =('CO2 Summary'!V17)/1000000 -> 0 | V50: =('CO2 Summary'!W17)/1000000 -> 0 | W50: =('CO2 Summary'!X17)/1000000 -> 0 | X50: =('CO2 Summary'!Y17)/1000000 -> 0 | Y50: =('CO2 Summary'!Z17)/1000000 -> 0 | Z50: =('CO2 Summary'!AA17)/1000000 -> 0 | AA50: =('CO2 Summary'!AB17)/1000000 -> 0 | AB50: =('CO2 Summary'!AC17)/1000000 -> 0 | AC50: =('CO2 Summary'!AD17)/1000000 -> 0 | AD50: =('CO2 Summary'!AE17)/1000000 -> 0 | AE50: =('CO2 Summary'!AF17)/1000000 -> 0 | AF50: =('CO2 Summary'!AG17)/1000000 -> 0 | AG50: =('CO2 Summary'!AH17)/1000000 -> 0
A51: Non-Highway | B51: ="Energy - Mobile Combustion - CO2 - "&$A$51 -> Energy - Mobile Combustion - CO2 - Non-Highway | C51: =('CO2 Summary'!D18)/1000000 -> 0 | D51: =('CO2 Summary'!E18)/1000000 -> 0 | E51: =('CO2 Summary'!F18)/1000000 -> 0 | F51: =('CO2 Summary'!G18)/1000000 -> 0 | G51: =('CO2 Summary'!H18)/1000000 -> 0 | H51: =('CO2 Summary'!I18)/1000000 -> 0 | I51: =('CO2 Summary'!J18)/1000000 -> 0 | J51: =('CO2 Summary'!K18)/1000000 -> 0 | K51: =('CO2 Summary'!L18)/1000000 -> 0 | L51: =('CO2 Summary'!M18)/1000000 -> 0 | M51: =('CO2 Summary'!N18)/1000000 -> 0 | N51: =('CO2 Summary'!O18)/1000000 -> 0 | O51: =('CO2 Summary'!P18)/1000000 -> 0 | P51: =('CO2 Summary'!Q18)/1000000 -> 0 | Q51: =('CO2 Summary'!R18)/1000000 -> 0 | R51: =('CO2 Summary'!S18)/1000000 -> 0 | S51: =('CO2 Summary'!T18)/1000000 -> 0 | T51: =('CO2 Summary'!U18)/1000000 -> 0 | U51: =('CO2 Summary'!V18)/1000000 -> 0 | V51: =('CO2 Summary'!W18)/1000000 -> 0 | W51: =('CO2 Summary'!X18)/1000000 -> 0 | X51: =('CO2 Summary'!Y18)/1000000 -> 0 | Y51: =('CO2 Summary'!Z18)/1000000 -> 0 | Z51: =('CO2 Summary'!AA18)/1000000 -> 0 | AA51: =('CO2 Summary'!AB18)/1000000 -> 0 | AB51: =('CO2 Summary'!AC18)/1000000 -> 0 | AC51: =('CO2 Summary'!AD18)/1000000 -> 0 | AD51: =('CO2 Summary'!AE18)/1000000 -> 0 | AE51: =('CO2 Summary'!AF18)/1000000 -> 0 | AF51: =('CO2 Summary'!AG18)/1000000 -> 0 | AG51: =('CO2 Summary'!AH18)/1000000 -> 0
A52: Aviation | B52: ="Energy - Mobile Combustion - CO2 - "&$A$51&" - "&A52 -> Energy - Mobile Combustion - CO2 - Non-Highway - Aviation | C52: =('CO2 Summary'!D19)/1000000 -> 0 | D52: =('CO2 Summary'!E19)/1000000 -> 0 | E52: =('CO2 Summary'!F19)/1000000 -> 0 | F52: =('CO2 Summary'!G19)/1000000 -> 0 | G52: =('CO2 Summary'!H19)/1000000 -> 0 | H52: =('CO2 Summary'!I19)/1000000 -> 0 | I52: =('CO2 Summary'!J19)/1000000 -> 0 | J52: =('CO2 Summary'!K19)/1000000 -> 0 | K52: =('CO2 Summary'!L19)/1000000 -> 0 | L52: =('CO2 Summary'!M19)/1000000 -> 0 | M52: =('CO2 Summary'!N19)/1000000 -> 0 | N52: =('CO2 Summary'!O19)/1000000 -> 0 | O52: =('CO2 Summary'!P19)/1000000 -> 0 | P52: =('CO2 Summary'!Q19)/1000000 -> 0 | Q52: =('CO2 Summary'!R19)/1000000 -> 0 | R52: =('CO2 Summary'!S19)/1000000 -> 0 | S52: =('CO2 Summary'!T19)/1000000 -> 0 | T52: =('CO2 Summary'!U19)/1000000 -> 0 | U52: =('CO2 Summary'!V19)/1000000 -> 0 | V52: =('CO2 Summary'!W19)/1000000 -> 0 | W52: =('CO2 Summary'!X19)/1000000 -> 0 | X52: =('CO2 Summary'!Y19)/1000000 -> 0 | Y52: =('CO2 Summary'!Z19)/1000000 -> 0 | Z52: =('CO2 Summary'!AA19)/1000000 -> 0 | AA52: =('CO2 Summary'!AB19)/1000000 -> 0 | AB52: =('CO2 Summary'!AC19)/1000000 -> 0 | AC52: =('CO2 Summary'!AD19)/1000000 -> 0 | AD52: =('CO2 Summary'!AE19)/1000000 -> 0 | AE52: =('CO2 Summary'!AF19)/1000000 -> 0 | AF52: =('CO2 Summary'!AG19)/1000000 -> 0 | AG52: =('CO2 Summary'!AH19)/1000000 -> 0
A53: Boats | B53: ="Energy - Mobile Combustion - CO2 - "&$A$51&" - "&A53 -> Energy - Mobile Combustion - CO2 - Non-Highway - Boats | C53: =('CO2 Summary'!D20)/1000000 -> 0 | D53: =('CO2 Summary'!E20)/1000000 -> 0 | E53: =('CO2 Summary'!F20)/1000000 -> 0 | F53: =('CO2 Summary'!G20)/1000000 -> 0 | G53: =('CO2 Summary'!H20)/1000000 -> 0 | H53: =('CO2 Summary'!I20)/1000000 -> 0 | I53: =('CO2 Summary'!J20)/1000000 -> 0 | J53: =('CO2 Summary'!K20)/1000000 -> 0 | K53: =('CO2 Summary'!L20)/1000000 -> 0 | L53: =('CO2 Summary'!M20)/1000000 -> 0 | M53: =('CO2 Summary'!N20)/1000000 -> 0 | N53: =('CO2 Summary'!O20)/1000000 -> 0 | O53: =('CO2 Summary'!P20)/1000000 -> 0 | P53: =('CO2 Summary'!Q20)/1000000 -> 0 | Q53: =('CO2 Summary'!R20)/1000000 -> 0 | R53: =('CO2 Summary'!S20)/1000000 -> 0 | S53: =('CO2 Summary'!T20)/1000000 -> 0 | T53: =('CO2 Summary'!U20)/1000000 -> 0 | U53: =('CO2 Summary'!V20)/1000000 -> 0 | V53: =('CO2 Summary'!W20)/1000000 -> 0 | W53: =('CO2 Summary'!X20)/1000000 -> 0 | X53: =('CO2 Summary'!Y20)/1000000 -> 0 | Y53: =('CO2 Summary'!Z20)/1000000 -> 0 | Z53: =('CO2 Summary'!AA20)/1000000 -> 0 | AA53: =('CO2 Summary'!AB20)/1000000 -> 0 | AB53: =('CO2 Summary'!AC20)/1000000 -> 0 | AC53: =('CO2 Summary'!AD20)/1000000 -> 0 | AD53: =('CO2 Summary'!AE20)/1000000 -> 0 | AE53: =('CO2 Summary'!AF20)/1000000 -> 0 | AF53: =('CO2 Summary'!AG20)/1000000 -> 0 | AG53: =('CO2 Summary'!AH20)/1000000 -> 0
A54: Locomotives | B54: ="Energy - Mobile Combustion - CO2 - "&$A$51&" - "&A54 -> Energy - Mobile Combustion - CO2 - Non-Highway - Locomotives | C54: =('CO2 Summary'!D21)/1000000 -> 0 | D54: =('CO2 Summary'!E21)/1000000 -> 0 | E54: =('CO2 Summary'!F21)/1000000 -> 0 | F54: =('CO2 Summary'!G21)/1000000 -> 0 | G54: =('CO2 Summary'!H21)/1000000 -> 0 | H54: =('CO2 Summary'!I21)/1000000 -> 0 | I54: =('CO2 Summary'!J21)/1000000 -> 0 | J54: =('CO2 Summary'!K21)/1000000 -> 0 | K54: =('CO2 Summary'!L21)/1000000 -> 0 | L54: =('CO2 Summary'!M21)/1000000 -> 0 | M54: =('CO2 Summary'!N21)/1000000 -> 0 | N54: =('CO2 Summary'!O21)/1000000 -> 0 | O54: =('CO2 Summary'!P21)/1000000 -> 0 | P54: =('CO2 Summary'!Q21)/1000000 -> 0 | Q54: =('CO2 Summary'!R21)/1000000 -> 0 | R54: =('CO2 Summary'!S21)/1000000 -> 0 | S54: =('CO2 Summary'!T21)/1000000 -> 0 | T54: =('CO2 Summary'!U21)/1000000 -> 0 | U54: =('CO2 Summary'!V21)/1000000 -> 0 | V54: =('CO2 Summary'!W21)/1000000 -> 0 | W54: =('CO2 Summary'!X21)/1000000 -> 0 | X54: =('CO2 Summary'!Y21)/1000000 -> 0 | Y54: =('CO2 Summary'!Z21)/1000000 -> 0 | Z54: =('CO2 Summary'!AA21)/1000000 -> 0 | AA54: =('CO2 Summary'!AB21)/1000000 -> 0 | AB54: =('CO2 Summary'!AC21)/1000000 -> 0 | AC54: =('CO2 Summary'!AD21)/1000000 -> 0 | AD54: =('CO2 Summary'!AE21)/1000000 -> 0 | AE54: =('CO2 Summary'!AF21)/1000000 -> 0 | AF54: =('CO2 Summary'!AG21)/1000000 -> 0 | AG54: =('CO2 Summary'!AH21)/1000000 -> 0
A55: Other | B55: ="Energy - Mobile Combustion - CO2 - "&$A$51&" - "&A55 -> Energy - Mobile Combustion - CO2 - Non-Highway - Other | C55: =('CO2 Summary'!D22)/1000000 -> 0 | D55: =('CO2 Summary'!E22)/1000000 -> 0 | E55: =('CO2 Summary'!F22)/1000000 -> 0 | F55: =('CO2 Summary'!G22)/1000000 -> 0 | G55: =('CO2 Summary'!H22)/1000000 -> 0 | H55: =('CO2 Summary'!I22)/1000000 -> 0 | I55: =('CO2 Summary'!J22)/1000000 -> 0 | J55: =('CO2 Summary'!K22)/1000000 -> 0 | K55: =('CO2 Summary'!L22)/1000000 -> 0 | L55: =('CO2 Summary'!M22)/1000000 -> 0 | M55: =('CO2 Summary'!N22)/1000000 -> 0 | N55: =('CO2 Summary'!O22)/1000000 -> 0 | O55: =('CO2 Summary'!P22)/1000000 -> 0 | P55: =('CO2 Summary'!Q22)/1000000 -> 0 | Q55: =('CO2 Summary'!R22)/1000000 -> 0 | R55: =('CO2 Summary'!S22)/1000000 -> 0 | S55: =('CO2 Summary'!T22)/1000000 -> 0 | T55: =('CO2 Summary'!U22)/1000000 -> 0 | U55: =('CO2 Summary'!V22)/1000000 -> 0 | V55: =('CO2 Summary'!W22)/1000000 -> 0 | W55: =('CO2 Summary'!X22)/1000000 -> 0 | X55: =('CO2 Summary'!Y22)/1000000 -> 0 | Y55: =('CO2 Summary'!Z22)/1000000 -> 0 | Z55: =('CO2 Summary'!AA22)/1000000 -> 0 | AA55: =('CO2 Summary'!AB22)/1000000 -> 0 | AB55: =('CO2 Summary'!AC22)/1000000 -> 0 | AC55: =('CO2 Summary'!AD22)/1000000 -> 0 | AD55: =('CO2 Summary'!AE22)/1000000 -> 0 | AE55: =('CO2 Summary'!AF22)/1000000 -> 0 | AF55: =('CO2 Summary'!AG22)/1000000 -> 0 | AG55: =('CO2 Summary'!AH22)/1000000 -> 0
A56: Alternative Fuel Vehicles | B56: ="Energy - Mobile Combustion - CO2 - "&$A$56 -> Energy - Mobile Combustion - CO2 - Alternative Fuel Vehicles | C56: =('CO2 Summary'!D23)/1000000 -> 0 | D56: =('CO2 Summary'!E23)/1000000 -> 0 | E56: =('CO2 Summary'!F23)/1000000 -> 0 | F56: =('CO2 Summary'!G23)/1000000 -> 0 | G56: =('CO2 Summary'!H23)/1000000 -> 0 | H56: =('CO2 Summary'!I23)/1000000 -> 0 | I56: =('CO2 Summary'!J23)/1000000 -> 0 | J56: =('CO2 Summary'!K23)/1000000 -> 0 | K56: =('CO2 Summary'!L23)/1000000 -> 0 | L56: =('CO2 Summary'!M23)/1000000 -> 0 | M56: =('CO2 Summary'!N23)/1000000 -> 0 | N56: =('CO2 Summary'!O23)/1000000 -> 0 | O56: =('CO2 Summary'!P23)/1000000 -> 0 | P56: =('CO2 Summary'!Q23)/1000000 -> 0 | Q56: =('CO2 Summary'!R23)/1000000 -> 0 | R56: =('CO2 Summary'!S23)/1000000 -> 0 | S56: =('CO2 Summary'!T23)/1000000 -> 0 | T56: =('CO2 Summary'!U23)/1000000 -> 0 | U56: =('CO2 Summary'!V23)/1000000 -> 0 | V56: =('CO2 Summary'!W23)/1000000 -> 0 | W56: =('CO2 Summary'!X23)/1000000 -> 0 | X56: =('CO2 Summary'!Y23)/1000000 -> 0 | Y56: =('CO2 Summary'!Z23)/1000000 -> 0 | Z56: =('CO2 Summary'!AA23)/1000000 -> 0 | AA56: =('CO2 Summary'!AB23)/1000000 -> 0 | AB56: =('CO2 Summary'!AC23)/1000000 -> 0 | AC56: =('CO2 Summary'!AD23)/1000000 -> 0 | AD56: =('CO2 Summary'!AE23)/1000000 -> 0 | AE56: =('CO2 Summary'!AF23)/1000000 -> 0 | AF56: =('CO2 Summary'!AG23)/1000000 -> 0 | AG56: =('CO2 Summary'!AH23)/1000000 -> 0
A57: Light Duty Vehicles | B57: ="Energy - Mobile Combustion - CO2 - "&$A$56&" - "&A57 -> Energy - Mobile Combustion - CO2 - Alternative Fuel Vehicles - Light Duty Vehicles | C57: =('CO2 Summary'!D24)/1000000 -> 0 | D57: =('CO2 Summary'!E24)/1000000 -> 0 | E57: =('CO2 Summary'!F24)/1000000 -> 0 | F57: =('CO2 Summary'!G24)/1000000 -> 0 | G57: =('CO2 Summary'!H24)/1000000 -> 0 | H57: =('CO2 Summary'!I24)/1000000 -> 0 | I57: =('CO2 Summary'!J24)/1000000 -> 0 | J57: =('CO2 Summary'!K24)/1000000 -> 0 | K57: =('CO2 Summary'!L24)/1000000 -> 0 | L57: =('CO2 Summary'!M24)/1000000 -> 0 | M57: =('CO2 Summary'!N24)/1000000 -> 0 | N57: =('CO2 Summary'!O24)/1000000 -> 0 | O57: =('CO2 Summary'!P24)/1000000 -> 0 | P57: =('CO2 Summary'!Q24)/1000000 -> 0 | Q57: =('CO2 Summary'!R24)/1000000 -> 0 | R57: =('CO2 Summary'!S24)/1000000 -> 0 | S57: =('CO2 Summary'!T24)/1000000 -> 0 | T57: =('CO2 Summary'!U24)/1000000 -> 0 | U57: =('CO2 Summary'!V24)/1000000 -> 0 | V57: =('CO2 Summary'!W24)/1000000 -> 0 | W57: =('CO2 Summary'!X24)/1000000 -> 0 | X57: =('CO2 Summary'!Y24)/1000000 -> 0 | Y57: =('CO2 Summary'!Z24)/1000000 -> 0 | Z57: =('CO2 Summary'!AA24)/1000000 -> 0 | AA57: =('CO2 Summary'!AB24)/1000000 -> 0 | AB57: =('CO2 Summary'!AC24)/1000000 -> 0 | AC57: =('CO2 Summary'!AD24)/1000000 -> 0 | AD57: =('CO2 Summary'!AE24)/1000000 -> 0 | AE57: =('CO2 Summary'!AF24)/1000000 -> 0 | AF57: =('CO2 Summary'!AG24)/1000000 -> 0 | AG57: =('CO2 Summary'!AH24)/1000000 -> 0
A58: Heavy Duty Vehicles | B58: ="Energy - Mobile Combustion - CO2 - "&$A$56&" - "&A58 -> Energy - Mobile Combustion - CO2 - Alternative Fuel Vehicles - Heavy Duty Vehicles | C58: =('CO2 Summary'!D25)/1000000 -> 0 | D58: =('CO2 Summary'!E25)/1000000 -> 0 | E58: =('CO2 Summary'!F25)/1000000 -> 0 | F58: =('CO2 Summary'!G25)/1000000 -> 0 | G58: =('CO2 Summary'!H25)/1000000 -> 0 | H58: =('CO2 Summary'!I25)/1000000 -> 0 | I58: =('CO2 Summary'!J25)/1000000 -> 0 | J58: =('CO2 Summary'!K25)/1000000 -> 0 | K58: =('CO2 Summary'!L25)/1000000 -> 0 | L58: =('CO2 Summary'!M25)/1000000 -> 0 | M58: =('CO2 Summary'!N25)/1000000 -> 0 | N58: =('CO2 Summary'!O25)/1000000 -> 0 | O58: =('CO2 Summary'!P25)/1000000 -> 0 | P58: =('CO2 Summary'!Q25)/1000000 -> 0 | Q58: =('CO2 Summary'!R25)/1000000 -> 0 | R58: =('CO2 Summary'!S25)/1000000 -> 0 | S58: =('CO2 Summary'!T25)/1000000 -> 0 | T58: =('CO2 Summary'!U25)/1000000 -> 0 | U58: =('CO2 Summary'!V25)/1000000 -> 0 | V58: =('CO2 Summary'!W25)/1000000 -> 0 | W58: =('CO2 Summary'!X25)/1000000 -> 0 | X58: =('CO2 Summary'!Y25)/1000000 -> 0 | Y58: =('CO2 Summary'!Z25)/1000000 -> 0 | Z58: =('CO2 Summary'!AA25)/1000000 -> 0 | AA58: =('CO2 Summary'!AB25)/1000000 -> 0 | AB58: =('CO2 Summary'!AC25)/1000000 -> 0 | AC58: =('CO2 Summary'!AD25)/1000000 -> 0 | AD58: =('CO2 Summary'!AE25)/1000000 -> 0 | AE58: =('CO2 Summary'!AF25)/1000000 -> 0 | AF58: =('CO2 Summary'!AG25)/1000000 -> 0 | AG58: =('CO2 Summary'!AH25)/1000000 -> 0
A59: Buses | B59: ="Energy - Mobile Combustion - CO2 - "&$A$56&" - "&A59 -> Energy - Mobile Combustion - CO2 - Alternative Fuel Vehicles - Buses | C59: =('CO2 Summary'!D26)/1000000 -> 0 | D59: =('CO2 Summary'!E26)/1000000 -> 0 | E59: =('CO2 Summary'!F26)/1000000 -> 0 | F59: =('CO2 Summary'!G26)/1000000 -> 0 | G59: =('CO2 Summary'!H26)/1000000 -> 0 | H59: =('CO2 Summary'!I26)/1000000 -> 0 | I59: =('CO2 Summary'!J26)/1000000 -> 0 | J59: =('CO2 Summary'!K26)/1000000 -> 0 | K59: =('CO2 Summary'!L26)/1000000 -> 0 | L59: =('CO2 Summary'!M26)/1000000 -> 0 | M59: =('CO2 Summary'!N26)/1000000 -> 0 | N59: =('CO2 Summary'!O26)/1000000 -> 0 | O59: =('CO2 Summary'!P26)/1000000 -> 0 | P59: =('CO2 Summary'!Q26)/1000000 -> 0 | Q59: =('CO2 Summary'!R26)/1000000 -> 0 | R59: =('CO2 Summary'!S26)/1000000 -> 0 | S59: =('CO2 Summary'!T26)/1000000 -> 0 | T59: =('CO2 Summary'!U26)/1000000 -> 0 | U59: =('CO2 Summary'!V26)/1000000 -> 0 | V59: =('CO2 Summary'!W26)/1000000 -> 0 | W59: =('CO2 Summary'!X26)/1000000 -> 0 | X59: =('CO2 Summary'!Y26)/1000000 -> 0 | Y59: =('CO2 Summary'!Z26)/1000000 -> 0 | Z59: =('CO2 Summary'!AA26)/1000000 -> 0 | AA59: =('CO2 Summary'!AB26)/1000000 -> 0 | AB59: =('CO2 Summary'!AC26)/1000000 -> 0 | AC59: =('CO2 Summary'!AD26)/1000000 -> 0 | AD59: =('CO2 Summary'!AE26)/1000000 -> 0 | AE59: =('CO2 Summary'!AF26)/1000000 -> 0 | AF59: =('CO2 Summary'!AG26)/1000000 -> 0 | AG59: =('CO2 Summary'!AH26)/1000000 -> 0

Sheet Dataframe_Sum (hidden)
A1: MMTCO2e | B1: Category | C1: 1990 | D1: 1991 | E1: 1992 | F1: 1993 | G1: 1994 | H1: 1995 | I1: 1996 | J1: 1997 | K1: 1998 | L1: 1999 | M1: 2000 | N1: 2001 | O1: 2002 | P1: 2003 | Q1: 2004 | R1: 2005 | S1: 2006 | T1: 2007 | U1: 2008 | V1: 2009 | W1: 2010 | X1: 2011 | Y1: 2012 | Z1: 2013 | AA1: 2014 | AB1: 2015 | AC1: 2016 | AD1: 2017 | AE1: 2018 | AF1: 2019 | AG1: 2020
A2: Total | B2: Energy - Mobile Combustion - CH4 | C2: =(Summary!C77)/1000000 -> 0 | D2: =(Summary!D77)/1000000 -> 0 | E2: =(Summary!E77)/1000000 -> 0 | F2: =(Summary!F77)/1000000 -> 0 | G2: =(Summary!G77)/1000000 -> 0 | H2: =(Summary!H77)/1000000 -> 0 | I2: =(Summary!I77)/1000000 -> 0 | J2: =(Summary!J77)/1000000 -> 0 | K2: =(Summary!K77)/1000000 -> 0 | L2: =(Summary!L77)/1000000 -> 0 | M2: =(Summary!M77)/1000000 -> 0 | N2: =(Summary!N77)/1000000 -> 0 | O2: =(Summary!O77)/1000000 -> 0 | P2: =(Summary!P77)/1000000 -> 0 | Q2: =(Summary!Q77)/1000000 -> 0 | R2: =(Summary!R77)/1000000 -> 0 | S2: =(Summary!S77)/1000000 -> 0 | T2: =(Summary!T77)/1000000 -> 0 | U2: =(Summary!U77)/1000000 -> 0 | V2: =(Summary!V77)/1000000 -> 0 | W2: =(Summary!W77)/1000000 -> 0 | X2: =(Summary!X77)/1000000 -> 0 | Y2: =(Summary!Y77)/1000000 -> 0 | Z2: =(Summary!Z77)/1000000 -> 0 | AA2: =(Summary!AA77)/1000000 -> 0 | AB2: =(Summary!AB77)/1000000 -> 0 | AC2: =(Summary!AC77)/1000000 -> 0 | AD2: =(Summary!AD77)/1000000 -> 0 | AE2: =(Summary!AE77)/1000000 -> 0 | AF2: =(Summary!AF77)/1000000 -> 0 | AG2: =(Summary!AG77)/1000000 -> 0
A3: Total | B3: Energy - Mobile Combustion - N2O | C3: =(Summary!C102)/1000000 -> 0 | D3: =(Summary!D102)/1000000 -> 0 | E3: =(Summary!E102)/1000000 -> 0 | F3: =(Summary!F102)/1000000 -> 0 | G3: =(Summary!G102)/1000000 -> 0 | H3: =(Summary!H102)/1000000 -> 0 | I3: =(Summary!I102)/1000000 -> 0 | J3: =(Summary!J102)/1000000 -> 0 | K3: =(Summary!K102)/1000000 -> 0 | L3: =(Summary!L102)/1000000 -> 0 | M3: =(Summary!M102)/1000000 -> 0 | N3: =(Summary!N102)/1000000 -> 0 | O3: =(Summary!O102)/1000000 -> 0 | P3: =(Summary!P102)/1000000 -> 0 | Q3: =(Summary!Q102)/1000000 -> 0 | R3: =(Summary!R102)/1000000 -> 0 | S3: =(Summary!S102)/1000000 -> 0 | T3: =(Summary!T102)/1000000 -> 0 | U3: =(Summary!U102)/1000000 -> 0 | V3: =(Summary!V102)/1000000 -> 0 | W3: =(Summary!W102)/1000000 -> 0 | X3: =(Summary!X102)/1000000 -> 0 | Y3: =(Summary!Y102)/1000000 -> 0 | Z3: =(Summary!Z102)/1000000 -> 0 | AA3: =(Summary!AA102)/1000000 -> 0 | AB3: =(Summary!AB102)/1000000 -> 0 | AC3: =(Summary!AC102)/1000000 -> 0 | AD3: =(Summary!AD102)/1000000 -> 0 | AE3: =(Summary!AE102)/1000000 -> 0 | AF3: =(Summary!AF102)/1000000 -> 0 | AG3: =(Summary!AG102)/1000000 -> 0
A4: Total | B4: Energy - Mobile Combustion - CO2 | C4: =('CO2 Summary'!D27)/1000000 -> 0 | D4: =('CO2 Summary'!E27)/1000000 -> 0 | E4: =('CO2 Summary'!F27)/1000000 -> 0 | F4: =('CO2 Summary'!G27)/1000000 -> 0 | G4: =('CO2 Summary'!H27)/1000000 -> 0 | H4: =('CO2 Summary'!I27)/1000000 -> 0 | I4: =('CO2 Summary'!J27)/1000000 -> 0 | J4: =('CO2 Summary'!K27)/1000000 -> 0 | K4: =('CO2 Summary'!L27)/1000000 -> 0 | L4: =('CO2 Summary'!M27)/1000000 -> 0 | M4: =('CO2 Summary'!N27)/1000000 -> 0 | N4: =('CO2 Summary'!O27)/1000000 -> 0 | O4: =('CO2 Summary'!P27)/1000000 -> 0 | P4: =('CO2 Summary'!Q27)/1000000 -> 0 | Q4: =('CO2 Summary'!R27)/1000000 -> 0 | R4: =('CO2 Summary'!S27)/1000000 -> 0 | S4: =('CO2 Summary'!T27)/1000000 -> 0 | T4: =('CO2 Summary'!U27)/1000000 -> 0 | U4: =('CO2 Summary'!V27)/1000000 -> 0 | V4: =('CO2 Summary'!W27)/1000000 -> 0 | W4: =('CO2 Summary'!X27)/1000000 -> 0 | X4: =('CO2 Summary'!Y27)/1000000 -> 0 | Y4: =('CO2 Summary'!Z27)/1000000 -> 0 | Z4: =('CO2 Summary'!AA27)/1000000 -> 0 | AA4: =('CO2 Summary'!AB27)/1000000 -> 0 | AB4: =('CO2 Summary'!AC27)/1000000 -> 0 | AC4: =('CO2 Summary'!AD27)/1000000 -> 0 | AD4: =('CO2 Summary'!AE27)/1000000 -> 0 | AE4: =('CO2 Summary'!AF27)/1000000 -> 0 | AF4: =('CO2 Summary'!AG27)/1000000 -> 0 | AG4: =('CO2 Summary'!AH27)/1000000 -> 0
A5: Total | B5: Energy - Mobile Combustion | C5: =SUM(C2:C4) -> 0 | D5: =SUM(D2:D4) -> 0 | E5: 0 | F5: 0 | G5: 0 | H5: 0 | I5: 0 | J5: 0 | K5: 0 | L5: 0 | M5: 0 | N5: 0 | O5: 0 | P5: 0 | Q5: 0 | R5: 0 | S5: 0 | T5: 0 | U5: 0 | V5: 0 | W5: 0 | X5: 0 | Y5: 0 | Z5: 0 | AA5: 0 | AB5: 0 | AC5: 0 | AD5: 0 | AE5: 0 | AF5: 0 | AG5: 0

Sheet Highway1
A1: 4a. Highway Vehicles - Emission Factors and VMT
A4: 1. Verify the Emission Factors that are used to calculate CH4 and N2O emissions from Highway Vehicles. | K4: Click for Code Help
A6: N2O Emission Factors (g/mile traveled) | AI6: N2O Emission Factors (g/mile traveled) | AL6: 2 | AM6: 3 | AN6: 4 | AO6: 5 | AP6: 6 | AQ6: 7 | AR6: 8
A7: Control Technology | D7: LDGV | E7: LDGT | F7: HDGV | G7: LDDV | H7: LDDT | I7: HDDV | J7: MC | AI7: Control Technology | AL7: LDGV | AM7: LDGT | AN7: HDGV | AO7: LDDV | AP7: LDDT | AQ7: HDDV | AR7: MC
D8: 2 | E8: 3 | F8: 4 | G8: 5 | H8: 6 | I8: 7 | J8: 8 | AL8: 2 | AM8: 3 | AN8: 4 | AO8: 5 | AP8: 6 | AQ8: 7 | AR8: 8
A9: Three-way Catalyst (T3) | C9: T3 | AJ9: Tier 3 | AK9: T3 | AL9: 0.001481484432 | AM9: 0.001242479532 | AN9: 0.006331290323 | AS9: 0
A10: Low Emission Vehicle 3 | C10: L3 | AJ10: LEV 3 | AK10: L3 | AL10: 0.001198982036 | AM10: 0.001202210884 | AN10: 0.01363855422
A11: Three-way Catalyst (T2) | C11: T2 | AI11: Three-way Catalyst (T2) | AK11: T2 | AL11: 0.004815662651 | AM11: 0.002517391304 | AN11: 0.0015
A12: Low Emission Vehicle 2 | C12: L2 | AJ12: LEV 2 | AK12: L2 | AL12: 0.004336 | AM12: 0.00565 | AN12: 0.004875
A13: Three-way Catalyst (T1) | C13: T1 | AI13: Three-way Catalyst (T1) | AK13: T1 | AL13: 0.04291618783 | AM13: 0.08708610602 | AN13: 0.1749727031
A14: Early 3-way Catalyst (T0) | C14: T0 | AI14: Early 3-way Catalyst (T0) | AK14: T0 | AL14: 0.06472822372 | AM14: 0.1056154536 | AN14: 0.2134769357
A15: Oxidation Catalyst | C15: O | AI15: Oxidation Catalyst | AK15: O | AL15: 0.05036295214 | AM15: 0.06393850077 | AN15: 0.131651176
A16: Non-Catalyst | C16: N | AI16: Non-Catalyst | AK16: N | AL16: 0.01969592508 | AM16: 0.02177589829 | AN16: 0.0473472274 | AR16: 0.006850825356
A17: Low Emission Vehicle | C17: L | AI17: LEV | AK17: L | AL17: 0.02054914563 | AM17: 0.02231229497 | AN17: 0.04661596648
A18: Aftertreatment | C18: AF | AJ18: Aftertreatment | AK18: AF | AO18: 0.01918 | AP18: 0.02141186441 | AQ18: 0.0430915493
A19: Advanced | C19: A | AI19: Advanced | AK19: A | AO19: 0.001045379303 | AP19: 0.001449134225 | AQ19: 0.004844510227
A20: Moderate | C20: M | AI20: Moderate | AK20: M | AO20: 0.001045379303 | AP20: 0.001449134225 | AQ20: 0.004844510227
A21: Uncontrolled | C21: U | AI21: Uncontrolled | AK21: U | AL21: 0.01969592508 | AM21: 0.02201527808 | AN21: 0.04968651729 | AO21: 0.00123924572 | AP21: 0.00167445409 | AQ21: 0.004844510227 | AR21: 0.008732215047
D22: Source: Default values from EPA, 2021. Inventory of U.S. Greenhouse Gas Emissions and Sinks: 1990-2019.
A23: CH4 Emission Factors (g/mile traveled) | AI23: CH4 Emission Factors (g/mile traveled)
A24: Control Technology | D24: LDGV | E24: LDGT | F24: HDGV | G24: LDDV | H24: LDDT | I24: HDDV | J24: MC | AI24: Control Technology | AL24: LDGV | AM24: LDGT | AN24: HDGV | AO24: LDDV | AP24: LDDT | AQ24: HDDV | AR24: MC
A25: Three-way Catalyst (T3) | C25: T3 | AJ25: Tier 3 | AK25: T3 | AL25: 0.005535525066 | AM25: 0.009231681818 | AN25: 0.02522786378 | AS25: 0
A26: Low Emission Vehicle 3 | C26: L3 | AJ26: LEV 3 | AK26: L3 | AL26: 0.004522956522 | AM26: 0.006519101449 | AN26: 0.04111325301
A27: Three-way Catalyst (T2) | C27: T2 | AI27: Three-way Catalyst (T2) | AK27: T2 | AL27: 0.007237242718 | AM27: 0.01001779923 | AN27: 0.02969852941
A28: Low Emission Vehicle 2 | C28: L2 | AJ28: LEV 2 | AK28: L2 | AL28: 0.00702 | AM28: 0.008421846154 | AN28: 0.03912790698
A29: Three-way Catalyst (T1) | C29: T1 | AI29: Three-way Catalyst (T1) | AK29: T1 | AL29: 0.02709343323 | AM29: 0.04519960877 | AN29: 0.06552047974
A30: Early 3-way Catalyst (T0) | C30: T0 | AI30: Early 3-way Catalyst (T0) | AK30: T0 | AL30: 0.07039956094 | AM30: 0.07759099817 | AN30: 0.2629672782
A31: Oxidation Catalyst | C31: O | AI31: Oxidation Catalyst | AK31: O | AL31: 0.1354940918 | AM31: 0.1515777888 | AN31: 0.2356370049
A32: Non-Catalyst | C32: N | AI32: Non-Catalyst | AK32: N | AL32: 0.1695757087 | AM32: 0.1908207837 | AN32: 0.4180759569 | AR32: 0.06720462876
A33: Low Emission Vehicle | C33: L | AI33: LEV | AK33: L | AL33: 0.01 | AM33: 0.01481903938 | AN33: 0.03
A34: Aftertreatment | C34: AF | AJ34: Aftertreatment | AK34: AF | AO34: 0.03022878788 | AP34: 0.02897164179 | AQ34: 0.00946835443
A35: Advanced | C35: A | AI35: Advanced | AK35: A | AO35: 0.0004756000153 | AP35: 0.0009311680102 | AQ35: 0.00514480625
A36: Moderate | C36: M | AI36: Moderate | AK36: M | AO36: 0.0004756000153 | AP36: 0.0009311680102 | AQ36: 0.00514480625
A37: Uncontrolled | C37: U | AI37: Uncontrolled | AK37: U | AL37: 0.1779539552 | AM37: 0.2024499974 | AN37: 0.46040836 | AO37: 0.0005638004137 | AP37: 0.001075951458 | AQ37: 0.00514480625 | AR37: 0.08989276036
D38: Source: Default values from EPA, 2021. Inventory of U.S. Greenhouse Gas Emissions and Sinks: 1990-2019.
A40: 2. Enter state-specific data on vehicle miles traveled (VMT) by vehicle type.
A41: Enter custom data in the table below, or use the provided default data.*
B42: State Total Vehicle Miles Traveled (Millions)
D43: 1990 | E43: 1991 | F43: 1992 | G43: 1993 | H43: 1994 | I43: 1995 | J43: 1996 | K43: 1997 | L43: 1998 | M43: 1999 | N43: 2000 | O43: 2001 | P43: 2002 | Q43: 2003 | R43: 2004 | S43: 2005 | T43: 2006 | U43: 2007 | V43: 2008 | W43: 2009 | X43: 2010 | Y43: 2011 | Z43: 2012 | AA43: 2013 | AB43: 2014 | AC43: 2015 | AD43: 2016 | AE43: 2017 | AF43: 2018 | AG43: 2019 | AH43: 2020
B44: HDDV | C44: 2
B45: HDGV | C45: 3
B46: LDDT | C46: 4
B47: LDDV | C47: 5
B48: LDGT | C48: 6
B49: LDGV | C49: 7
B50: MC | C50: 8
B51: Total | D51: =SUM(D44:D50) -> 0 | E51: =SUM(E44:E50) -> 0 | F51: 0 | G51: 0 | H51: 0 | I51: 0 | J51: 0 | K51: 0 | L51: 0 | M51: 0 | N51: 0 | O51: 0 | P51: 0 | Q51: 0 | R51: 0 | S51: 0 | T51: 0 | U51: 0 | V51: 0 | W51: 0 | X51: 0 | Y51: 0 | Z51: 0 | AA51: 0 | AB51: 0 | AC51: 0 | AD51: 0 | AE51: 0 | AF51: 0 | AG51: 0 | AH51: 0
B52: * Default data for this table is not complete for all years and vehicle types by state. Null values signify unavailable data.
B53: Values are derived from tables VM-1 and VM-2 of Federal Highway Administration's "Highway Statistics" series (https://www.fhwa.dot.gov/policyinformation/statistics.cfm). Please see these reports for specific notes on state-
B54: reported data.

Sheet Highway2
A1: 4b. Highway Vehicles - Allocating VMT by Model Year
A3: 3. Verify the Age Distribution and Annual Vehicle Mileage Accumulation. | DH3: Update These Tables! | DR3: 1999LDGV | DS3: 1999LDGT | DT3: 1999HDGV | DU3: 1999LDDV | DV3: 1999LDDT | DW3: 1999HDDV | DX3: 1999MC | EA3: 2000LDGV | EB3: 2000LDGT | EC3: 2000HDGV | ED3: 2000LDDV | EE3: 2000LDDT | EF3: 2000HDDV | EG3: 2000MC | EJ3: 2001LDGV | EK3: 2001LDGT | EL3: 2001HDGV | EM3: 2001LDDV | EN3: 2001LDDT | EO3: 2001HDDV | EP3: 2001MC | ES3: 2002LDGV | ET3: 2002LDGT | EU3: 2002HDGV | EV3: 2002LDDV | EW3: 2002LDDT | EX3: 2002HDDV | EY3: 2002MC | FB3: 2003LDGV | FC3: 2003LDGT | FD3: 2003HDGV | FE3: 2003LDDV | FF3: 2003LDDT | FG3: 2003HDDV | FH3: 2003MC | FK3: 2004LDGV | FL3: 2004LDGT | FM3: 2004HDGV | FN3: 2004LDDV | FO3: 2004LDDT | FP3: 2004HDDV | FQ3: 2004MC | FT3: 2005LDGV | FU3: 2005LDGT | FV3: 2005HDGV | FW3: 2005LDDV | FX3: 2005LDDT | FY3: 2005HDDV | FZ3: 2005MC | GC3: 2006LDGV | GD3: 2006LDGT | GE3: 2006HDGV | GF3: 2006LDDV | GG3: 2006LDDT | GH3: 2006HDDV | GI3: 2006MC | GL3: 2007LDGV | GM3: 2007LDGT | GN3: 2007HDGV | GO3: 2007LDDV | GP3: 2007LDDT | GQ3: 2007HDDV | GR3: 2007MC | GU3: 2008LDGV | GV3: 2008LDGT | GW3: 2008HDGV | GX3: 2008LDDV | GY3: 2008LDDT | GZ3: 2008HDDV | HA3: 2008MC | HD3: 2009LDGV | HE3: 2009LDGT | HF3: 2009HDGV | HG3: 2009LDDV | HH3: 2009LDDT | HI3: 2009HDDV | HJ3: 2009MC | HM3: 2010LDGV | HN3: 2010LDGT | HO3: 2010HDGV | HP3: 2010LDDV | HQ3: 2010LDDT | HR3: 2010HDDV | HS3: 2010MC | HV3: 2011LDGV | HW3: 2011LDGT | HX3: 2011HDGV | HY3: 2011LDDV | HZ3: 2011LDDT | IA3: 2011HDDV | IB3: 2011MC | IE3: 2012LDGV | IF3: 2012LDGT | IG3: 2012HDGV | IH3: 2012LDDV | II3: 2012LDDT | IJ3: 2012HDDV | IK3: 2012MC | IN3: 2013LDGV | IO3: 2013LDGT | IP3: 2013HDGV | IQ3: 2013LDDV | IR3: 2013LDDT | IS3: 2013HDDV | IT3: 2013MC
A4: • The data in these tables are used to calculate percentage of VMT allocated to each model year vehicle. Use the arrow buttons to select the year you would like to estimate. For that selected year, estimates will populate the yellow shaded cells in Table I and Table II. • In Table I below, review the values for annual vehicle mileage accumulation. If you wish to change any values, simply type your values in the yellow shaded cells. These values will remain constant for all inventory years. Next, review the values for vehicle age distribution in Table II. Again, you may type over any values in the yellow shaded cells you wish to change. These values in Table II may differ among inventory years. If you would like to restore the original values, click on the "Restore Default Data" button. If you would like to clear default data in Table I and Table II, click on the "Clear Age Distribution Entries" and "Clear Mileage Accumulation Entries" buttons. • Once you have finished entering data for a particular year, click on the "Save Data" button, and your entries for the selected year will be saved. • If you would like to use default data for all inventory years, you may bypass the above steps by clicking on the "Restore Default Data for All Years" button. Table I and II will not have values, however values will be populated and saved in the white tables below. | DH4: Table IIa: Age Distribution, 1998 and earlier Each column must add up to 100%. | DQ4: Table IIb: Age Distribution, 1999. Each column must add up to 100%. | DZ4: Table IIc: Age Distribution, 2000. Each column must add up to 100%. | EI4: Table IId: Age Distribution, 2001. Each column must add up to 100%. | ER4: Table IIe: Age Distribution, 2002. Each column must add up to 100%. | FA4: Table IIf: Age Distribution, 2003. Each column must add up to 100%. | FJ4: Table IIg: Age Distribution, 2004. Each column must add up to 100%. | FS4: Table IIh: Age Distribution, 2005. Each column must add up to 100%. | GB4: Table IIh: Age Distribution, 2006. Each column must add up to 100%. | GK4: Table IIh: Age Distribution, 2007. Each column must add up to 100%. | GT4: Table IIh: Age Distribution, 2008. Each column must add up to 100%. | HC4: Table IIh: Age Distribution, 2009. Each column must add up to 100%. | HL4: Table IIh: Age Distribution, 2010. Each column must add up to 100%. | HU4: Table IIh: Age Distribution, 2011. Each column must add up to 100%. | ID4: Table IIh: Age Distribution, 2012. Each column must add up to 100%. | IM4: Table IIh: Age Distribution, 2013. Each column must add up to 100%.
DH5: MY | DI5: LDGV | DJ5: LDGT | DK5: HDGV | DL5: LDDV | DM5: LDDT | DN5: HDDV | DO5: MC | DQ5: MY | DR5: LDGV | DS5: LDGT | DT5: HDGV | DU5: LDDV | DV5: LDDT | DW5: HDDV | DX5: MC | DZ5: MY | EA5: LDGV | EB5: LDGT | EC5: HDGV | ED5: LDDV | EE5: LDDT | EF5: HDDV | EG5: MC | EI5: MY | EJ5: LDGV | EK5: LDGT | EL5: HDGV | EM5: LDDV | EN5: LDDT | EO5: HDDV | EP5: MC | ER5: MY | ES5: LDGV | ET5: LDGT | EU5: HDGV | EV5: LDDV | EW5: LDDT | EX5: HDDV | EY5: MC | FA5: MY | FB5: LDGV | FC5: LDGT | FD5: HDGV | FE5: LDDV | FF5: LDDT | FG5: HDDV | FH5: MC | FJ5: MY | FK5: LDGV | FL5: LDGT | FM5: HDGV | FN5: LDDV | FO5: LDDT | FP5: HDDV | FQ5: MC | FS5: MY | FT5: LDGV | FU5: LDGT | FV5: HDGV | FW5: LDDV | FX5: LDDT | FY5: HDDV | FZ5: MC | GB5: MY | GC5: LDGV | GD5: LDGT | GE5: HDGV | GF5: LDDV | GG5: LDDT | GH5: HDDV | GI5: MC | GK5: MY | GL5: LDGV | GM5: LDGT | GN5: HDGV | GO5: LDDV | GP5: LDDT | GQ5: HDDV | GR5: MC | GT5: MY | GU5: LDGV | GV5: LDGT | GW5: HDGV | GX5: LDDV | GY5: LDDT | GZ5: HDDV | HA5: MC | HC5: MY | HD5: LDGV | HE5: LDGT | HF5: HDGV | HG5: LDDV | HH5: LDDT | HI5: HDDV | HJ5: MC | HL5: MY | HM5: LDGV | HN5: LDGT | HO5: HDGV | HP5: LDDV | HQ5: LDDT | HR5: HDDV | HS5: MC | HU5: MY | HV5: LDGV | HW5: LDGT | HX5: HDGV | HY5: LDDV | HZ5: LDDT | IA5: HDDV | IB5: MC | ID5: MY | IE5: LDGV | IF5: LDGT | IG5: HDGV | IH5: LDDV | II5: LDDT | IJ5: HDDV | IK5: MC | IM5: MY | IN5: LDGV | IO5: LDGT | IP5: HDGV | IQ5: LDDV | IR5: LDDT | IS5: HDDV | IT5: MC
F6: 2019 | DH6: 0 | DI6: 0.05298464138 | DJ6: 0.0584797241 | DK6: 0.04868271471 | DL6: 0.05298464138 | DM6: 0.05941360611 | DN6: 0.04196141594 | DO6: 0.144 | DQ6: 0 | DR6: 0.09657977161 | DS6: 0.1583621256 | DT6: 0.09077996757 | DU6: 0.01785791953 | DV6: 0.2393358547 | DW6: 0.1048394003 | DX6: 0.06143108086 | DZ6: 0 | EA6: 0.09846251039 | EB6: 0.1535186712 | EC6: 0.096092815 | ED6: 0.02827637282 | EE6: 0.149082069 | EF6: 0.1198999805 | EG6: 0.07564083121 | EI6: 0 | EJ6: 0.08669770226 | EK6: 0.1393616621 | EL6: 0.04898082968 | EM6: 0.03163978946 | EN6: 0.2199040508 | EO6: 0.07985368951 | EP6: 0.08273284008 | ER6: 0 | ES6: 0.0864849496 | ET6: 0.1341369192 | EU6: 0.06044409908 | EV6: 0.05116773725 | EW6: 0.1453640155 | EX6: 0.06407525569 | EY6: 0.0920478844 | FA6: 0 | FB6: 0.07718190705 | FC6: 0.1200550286 | FD6: 0.05459875509 | FE6: 0.04562255408 | FF6: 0.1421555908 | FG6: 0.06826411394 | FH6: 0.1005928497 | FJ6: 0 | FK6: 0.06944541834 | FL6: 0.1143648057 | FM6: 0.06088355985 | FN6: 0.03520050091 | FO6: 0.1329786335 | FP6: 0.07004885946 | FQ6: 0.1071105299 | FS6: 0 | FT6: 0.06530322346 | FU6: 0.1010077272 | FV6: 0.04481011835 | FW6: 0.05412147599 | FX6: 0.1278044788 | FY6: 0.08726814498 | FZ6: 0.1133885444 | GB6: 0 | GC6: 0.06072656727 | GD6: 0.08682622161 | GE6: 0.05493786945 | GF6: 0.07489341676 | GG6: 0.1265167645 | GH6: 0.08848751253 | GI6: 0.1177142913 | GK6: 0 | GL6: 0.06043262795 | GM6: 0.07737328756 | GN6: 0.03692191781 | GO6: 0.004041224006 | GP6: 0.08878581127 | GQ6: 0.09155896183 | GR6: 0.116678684 | GT6: 0 | GU6: 0.05221311256 | GV6: 0.06796863563 | GW6: 0.03722037528 | GX6: 0.005931495975 | GY6: 0.08926961466 | GZ6: 0.04477343091 | HA6: 0.1147523735 | HC6: 0 | HD6: 0.03998018462 | HE6: 0.03774262933 | HF6: 0.0182884029 | HG6: 0.06501855285 | HH6: 0.03474648297 | HI6: 0.02742374785 | HJ6: 0.06581609885 | HL6: 0 | HM6: 0.04510444106 | HN6: 0.04739308941 | HO6: 0.02066716988 | HP6: 0.1038541657 | HQ6: 0.03692388505 | HR6: 0.02269099874 | HS6: 0.06002387362 | HU6: 0 | HV6: 0.04167778078 | HW6: 0.05053859864 | HX6: 0.03248318843 | HY6: 0.1126924151 | HZ6: 0.05892224833 | IA6: 0.0354446678 | IB6: 0.05853690876 | ID6: 0 | IE6: 0.06724071972 | IF6: 0.07424043999 | IG6: 0.0552057452 | IH6: 0.1644406598 | II6: 0.08312101312 | IJ6: 0.05465488151 | IK6: 0.06760787877 | IM6: 0 | IN6: 0.06852644233 | IO6: 0.07580789581 | IP6: 0.05725741083 | IQ6: 0.1540283241 | IR6: 0.08381265273 | IS6: 0.05571206932 | IT6: 0.06899681509
F7: =IF(ToggleYear=1998,"Values for years 1990-1998 are assumed to be equal.",0) -> 0 | CF7: Update this Table. | DH7: 1 | DI7: 0.07063997639 | DJ7: 0.07642771043 | DK7: 0.08886491444 | DL7: 0.07063997639 | DM7: 0.07379885048 | DN7: 0.07779218962 | DO7: 0.168 | DQ7: 1 | DR7: 0.08552417604 | DS7: 0.1265556989 | DT7: 0.03867928559 | DU7: 0.01858704611 | DV7: 0.09747954804 | DW7: 0.07135533069 | DX7: 0.05267581231 | DZ7: 1 | EA7: 0.09202818722 | EB7: 0.1338280035 | EC7: 0.09303255545 | ED7: 0.01928248877 | EE7: 0.2036767119 | EF7: 0.09796102275 | EG7: 0.05960258018 | EI7: 1 | EJ7: 0.09307539581 | EK7: 0.1316202998 | EL7: 0.09112537044 | EM7: 0.02935236289 | EN7: 0.1151290372 | EO7: 0.1122281125 | EP7: 0.06938301247 | ER7: 1 | ES7: 0.08510961872 | ET7: 0.1205389611 | EU7: 0.04921106688 | EV7: 0.03476373235 | EW7: 0.1862395397 | EX7: 0.07843389598 | EY7: 0.08290341294 | FA7: 1 | FB7: 0.08470878142 | FC7: 0.1176762871 | FD7: 0.05888287018 | FE7: 0.05501354187 | FF7: 0.1252550921 | FG7: 0.06168475509 | FH7: 0.08746830989 | FJ7: 1 | FK7: 0.07531450201 | FL7: 0.1060694621 | FM7: 0.05259753318 | FN7: 0.04821763933 | FO7: 0.1236766641 | FP7: 0.06523019964 | FQ7: 0.09435634508 | FS7: 1 | FT7: 0.06837130112 | FU7: 0.1026223993 | FV7: 0.05873849351 | FW7: 0.0366825891 | FX7: 0.1162862408 | FY7: 0.06501976559 | FZ7: 0.1001632391 | GB7: 1 | GC7: 0.06523038344 | GD7: 0.09210127697 | GE7: 0.04238986714 | GF7: 0.05580042861 | GG7: 0.1119154739 | GH7: 0.08035315485 | GI7: 0.105398711 | GK7: 1 | GL7: 0.06001730956 | GM7: 0.08000535655 | GN7: 0.05299684328 | GO7: 0.08133107702 | GP7: 0.1155292121 | GQ7: 0.08192058123 | GR7: 0.1105951252 | GT7: 1 | GU7: 0.05992472794 | GV7: 0.07312024487 | GW7: 0.03623036396 | GX7: 0.004367114027 | GY7: 0.08220054784 | GZ7: 0.09035659532 | HA7: 0.1073012147 | HC7: 1 | HD7: 0.05284489024 | HE7: 0.06581083499 | HF7: 0.03739418279 | HG7: 0.006180548146 | HH7: 0.08691071999 | HI7: 0.04444188812 | HJ7: 0.1179401664 | HL7: 1 | HM7: 0.04123935822 | HN7: 0.03608854434 | HO7: 0.01864556472 | HP7: 0.06891415481 | HQ7: 0.03370357545 | HR7: 0.02790992084 | HS7: 0.06523690509 | HU7: 1 | HV7: 0.04690859889 | HW7: 0.04502482559 | HX7: 0.02168707436 | HY7: 0.1091215351 | HZ7: 0.034764697 | IA7: 0.02343785933 | IB7: 0.05651732345 | ID7: 1 | IE7: 0.04157819665 | IF7: 0.04983072944 | IG7: 0.03133448808 | IH7: 0.1016546394 | II7: 0.05714527179 | IJ7: 0.03422842863 | IK7: 0.05841618617 | IM7: 1 | IN7: 0.06621126757 | IO7: 0.07245342289 | IP7: 0.05264197661 | IQ7: 0.1489322756 | IR7: 0.08005628275 | IS7: 0.05208184812 | IT7: 0.06670599709
B8: Table I: Annual Vehicle Mileage Accumulation (miles) | K8: ="Table II: Age Distibution,"&IF(ToggleYear<=1998," 1998 and earlier"," "&ToggleYear)&". Each column must add up to 100%." -> Table II: Age Distibution, 2019. Each column must add up to 100%. | BW8: LookUP % Distribution Table | CF8: Table I: Annual Vehicle Mileage Accumulation (miles) | DH8: 2 | DI8: 0.07060684236 | DJ8: 0.07476075757 | DK8: 0.08111313434 | DL8: 0.07060684236 | DM8: 0.06875023513 | DN8: 0.07212174671 | DO8: 0.135 | DQ8: 2 | DR8: 0.08434021498 | DS8: 0.1164373665 | DT8: 0.077895376 | DU8: 0.007524850761 | DV8: 0.1361659491 | DW8: 0.07761017869 | DX8: 0.05991142397 | DZ8: 2 | EA8: 0.08147922066 | EB8: 0.1073284042 | EC8: 0.04017295255 | ED8: 0.02006617058 | EE8: 0.08252868062 | EF8: 0.06729448555 | EG8: 0.05002724009 | EI8: 2 | EJ8: 0.08697006703 | EK8: 0.1150523682 | EL8: 0.08842159979 | EM8: 0.02001096487 | EN8: 0.1591858181 | EO8: 0.09166309217 | EP8: 0.0546714914 | ER8: 2 | ES8: 0.0914036677 | ET8: 0.1139661675 | EU8: 0.09145504067 | EV8: 0.03226218468 | EW8: 0.09805070129 | EX8: 0.110187361 | EY8: 0.06639674482 | FA8: 2 | FB8: 0.08333036233 | FC8: 0.1058001858 | FD8: 0.04793778698 | FE8: 0.03736245293 | FF8: 0.1580750049 | FG8: 0.07554919014 | FH8: 0.07696737137 | FJ8: 2 | FK8: 0.08266181293 | FL8: 0.1039714401 | FM8: 0.05672472817 | FN8: 0.05814427968 | FO8: 0.1089820636 | FP8: 0.05901084824 | FQ8: 0.08030869913 | FS8: 2 | FT8: 0.07415761099 | FU8: 0.09518365737 | FV8: 0.05074430956 | FW8: 0.05025336863 | FX8: 0.108152145 | FY8: 0.06064367318 | FZ8: 0.0862216964 | GB8: 2 | GC8: 0.0682893367 | GD8: 0.09356640948 | GE8: 0.05556591886 | GF8: 0.03781745235 | GG8: 0.1017888419 | GH8: 0.05987915941 | GI8: 0.09101784763 | GK8: 2 | GL8: 0.06448051987 | GM8: 0.08487749897 | GN8: 0.04089213949 | GO8: 0.06060815105 | GP8: 0.102173098 | GQ8: 0.07446628595 | GR8: 0.0963876679 | GT8: 2 | GU8: 0.05949545514 | GV8: 0.07558688303 | GW8: 0.0520041667 | GX8: 0.0878638389 | GY8: 0.1070090421 | GZ8: 0.08072257068 | HA8: 0.1002009078 | HC8: 2 | HD8: 0.06063317733 | HE8: 0.07076219544 | HF8: 0.03639954094 | HG8: 0.004549232652 | HH8: 0.07997170886 | HI8: 0.08976737504 | HJ8: 0.1058911638 | HL8: 2 | HM8: 0.05456916827 | HN8: 0.06303345221 | HO8: 0.038124414 | HP8: 0.006558542125 | HQ8: 0.08444124149 | HR8: 0.04517928075 | HS8: 0.1155994837 | HU8: 2 | HV8: 0.04285494574 | HW8: 0.03427632868 | HX8: 0.0195658478 | HY8: 0.07235852575 | HZ8: 0.03173636134 | IA8: 0.02883411805 | IB8: 0.06142325776 | ID8: 2 | IE8: 0.04680729017 | IF8: 0.04442364508 | IG8: 0.02092015612 | IH8: 0.09843331538 | II8: 0.03371114119 | IJ8: 0.02263361869 | IK8: 0.05500818486 | IM8: 2 | IN8: 0.04094368037 | IO8: 0.04862619672 | IP8: 0.02987920441 | IQ8: 0.09206747954 | IR8: 0.05503137355 | IS8: 0.03261696562 | IT8: 0.05639279747
B9: MY | C9: LDGV | D9: LDGT | E9: HDGV | F9: LDDV | G9: LDDT | H9: HDDV | I9: MC | K9: MY | L9: LDGV | M9: LDGT | N9: HDGV | O9: LDDV | P9: LDDT | Q9: HDDV | R9: MC | BW9: MY | BX9: LDGV | BY9: LDGT | BZ9: HDGV | CA9: LDDV | CB9: LDDT | CC9: HDDV | CD9: MC | CF9: MY | CG9: LDGV | CH9: LDGT | CI9: HDGV | CJ9: LDDV | CK9: LDDT | CL9: HDDV | CM9: MC | DH9: 3 | DI9: 0.07050379095 | DJ9: 0.07285607365 | DK9: 0.07404346028 | DL9: 0.07050379095 | DM9: 0.06404695399 | DN9: 0.06687569154 | DO9: 0.109 | DQ9: 3 | DR9: 0.07613111584 | DS9: 0.08709083197 | DT9: 0.05272949446 | DU9: 0.009309602908 | DV9: 0.08348091912 | DW9: 0.07272514752 | DX9: 0.06100667652 | DZ9: 3 | EA9: 0.07935715153 | EB9: 0.09847163323 | EC9: 0.07523293896 | ED9: 0.008023185183 | EE9: 0.1144308477 | EF9: 0.0686268633 | EG9: 0.05658763049 | EI9: 3 | EJ9: 0.07631370446 | EK9: 0.09261988088 | EL9: 0.03828194215 | EM9: 0.02063842455 | EN9: 0.06412626046 | EO9: 0.06246419662 | EP9: 0.0458884358 | ER9: 3 | ES9: 0.08380849105 | ET9: 0.09979248201 | EU9: 0.08677760839 | EV9: 0.02158280969 | EW9: 0.1369336217 | EX9: 0.08773099167 | EY9: 0.05149933066 | FA9: 3 | FB9: 0.08812834938 | FC9: 0.1001207228 | FD9: 0.08810822024 | FE9: 0.0341452202 | FF9: 0.08364101557 | FG9: 0.1042926275 | FH9: 0.0613250703 | FJ9: 3 | FK9: 0.08010241563 | FL9: 0.09352035592 | FM9: 0.04538277017 | FN9: 0.03889897555 | FO9: 0.1356209828 | FP9: 0.07055739801 | FQ9: 0.07045397975 | FS9: 3 | FT9: 0.07985244749 | FU9: 0.093303563 | FV9: 0.05426430184 | FW9: 0.0594527774 | FX9: 0.09530890386 | FY9: 0.05361558949 | FZ9: 0.07363318947 | GB9: 3 | GC9: 0.07236512426 | GD9: 0.0867883762 | GE9: 0.04800344712 | GF9: 0.05061628128 | GG9: 0.09466921576 | GH9: 0.05515563595 | GI9: 0.07806879688 | GK9: 3 | GL9: 0.06604176604 | GM9: 0.08622167109 | GN9: 0.05360263696 | GO9: 0.04018578496 | GP9: 0.09289537186 | GQ9: 0.05449867281 | GR9: 0.08329181144 | GT9: 3 | GU9: 0.06271362383 | GV9: 0.0794479483 | GW9: 0.03979115718 | GX9: 0.06424068575 | GY9: 0.09384951684 | GZ9: 0.07171805785 | HA9: 0.08764237835 | HC9: 3 | HD9: 0.05860975159 | HE9: 0.07273724713 | HF9: 0.05143881032 | HG9: 0.08911195803 | HH9: 0.1036195296 | HI9: 0.07859064329 | HJ9: 0.09991676397 | HL9: 3 | HM9: 0.06015386935 | HN9: 0.06732265648 | HO9: 0.03583873541 | HP9: 0.004637151308 | HQ9: 0.07719796293 | HR9: 0.0879590398 | HS9: 0.1028521136 | HU9: 3 | HV9: 0.05466527374 | HW9: 0.0598262384 | HX9: 0.03789971784 | HY9: 0.006638048831 | HZ9: 0.07956625446 | IA9: 0.04347226789 | IB9: 0.1088406214 | ID9: 3 | IE9: 0.04276354846 | IF9: 0.03382254806 | IG9: 0.01887394232 | IH9: 0.06526571078 | II9: 0.03076990907 | IJ9: 0.02784471158 | IK9: 0.05697240642 | IM9: 3 | IN9: 0.0460924574 | IO9: 0.04335300446 | IP9: 0.01994855059 | IQ9: 0.08914384836 | IR9: 0.03245987713 | IS9: 0.02156803631 | IT9: 0.05092667307
B10: 0 | K10: 0 | BV10: 4 | BW10: 0 | BX10: =IF(ToggleYear<=1998,VLOOKUP($BW10,$DH$6:$DO$36,2,FALSE),IF(AND(ToggleYear>=1999,ToggleYear<=2013),HLOOKUP(ToggleYear&"LDGV",$DR$3:$IT$36,$BV10,FALSE),HLOOKUP(ToggleYear&"LDGV",$DR$40:$IT$73,$BV10,FALSE))) -> 0.07040021278 | BY10: =IF(ToggleYear<=1998,VLOOKUP($BW10,$DH$6:$DO$36,2,FALSE),IF(AND(ToggleYear>=1999,ToggleYear<=2013),HLOOKUP(ToggleYear&"LDGT",$DR$3:$IT$36,$BV10,FALSE),HLOOKUP(ToggleYear&"LDGT",$DR$40:$IT$73,$BV10,FALSE))) -> 0.07739498896 | BZ10: =IF(ToggleYear<=1998,VLOOKUP(BW10,$DH$6:$DO$36,2,FALSE),IF(AND(ToggleYear>=1999,ToggleYear<=2013),HLOOKUP(ToggleYear&"HDGV",$DR$3:$IT$36,$BV10,FALSE),HLOOKUP(ToggleYear&"HDGV",$DR$40:$IT$73,BV10,FALSE))) -> 0.06490942046 | CA10: =IF(ToggleYear<=1998,VLOOKUP(BW10,$DH$6:$DO$36,2,FALSE),IF(AND(ToggleYear>=1999,ToggleYear<=2013),HLOOKUP(ToggleYear&"LDDV",$DR$3:$IT$36,$BV10,FALSE),HLOOKUP(ToggleYear&"LDDV",$DR$40:$IT$73,BV10,FALSE))) -> 0.0982280152 | CB10: =IF(ToggleYear<=1998,VLOOKUP(BW10,$DH$6:$DO$36,2,FALSE),IF(AND(ToggleYear>=1999,ToggleYear<=2013),HLOOKUP(ToggleYear&"LDDT",$DR$3:$IT$36,$BV10,FALSE),HLOOKUP(ToggleYear&"LDDT",$DR$40:$IT$73,BV10,FALSE))) -> 0.08033137333 | CC10: =IF(ToggleYear<=1998,VLOOKUP(BW10,$DH$6:$DO$36,2,FALSE),IF(AND(ToggleYear>=1999,ToggleYear<=2013),HLOOKUP(ToggleYear&"HDDV",$DR$3:$IT$36,$BV10,FALSE),HLOOKUP(ToggleYear&"HDDV",$DR$40:$IT$73,BV10,FALSE))) -> 0.06064660624 | CD10: =IF(ToggleYear<=1998,VLOOKUP(BW10,$DH$6:$DO$36,2,FALSE),IF(AND(ToggleYear>=1999,ToggleYear<=2013),HLOOKUP(ToggleYear&"MC",$DR$3:$IT$36,$BV10,FALSE),HLOOKUP(ToggleYear&"MC",$DR$40:$IT$73,BV10,FALSE))) -> 0.07067896742 | CF10: 0 | CG10: 13413.67683 | CH10: 15161.06645 | CI10: 17663.20485 | CJ10: 13413.67683 | CK10: 15161.22623 | CL10: 41952.30648 | CM10: 7719.558559 | DH10: 4 | DI10: 0.07026154343 | DJ10: 0.07060646753 | DK10: 0.06759561352 | DL10: 0.07026154343 | DM10: 0.05966548966 | DN10: 0.06202149802 | DO10: 0.088 | DQ10: 4 | DR10: 0.07564120092 | DS10: 0.0860684013 | DT10: 0.06965301281 | DU10: 0.007011231327 | DV10: 0.08485580499 | DW10: 0.08462012429 | DX10: 0.0402528222 | DZ10: 4 | EA10: 0.0716085677 | EB10: 0.07372769017 | EC10: 0.0500271405 | ED10: 0.009922719891 | EE10: 0.07237973917 | EF10: 0.06400004423 | EG10: 0.05765091704 | EI10: 4 | EJ10: 0.07434323611 | EK10: 0.08472387639 | EL10: 0.07169856554 | EM10: 0.00825389595 | EN10: 0.08816302498 | EO10: 0.06364828295 | EP10: 0.05190620938 | ER10: 4 | ES10: 0.07333312762 | ET10: 0.08055897497 | EU10: 0.03706039347 | EV10: 0.02219708911 | EW10: 0.05486811925 | EX10: 0.0591706535 | EY10: 0.04323718535 | FA10: 4 | FB10: 0.08068312096 | FC10: 0.08783075248 | FD10: 0.08371281275 | FE10: 0.02280785245 | FF10: 0.1178637104 | FG10: 0.08314755855 | FH10: 0.04730975671 | FJ10: 4 | FK10: 0.0848282434 | FL10: 0.08857081032 | FM10: 0.08415261067 | FN10: 0.03559722434 | FO10: 0.07209900606 | FP10: 0.0982747981 | FQ10: 0.05609673427 | FS10: 4 | FT10: 0.07746932582 | FU10: 0.08395713838 | FV10: 0.0434966604 | FW10: 0.03982048098 | FX10: 0.1171432179 | FY10: 0.06469301017 | FZ10: 0.06413765728 | GB10: 4 | GC10: 0.07780714973 | GD10: 0.08507630923 | GE10: 0.05133341237 | GF10: 0.05979372905 | GG10: 0.08343274146 | GH10: 0.04874235626 | GI10: 0.06712823828 | GK10: 4 | GL10: 0.07008775685 | GM10: 0.07997896945 | GN10: 0.04630748754 | GO10: 0.05386632864 | GP10: 0.0863981289 | GQ10: 0.04989416769 | GR10: 0.07103326289 | GT10: 4 | GU10: 0.06415199939 | GV10: 0.08071011055 | GW10: 0.05193905263 | GX10: 0.04254132858 | GY10: 0.0852667954 | GZ10: 0.05225503004 | HA10: 0.07540873547 | HC10: 4 | HD10: 0.06199257313 | HE10: 0.07653820512 | HF10: 0.0395680092 | HG10: 0.06537731709 | HH10: 0.0909698848 | HI10: 0.07022740676 | HJ10: 0.08746319651 | HL10: 4 | HM10: 0.05809032746 | HN10: 0.06928002024 | HO10: 0.05098983526 | HP10: 0.09074421578 | HQ10: 0.1001223962 | HR10: 0.07724963237 | HS10: 0.0974448554 | HU10: 4 | HV10: 0.0599589245 | HW10: 0.06391296519 | HX10: 0.03517764353 | HY10: 0.004670545972 | HZ10: 0.0727305048 | IA10: 0.08548857918 | IB10: 0.09683913307 | ID10: 4 | IE10: 0.05438243036 | IF10: 0.0585960484 | IG10: 0.0365594732 | IH10: 0.005969525765 | II10: 0.0765148405 | IJ10: 0.04198057173 | IK10: 0.1009537307 | IM10: 4 | IN10: 0.04200604717 | IO10: 0.03278115559 | IP10: 0.01799737015 | IQ10: 0.05895820031 | IR10: 0.02942296497 | IS10: 0.02653379226 | IT10: 0.05274523869
B11: 1 | K11: 1 | BV11: 5 | BW11: 1 | BX11: =IF(ToggleYear<=1998,VLOOKUP($BW11,$DH$6:$DO$36,2,FALSE),IF(AND(ToggleYear>=1999,ToggleYear<=2013),HLOOKUP(ToggleYear&"LDGV",$DR$3:$IT$36,$BV11,FALSE),HLOOKUP(ToggleYear&"LDGV",$DR$40:$IT$73,$BV11,FALSE))) -> 0.07001321989 | BY11: 0.07807909748 | BZ11: 0.06511598196 | CA11: 0.0976768616 | CB11: 0.08096567457 | CC11: 0.060407378 | CD11: 0.07049024149 | CF11: 1 | CG11: 13159.15065 | CH11: 14876.18761 | CI11: 17666.24943 | CJ11: 13159.15065 | CK11: 14876.17805 | CL11: 41526.80281 | CM11: 4122.231447 | DH11: 5 | DI11: 0.06978219888 | DJ11: 0.06792127718 | DK11: 0.06171436922 | DL11: 0.06978219888 | DM11: 0.05558375796 | DN11: 0.05752880783 | DO11: 0.07 | DQ11: 5 | DR11: 0.06717126745 | DS11: 0.07356460355 | DT11: 0.05769836054 | DU11: 0.000990652563 | DV11: 0.03958918317 | DW11: 0.06890058666 | DX11: 0.04695961641 | DZ11: 5 | EA11: 0.07029887304 | EB11: 0.07280662924 | EC11: 0.06635121152 | ED11: 0.007383774155 | EE11: 0.07094536529 | EF11: 0.07452799301 | EG11: 0.03787733623 | EI11: 5 | EJ11: 0.06659601984 | EK11: 0.0635029393 | EL11: 0.04766846359 | EM11: 0.01013373566 | EN11: 0.05774408103 | EO11: 0.05928095718 | EP11: 0.05288144594 | ER11: 5 | ES11: 0.07029454268 | ET11: 0.07350473993 | EU11: 0.06910845515 | EV11: 0.00873496097 | EW11: 0.07487949757 | EX11: 0.05968166588 | EY11: 0.04948796347 | FA11: 5 | FB11: 0.06935132443 | FC11: 0.07108258873 | FD11: 0.03539989956 | FE11: 0.02304260229 | FF11: 0.04702319087 | FG11: 0.05553597414 | FH11: 0.03973687297 | FJ11: 5 | FK11: 0.07666432114 | FL11: 0.0778264163 | FM11: 0.07986355987 | FN11: 0.02347238689 | FO11: 0.1024497609 | FP11: 0.07821796911 | FQ11: 0.04307935523 | FS11: 5 | FT11: 0.08115306149 | FU11: 0.07956768643 | FV11: 0.08076758352 | FW11: 0.03604644508 | FX11: 0.06253834576 | FY11: 0.09035105652 | FZ11: 0.05104952092 | GB11: 5 | GC11: 0.07431164403 | GD11: 0.07658113268 | GE11: 0.04113001123 | GF11: 0.03942605547 | GG11: 0.1013320231 | GH11: 0.05903708823 | GI11: 0.05804542344 | GK11: 5 | GL11: 0.0740195351 | GM11: 0.07840322086 | GN11: 0.04951959047 | GO11: 0.06250260643 | GP11: 0.07614797602 | GQ11: 0.0436976025 | GR11: 0.06160962943 | GT11: 5 | GU11: 0.06721975588 | GV11: 0.07498776634 | GW11: 0.04484006772 | GX11: 0.05630130583 | GY11: 0.07944082454 | GZ11: 0.04723605994 | HA11: 0.06408196106 | HC11: 5 | HD11: 0.06216922025 | HE11: 0.07776249244 | HF11: 0.0511764333 | HG11: 0.04244386836 | HH11: 0.08262207759 | HI11: 0.05073168745 | HJ11: 0.07435011577 | HL11: 5 | HM11: 0.06022471731 | HN11: 0.07297885427 | HO11: 0.03943637755 | HP11: 0.06525157503 | HQ11: 0.08799593132 | HR11: 0.06932112664 | HS11: 0.08533392485 | HU11: 5 | HV11: 0.05604293484 | HW11: 0.06571615333 | HX11: 0.0500431182 | HY11: 0.08846446957 | HZ11: 0.09437128756 | IA11: 0.07441938449 | IB11: 0.09174880849 | ID11: 5 | IE11: 0.05949954018 | IF11: 0.06211731464 | IG11: 0.0338280715 | IH11: 0.004188987899 | II11: 0.06942019401 | IJ11: 0.08208657078 | IK11: 0.08982188936 | IM11: 5 | IN11: 0.05329895084 | IO11: 0.05644305652 | IP11: 0.0347871806 | IQ11: 0.005380569284 | IR11: 0.07270285185 | IS11: 0.03992500535 | IT11: 0.09346321942
B12: 2 | K12: 2 | BV12: 6 | BW12: 2 | BX12: 0.07096227925 | BY12: 0.0780792892 | BZ12: 0.06367020971 | CA12: 0.09899384708 | CB12: 0.0808852063 | CC12: 0.05851480648 | CD12: 0.06993800243 | CF12: 2 | CG12: 12883.88684 | CH12: 14554.63713 | CI12: 17669.60223 | CJ12: 12883.88684 | CK12: 14554.70804 | CL12: 41007.51096 | CM12: 3118.715488 | DH12: 6 | DI12: 0.06893934206 | DJ12: 0.06473502122 | DK12: 0.05634969057 | DL12: 0.06893934206 | DM12: 0.05178123818 | DN12: 0.05337032519 | DO12: 0.056 | DQ12: 6 | DR12: 0.06029128935 | DS12: 0.05549133728 | DT12: 0.05170843628 | DU12: 0.004099834891 | DV12: 0.04227083689 | DW12: 0.05677037814 | DX12: 0.04093452166 | DZ12: 6 | EA12: 0.06066640082 | EB12: 0.062473127 | EC12: 0.05484150346 | ED12: 0.00101387011 | EE12: 0.03409256688 | EF12: 0.06030024159 | EG12: 0.04432918568 | EI12: 6 | EJ12: 0.06464719541 | EK12: 0.06265902114 | EL12: 0.06315547715 | EM12: 0.007456524068 | EN12: 0.05433421888 | EO12: 0.06906236677 | EP12: 0.03474351749 | ER12: 6 | ES12: 0.06129773342 | ET12: 0.05509515197 | EU12: 0.04536918058 | EV12: 0.01043963413 | EW12: 0.05045507371 | EX12: 0.05528076225 | EY12: 0.05081605857 | FA12: 6 | FB12: 0.0650371816 | FC12: 0.06472867351 | FD12: 0.06610368164 | FE12: 0.008871224026 | FF12: 0.06375970187 | FG12: 0.05582419037 | FH12: 0.04597863605 | FJ12: 6 | FK12: 0.06443063578 | FL12: 0.06312753493 | FM12: 0.0335301598 | FN12: 0.02318639908 | FO12: 0.0407105699 | FP12: 0.05198998072 | FQ12: 0.03637049956 | FS12: 6 | FT12: 0.07173962148 | FU12: 0.07001292409 | FV12: 0.07671675536 | FW12: 0.02324896047 | FX12: 0.08951891282 | FY12: 0.07199797735 | FZ12: 0.03924430815 | GB12: 6 | GC12: 0.07634487175 | GD12: 0.07262324545 | GE12: 0.07622697857 | GF12: 0.03500180923 | GG12: 0.05431773628 | GH12: 0.08268082152 | GI12: 0.0464544464 | GK12: 6 | GL12: 0.06942324742 | GM12: 0.07059600709 | GN12: 0.03964825674 | GO12: 0.04047120977 | GP12: 0.09151031867 | GQ12: 0.05363182189 | GR12: 0.05320325225 | GT12: 6 | GU12: 0.06934901274 | GV12: 0.07343330449 | GW12: 0.0476855882 | GX12: 0.06381723776 | GY12: 0.06993434338 | GZ12: 0.04086417165 | HA12: 0.05602937834 | HC12: 6 | HD12: 0.06377223458 | HE12: 0.07230312324 | HF12: 0.04430399398 | HG12: 0.05499119634 | HH12: 0.07703713642 | HI12: 0.04574919609 | HJ12: 0.06367255555 | HL12: 6 | HM12: 0.05752801912 | HN12: 0.07416216362 | HO12: 0.0503335495 | HP12: 0.04034999229 | HQ12: 0.07989532845 | HR12: 0.04954006721 | HS12: 0.07239567252 | HU12: 6 | HV12: 0.05619954286 | HW12: 0.06923562101 | HX12: 0.03959397731 | HY12: 0.061531524 | HZ12: 0.08291950758 | IA12: 0.06819779485 | IB12: 0.08034602958 | ID12: 6 | IE12: 0.05542940288 | IF12: 0.06340594702 | IG12: 0.04797292813 | IH12: 0.07907922636 | II12: 0.08934435846 | IJ12: 0.07110184239 | IK12: 0.08510033618 | IM12: 6 | IN12: 0.05815321111 | IO12: 0.0594197894 | IP12: 0.03211927951 | IQ12: 0.003765135174 | IR12: 0.06550777925 | IS12: 0.0779300925 | IT12: 0.0831573191
B13: 3 | K13: 3 | BV13: 7 | BW13: 3 | BX13: 0.07050842371 | BY13: 0.07769862739 | BZ13: 0.06305966613 | CA13: 0.09835945088 | CB13: 0.08041854447 | CC13: 0.05792704397 | CD13: 0.06491618904 | CF13: 3 | CG13: 12589.79795 | CH13: 14202.9916 | CI13: 17669.4322 | CJ13: 12589.79795 | CK13: 14203.04282 | CL13: 40964.07536 | CM13: 2578.32976 | DH13: 7 | DI13: 0.06758222346 | DJ13: 0.06101601598 | DK13: 0.05145594887 | DL13: 0.06758222346 | DM13: 0.0482388428 | DN13: 0.04952016014 | DO13: 0.045 | DQ13: 7 | DR13: 0.05311479176 | DS13: 0.04145736076 | DT13: 0.04312144631 | DU13: 0.006087475404 | DV13: 0.04089115484 | DW13: 0.04361586296 | DX13: 0.03925378403 | DZ13: 7 | EA13: 0.05377869589 | EB13: 0.04692323431 | EC13: 0.04727684897 | ED13: 0.004143981071 | EE13: 0.03646195515 | EF13: 0.04862380766 | EG13: 0.03822784747 | EI13: 7 | EJ13: 0.05521247964 | EK13: 0.05398965211 | EL13: 0.05224873045 | EM13: 0.0010132759 | EN13: 0.0269986431 | EO13: 0.05573823777 | EP13: 0.04066156026 | ER13: 7 | ES13: 0.05944044898 | ET13: 0.0543178412 | EU13: 0.0611654525 | EV13: 0.007673436665 | EW13: 0.04585513367 | EX13: 0.06522725868 | EY13: 0.03294344704 | FA13: 7 | FB13: 0.0564830393 | FC13: 0.04855260598 | FD13: 0.04316986095 | FE13: 0.01055947858 | FF13: 0.04406748037 | FG13: 0.05175574346 | FH13: 0.04727261003 | FJ13: 7 | FK13: 0.06029937118 | FL13: 0.05738337533 | FM13: 0.06271281471 | FN13: 0.008908359791 | FO13: 0.05486847895 | FP13: 0.05209756693 | FQ13: 0.04231384094 | FS13: 7 | FT13: 0.0597361141 | FU13: 0.05689769543 | FV13: 0.03214625859 | FW13: 0.02275411201 | FX13: 0.03544778541 | FY13: 0.04780698767 | FZ13: 0.03315194871 | GB13: 7 | GC13: 0.0669949635 | GD13: 0.06398472174 | GE13: 0.07246896948 | GF13: 0.02240996488 | GG13: 0.07829983924 | GH13: 0.06597823725 | GI13: 0.03556711062 | GK13: 7 | GL13: 0.07147687987 | GM13: 0.06698380464 | GN13: 0.07324022209 | GO13: 0.03600736001 | GP13: 0.04923188117 | GQ13: 0.07585266281 | GR13: 0.04254606375 | GT13: 7 | GU13: 0.06514276274 | GV13: 0.06600105018 | GW13: 0.03835386217 | GX13: 0.04138621799 | GY13: 0.08323203697 | GZ13: 0.05112127941 | HA13: 0.04821521634 | HC13: 7 | HD13: 0.06524626154 | HE13: 0.07072399626 | HF13: 0.04680190767 | HG13: 0.06181490162 | HH13: 0.06774185665 | HI13: 0.03925137262 | HJ13: 0.05593716019 | HL13: 7 | HM13: 0.05935876399 | HN13: 0.06894982302 | HO13: 0.04386408239 | HP13: 0.05259016698 | HQ13: 0.07451087408 | HR13: 0.04458866558 | HS13: 0.06197258245 | HU13: 7 | HV13: 0.05271319907 | HW13: 0.07035145599 | HX13: 0.04932684649 | HY13: 0.03736246474 | HZ13: 0.07526631599 | IA13: 0.04787957288 | IB13: 0.06816356342 | ID13: 7 | IE13: 0.05537313443 | IF13: 0.06620583242 | IG13: 0.03795600987 | IH13: 0.0547920637 | II13: 0.07781126663 | IJ13: 0.06514582673 | IK13: 0.07452381278 | IM13: 7 | IN13: 0.05400064188 | IO13: 0.06021326449 | IP13: 0.04554983285 | IQ13: 0.07084834138 | IR13: 0.0836808396 | IS13: 0.06749641369 | IT13: 0.07878608799
B14: 4 | K14: 4 | BV14: 8 | BW14: 4 | BX14: 0.06847687988 | BY14: 0.07381328795 | BZ14: 0.06053878478 | CA14: 0.09552482144 | CB14: 0.07632962545 | CC14: 0.05566231109 | CD14: 0.05905351645 | CF14: 4 | CG14: 12279.73619 | CH14: 13823.94955 | CI14: 16723.87971 | CJ14: 12279.73619 | CK14: 13823.99954 | CL14: 38890.43104 | CM14: 2230.947626 | DH14: 8 | DI14: 0.06554581986 | DJ14: 0.05677367455 | DK14: 0.04699132433 | DL14: 0.06554581986 | DM14: 0.04493878722 | DN14: 0.04595503045 | DO14: 0.036 | DQ14: 8 | DR14: 0.04643720599 | DS14: 0.03575257499 | DT14: 0.03372348142 | DU14: 0.01291616885 | DV14: 0.02872378041 | DW14: 0.04319847365 | DX14: 0.03336203906 | DZ14: 8 | EA14: 0.04702969269 | EB14: 0.03523427027 | EC14: 0.0397640942 | ED14: 0.006107860181 | EE14: 0.03521250345 | EF14: 0.0371444273 | EG14: 0.03634301421 | EI14: 8 | EJ14: 0.04858914938 | EK14: 0.0403667622 | EL14: 0.04486713865 | EM14: 0.004111525625 | EN14: 0.02892732475 | EO14: 0.04483734872 | EP14: 0.03506519023 | ER14: 8 | ES14: 0.04968537102 | ET14: 0.04696569167 | EU14: 0.05005633778 | EV14: 0.001020562292 | EW14: 0.0234418518 | EX14: 0.05189929284 | EY14: 0.03881554183 | FA14: 8 | FB14: 0.05488505879 | FC14: 0.04784163051 | FD14: 0.05847620461 | FE14: 0.007777577 | FF14: 0.03886394479 | FG14: 0.06116790781 | FH14: 0.03043601504 | FJ14: 8 | FK14: 0.05228416275 | FL14: 0.04307066935 | FM14: 0.0406017025 | FN14: 0.01058662227 | FO14: 0.03881526842 | FP14: 0.04816928544 | FQ14: 0.04358184843 | FS14: 8 | FT14: 0.05590670675 | FU14: 0.05164308822 | FV14: 0.06009285529 | FW14: 0.008742389841 | FX14: 0.0475210273 | FY14: 0.04770324593 | FZ14: 0.03879999655 | GB14: 8 | GC14: 0.05525118129 | GD14: 0.05209005721 | GE14: 0.03040174932 | GF14: 0.02172280222 | GG14: 0.03090190054 | GH14: 0.04382992943 | GI14: 0.03008278229 | GK14: 8 | GL14: 0.06245174803 | GM14: 0.05908140936 | GN14: 0.06973726472 | GO14: 0.02295392276 | GP14: 0.07141162983 | GQ14: 0.06047595651 | GR14: 0.03243676738 | GT14: 8 | GU14: 0.0673700956 | GV14: 0.0628131637 | GW14: 0.0711075074 | GX14: 0.03698621539 | GY14: 0.04492374655 | GZ14: 0.07317579229 | HA14: 0.03854050302 | HC14: 8 | HD14: 0.06159803207 | HE14: 0.06357111977 | HF14: 0.03772187651 | HG14: 0.04028984599 | HH14: 0.08000342802 | HI14: 0.04946182434 | HJ14: 0.04766797439 | HL14: 8 | HM14: 0.06001065632 | HN14: 0.06742029459 | HO14: 0.04535961455 | HP14: 0.05841301854 | HQ14: 0.06549284136 | HR14: 0.0372110582 | HS14: 0.05458639133 | HU14: 8 | HV14: 0.05509476174 | HW14: 0.06541901684 | HX14: 0.04318408424 | HY14: 0.04932374605 | HZ14: 0.07019306364 | IA14: 0.04259366345 | IB14: 0.05834992973 | ID14: 8 | IE14: 0.05171623833 | IF14: 0.0666386285 | IG14: 0.04713824753 | IH14: 0.03312781913 | II14: 0.06995815188 | IJ14: 0.04552825491 | IK14: 0.06322428395 | IM14: 8 | IN14: 0.0537527797 | IO14: 0.0623653044 | IP14: 0.03596148215 | IQ14: 0.0489129261 | IR14: 0.07229360745 | IS14: 0.06172600158 | IT14: 0.06899438199
B15: 5 | K15: 5 | BV15: 9 | BW15: 5 | BX15: 0.06686467215 | BY15: 0.06890509963 | BZ15: 0.05528167576 | CA15: 0.09327464265 | CB15: 0.07123250022 | CC15: 0.05067675344 | CD15: 0.05416954158 | CF15: 5 | CG15: 11954.45706 | CH15: 13420.65986 | CI15: 15782.27757 | CJ15: 11954.45706 | CK15: 13420.66278 | CL15: 36610.78075 | CM15: 1983.927919 | DH15: 9 | DI15: 0.06266869095 | DJ15: 0.05206257881 | DK15: 0.04291804874 | DL15: 0.06266869095 | DM15: 0.04186452457 | DN15: 0.04265323392 | DO15: 0.029 | DQ15: 9 | DR15: 0.03890423481 | DS15: 0.03306974417 | DT15: 0.03998887214 | DU15: 0.004070935721 | DV15: 0.01775673066 | DW15: 0.04616387976 | DX15: 0.03285902347 | DZ15: 9 | EA15: 0.04079125857 | EB15: 0.03035581605 | EC15: 0.03078143097 | ED15: 0.01285671458 | EE15: 0.02417332324 | EF15: 0.03636288747 | EG15: 0.03075695747 | EI15: 9 | EJ15: 0.04233790572 | EK15: 0.03047480505 | EL15: 0.03790004487 | EM15: 0.006038147346 | EN15: 0.02788435181 | EO15: 0.03408591265 | EP15: 0.03333625032 | ER15: 9 | ES15: 0.04312404353 | ET15: 0.0349490418 | EU15: 0.0422885431 | EV15: 0.004084179156 | EW15: 0.02513317941 | EX15: 0.04131702455 | EY15: 0.0326789094 | FA15: 9 | FB15: 0.0451022552 | FC15: 0.04148132542 | FD15: 0.04778178055 | FE15: 0.001016935197 | FF15: 0.02036970153 | FG15: 0.0484849376 | FH15: 0.03599924446 | FJ15: 9 | FK15: 0.05100811621 | FL15: 0.04241945604 | FM15: 0.05546216295 | FN15: 0.00782875879 | FO15: 0.03329763346 | FP15: 0.05726556272 | FQ15: 0.02790343715 | FS15: 9 | FT15: 0.04847270933 | FU15: 0.0387834406 | FV15: 0.03882344571 | FW15: 0.01038881599 | FX15: 0.03430622149 | FY15: 0.04427181377 | FZ15: 0.04007407573 | GB15: 9 | GC15: 0.05184355924 | GD15: 0.04721438072 | GE15: 0.05683362056 | GF15: 0.008367844267 | GG15: 0.04121455598 | GH15: 0.04361511167 | GI15: 0.03541680821 | GK15: 9 | GL15: 0.0511599137 | GM15: 0.04817072293 | GN15: 0.02931410998 | GO15: 0.02210136072 | GP15: 0.02810040286 | GQ15: 0.04014886994 | GR15: 0.02750448962 | GT15: 9 | GU15: 0.05872251765 | GV15: 0.05552481311 | GW15: 0.06782836448 | GX15: 0.02352149477 | GY15: 0.06566171912 | GZ15: 0.05844648365 | HA15: 0.02931551461 | HC15: 9 | HD15: 0.06420058928 | HE15: 0.06059807547 | HF15: 0.07042411573 | HG15: 0.0362869185 | HH15: 0.04330964216 | HI15: 0.07172499594 | HJ15: 0.03806837814 | HL15: 9 | HM15: 0.05735461606 | HN15: 0.0606212416 | HO15: 0.03705499724 | HP15: 0.03853756233 | HQ15: 0.07673296543 | HR15: 0.04810510239 | HS15: 0.04626077689 | HU15: 9 | HV15: 0.05497312215 | HW15: 0.0639686903 | HX15: 0.04324310451 | HY15: 0.05407163416 | HZ15: 0.06170151903 | IA15: 0.03433998148 | IB15: 0.05139569842 | ID15: 9 | IE15: 0.05379848712 | IF15: 0.06134994867 | IG15: 0.04126805048 | IH15: 0.04353082669 | II15: 0.06460606864 | IJ15: 0.04048544141 | IK15: 0.05412160193 | IM15: 9 | IN15: 0.05000800891 | IO15: 0.06225765391 | IP15: 0.04466121826 | IQ15: 0.029458315 | IR15: 0.0644622874 | IS15: 0.04313401565 | IT15: 0.0585331111
B16: 6 | K16: 6 | BV16: 10 | BW16: 6 | BX16: 0.06329948983 | BY16: 0.06348639616 | BZ16: 0.04881740864 | CA16: 0.0883028691 | CB16: 0.06558103423 | CC16: 0.04467814006 | CD16: 0.04821792663 | CF16: 6 | CG16: 11617.06773 | CH16: 12997.5905 | CI16: 14839.23464 | CJ16: 11617.06773 | CK16: 12997.70029 | CL16: 34434.70867 | CM16: 1798.652806 | DH16: 10 | DI16: 0.05881971057 | DJ16: 0.04698237745 | DK16: 0.03920145305 | DL16: 0.05881971057 | DM16: 0.03900055031 | DN16: 0.0395946159 | DO16: 0.023 | DQ16: 10 | DR16: 0.03171004585 | DS16: 0.03379760619 | DT16: 0.04500970749 | DU16: 0.002839337904 | DV16: 0.0178312977 | DW16: 0.04105887051 | DX16: 0.03261547325 | DZ16: 10 | EA16: 0.03404532433 | EB16: 0.02799770948 | EC16: 0.03793189736 | ED16: 0.00403692372 | EE16: 0.01541852782 | EF16: 0.03990585926 | EG16: 0.02973791692 | EI16: 10 | EJ16: 0.03657045452 | EK16: 0.02622778895 | EL16: 0.02934001958 | EM16: 0.01265760274 | EN16: 0.01865500274 | EO16: 0.03309584323 | EP16: 0.02821237546 | ER16: 10 | ES16: 0.03737270659 | ET16: 0.02650271371 | EU16: 0.03557521063 | EV16: 0.005965546859 | EW16: 0.02418467984 | EX16: 0.03098223833 | EY16: 0.03045767435 | FA16: 10 | FB16: 0.03875520165 | FC16: 0.03077376703 | FD16: 0.03986916373 | FE16: 0.004029003198 | FF16: 0.0218667171 | FG16: 0.03817770577 | FH16: 0.02988161477 | FJ16: 10 | FK16: 0.04139182363 | FL16: 0.03687056423 | FM16: 0.04512655024 | FN16: 0.001010818973 | FO16: 0.01785957972 | FP16: 0.04506476278 | FQ16: 0.03311849238 | FS16: 10 | FT16: 0.04761049635 | FU16: 0.03818141807 | FV16: 0.05313349306 | FW16: 0.007734594522 | FX16: 0.02872555044 | FY16: 0.05269590053 | FZ16: 0.02552114229 | GB16: 10 | GC16: 0.04502236315 | GD16: 0.03547531086 | GE16: 0.03671704367 | GF16: 0.009959771093 | GG16: 0.03033090939 | GH16: 0.04065726509 | GI16: 0.03671199575 | GK16: 10 | GL16: 0.04818899795 | GM16: 0.04361032521 | GN16: 0.05480345596 | GO16: 0.008546352559 | GP16: 0.03730713634 | GQ16: 0.03973680878 | GR16: 0.03261352467 | GT16: 10 | GU16: 0.04786210441 | GV16: 0.04528426878 | GW16: 0.02833346879 | GX16: 0.02253344945 | GY16: 0.02570608579 | GZ16: 0.03845052429 | HA16: 0.0249049873 | HC16: 10 | HD16: 0.05587521915 | HE16: 0.0536419325 | HF16: 0.0672656926 | HG16: 0.02304186035 | HH16: 0.06367110376 | HI16: 0.05722691041 | HJ16: 0.02883944538 | HL16: 10 | HM16: 0.06065428053 | HN16: 0.05788043699 | HO16: 0.07002867287 | HP16: 0.035217192 | HQ16: 0.04167027942 | HR16: 0.07109566166 | HS16: 0.03692860207 | HU16: 10 | HV16: 0.05344650978 | HW16: 0.0575202372 | HX16: 0.03592546476 | HY16: 0.03629227791 | HZ16: 0.07160042971 | IA16: 0.04579280851 | IB16: 0.04355622908 | ID16: 10 | IE16: 0.05341764771 | IF16: 0.05940910194 | IG16: 0.04132443456 | IH16: 0.04748663925 | II16: 0.0562397966 | IJ16: 0.03265702469 | IK16: 0.04767150559 | IM16: 10 | IN16: 0.05180655057 | IO16: 0.0568459285 | IP16: 0.03909957216 | IQ16: 0.03854983064 | IR16: 0.05904463842 | IS16: 0.03835810844 | IT16: 0.05010602448
B17: 7 | K17: 7 | BV17: 11 | BW17: 7 | BX17: 0.06012940496 | BY17: 0.05835210495 | BZ17: 0.04412280379 | CA17: 0.08423554826 | CB17: 0.06058113445 | CC17: 0.04115309833 | CD17: 0.04309776779 | CF17: 7 | CG17: 11269.25974 | CH17: 12557.97219 | CI17: 13896.74299 | CJ17: 11269.25974 | CK17: 12558.00551 | CL17: 33049.41258 | CM17: 1651.986088 | DH17: 11 | DI17: 0.05393234524 | DJ17: 0.04167187246 | DK17: 0.03581018954 | DL17: 0.05393234524 | DM17: 0.03633253254 | DN17: 0.03676105802 | DO17: 0.097 | DQ17: 11 | DR17: 0.02933834351 | DS17: 0.0290565763 | DT17: 0.04079921839 | DU17: 0.00074952163 | DV17: 0.01899466598 | DW17: 0.03940655264 | DX17: 0.02563667445 | DZ17: 11 | EA17: 0.02744310693 | EB17: 0.02859869353 | EC17: 0.04186160627 | ED17: 0.002784516034 | EE17: 0.01526957372 | EF17: 0.03519795168 | EG17: 0.02972501184 | EI17: 11 | EJ17: 0.03049258012 | EK17: 0.02411699873 | EL17: 0.03614597011 | EM17: 0.003970487039 | EN17: 0.01232068701 | EO17: 0.03662543931 | EP17: 0.02727760346 | ER17: 11 | ES17: 0.03211588632 | ET17: 0.02277910354 | EU17: 0.02738073481 | EV17: 0.01244119393 | EW17: 0.01581576516 | EX17: 0.02984106426 | EY17: 0.02545929472 | FA17: 11 | FB17: 0.03349683438 | FC17: 0.02342063103 | FD17: 0.03362507749 | FE17: 0.005869243087 | FF17: 0.02101466302 | FG17: 0.02848777515 | FH17: 0.02750366692 | FJ17: 11 | FK17: 0.03534101106 | FL17: 0.0272793423 | FM17: 0.03735888853 | FN17: 0.003979329638 | FO17: 0.01919373937 | FP17: 0.03530266786 | FQ17: 0.02712389739 | FS17: 11 | FT17: 0.0381845827 | FU17: 0.03325595265 | FV17: 0.04321451267 | FW17: 0.0009870229871 | FX17: 0.01572286067 | FY17: 0.0414116076 | FZ17: 0.0303929715 | GB17: 11 | GC17: 0.04471925277 | GD17: 0.03491147014 | GE17: 0.05022709611 | GF17: 0.007498639658 | GG17: 0.02481858742 | GH17: 0.04844275945 | GI17: 0.02326327497 | GK17: 11 | GL17: 0.04195819842 | GM17: 0.03278151108 | GN17: 0.03540428536 | GO17: 0.01019888936 | GP17: 0.02792291695 | GQ17: 0.03726581318 | GR17: 0.03397291869 | GT17: 11 | GU17: 0.04529712335 | GV17: 0.04092985204 | GW17: 0.05304046572 | GX17: 0.008754883678 | GY17: 0.03396665319 | GZ17: 0.03779762207 | HA17: 0.02965204084 | HC17: 11 | HD17: 0.04532696654 | HE17: 0.04378078591 | HF17: 0.02794190331 | HG17: 0.02197003823 | HH17: 0.02484477508 | HI17: 0.03747991974 | HJ17: 0.02457387554 | HL17: 11 | HM17: 0.05278166038 | HN17: 0.05131633087 | HO17: 0.0672058845 | HP17: 0.02235813879 | HQ17: 0.06162510186 | HR17: 0.05687998187 | HS17: 0.02791204574 | HU17: 11 | HV17: 0.05755968028 | HW17: 0.05494756902 | HX17: 0.07054126075 | HY17: 0.03377488824 | HZ17: 0.03901708851 | IA17: 0.07066905671 | IB17: 0.03476950916 | ID17: 11 | IE17: 0.05168834119 | IF17: 0.05292488814 | IG17: 0.03422369186 | IH17: 0.03171795194 | II17: 0.06464516373 | IJ17: 0.04330392272 | IK17: 0.04039999898 | IM17: 11 | IN17: 0.05123148222 | IO17: 0.0546097099 | IP17: 0.03906906721 | IQ17: 0.04188238397 | IR17: 0.05098939578 | IS17: 0.03087934416 | IT17: 0.04413427952
B18: 8 | K18: 8 | BV18: 12 | BW18: 8 | BX18: 0.036574993 | BY18: 0.03752994264 | BZ18: 0.02447596343 | CA18: 0.0511435497 | CB18: 0.03988040852 | CC18: 0.02533079941 | CD18: 0.03457279844 | CF18: 8 | CG18: 10912.97852 | CH18: 12106.16357 | CI18: 12073.9633 | CJ18: 10912.97852 | CK18: 12106.25337 | CL18: 37286.94418 | CM18: 1528.476304 | DH18: 12 | DI18: 0.04580195009 | DJ18: 0.03629781559 | DK18: 0.03271548688 | DL18: 0.04580195009 | DM18: 0.0338469862 | DN18: 0.03413526885 | DO18: 0 | DQ18: 12 | DR18: 0.0278969503 | DS18: 0.02248228733 | DT18: 0.03292543032 | DU18: 0.03544066192 | DV18: 0.006323865044 | DW18: 0.03264972555 | DX18: 0.02719828949 | DZ18: 12 | EA18: 0.0249888423 | EB18: 0.02457394701 | EC18: 0.03760110882 | ED18: 0.000723421217 | EE18: 0.01583438975 | EF18: 0.03333022065 | EG18: 0.02273057285 | EI18: 12 | EJ18: 0.02439618491 | EK18: 0.0246206329 | EL18: 0.03974751104 | EM18: 0.002718275703 | EN18: 0.01201755522 | EO18: 0.03216236633 | EP18: 0.0272657502 | ER18: 12 | ES18: 0.02678464243 | ET18: 0.02091721406 | EU18: 0.03460528986 | EV18: 0.00390352411 | EW18: 0.01077510171 | EX18: 0.03372991992 | EY18: 0.02341388408 | FA18: 12 | FB18: 0.02870995412 | FC18: 0.02011625464 | FD18: 0.02568855566 | FE18: 0.01220831726 | FF18: 0.01348456863 | FG18: 0.02706404851 | FH18: 0.02280153127 | FJ18: 12 | FK18: 0.03049532109 | FL18: 0.02082754854 | FM18: 0.03144165358 | FN18: 0.005787278731 | FO18: 0.0184246911 | FP18: 0.02609860068 | FQ18: 0.02466770646 | FS18: 12 | FT18: 0.03240768278 | FU18: 0.02454893511 | FV18: 0.03558088085 | FW18: 0.003862417854 | FX18: 0.01691380603 | FY18: 0.03225940126 | FZ18: 0.02451464707 | GB18: 12 | GC18: 0.03544356064 | GD18: 0.0304661686 | GE18: 0.04086428041 | GF18: 0.0009456491699 | GG18: 0.01385002231 | GH18: 0.03797832969 | GI18: 0.02779568803 | GK18: 12 | GL18: 0.04211796439 | GM18: 0.03225005739 | GN18: 0.04838816258 | GO18: 0.007760127875 | GP18: 0.0223887953 | GQ18: 0.04450214983 | GR18: 0.02141912719 | GT18: 12 | GU18: 0.03954086658 | GV18: 0.0306217899 | GW18: 0.03402795442 | GX18: 0.01047437563 | GY18: 0.02570829229 | GZ18: 0.03539754596 | HA18: 0.03098727355 | HC18: 12 | HD18: 0.04315065067 | HE18: 0.03952628999 | HF18: 0.05226388972 | HG18: 0.008586296232 | HH18: 0.03270110019 | HI18: 0.03660988136 | HJ18: 0.02964494729 | HL18: 12 | HM18: 0.04250923599 | HN18: 0.04192463508 | HO18: 0.0274693016 | HP18: 0.02116270989 | HQ18: 0.02396816243 | HR18: 0.03672779629 | HS18: 0.02382436513 | HU18: 12 | HV18: 0.05010264455 | HW18: 0.04875342642 | HX18: 0.06796703271 | HY18: 0.02144951721 | HZ18: 0.05802076438 | IA18: 0.05654661235 | IB18: 0.02628002589 | ID18: 12 | IE18: 0.05538609514 | IF18: 0.0500905778 | IG18: 0.06719954846 | IH18: 0.02936898525 | II18: 0.03490160829 | IJ18: 0.06684580112 | IK18: 0.03225001197 | IM18: 12 | IN18: 0.04936529923 | IO18: 0.04827409901 | IP18: 0.03235567789 | IQ18: 0.0278566787 | IR18: 0.05815529911 | IS18: 0.04094841535 | IT18: 0.03740236579
B19: 9 | K19: 9 | BV19: 13 | BW19: 9 | BX19: 0.04031727504 | BY19: 0.03192299795 | BZ19: 0.01602904614 | CA19: 0.04840548168 | CB19: 0.02230501349 | CC19: 0.01653069473 | CD19: 0.03122175161 | CF19: 9 | CG19: 10550.08472 | CH19: 11646.76739 | CI19: 10309.23197 | CJ19: 10550.08472 | CK19: 11646.74368 | CL19: 36329.55317 | CM19: 1428.117393 | DH19: 13 | DI19: 0.03631484274 | DJ19: 0.03103883997 | DK19: 0.02989112473 | DL19: 0.03631484274 | DM19: 0.03153146859 | DN19: 0.03170174517 | DO19: 0 | DQ19: 13 | DR19: 0.02912846638 | DS19: 0.02192254304 | DT19: 0.04227013515 | DU19: 0.02564465277 | DV19: 0.02142397311 | DW19: 0.03013076533 | DX19: 0.03160269018 | DZ19: 13 | EA19: 0.02641822614 | EB19: 0.01899852845 | EC19: 0.03429162238 | ED19: 0.03803169061 | EE19: 0.005383978099 | EF19: 0.03091477437 | EG19: 0.02379743133 | EI19: 13 | EJ19: 0.02349600117 | EK19: 0.02114386468 | EL19: 0.03584331243 | EM19: 0.0007469584676 | EN19: 0.01208541995 | EO19: 0.03124098597 | EP19: 0.0208500752 | ER19: 13 | ES19: 0.02365745445 | ET19: 0.02131076115 | EU19: 0.0399058004 | EV19: 0.002950270197 | EW19: 0.01035958663 | EX19: 0.03162369467 | EY19: 0.02016113246 | FA19: 13 | FB19: 0.02601644672 | FC19: 0.01843448768 | FD19: 0.0337103829 | FE19: 0.004161998648 | FF19: 0.009421473058 | FG19: 0.03260990628 | FH19: 0.01769503808 | FJ19: 13 | FK19: 0.0278501723 | FL19: 0.01787807053 | FM19: 0.02474796494 | FN19: 0.0128266779 | FO19: 0.01161821743 | FP19: 0.02602048199 | FQ19: 0.01716441978 | FS19: 13 | FT19: 0.0298799836 | FU19: 0.01879328666 | FV19: 0.03033634828 | FW19: 0.006002084837 | FX19: 0.01622007653 | FY19: 0.02462194262 | FZ19: 0.01811321529 | GB19: 13 | GC19: 0.0322300762 | GD19: 0.02244224448 | GE19: 0.03358966227 | GF19: 0.003964844962 | GG19: 0.01491257794 | GH19: 0.03010741666 | GI19: 0.01763726691 | GK19: 13 | GL19: 0.03494268113 | GM19: 0.02818996109 | GN19: 0.03939389528 | GO19: 0.001024385198 | GP19: 0.01270997528 | GQ19: 0.0359231471 | GR19: 0.01954916265 | GT19: 13 | GU19: 0.04170629484 | GV19: 0.03036704398 | GW19: 0.04745106345 | GX19: 0.008374335826 | GY19: 0.0203131553 | GZ19: 0.04411984613 | HA19: 0.01568012679 | HC19: 13 | HD19: 0.03993952081 | HE19: 0.02963128753 | HF19: 0.03417275261 | HG19: 0.0108924142 | HH19: 0.0251289661 | HI19: 0.03531810051 | HJ19: 0.02058427048 | HL19: 13 | HM19: 0.04450837753 | HN19: 0.03791914395 | HO19: 0.05326415026 | HP19: 0.009095483247 | HQ19: 0.0314810005 | HR19: 0.03734681797 | HS19: 0.02278733295 | HU19: 13 | HV19: 0.04417379991 | HW19: 0.03987330299 | HX19: 0.02881483814 | HY19: 0.02222742688 | HZ19: 0.02250899179 | IA19: 0.03813516039 | IB19: 0.02242489253 | ID19: 13 | IE19: 0.04648572229 | IF19: 0.0440648715 | IG19: 0.06454325067 | IH19: 0.01798303296 | II19: 0.05145098345 | IJ19: 0.05320230828 | IK19: 0.02437562896 | IM19: 13 | IN19: 0.05131355682 | IO19: 0.04535684132 | IP19: 0.06339516693 | IQ19: 0.02502149498 | IR19: 0.03116962206 | IS19: 0.06308543312 | IT19: 0.02985721862
B20: 10 | K20: 10 | BV20: 14 | BW20: 10 | BX20: 0.03587342299 | BY20: 0.02289759305 | BZ20: 0.01421226651 | CA20: 0.03123148273 | CB20: 0.01914041326 | CC20: 0.02006918997 | CD20: 0.03233662847 | CF20: 10 | CG20: 10183.45973 | CH20: 11181.32377 | CI20: 9749.423818 | CJ20: 10183.45973 | CK20: 11181.35119 | CL20: 37000.58934 | CM20: 1343.201886 | DH20: 14 | DI20: 0.02879283655 | DJ20: 0.02606695749 | DK20: 0.02731336489 | DL20: 0.02879283655 | DM20: 0.02937438387 | DN20: 0.02944591849 | DO20: 0 | DQ20: 14 | DR20: 0.02492290966 | DS20: 0.01540664236 | DT20: 0.02613872021 | DU20: 0.08551658852 | DV20: 0.01570569316 | DW20: 0.02704150435 | DX20: 0.0366246474 | DZ20: 14 | EA20: 0.02498846803 | EB20: 0.01854879006 | EC20: 0.0417578433 | ED20: 0.02492958071 | EE20: 0.01833703695 | EF20: 0.02665481364 | EG20: 0.02872648115 | EI20: 14 | EJ20: 0.0233489242 | EK20: 0.01633256928 | EL20: 0.03269176371 | EM20: 0.03691180028 | EN20: 0.004209955059 | EO20: 0.02822319336 | EP20: 0.02182858162 | ER20: 14 | ES20: 0.02018731536 | ET20: 0.01830947821 | EU20: 0.03397154177 | EV20: 0.000718293791 | EW20: 0.01015590001 | EX20: 0.02857168302 | EY20: 0.01735497084 | FA20: 14 | FB20: 0.02093586168 | FC20: 0.01877436141 | FD20: 0.03807710819 | FE20: 0.002865936502 | FF20: 0.008962398358 | FG20: 0.02923255648 | FH20: 0.01715669114 | FJ20: 14 | FK20: 0.023490724 | FL20: 0.01635397011 | FM20: 0.03166355474 | FN20: 0.004070163738 | FO20: 0.008306750394 | FP20: 0.02998779666 | FQ20: 0.01548529251 | FS20: 14 | FT20: 0.02534242366 | FU20: 0.01612372394 | FV20: 0.02357847344 | FW20: 0.01235424356 | FX20: 0.0100732682 | FY20: 0.02363493526 | FZ20: 0.01495985726 | GB20: 14 | GC20: 0.02740051741 | GD20: 0.01722323326 | GE20: 0.02869478692 | GF20: 0.005681119238 | GG20: 0.01428770814 | GH20: 0.02254021417 | GI20: 0.01611432141 | GK20: 14 | GL20: 0.02994533335 | GM20: 0.02072805578 | GN20: 0.03227669322 | GO20: 0.00404770639 | GP20: 0.01369583703 | GQ20: 0.02742441963 | GR20: 0.01613180869 | GT20: 14 | GU20: 0.0329814449 | GV20: 0.02635258054 | GW20: 0.03799591919 | GX20: 0.001053714466 | GY20: 0.01164259233 | GZ20: 0.03422394982 | HA20: 0.01776285448 | HC20: 14 | HD20: 0.03999964204 | HE20: 0.02926245806 | HF20: 0.04670443106 | HG20: 0.008268821021 | HH20: 0.01945392135 | HI20: 0.04297108369 | HJ20: 0.01549993841 | HL20: 14 | HM20: 0.03756527666 | HN20: 0.0283161356 | HO20: 0.03326915205 | HP20: 0.01052139575 | HQ20: 0.02444524581 | HR20: 0.03436501465 | HS20: 0.01997092101 | HU20: 14 | HV20: 0.04212337162 | HW20: 0.03602253511 | HX20: 0.05345250126 | HY20: 0.00870118808 | HZ20: 0.02944249498 | IA20: 0.03670860867 | IB20: 0.02145493147 | ID20: 14 | IE20: 0.03889888585 | IF20: 0.0357190673 | IG20: 0.02736323533 | IH20: 0.01768521029 | II20: 0.01977914938 | IJ20: 0.03579809631 | IK20: 0.02079982275 | IM20: 14 | IN20: 0.04124498466 | IO20: 0.03959885272 | IP20: 0.06088920848 | IQ20: 0.01467252164 | IR20: 0.0456004559 | IS20: 0.05020972065 | IT20: 0.0225670831
B21: 11 | K21: 11 | BV21: 15 | BW21: 11 | BX21: 0.04428138197 | BY21: 0.03744921189 | BZ21: 0.02689478283 | CA21: 0.002774169026 | CB21: 0.04468013628 | CC21: 0.02933655291 | CD21: 0.05729978128 | CF21: 11 | CG21: 9814.908402 | CH21: 10715.88154 | CI21: 9889.928971 | CJ21: 9814.908402 | CK21: 10715.90779 | CL21: 24963.04707 | CM21: 1266.00639 | DH21: 15 | DI21: 0.02282888467 | DJ21: 0.02152942829 | DK21: 0.02496045427 | DL21: 0.02282888467 | DM21: 0.02736491796 | DN21: 0.02735469399 | DO21: 0 | DQ21: 15 | DR21: 0.02220138689 | DS21: 0.01434107901 | DT21: 0.02532660276 | DU21: 0.1012258239 | DV21: 0.01921612027 | DW21: 0.0288060156 | DX21: 0.03376449977 | DZ21: 15 | EA21: 0.02131448148 | EB21: 0.01303146008 | EC21: 0.02579341158 | ED21: 0.08287453853 | EE21: 0.01346735336 | EF21: 0.0238520738 | EG21: 0.03363732559 | EI21: 15 | EJ21: 0.02207672649 | EK21: 0.01596727849 | EL21: 0.03979807287 | EM21: 0.0241860977 | EN21: 0.01442385593 | EO21: 0.02442808648 | EP21: 0.02634977991 | ER21: 15 | ES21: 0.01983290318 | ET21: 0.01411777302 | EU21: 0.03074113657 | EV21: 0.03509173002 | EW21: 0.003609411365 | EX21: 0.02560360845 | EY21: 0.01789624169 | FA21: 15 | FB21: 0.01771709863 | FC21: 0.01612390321 | FD21: 0.03224843795 | FE21: 0.0006919872895 | FF21: 0.008584157147 | FG21: 0.02630832495 | FH21: 0.01467764459 | FJ21: 15 | FK21: 0.01891580132 | FL21: 0.01664992224 | FM21: 0.036055281 | FN21: 0.002804557787 | FO21: 0.00782670366 | FP21: 0.02708123356 | FQ21: 0.01444922494 | FS21: 15 | FT21: 0.02136223845 | FU21: 0.01472677461 | FV21: 0.03026020725 | FW21: 0.003917818275 | FX21: 0.007347994161 | FY21: 0.02736572266 | FZ21: 0.01338680446 | GB21: 15 | GC21: 0.02320458791 | GD21: 0.01476962732 | GE21: 0.02230080824 | GF21: 0.01167601925 | GG21: 0.008745567191 | GH21: 0.0215776512 | GI21: 0.01295428383 | GK21: 15 | GL21: 0.02538443548 | GM21: 0.01594151238 | GN21: 0.02767003145 | GO21: 0.005783043511 | GP21: 0.01311144034 | GQ21: 0.02054970562 | GR21: 0.0143786649 | GT21: 15 | GU21: 0.02822522991 | GV21: 0.01932002321 | GW21: 0.03105547667 | GX21: 0.004157796511 | GY21: 0.01255713246 | GZ21: 0.0259833407 | HA21: 0.0146182337 | HC21: 15 | HD21: 0.03162369721 | HE21: 0.02542414701 | HF21: 0.03736262657 | HG21: 0.001040171989 | HH21: 0.01130066258 | HI21: 0.0332482962 | HJ21: 0.01773605375 | HL21: 15 | HM21: 0.03829082357 | HN21: 0.02794264624 | HO21: 0.04594779176 | HP21: 0.008129206666 | HQ21: 0.01859604869 | HR21: 0.04218202569 | HS21: 0.01504316011 | HU21: 15 | HV21: 0.03550794609 | HW21: 0.02690969401 | HX21: 0.03204895707 | HY21: 0.01005270066 | HZ21: 0.02319975048 | IA21: 0.0331232537 | IB21: 0.01880333587 | ID21: 15 | IE21: 0.03630974682 | IF21: 0.03143403113 | IG21: 0.05075991704 | IH21: 0.006776164013 | II21: 0.02519574148 | IJ21: 0.03457814725 | IK21: 0.01990032271 | IM21: 15 | IN21: 0.03391155645 | IO21: 0.03139916858 | IP21: 0.02581421138 | IQ21: 0.01417746639 | IR21: 0.01714705523 | IS21: 0.03379245591 | IT21: 0.01925656607
B22: 12 | K22: 12 | BV22: 16 | BW22: 12 | BX22: 0.04699723609 | BY22: 0.03713383965 | BZ22: 0.02447829022 | CA22: 0.001886119492 | CB22: 0.03798759294 | CC22: 0.05719304327 | CD22: 0.05098144509 | CF22: 12 | CG22: 9446.369836 | CH22: 10253.47021 | CI22: 8122.131621 | CJ22: 9446.369836 | CK22: 10253.50081 | CL22: 33018.83074 | CM22: 1204.250841 | DH22: 16 | DI22: 0.01810026412 | DJ22: 0.01753397547 | DK22: 0.02281255932 | DL22: 0.01810026412 | DM22: 0.02549284308 | DN22: 0.02541544794 | DO22: 0 | DQ22: 16 | DR22: 0.01796377401 | DS22: 0.009242268899 | DT22: 0.02152204732 | DU22: 0.1478752195 | DV22: 0.01650078877 | DW22: 0.02070879822 | DX22: 0.04367530558 | DZ22: 16 | EA22: 0.01883753652 | EB22: 0.01212057591 | EC22: 0.02464494293 | ED22: 0.09732653097 | EE22: 0.01648956698 | EF22: 0.02491463648 | EG22: 0.03112037378 | EI22: 16 | EJ22: 0.01878830316 | EK22: 0.01121396785 | EL22: 0.02457901512 | EM22: 0.08022161162 | EN22: 0.0106149167 | EO22: 0.02166070477 | EP22: 0.03085442453 | ER22: 16 | ES22: 0.01861104805 | ET22: 0.01384453084 | EU22: 0.0389964952 | EV22: 0.02282041537 | EW22: 0.01245118109 | EX22: 0.02275172741 | EY22: 0.02279589531 | FA22: 16 | FB22: 0.01713285195 | FC22: 0.01242537408 | FD22: 0.02896908914 | FE22: 0.03327603821 | FF22: 0.003107914246 | FG22: 0.0232124358 | FH22: 0.01495820472 | FJ22: 16 | FK22: 0.01586293119 | FL22: 0.01429463219 | FM22: 0.03029243079 | FN22: 0.000671047161 | FO22: 0.0073357423 | FP22: 0.02414540164 | FQ22: 0.01227281641 | FS22: 16 | FT22: 0.01721194489 | FU22: 0.01498905973 | FV22: 0.03450592489 | FW22: 0.002701156714 | FX22: 0.006866635818 | FY22: 0.02472615287 | FZ22: 0.0118527636 | GB22: 16 | GC22: 0.01953588679 | GD22: 0.01347110856 | GE22: 0.02861759275 | GF22: 0.003698141751 | GG22: 0.006501647069 | GH22: 0.02499873357 | GI22: 0.01147228125 | GK22: 16 | GL22: 0.02145697128 | GM22: 0.01366501287 | GN22: 0.02150599008 | GO22: 0.0118632201 | GP22: 0.00792385829 | GQ22: 0.01953471736 | GR22: 0.01114245248 | GT22: 16 | GU22: 0.02387074235 | GV22: 0.01479485561 | GW22: 0.02629532472 | GX22: 0.005926544179 | GY22: 0.01191140921 | GZ22: 0.01915421463 | HA22: 0.01282521787 | HC22: 16 | HD22: 0.02705688813 | HE22: 0.01860441163 | HF22: 0.03033213706 | HG22: 0.004103387862 | HH22: 0.01219698693 | HI22: 0.02505521571 | HJ22: 0.01450278734 | HL22: 16 | HM22: 0.03027665919 | HN22: 0.02430860758 | HO22: 0.03651287828 | HP22: 0.001022741992 | HQ22: 0.01095377645 | HR22: 0.03231114055 | HS22: 0.01730872611 | HU22: 16 | HV22: 0.03684495542 | HW22: 0.02654793916 | HX22: 0.0447648905 | HY22: 0.007906815376 | HZ22: 0.01733700794 | IA22: 0.04082479826 | IB22: 0.01416369076 | ID22: 16 | IE22: 0.03006110374 | IF22: 0.02326124886 | IG22: 0.03033831327 | IH22: 0.007688956394 | II22: 0.01966683203 | IJ22: 0.03089626814 | IK22: 0.01744067157 | IM22: 16 | IN22: 0.03119201604 | IO22: 0.02741779191 | IP22: 0.04778290814 | IQ22: 0.005352678847 | IR22: 0.02167191174 | IS22: 0.03256506363 | IT22: 0.018423752
B23: 13 | K23: 13 | BV23: 17 | BW23: 13 | BX23: 0.0409301451 | BY23: 0.03573984712 | BZ23: 0.03389844456 | CA23: 0.03328065256 | CB23: 0.04579392958 | CC23: 0.04834979663 | CD23: 0.04830166962 | CF23: 13 | CG23: 9079.705013 | CH23: 9798.622028 | CI23: 7911.111402 | CJ23: 9079.705013 | CK23: 9798.647543 | CL23: 27000.38534 | CM23: 1142.49495 | DH23: 17 | DI23: 0.01435110054 | DJ23: 0.01414010095 | DK23: 0.02085183165 | DL23: 0.01435110054 | DM23: 0.02374884347 | DN23: 0.02361703028 | DO23: 0 | DQ23: 17 | DR23: 0.015248602 | DS23: 0.009355020524 | DT23: 0.01949770132 | DU23: 0.1789683797 | DV23: 0.03223284246 | DW23: 0.01964729913 | DX23: 0.03914695953 | DZ23: 17 | EA23: 0.01501032684 | EB23: 0.007808821699 | EC23: 0.02042450823 | ED23: 0.1400178161 | EE23: 0.01416085055 | EF23: 0.01764173211 | EG23: 0.04137069573 | EI23: 17 | EJ23: 0.01649382967 | EK23: 0.0104213137 | EL23: 0.02348193814 | EM23: 0.0935809002 | EN23: 0.01300760311 | EO23: 0.02244346856 | EP23: 0.02854569709 | ER23: 17 | ES23: 0.01570059223 | ET23: 0.009705198559 | EU23: 0.0241046927 | EV23: 0.07503094999 | EW23: 0.009163345033 | EX23: 0.01994107966 | EY23: 0.02732868069 | FA23: 17 | FB23: 0.01584909803 | FC23: 0.01219596596 | FD23: 0.03758346746 | FE23: 0.02133240829 | FF23: 0.01076764262 | FG23: 0.02109149186 | FH23: 0.01979843645 | FJ23: 17 | FK23: 0.01506626034 | FL23: 0.011009934 | FM23: 0.02711094675 | FN23: 0.03169355612 | FO23: 0.00270238281 | FP23: 0.02109245328 | FQ23: 0.01233662369 | FS23: 17 | FT23: 0.01423855017 | FU23: 0.01286501506 | FV23: 0.02895268393 | FW23: 0.0006375507033 | FX23: 0.006313799402 | FY23: 0.02193550725 | FZ23: 0.009962501581 | GB23: 17 | GC23: 0.01571801861 | GD23: 0.01370768356 | GE23: 0.03258824927 | GF23: 0.002546079992 | GG23: 0.006029188571 | GH23: 0.02262518778 | GI23: 0.009510738148 | GK23: 17 | GL23: 0.01802189335 | GM23: 0.01244866067 | GN23: 0.02759274532 | GO23: 0.003748574341 | GP23: 0.005989475881 | GQ23: 0.02280987963 | GR23: 0.009707652188 | GT23: 17 | GU23: 0.02012892174 | GV23: 0.01273048517 | GW23: 0.02058044757 | GX23: 0.01212835269 | GY23: 0.007126829547 | GZ23: 0.01826782066 | HA23: 0.009702367047 | HC23: 17 | HD23: 0.02281998067 | HE23: 0.0142308133 | HF23: 0.02536232977 | HG23: 0.005832992302 | HH23: 0.01152060326 | HI23: 0.01827080825 | HJ23: 0.01213246755 | HL23: 17 | HM23: 0.02594780283 | HN23: 0.0177542895 | HO23: 0.0294961742 | HP23: 0.004041399655 | HQ23: 0.01182993124 | HR23: 0.02420615672 | HS23: 0.01410633803 | HU23: 17 | HV23: 0.02913414209 | HW23: 0.02312638001 | HX23: 0.03539504786 | HY23: 0.0009947890213 | HZ23: 0.01036941486 | IA23: 0.03104358841 | IB23: 0.01629694614 | ID23: 17 | IE23: 0.03075118255 | IF23: 0.02274655501 | IG23: 0.04237371 | IH23: 0.005961990884 | II23: 0.01456755071 | IJ23: 0.03816746495 | IK23: 0.01313728022 | IM23: 17 | IN23: 0.02552520159 | IO23: 0.02014074772 | IP23: 0.02855898665 | IQ23: 0.006003445863 | IR23: 0.01679250605 | IS23: 0.0291115085 | IT23: 0.01614672154
B24: 14 | K24: 14 | BV24: 18 | BW24: 14 | BX24: 0.03628960732 | BY24: 0.03491879365 | BZ24: 0.02636100733 | CA24: 0.02045875176 | CB24: 0.03735139594 | CC24: 0.04372775351 | CD24: 0.04229850351 | CF24: 14 | CG24: 8717.770811 | CH24: 9354.427881 | CI24: 6514.629233 | CJ24: 8717.770811 | CK24: 9354.414604 | CL24: 24818.85727 | CM24: 1088.458521 | DH24: 18 | DI24: 0.01137850912 | DJ24: 0.01205520188 | DK24: 0.01906161033 | DL24: 0.01137850912 | DM24: 0.0221241897 | DN24: 0.02194881219 | DO24: 0 | DQ24: 18 | DR24: 0.01605363504 | DS24: 0.009400637158 | DT24: 0.02911077862 | DU24: 0.1304584747 | DV24: 0.01421416793 | DW24: 0.01585639799 | DX24: 0.04356414058 | DZ24: 18 | EA24: 0.01275569389 | EB24: 0.007896563975 | EC24: 0.01925087453 | ED24: 0.1696469046 | EE24: 0.02773341433 | EF24: 0.01721064654 | EG24: 0.03706108982 | EI24: 18 | EJ24: 0.01298729662 | EK24: 0.006711853459 | EL24: 0.01945259762 | EM24: 0.1330361896 | EN24: 0.01117176695 | EO24: 0.01574306995 | EP24: 0.03794798294 | ER24: 18 | ES24: 0.01349315677 | ET24: 0.009017623978 | EU24: 0.02287641904 | EV24: 0.08568408919 | EW24: 0.01124497249 | EX24: 0.02020460293 | EY24: 0.02606646968 | FA24: 18 | FB24: 0.01325702286 | FC24: 0.00854759242 | FD24: 0.02323457283 | FE24: 0.0695428446 | FF24: 0.007935966543 | FG24: 0.01819517974 | FH24: 0.02431259868 | FJ24: 18 | FK24: 0.013714323 | FL24: 0.01081536293 | FM24: 0.03587791913 | FN24: 0.01999276956 | FO24: 0.009399800336 | FP24: 0.01951506657 | FQ24: 0.01721248735 | FS24: 18 | FT24: 0.01317799903 | FU24: 0.009904481313 | FV24: 0.02587627706 | FW24: 0.02934237876 | FX24: 0.002362006424 | FY24: 0.01891469936 | FZ24: 0.01004848544 | GB24: 18 | GC24: 0.01273938042 | GD24: 0.0117619924 | GE24: 0.02738684879 | GF24: 0.0005887777335 | GG24: 0.005442662387 | GH24: 0.01997253126 | GI24: 0.008124432556 | GK24: 18 | GL24: 0.01446763074 | GM24: 0.01266443483 | GN24: 0.03134028886 | GO24: 0.002575048615 | GP24: 0.005517321309 | GQ24: 0.02063775112 | GR24: 0.007617726092 | GT24: 18 | GU24: 0.01684892095 | GV24: 0.01159536664 | GW24: 0.02656832406 | GX24: 0.003819300361 | GY24: 0.005501745637 | GZ24: 0.02150692881 | HA24: 0.008488698193 | HC24: 18 | HD24: 0.01915003468 | HE24: 0.01226818932 | HF24: 0.02002482636 | HG24: 0.01187927928 | HH24: 0.006832489717 | HI24: 0.01750070349 | HJ24: 0.009617547717 | HL24: 18 | HM24: 0.02174448542 | HN24: 0.01357153453 | HO24: 0.02392961822 | HP24: 0.005708070586 | HQ24: 0.01113302221 | HR24: 0.01719483612 | HS24: 0.01180283092 | HU24: 18 | HV24: 0.02504133694 | HW24: 0.01686578566 | HX24: 0.02826251543 | HY24: 0.003942384459 | HZ24: 0.01120511623 | IA24: 0.02291338616 | IB24: 0.01328162985 | ID24: 18 | IE24: 0.02404093271 | IF24: 0.0196597156 | IG24: 0.03339952996 | IH24: 0.0007416271646 | II24: 0.008644706439 | IJ24: 0.02885378045 | IK24: 0.01511618029 | IM24: 18 | IN24: 0.02587081993 | IO24: 0.01956716421 | IP24: 0.03980246407 | IQ24: 0.004612181871 | IR24: 0.01235765594 | IS24: 0.03588481261 | IT24: 0.01216258445
B25: 15 | K25: 15 | BV25: 19 | BW25: 15 | BX25: 0.02959021032 | BY25: 0.03237767687 | BZ25: 0.03234654756 | CA25: 0.01079857999 | CB25: 0.03091633755 | CC25: 0.03012829602 | CD25: 0.03588502998 | CF25: 15 | CG25: 8361.463185 | CH25: 8923.842768 | CI25: 6018.289742 | CJ25: 8361.463185 | CK25: 8923.80499 | CL25: 19677.96609 | CM25: 1042.141283 | DH25: 19 | DI25: 0.009021646746 | DJ25: 0.0114077563 | DK25: 0.01742705824 | DL25: 0.009021646746 | DM25: 0.02061067347 | DN25: 0.02040129894 | DO25: 0 | DQ25: 19 | DR25: 0.01508953086 | DS25: 0.005376462549 | DT25: 0.01336556677 | DU25: 0.07256981968 | DV25: 0.01095450713 | DW25: 0.009949058073 | DX25: 0.0393150333 | DZ25: 19 | EA25: 0.0136033239 | EB25: 0.007937402619 | EC25: 0.02714411847 | ED25: 0.1252682662 | EE25: 0.01207230138 | EF25: 0.01380642796 | EG25: 0.04136793035 | EI25: 19 | EJ25: 0.01109679457 | EK25: 0.006780317666 | EL25: 0.01833867557 | EM25: 0.1620669649 | EN25: 0.02194172124 | EO25: 0.01554066196 | EP25: 0.03399471893 | ER25: 19 | ES25: 0.0104861633 | ET25: 0.005804517205 | EU25: 0.01885822143 | EV25: 0.1202232592 | EW25: 0.009657332449 | EX25: 0.01394068316 | EY25: 0.03634598984 | FA25: 19 | FB25: 0.01123176185 | FC25: 0.007937426698 | FD25: 0.02199592266 | FE25: 0.07829188823 | FF25: 0.009744253927 | FG25: 0.01804802018 | FH25: 0.02351030495 | FJ25: 19 | FK25: 0.01145680894 | FL25: 0.007578485845 | FM25: 0.02216944089 | FN25: 0.06509293981 | FO25: 0.006937073942 | FP25: 0.01663500126 | FQ25: 0.02150366156 | FS25: 19 | FT25: 0.01188190763 | FU25: 0.009736106061 | FV25: 0.03448393726 | FW25: 0.01833438677 | FX25: 0.008244186169 | FY25: 0.01775574587 | FZ25: 0.01479086448 | GB25: 19 | GC25: 0.01148498105 | GD25: 0.00905160333 | GE25: 0.0244786373 | GF25: 0.02639556053 | GG25: 0.002066572526 | GH25: 0.01709023735 | GI25: 0.008052968294 | GK25: 19 | GL25: 0.0115976198 | GM25: 0.01086438249 | GN25: 0.02641241506 | GO25: 0.0005889617335 | GP25: 0.004899776985 | GQ25: 0.01819860003 | GR25: 0.006417316519 | GT25: 19 | GU25: 0.01358544738 | GV25: 0.01187264787 | GW25: 0.03027555134 | GX25: 0.002635173169 | GY25: 0.005066394839 | GZ25: 0.01961248169 | HA25: 0.006366037594 | HC25: 19 | HD25: 0.01610534955 | HE25: 0.01116632452 | HF25: 0.02600697934 | HG25: 0.0037585463 | HH25: 0.005355080304 | HI25: 0.0207361465 | HJ25: 0.007811479577 | HL25: 19 | HM25: 0.01835834699 | HN25: 0.01171767921 | HO25: 0.01918801157 | HP25: 0.0116954899 | HQ25: 0.006540907359 | HR25: 0.01663851581 | HS25: 0.009344759924 | HU25: 19 | HV25: 0.02101815289 | HW25: 0.01291495638 | HX25: 0.02215070761 | HY25: 0.005577071958 | HZ25: 0.01053937933 | IA25: 0.01601442219 | IB25: 0.01111284963 | ID25: 19 | IE25: 0.02048961898 | IF25: 0.01423955599 | IG25: 0.02666657679 | IH25: 0.002914342598 | II25: 0.009277527519 | IJ25: 0.02130868045 | IK25: 0.01231927535 | IM25: 19 | IN25: 0.02008705697 | IO25: 0.01681584667 | IP25: 0.03137271263 | IQ25: 0.0005697948295 | IR25: 0.007291741898 | IS25: 0.02712895078 | IT25: 0.01399447416
B26: 16 | K26: 16 | BV26: 20 | BW26: 16 | BX26: 0.02655662731 | BY26: 0.02739851148 | BZ26: 0.02771481618 | CA26: 0.01224857838 | CB26: 0.02628262427 | CC26: 0.02635782981 | CD26: 0.03071851933 | CF26: 16 | CG26: 8013.678051 | CH26: 8512.980488 | CI26: 5045.131954 | CJ26: 8013.678051 | CK26: 8512.979823 | CL26: 18277.84847 | CM26: 1003.543622 | DH26: 20 | DI26: 0.007152961897 | DJ26: 0.01079749949 | DK26: 0.0159344713 | DL26: 0.007152961897 | DM26: 0.01920067282 | DN26: 0.0189653679 | DO26: 0 | DQ26: 20 | DR26: 0.013643677 | DS26: 0.005879895007 | DT26: 0.01221899738 | DU26: 0.0431168044 | DV26: 0.006230592298 | DW26: 0.01018342038 | DX26: 0.03815949604 | DZ26: 20 | EA26: 0.01295704719 | EB26: 0.004528080036 | EC26: 0.0112042856 | ED26: 0.0706125222 | EE26: 0.00916970341 | EF26: 0.008251450521 | EG26: 0.03736942909 | EI26: 20 | EJ26: 0.01191606781 | EK26: 0.006817551732 | EL26: 0.02581866994 | EM26: 0.1204994263 | EN26: 0.009414117572 | EO26: 0.01257217661 | EP26: 0.03794553055 | ER26: 20 | ES26: 0.009020760003 | ET26: 0.005883316808 | EU26: 0.01809849987 | EV26: 0.1474552081 | EW26: 0.01909144763 | EX26: 0.01424639977 | EY26: 0.03280547093 | FA26: 20 | FB26: 0.008597245485 | FC26: 0.005108036315 | FD26: 0.01813870783 | FE26: 0.1081963664 | FF26: 0.008369025321 | FG26: 0.01232203872 | FH26: 0.03382700338 | FJ26: 20 | FK26: 0.009563410061 | FL26: 0.007033894947 | FM26: 0.02099493729 | FN26: 0.07220128735 | FO26: 0.008522142552 | FP26: 0.01623486083 | FQ26: 0.02115804597 | FS26: 20 | FT26: 0.009852424589 | FU26: 0.006821067786 | FV26: 0.02131431351 | FW26: 0.05925094454 | FX26: 0.006091252485 | FY26: 0.01493914297 | FZ26: 0.01899074275 | GB26: 20 | GC26: 0.01018105529 | GD26: 0.008903357169 | GE26: 0.03261911638 | GF26: 0.01621531496 | GG26: 0.007236572455 | GH26: 0.01615971984 | GI26: 0.01276895546 | GK26: 20 | GL26: 0.01016711118 | GM26: 0.008357938808 | GN26: 0.02360971119 | GO26: 0.02567495352 | GP26: 0.001885246156 | GQ26: 0.01525612354 | GR26: 0.006439376495 | GT26: 20 | GU26: 0.0107494344 | GV26: 0.01017542399 | GW26: 0.02545003942 | GX26: 0.0005949066367 | GY26: 0.004418483925 | GZ26: 0.0172423753 | HA26: 0.005364670615 | HC26: 20 | HD26: 0.01299070515 | HE26: 0.0114676274 | HF26: 0.02980780209 | HG26: 0.002594215064 | HH26: 0.00492000135 | HI26: 0.0190656383 | HJ26: 0.005788892923 | HL26: 20 | HM26: 0.01542619688 | HN26: 0.01066119921 | HO26: 0.02532273286 | HP26: 0.003697210347 | HQ26: 0.005207187943 | HR26: 0.02003423198 | HS26: 0.007574571258 | HU26: 20 | HV26: 0.01779805852 | HW26: 0.01114698082 | HX26: 0.0178823002 | HY26: 0.01146117856 | HZ26: 0.006123280781 | IA26: 0.01550609308 | IB26: 0.008798439938 | ID26: 20 | IE26: 0.01707439271 | IF26: 0.01083270191 | IG26: 0.02083261956 | IH26: 0.004093177989 | II26: 0.008669327365 | IJ26: 0.01479668477 | IK26: 0.01030757758 | IM26: 20 | IN26: 0.01702010381 | IO26: 0.01211384404 | IP26: 0.0249943387 | IQ26: 0.002226060715 | IR26: 0.007783154636 | IS26: 0.01999492926 | IT26: 0.0114051616
B27: 17 | K27: 17 | BV27: 21 | BW27: 17 | BX27: 0.02254764511 | BY27: 0.02446485941 | BZ27: 0.02729196259 | CA27: 0.01142289945 | CB27: 0.02109409629 | CC27: 0.02090437476 | CD27: 0.0270576124 | CF27: 17 | CG27: 7676.257834 | CH27: 8123.329682 | CI27: 4844.433857 | CJ27: 7676.257834 | CK27: 8123.355671 | CL27: 16177.76079 | CM27: 964.9411871 | DH27: 21 | DI27: 0.005671343936 | DJ27: 0.01022218162 | DK27: 0.01457145779 | DL27: 0.005671343936 | DM27: 0.01788715207 | DN27: 0.01763286511 | DO27: 0 | DQ27: 21 | DR27: 0.01284431427 | DS27: 0.004985842911 | DT27: 0.01215762993 | DU27: 0.01928965765 | DV27: 0.005090622601 | DW27: 0.01179997621 | DX27: 0.03298996185 | DZ27: 21 | EA27: 0.0116939108 | EB27: 0.004944950612 | EC27: 0.008503477316 | ED27: 0.04187652271 | EE27: 0.005295743182 | EF27: 0.008435073521 | EG27: 0.03662393018 | EI27: 21 | EJ27: 0.01147854104 | EK27: 0.003878633583 | EL27: 0.01061420806 | EM27: 0.06869427089 | EN27: 0.007032580259 | EO27: 0.007319878208 | EP27: 0.03427776642 | ER27: 21 | ES27: 0.009960128629 | ET27: 0.005917165155 | EU27: 0.0251806726 | EV27: 0.1127294724 | EW27: 0.008092561313 | EX27: 0.01171743692 | EY27: 0.03687826921 | FA27: 21 | FB27: 0.007517091569 | FC27: 0.005173811334 | FD27: 0.01755004595 | FE27: 0.1348811815 | FF27: 0.01657801538 | FG27: 0.01306399089 | FH27: 0.03065590848 | FJ27: 21 | FK27: 0.007261625157 | FL27: 0.004525662972 | FM27: 0.01736682001 | FN27: 0.09898089094 | FO27: 0.007319805697 | FP27: 0.01105781543 | FQ27: 0.03125673948 | FS27: 21 | FT27: 0.008142004115 | FU27: 0.00632813856 | FV27: 0.02019413196 | FW27: 0.06506478601 | FX27: 0.007486360167 | FY27: 0.01438729374 | FZ27: 0.01904011071 | GB27: 21 | GC27: 0.008442120201 | GD27: 0.006236666569 | GE27: 0.02016008041 | GF27: 0.05240274749 | GG27: 0.005352597166 | GH27: 0.01348409281 | GI27: 0.01681484066 | GK27: 21 | GL27: 0.008925031338 | GM27: 0.008225486943 | GN27: 0.03145883752 | GO27: 0.01561911925 | GP27: 0.006620503625 | GQ27: 0.01478384666 | GR27: 0.01117451575 | GT27: 21 | GU27: 0.00920442928 | GV27: 0.007801894673 | GW27: 0.02269555839 | GX27: 0.02533129144 | GY27: 0.001719721321 | GZ27: 0.01422676601 | HA27: 0.005415028036 | HC27: 21 | HD27: 0.01016529856 | HE27: 0.009826652515 | HF27: 0.02501423292 | HG27: 0.0005791942777 | HH27: 0.004231361812 | HI27: 0.01673186118 | HJ27: 0.004891069158 | HL27: 21 | HM27: 0.01255253047 | HN27: 0.01098118716 | HO27: 0.0294542805 | HP27: 0.002574353745 | HQ27: 0.004772944004 | HR27: 0.01880432647 | HS27: 0.005614937175 | HU27: 21 | HV27: 0.0150131355 | HW27: 0.01013203841 | HX27: 0.02459367806 | HY27: 0.003637127174 | HZ27: 0.004944644155 | IA27: 0.01935044891 | IB27: 0.007131714299 | ID27: 21 | IE27: 0.01438630972 | IF27: 0.009301496873 | IG27: 0.01682046166 | IH27: 0.008369742642 | II27: 0.005010780334 | IJ27: 0.01434455049 | IK27: 0.008160884341 | IM27: 21 | IN27: 0.01412572576 | IO27: 0.009176245286 | IP27: 0.01952630595 | IQ27: 0.003113822732 | IR27: 0.007241894021 | IS27: 0.0138856977 | IT27: 0.009542777081
B28: 18 | K28: 18 | BV28: 22 | BW28: 18 | BX28: 0.01851622528 | BY28: 0.02015422258 | BZ28: 0.02206246314 | CA28: 0.00646941299 | CB28: 0.02238889413 | CC28: 0.02719938812 | CD28: 0.02293031125 | CF28: 18 | CG28: 7351.04298 | CH28: 7760.958802 | CI28: 4447.686581 | CJ28: 7351.04298 | CK28: 7760.982423 | CL28: 14925.67285 | CM28: 926.3508298 | DH28: 22 | DI28: 0.004496624258 | DJ28: 0.009679655334 | DK28: 0.0133264187 | DL28: 0.004496624258 | DM28: 0.01666346641 | DN28: 0.01639603386 | DO28: 0 | DQ28: 22 | DR28: 0.01163457219 | DS28: 0.003277788617 | DT28: 0.01106283435 | DU28: 0.01497401852 | DV28: 0.003210705962 | DW28: 0.009706318531 | DX28: 0.02019031289 | DZ28: 22 | EA28: 0.01125722116 | EB28: 0.004201985546 | EC28: 0.009517120123 | ED28: 0.0191576663 | EE28: 0.004337302441 | EF28: 0.01036833979 | EG28: 0.03164579496 | EI28: 22 | EJ28: 0.01037375688 | EK28: 0.004229101557 | EL28: 0.008034369322 | EM28: 0.04079455662 | EN28: 0.004133200742 | EO28: 0.007516513698 | EP28: 0.03359375201 | ER28: 22 | ES28: 0.009988634418 | ET28: 0.003358929158 | EU28: 0.009878492653 | EV28: 0.06690509166 | EW28: 0.005959123506 | EX28: 0.006469434514 | EY28: 0.03345570085 | FA28: 22 | FB28: 0.008619532624 | FC28: 0.00520468048 | FD28: 0.02429978679 | FE28: 0.1070872425 | FF28: 0.006954064571 | FG28: 0.0109010247 | FH28: 0.03460727043 | FJ28: 22 | FK28: 0.006498166583 | FL28: 0.004581101343 | FM28: 0.0168811634 | FN28: 0.1262861323 | FO28: 0.01452607771 | FP28: 0.01204629952 | FQ28: 0.028424631 | FS28: 22 | FT28: 0.006194132228 | FU28: 0.004070877275 | FV28: 0.01671974771 | FW28: 0.0893673718 | FX28: 0.006430484715 | FY28: 0.009680292699 | FZ28: 0.0288754295 | GB28: 22 | GC28: 0.007014385788 | GD28: 0.005783655075 | GE28: 0.01909945627 | GF28: 0.05785695417 | GG28: 0.006581266761 | GH28: 0.0127984985 | GI28: 0.01716465428 | GK28: 22 | GL28: 0.007468784673 | GM28: 0.005761060189 | GN28: 0.01944022769 | GO28: 0.05094111704 | GP28: 0.004901573947 | GQ28: 0.01210780882 | GR28: 0.01509734841 | GT28: 22 | GU28: 0.008054120267 | GV28: 0.007768007912 | GW28: 0.03066455634 | GX28: 0.01536065695 | GY28: 0.006121249065 | GZ28: 0.01421111498 | HA28: 0.00992143526 | HC28: 22 | HD28: 0.008504422095 | HE28: 0.007525444582 | HF28: 0.02218490673 | HG28: 0.02409580013 | HH28: 0.001664488913 | HI28: 0.01363658694 | HJ28: 0.004903991715 | HL28: 22 | HM28: 0.009762227999 | HN28: 0.009410147835 | HO28: 0.02449144107 | HP28: 0.000571238874 | HQ28: 0.004047895918 | HR28: 0.01633127345 | HS28: 0.004752696693 | HU28: 22 | HV28: 0.01244457466 | HW28: 0.01043421174 | HX28: 0.02939005661 | HY28: 0.002579830696 | HZ28: 0.004507234852 | IA28: 0.01874470506 | IB28: 0.005286658442 | ID28: 22 | IE28: 0.01209178978 | IF28: 0.008409256605 | IG28: 0.02313322531 | IH28: 0.002646562019 | II28: 0.004024597796 | IJ28: 0.0179184646 | IK28: 0.006614942048 | IM28: 22 | IN28: 0.01186742589 | IO28: 0.007844325554 | IP28: 0.01576551439 | IQ28: 0.00634870057 | IR28: 0.004167227629 | IS28: 0.01345973159 | IT28: 0.007555366176
B29: 19 | K29: 19 | BV29: 23 | BW29: 19 | BX29: 0.0168783531 | BY29: 0.01764064688 | BZ29: 0.04256739653 | CA29: 0.005095366896 | CB29: 0.01117919635 | CC29: 0.04132590592 | CD29: 0.01830453469 | CF29: 19 | CG29: 7040.025451 | CH29: 7428.932307 | CI29: 4855.358062 | CJ29: 7040.025451 | CK29: 7428.928391 | CL29: 14515.08737 | CM29: 895.4703412 | DH29: 23 | DI29: 0.003565222012 | DJ29: 0.009167977643 | DK29: 0.01218938844 | DL29: 0.003565222012 | DM29: 0.01552355737 | DN29: 0.01524806096 | DO29: 0 | DQ29: 23 | DR29: 0.01001550921 | DS29: 0.0002336358029 | DT29: 0.005616222219 | DU29: 0.01651567896 | DV29: 0.0002127254917 | DW29: 0.006742449666 | DX29: 0.02134310117 | DZ29: 23 | EA29: 0.01047546138 | EB29: 0.002768777908 | EC29: 0.0095988128 | ED29: 0.01527758726 | EE29: 0.00274324463 | EF29: 0.008824714429 | EG29: 0.01939071469 | EI29: 23 | EJ29: 0.01016370917 | EK29: 0.003601964285 | EL29: 0.009017007084 | EM29: 0.01899408421 | EN29: 0.003394377482 | EO29: 0.00952259344 | EP29: 0.0290275931 | ER29: 23 | ES29: 0.009217949537 | ET29: 0.003657818169 | EU29: 0.007172547595 | EV29: 0.04057179409 | EW29: 0.003555558786 | EX29: 0.006853450989 | EY29: 0.03328127823 | FA29: 23 | FB29: 0.009077264855 | FC29: 0.002949015703 | FD29: 0.009431847229 | FE29: 0.06674098099 | FF29: 0.00505618069 | FG29: 0.005890264468 | FH29: 0.03149124223 | FJ29: 23 | FK29: 0.007762409512 | FL29: 0.0046093244 | FM29: 0.02337493099 | FN29: 0.1044514919 | FO29: 0.00603548203 | FP29: 0.01029242525 | FQ29: 0.03221514743 | FS29: 23 | FT29: 0.00576382084 | FU29: 0.004118605253 | FV29: 0.01628418263 | FW29: 0.1185649383 | FX29: 0.01278133984 | FY29: 0.0109434685 | FZ29: 0.02635251795 | GB29: 23 | GC29: 0.005477538984 | GD29: 0.003719999578 | GE29: 0.01581200316 | GF29: 0.08157124832 | GG29: 0.005653293432 | GH29: 0.008602315688 | GI29: 0.02663073284 | GK29: 23 | GL29: 0.006343337644 | GM29: 0.005340744208 | GN29: 0.01841708815 | GO29: 0.05749075247 | GP29: 0.006028914864 | GQ29: 0.01146297351 | GR29: 0.01572029994 | GT29: 23 | GU29: 0.006856592695 | GV29: 0.005421765489 | GW29: 0.01897847404 | GX29: 0.05096508981 | GY29: 0.00452023022 | GZ29: 0.0116648724 | HA29: 0.01358230595 | HC29: 23 | HD29: 0.007485276054 | HE29: 0.007532729217 | HF29: 0.03059260969 | HG29: 0.01469735876 | HH29: 0.005966729946 | HI29: 0.01399149233 | HJ29: 0.009862025491 | HL29: 23 | HM29: 0.007997400562 | HN29: 0.007201199213 | HO29: 0.0216236187 | HP29: 0.02327092487 | HQ29: 0.001610463099 | HR29: 0.01315307744 | HS29: 0.004710915642 | HU29: 23 | HV29: 0.009730614644 | HW29: 0.008939763587 | HX29: 0.02423006731 | HY29: 0.0005755436431 | HZ29: 0.003766442131 | IA29: 0.01616387999 | IB29: 0.004474847043 | ID29: 23 | IE29: 0.009987017794 | IF29: 0.00862894284 | IG29: 0.02755056551 | IH29: 0.001870469269 | II29: 0.003655403411 | IJ29: 0.01724968124 | IK29: 0.004903566903 | IM29: 23 | IN29: 0.009945616291 | IO29: 0.007070838978 | IP29: 0.02163536725 | IQ29: 0.002001669478 | IR29: 0.003337137824 | IS29: 0.0167786809 | IT29: 0.006124126303
B30: 20 | K30: 20 | BV30: 24 | BW30: 20 | BX30: 0.01247412337 | BY30: 0.01440377723 | BZ30: 0.03994466619 | CA30: 0.002746164464 | CB30: 0.01528049537 | CC30: 0.03226976098 | CD30: 0.01383529224 | CF30: 20 | CG30: 6745.957295 | CH30: 7130.279682 | CI30: 4536.533871 | CJ30: 6745.957295 | CK30: 7130.250167 | CL30: 13127.50982 | CM30: 864.590413 | DH30: 24 | DI30: 0.01025668778 | DJ30: 0.04576905904 | DK30: 0.05420391187 | DL30: 0.01025668778 | DM30: 0.07321547607 | DN30: 0.07158168304 | DO30: 0 | DQ30: 24 | DR30: 0.009258257994 | DS30: 0.0002766530581 | DT30: 0.01084292568 | DU30: 0.01669036631 | DV30: 0.0002677530241 | DW30: 0.005305316469 | DX30: 0.01789414074 | DZ30: 24 | EA30: 0.009076916772 | EB30: 0.0001981028533 | EC30: 0.005863429367 | ED30: 0.01696127409 | EE30: 0.0001827035528 | EF30: 0.006495962816 | EG30: 0.01777649639 | EI30: 24 | EJ30: 0.009622756412 | EK30: 0.002379232046 | EL30: 0.009142352408 | EM30: 0.01541134008 | EN30: 0.00215361021 | EO30: 0.008329622359 | EP30: 0.01778645908 | ER30: 24 | ES30: 0.009288038515 | ET30: 0.002982110345 | EU30: 0.009064834459 | EV30: 0.01942735334 | EW30: 0.002801498496 | EX30: 0.009369338534 | EY30: 0.02353323641 | FA30: 24 | FB30: 0.008419978141 | FC30: 0.00320799957 | FD30: 0.007008222793 | FE30: 0.04067999289 | FF30: 0.003057294021 | FG30: 0.006641776398 | FH30: 0.02799702717 | FJ30: 24 | FK30: 0.008429284437 | FL30: 0.002607363484 | FM30: 0.009105954608 | FN30: 0.06712574637 | FO30: 0.004336547069 | FP30: 0.005679484323 | FQ30: 0.02583372618 | FS30: 24 | FT30: 0.007192913327 | FU30: 0.004144639024 | FV30: 0.02258983299 | FW30: 0.1024480755 | FX30: 0.005266700767 | FY30: 0.009629989456 | FZ30: 0.0258945377 | GB30: 24 | GC30: 0.005293277263 | GD30: 0.003761804512 | GE30: 0.0154076609 | GF30: 0.1123888351 | GG30: 0.01125317414 | GH30: 0.01016836283 | GI30: 0.02007823159 | GK30: 24 | GL30: 0.00507260961 | GM30: 0.003434650137 | GN30: 0.01525104764 | GO30: 0.08300364639 | GP30: 0.005179019062 | GQ30: 0.008038955343 | GR30: 0.01934659934 | GT30: 24 | GU30: 0.006010558502 | GV30: 0.004593078305 | GW30: 0.01807091319 | GX30: 0.05936648311 | GY30: 0.005056218534 | GZ30: 0.01136303557 | HA30: 0.01094276869 | HC30: 24 | HD30: 0.006650800587 | HE30: 0.005081723197 | HF30: 0.01906138123 | HG30: 0.0508953446 | HH30: 0.004249881575 | HI30: 0.01163463972 | HJ30: 0.003331255174 | HL30: 24 | HM30: 0.007312117143 | HN30: 0.007092706299 | HO30: 0.03118237036 | HP30: 0.01474485766 | HQ30: 0.005679217625 | HR30: 0.01431471741 | HS30: 0.003905902688 | HU30: 24 | HV30: 0.007949040637 | HW30: 0.00683924999 | HX30: 0.0226911823 | HY30: 0.02338019817 | HZ30: 0.001516705786 | IA30: 0.01372383994 | IB30: 0.004422024586 | ID30: 24 | IE30: 0.007788051477 | IF30: 0.007357051632 | IG30: 0.0227154924 | IH30: 0.0004161722672 | II30: 0.003039731447 | IJ30: 0.01486174636 | IK30: 0.004150593779 | IM30: 24 | IN30: 0.00819661586 | IO30: 0.007226406085 | IP30: 0.02576728795 | IQ30: 0.001411614281 | IR30: 0.00301883254 | IS30: 0.01615372431 | IT30: 0.004539728817
B31: 21 | K31: 21 | BV31: 25 | BW31: 21 | BX31: 0.009595877815 | BY31: 0.01092450954 | BZ31: 0.01658024922 | CA31: 0.002481049941 | CB31: 0.005487638405 | CC31: 0.0215465192 | CD31: 0.0118056588 | CF31: 21 | CG31: 6471.633209 | CH31: 6869.483588 | CI31: 4141.457518 | CJ31: 6471.633209 | CK31: 6869.511056 | CL31: 12555.38445 | CM31: 841.4316235 | DH31: 25 | DI31: 0 | DJ31: 0 | DK31: 0 | DL31: 0 | DM31: 0 | DN31: 0 | DO31: 0 | DQ31: 25 | DR31: 0.007846274798 | DS31: 0.0002540434297 | DT31: 0.01370389094 | DU31: 0.005337433871 | DV31: 0.0002376113213 | DW31: 0.005974128813 | DX31: 0.01850523476 | DZ31: 25 | EA31: 0.008297552266 | EB31: 0.0002338429184 | EC31: 0.011213763 | ED31: 0.0169504417 | EE31: 0.0002289606902 | EF31: 0.004632916509 | EG31: 0.01736152888 | EI31: 25 | EJ31: 0.007842580249 | EK31: 0.000170919151 | EL31: 0.005473735274 | EM31: 0.01609287121 | EN31: 0.0001442640383 | EO31: 0.005424647784 | EP31: 0.0163057835 | ER31: 25 | ES31: 0.007984633322 | ET31: 0.002065774702 | EU31: 0.006841217998 | EV31: 0.01431257997 | EW31: 0.001861800985 | EX31: 0.007087491077 | EY31: 0.0155815874 | FA31: 25 | FB31: 0.00799262409 | FC31: 0.002619297618 | FD31: 0.00766348577 | FE31: 0.01835091963 | FF31: 0.002413475389 | FG31: 0.008069672542 | FH31: 0.02128262385 | FJ31: 25 | FK31: 0.00733971453 | FL31: 0.002833654773 | FM31: 0.006431644015 | FN31: 0.03840731891 | FO31: 0.00265497872 | FP31: 0.005598007937 | FQ31: 0.02475030096 | FS31: 25 | FT31: 0.007147118292 | FU31: 0.002341211515 | FV31: 0.008721636312 | FW31: 0.06024365577 | FX31: 0.003744609072 | FY31: 0.004774182022 | FZ31: 0.02271279711 | GB31: 25 | GC31: 0.006167432915 | GD31: 0.003786162774 | GE31: 0.02128653921 | GF31: 0.09066851405 | GG31: 0.004600837949 | GH31: 0.008045241912 | GI31: 0.02275349557 | GK31: 25 | GL31: 0.004495053818 | GM31: 0.0034718136 | GN31: 0.01484092864 | GO31: 0.1048691283 | GP31: 0.01032241524 | GQ31: 0.00820574156 | GR31: 0.01784818585 | GT31: 25 | GU31: 0.004283819196 | GV31: 0.003107972074 | GW31: 0.01454479131 | GX31: 0.07639125211 | GY31: 0.004593350557 | GZ31: 0.007151055376 | HA31: 0.01594873382 | HC31: 25 | HD31: 0.005046037272 | HE31: 0.004399973351 | HF31: 0.01766907862 | HG31: 0.05131174741 | HH31: 0.004872418798 | HI31: 0.0106277579 | HJ31: 0.008583417867 | HL31: 25 | HM31: 0.00551399723 | HN31: 0.004887293456 | HO31: 0.01806292009 | HP31: 0.04333463895 | HQ31: 0.004144138614 | HR31: 0.01072884856 | HS31: 0.003297370915 | HU31: 25 | HV31: 0.006486247606 | HW31: 0.00673954843 | HX31: 0.02292351947 | HY31: 0.01322094561 | HZ31: 0.005362350572 | IA31: 0.0102725417 | IB31: 0.003674108475 | ID31: 25 | IE31: 0.006361503996 | IF31: 0.005612109051 | IG31: 0.02127289992 | IH31: 0.01690444072 | II31: 0.001220525015 | IJ31: 0.01262093915 | IK31: 0.00410159099 | IM31: 25 | IN31: 0.006391310066 | IO31: 0.006146525326 | IP31: 0.02124493614 | IQ31: 0.0003140519127 | IR31: 0.002504376464 | IS31: 0.01391870308 | IT31: 0.003842623584
B32: 22 | K32: 22 | BV32: 26 | BW32: 22 | BX32: 0.008384320666 | BY32: 0.009165429145 | BZ32: 0.03031622798 | CA32: 0.0008891360688 | CB32: 0.006651852179 | CC32: 0.02023456976 | CD32: 0.01129501466 | CF32: 22 | CG32: 6217.17321 | CH32: 6649.667218 | CI32: 3691.067987 | CJ32: 6217.17321 | CK32: 6649.695902 | CL32: 9150.80558 | CM32: 818.2778006 | DH32: 26 | DI32: 0 | DJ32: 0 | DK32: 0 | DL32: 0 | DM32: 0 | DN32: 0 | DO32: 0 | DQ32: 26 | DR32: 0.007390411985 | DS32: 0.0003018881986 | DT32: 0.02602543446 | DU32: 0.005027334114 | DV32: 0.0002906191095 | DW32: 0.00624671333 | DX32: 0.009977432468 | DZ32: 26 | EA32: 0.006840083752 | EB32: 0.0002151144096 | EC32: 0.009648486534 | ED32: 0.005272616195 | EE32: 0.0002036773719 | EF32: 0.005076042405 | EG32: 0.01496802801 | EI32: 26 | EJ32: 0.007438826708 | EK32: 0.0002010794182 | EL32: 0.01065845815 | EM32: 0.01668756838 | EN32: 0.0001799136402 | EO32: 0.004128822949 | EP32: 0.01592515104 | ER32: 26 | ES32: 0.006799534503 | ET32: 0 | EU32: 0.003753830128 | EV32: 0.01561622747 | EW32: 0 | EX32: 0.00474169454 | EY32: 0.01167634298 | FA32: 26 | FB32: 0.006979736143 | FC32: 0.001817593856 | FD32: 0.005384363758 | FE32: 0.01373347316 | FF32: 0.001607756871 | FG32: 0.006247786661 | FH32: 0.01200713393 | FJ32: 26 | FK32: 0.007100391892 | FL32: 0.002316718626 | FM32: 0.006217792695 | FN32: 0.01765698464 | FO32: 0.002099535486 | FP32: 0.007181555643 | FQ32: 0.01701296188 | FS32: 26 | FT32: 0.006548872325 | FU32: 0.002542340745 | FV32: 0.005944300769 | FW32: 0.03627276917 | FX32: 0.002317978146 | FY32: 0.004868057149 | FZ32: 0.01945949711 | GB32: 26 | GC32: 0.006354677977 | GD32: 0.00213592715 | GE32: 0.008244805687 | GF32: 0.05528747252 | GG32: 0.003238253015 | GH32: 0.004218131118 | GI32: 0.01731406469 | GK32: 26 | GL32: 0.005560893884 | GM32: 0.003494737429 | GN32: 0.02052431522 | GO32: 0.08982771226 | GP32: 0.004191435854 | GQ32: 0.007122431361 | GR32: 0.01653887769 | GT32: 26 | GU32: 0.004060005842 | GV32: 0.00266862011 | GW32: 0.01426786326 | GX32: 0.1032253597 | GY32: 0.007749947625 | GZ32: 0.007641721981 | HA32: 0.01339018797 | HC32: 26 | HD32: 0.003900418012 | HE32: 0.002763582984 | HF32: 0.01418119566 | HG32: 0.07160819122 | HH32: 0.004092343062 | HI32: 0.006741271892 | HJ32: 0.007088104083 | HL32: 26 | HM32: 0.004623102994 | HN32: 0.004020812496 | HO32: 0.01724367104 | HP32: 0.04827969341 | HQ32: 0.004500535951 | HR32: 0.0101199072 | HS32: 0.002947131008 | HU32: 26 | HV32: 0.005140239633 | HW32: 0.004643617968 | HX32: 0.01762058964 | HY32: 0.04083406394 | HZ32: 0.003916302904 | IA32: 0.009953823506 | IB32: 0.003092567221 | ID32: 26 | IE32: 0.005176365556 | IF32: 0.005517218917 | IG32: 0.02142110587 | IH32: 0.009532339065 | II32: 0.004304979141 | IJ32: 0.009424539917 | IK32: 0.003407872138 | IM32: 26 | IN32: 0.005208835044 | IO32: 0.004679559409 | IP32: 0.01985240885 | IQ32: 0.01272766492 | IR32: 0.001003607911 | IS32: 0.01179684257 | IT32: 0.003797263719
B33: 23 | K33: 23 | BV33: 27 | BW33: 23 | BX33: 0.00658536279 | BY33: 0.00649184713 | BZ33: 0.01772380517 | CA33: 0.0009571584129 | CB33: 0.004969736873 | CC33: 0.01809472579 | CD33: 0.009899095457 | CF33: 23 | CG33: 5985.316062 | CH33: 6476.858336 | CI33: 3466.802413 | CJ33: 5985.316062 | CK33: 6476.816106 | CL33: 9480.083251 | CM33: 771.9557237 | DH33: 27 | DI33: 0 | DJ33: 0 | DK33: 0 | DL33: 0 | DM33: 0 | DN33: 0 | DO33: 0 | DQ33: 27 | DR33: 0.005859223718 | DS33: 0.0002998130791 | DT33: 0.01918459301 | DU33: 0.003985738501 | DV33: 0.000263690477 | DW33: 0.004197237579 | DX33: 0.00957432069 | DZ33: 27 | EA33: 0.00616244383 | EB33: 0.0002552420755 | EC33: 0.01466004834 | ED33: 0.004750261648 | EE33: 0.0002486053278 | EF33: 0.004658665298 | EG33: 0.007718344935 | EI33: 27 | EJ33: 0.005949274654 | EK33: 0.0001853286737 | EL33: 0.009115380839 | EM33: 0.005035996492 | EN33: 0.0001604776549 | EO33: 0.004229218465 | EP33: 0.01372966304 | ER33: 27 | ES33: 0.006093303564 | ET33: 0 | EU33: 0.005810596484 | EV33: 0.01529898547 | EW33: 0 | EX33: 0.003019108446 | EY33: 0.01062081577 | FA33: 27 | FB33: 0.005648348063 | FC33: 0 | FD33: 0.002196787792 | FE33: 0.01423975952 | FF33: 0 | FG33: 0.003711837139 | FH33: 0.008744254987 | FJ33: 27 | FK33: 0.005922565143 | FL33: 0.001610120452 | FM33: 0.003110289587 | FN33: 0.01262160314 | FO33: 0.001401688082 | FP33: 0.005077682277 | FQ33: 0.008997156377 | FS33: 27 | FT33: 0.005976069665 | FU33: 0.002080908124 | FV33: 0.00513751038 | FW33: 0.01573002694 | FX33: 0.001835837372 | FY33: 0.005724455258 | FZ33: 0.01297605342 | GB33: 27 | GC33: 0.005472850877 | GD33: 0.002317681171 | GE33: 0.00558718744 | GF33: 0.03128823179 | GG33: 0.002025900596 | GH33: 0.004050033874 | GI33: 0.01480389549 | GK33: 27 | GL33: 0.005460815313 | GM33: 0.001969320136 | GN33: 0.00788676659 | GO33: 0.05220418249 | GP33: 0.002923628567 | GQ33: 0.003225758625 | GR33: 0.01207034504 | GT33: 27 | GU33: 0.004912063772 | GV33: 0.002541927295 | GW33: 0.01941724293 | GX33: 0.08647239959 | GY33: 0.002911025951 | GZ33: 0.006223924871 | HA33: 0.01264028833 | HC33: 27 | HD33: 0.003518549784 | HE33: 0.002273331944 | HF33: 0.01361751382 | HG33: 0.09210070199 | HH33: 0.006625355119 | HI33: 0.007052299741 | HJ33: 0.005853443162 | HL33: 27 | HM33: 0.003200067698 | HN33: 0.002378405841 | HO33: 0.01292682921 | HP33: 0.06033604786 | HQ33: 0.00354885631 | HR33: 0.005617103114 | HS33: 0.00215609049 | HU33: 27 | HV33: 0.004031527529 | HW33: 0.003820087985 | HX33: 0.01527180505 | HY33: 0.04255702704 | HZ33: 0.004255830317 | IA33: 0.008397351385 | IB33: 0.002763430004 | ID33: 27 | IE33: 0.004101329933 | IF33: 0.003787563384 | IG33: 0.01646554131 | IH33: 0.02943540263 | II33: 0.003132614517 | IJ33: 0.009122778046 | IK33: 0.00286847743 | IM33: 27 | IN33: 0.004237733332 | IO33: 0.004586647581 | IP33: 0.01999085084 | IQ33: 0.007175876069 | IR33: 0.003529264247 | IS33: 0.008806236106 | IT33: 0.003155019012
B34: 24 | K34: 24 | BV34: 28 | BW34: 24 | BX34: 0.006464289621 | BY34: 0.006100111927 | BZ34: 0.02433921889 | CA34: 0.0007121850929 | CB34: 0.003537301385 | CC34: 0.02182767073 | CD34: 0.007456532773 | CF34: 24 | CG34: 5778.529386 | CH34: 6352.483435 | CI34: 3427.82725 | CJ34: 5778.529386 | CK34: 6352.533834 | CL34: 7738.857533 | CM34: 725.6386138 | DH34: 28 | DI34: 0 | DJ34: 0 | DK34: 0 | DL34: 0 | DM34: 0 | DN34: 0 | DO34: 0 | DQ34: 28 | DR34: 0.00423231303 | DS34: 0.0002592715197 | DT34: 0.01843996548 | DU34: 0.002879028772 | DV34: 0.0002479962147 | DW34: 0.002674325398 | DX34: 0.005992975052 | DZ34: 28 | EA34: 0.004570944383 | EB34: 0.0002546454217 | EC34: 0.009692752607 | ED34: 0.0035234684 | EE34: 0.0002270636509 | EF34: 0.003060633861 | EG34: 0.006993033261 | EI34: 28 | EJ34: 0.005157295995 | EK34: 0.0002195491957 | EL34: 0.01387819031 | EM34: 0.004365599292 | EN34: 0.0001954321377 | EO34: 0.00383781676 | EP34: 0.007079784119 | ER34: 28 | ES34: 0.004416457832 | ET34: 0 | EU34: 0.005338464676 | EV34: 0.004184237042 | EW34: 0 | EX34: 0.003122835586 | EY34: 0.008277564987 | FA34: 28 | FB34: 0.004708522213 | FC34: 0 | FD34: 0.003626169179 | FE34: 0.01297708156 | FF34: 0 | FG34: 0.002201971503 | FH34: 0.007371918309 | FJ34: 28 | FK34: 0.004521338946 | FL34: 0 | FM34: 0.0009491855495 | FN34: 0.01234547698 | FO34: 0 | FP34: 0.002904715233 | FQ34: 0.006289389853 | FS34: 28 | FT34: 0.004635102348 | FU34: 0.001448138458 | FV34: 0.002243025311 | FW34: 0.01045555773 | FX34: 0.00122797455 | FY34: 0.003984463408 | FZ34: 0.006158547873 | GB34: 28 | GC34: 0.00448213183 | GD34: 0.001899005999 | GE34: 0.004818253134 | GF34: 0.0121773398 | GG34: 0.00160683265 | GH34: 0.004680002987 | GI34: 0.00943320827 | GK34: 28 | GL34: 0.004369098279 | GM34: 0.002135505141 | GN34: 0.005299321091 | GO34: 0.02744561536 | GP34: 0.001846414891 | GQ34: 0.002964455126 | GR34: 0.01028459688 | GT34: 28 | GU34: 0.004561027068 | GV34: 0.0009358163121 | GW34: 0.007006661618 | GX34: 0.0475179609 | GY34: 0.001346346205 | GZ34: 0.002501425965 | HA34: 0.008853760718 | HC34: 28 | HD34: 0.004140021178 | HE34: 0.002089050953 | HF34: 0.01865246724 | HG34: 0.0750334556 | HH34: 0.002357382202 | HI34: 0.005763256234 | HJ34: 0.006218477263 | HL34: 28 | HM34: 0.002617536589 | HN34: 0.001848875708 | HO34: 0.01262102006 | HP34: 0.07036508871 | HQ34: 0.005436136929 | HR34: 0.006271505132 | HS34: 0.001670622677 | HU34: 28 | HV34: 0.002327720767 | HW34: 0.00225961742 | HX34: 0.0106805248 | HY34: 0.04436275413 | HZ34: 0.003356441462 | IA34: 0.004025829967 | IB34: 0.002020020688 | ID34: 28 | IE34: 0.003213703024 | IF34: 0.003112426956 | IG34: 0.01427076077 | IH34: 0.0306487783 | II34: 0.003400464732 | IJ34: 0.007701696833 | IK34: 0.002563175845 | IM34: 28 | IN34: 0.003355103674 | IO34: 0.003145881921 | IP34: 0.01536614501 | IQ34: 0.02214208754 | IR34: 0.002565822071 | IS34: 0.008525154655 | IT34: 0.002655643397
B35: 25 | K35: 25 | BV35: 29 | BW35: 25 | BX35: 0.00490434882 | BY35: 0.00509088005 | BZ35: 0.01892352492 | CA35: 8.597225167e-05 | CB35: 0.002026887163 | CC35: 0.01632519414 | CD35: 0.008579651187 | CF35: 25 | CG35: 5598.867454 | CH35: 6279.737046 | CI35: 3028.27322 | CJ35: 5598.867454 | CK35: 6279.733004 | CL35: 6475.862268 | CM35: 679.3206999 | DH35: 29 | DI35: 0 | DJ35: 0 | DK35: 0 | DL35: 0 | DM35: 0 | DN35: 0 | DO35: 0 | DQ35: 29 | DR35: 0.002226323109 | DS35: 0 | DT35: 0.009991148124 | DU35: 0.001514454665 | DV35: 0 | DW35: 0.00130496824 | DX35: 0.001940376626 | DZ35: 29 | EA35: 0.0028843448 | EB35: 0.0002192862742 | EC35: 0.00573956868 | ED35: 0.002223373196 | EE35: 0.0002122404175 | EF35: 0.001542215522 | EG35: 0.003834330186 | EI35: 29 | EJ35: 0.00359273105 | EK35: 0.0002200985375 | EL35: 0.009118819105 | EM35: 0.00304121278 | EN35: 0.0001798027749 | EO35: 0.002188254748 | EP35: 0.006414469241 | ER35: 29 | ES35: 0.003299052917 | ET35: 0 | EU35: 0.006151403573 | EV35: 0.003125587616 | EW35: 0 | EX35: 0.002219355116 | EY35: 0.003541500158 | FA35: 29 | FB35: 0.002911288794 | FC35: 0 | FD35: 0.002797057341 | FE35: 0.00302767638 | FF35: 0 | FG35: 0.001842650608 | FH35: 0.005068693171 | FJ35: 29 | FK35: 0.003414699086 | FL35: 0 | FM35: 0.001035019196 | FN35: 0.01019311873 | FO35: 0 | FP35: 0.001273304066 | FQ35: 0.004689567162 | FS35: 29 | FT35: 0.003184811968 | FU35: 0 | FV35: 0.0002438740262 | FW35: 0.009204658688 | FX35: 0 | FY35: 0.0018576093 | FZ35: 0.003976468177 | GB35: 29 | GC35: 0.002961656661 | GD35: 0.001323166192 | GE35: 0.002052044795 | GF35: 0.006895642019 | GG35: 0.001076736293 | GH35: 0.002930048979 | GI35: 0.003712097887 | GK35: 29 | GL35: 0.003039106943 | GM35: 0.001751334525 | GN35: 0.004475501657 | GO35: 0.009072510841 | GP35: 0.001466335374 | GQ35: 0.002691511232 | GR35: 0.005964615279 | GT35: 29 | GU35: 0.003293048597 | GV35: 0.0009945982083 | GW35: 0.003922882735 | GX35: 0.02254378498 | GY35: 0.0008420631186 | GZ35: 0.001677852833 | HA35: 0.007524846661 | HC35: 29 | HD35: 0.003495579828 | HE35: 0.0004650420639 | HF35: 0.00577215209 | HG35: 0.03749317741 | HH35: 0.0006665207077 | HI35: 0.001941605882 | HJ35: 0.003149588786 | HL35: 29 | HM35: 0.002893995374 | HN35: 0.001616593456 | HO35: 0.01674852492 | HP35: 0.05386615591 | HQ35: 0.001792145903 | HR35: 0.004806130513 | HS35: 0.002627239034 | HU35: 29 | HV35: 0.001566569519 | HW35: 0.001756577225 | HX35: 0.009760822905 | HY35: 0.04256815799 | HZ35: 0.005149350144 | IA35: 0.004462429237 | IB35: 0.001564457878 | ID35: 29 | IE35: 0.001853602894 | IF35: 0.001835647898 | IG35: 0.009947372694 | IH35: 0.03191606735 | II35: 0.002673990006 | IJ35: 0.003681886278 | IK35: 0.001873649179 | IM35: 29 | IN35: 0.00262677739 | IO35: 0.002578908763 | IP35: 0.01328889795 | IQ35: 0.02303555441 | IR35: 0.002778507463 | IS35: 0.007182391307 | IT35: 0.002372998722
B36: 26 | K36: 26 | BV36: 30 | BW36: 26 | BX36: 0.004078981609 | BY36: 0.003576863161 | BZ36: 0.01483420963 | CA36: 0.0003296862427 | CB36: 0.002110084656 | CC36: 0.01185033895 | CD36: 0.006992196183 | CF36: 26 | CG36: 5448.289976 | CH36: 6266.103228 | CI36: 3024.27012 | CJ36: 5448.289976 | CK36: 6266.106874 | CL36: 5996.030663 | CM36: 625.2847813 | DH36: 30 | DI36: 0 | DJ36: 0 | DK36: 0 | DL36: 0 | DM36: 0 | DN36: 0 | DO36: 0 | DQ36: 30 | DR36: 0.001360209471 | DS36: 0 | DT36: 0.00881271696 | DU36: 0.0009252859228 | DV36: 0 | DW36: 0.0008107953215 | DX36: 0.001642133713 | DZ36: 30 | EA36: 0.0008781848113 | EB36: 0 | EC36: 8.28301813e-05 | ED36: 0.0006769402616 | EE36: 0 | EF36: 0.0004830955108 | EG36: 0 | EI36: 30 | EJ36: 0.001934508939 | EK36: 0.0001886889775 | EL36: 0.005361771013 | EM36: 0.001637539232 | EN36: 0.0001669284201 | EO36: 0.0009044382462 | EP36: 0.003517105204 | ER36: 30 | ES36: 0.001707643739 | ET36: 0 | EU36: 0.002757719955 | EV36: 0.001617863843 | EW36: 0 | EX36: 0.0009589906127 | EY36: 0.002241520943 | FA36: 30 | FB36: 0.001534855684 | FC36: 0 | FD36: 0.002729875021 | FE36: 0.001596221574 | FF36: 0 | FG36: 0.000972543058 | FH36: 0.001564455973 | FJ36: 30 | FK36: 0.001562218422 | FL36: 0 | FM36: 0.0007760302011 | FN36: 0.00175966266 | FO36: 0 | FP36: 0.0008479148152 | FQ36: 0.002462441793 | FS36: 30 | FT36: 0.00190279901 | FU36: 0 | FV36: 8.392359224e-05 | FW36: 0.006012145081 | FX36: 0 | FY36: 0.0005181655331 | FZ36: 0.002155868046 | GB36: 30 | GC36: 0.001489466058 | GD36: 0 | GE36: 0.000156002787 | GF36: 0.004443312325 | GG36: 0 | GH36: 0.001114218164 | GI36: 0.001994116055 | GK36: 30 | GL36: 0.001425127033 | GM36: 0.001221546587 | GN36: 0.00182782238 | GO36: 0.003645927072 | GP36: 0.0009841480143 | GQ36: 0.001411818798 | GR36: 0.001278131449 | GT36: 30 | GU36: 0.001664740484 | GV36: 0.0005280616973 | GW36: 0.002356515127 | GX36: 0.005415953828 | GY36: 0.000432885457 | GZ36: 0.0009121082099 | HA36: 0.003939953386 | HC36: 30 | HD36: 0.002008027417 | HE36: 0.0004882828459 | HF36: 0.002491818181 | HG36: 0.0141526662 | HH36: 0.0004153602071 | HI36: 0.001026386521 | HJ36: 0.00266334785 | HL36: 30 | HM36: 0.001829940816 | HN36: 0 | HO36: 0.003696615388 | HP36: 0.02015741631 | HQ36: 0 | HR36: 0.00111603886 | HS36: 6.86099848e-06 | HU36: 30 | HV36: 0.001470647112 | HW36: 0.001536586457 | HX36: 0.01342763484 | HY36: 0.02766920395 | HZ36: 0.001689218946 | IA36: 0.003519472495 | IB36: 0.002466416937 | ID36: 30 | IE36: 0.001847667837 | IF36: 0.001424888433 | IG36: 0.01632063463 | IH36: 0.04535917208 | II36: 0.004096311321 | IJ36: 0.0069753896 | IK36: 0.001886660224 | IM36: 30 | IN36: 0.002482741143 | IO36: 0.001683922336 | IP36: 0.02362446545 | IQ36: 0.03930900477 | IR36: 0.00241937639 | IS36: 0.008809854952 | IT36: 0.002256580862
B37: 27 | K37: 27 | BV37: 31 | BW37: 27 | BX37: 0.003339582802 | BY37: 0.002646840288 | BZ37: 0.01141662337 | CA37: 0.0004549365569 | CB37: 0.001917961827 | CC37: 0.00815523122 | CD37: 0.005850415362 | CF37: 27 | CG37: 5328.846884 | CH37: 6266.076003 | CI37: 2333.312116 | CJ37: 5328.846884 | CK37: 6266.098756 | CL37: 5335.953183 | CM37: 578.9672725 | DI37: =SUM(DI6:DI36) -> 1 | DJ37: =SUM(DJ6:DJ36) -> 1 | DK37: 1 | DL37: 1 | DM37: 1 | DN37: 1 | DO37: 1 | DR37: =SUM(DR6:DR36) -> 1 | DS37: =SUM(DS6:DS36) -> 1 | DT37: 1 | DU37: 1 | DV37: 1 | DW37: 1 | DX37: 1 | EA37: =SUM(EA6:EA36) -> 1 | EB37: =SUM(EB6:EB36) -> 1 | EC37: =SUM(EC6:EC36) -> 1 | ED37: =SUM(ED6:ED36) -> 1 | EE37: =SUM(EE6:EE36) -> 1 | EF37: =SUM(EF6:EF36) -> 1 | EG37: =SUM(EG6:EG36) -> 1 | EJ37: =SUM(EJ6:EJ36) -> 1 | EK37: =SUM(EK6:EK36) -> 1 | EL37: =SUM(EL6:EL36) -> 1 | EM37: =SUM(EM6:EM36) -> 1 | EN37: =SUM(EN6:EN36) -> 1 | EO37: =SUM(EO6:EO36) -> 1 | EP37: =SUM(EP6:EP36) -> 1 | ES37: =SUM(ES6:ES36) -> 1 | ET37: =SUM(ET6:ET36) -> 1 | EU37: =SUM(EU6:EU36) -> 1 | EV37: =SUM(EV6:EV36) -> 1 | EW37: =SUM(EW6:EW36) -> 1 | EX37: =SUM(EX6:EX36) -> 1 | EY37: =SUM(EY6:EY36) -> 1 | FB37: =SUM(FB6:FB36) -> 1 | FC37: =SUM(FC6:FC36) -> 1 | FD37: =SUM(FD6:FD36) -> 1 | FE37: =SUM(FE6:FE36) -> 1 | FF37: =SUM(FF6:FF36) -> 1 | FG37: =SUM(FG6:FG36) -> 1 | FH37: =SUM(FH6:FH36) -> 1 | FK37: =SUM(FK6:FK36) -> 1 | FL37: =SUM(FL6:FL36) -> 1 | FM37: =SUM(FM6:FM36) -> 1 | FN37: =SUM(FN6:FN36) -> 1 | FO37: =SUM(FO6:FO36) -> 1 | FP37: =SUM(FP6:FP36) -> 1 | FQ37: =SUM(FQ6:FQ36) -> 1 | FT37: =SUM(FT6:FT36) -> 1 | FU37: =SUM(FU6:FU36) -> 1 | FV37: =SUM(FV6:FV36) -> 1 | FW37: =SUM(FW6:FW36) -> 1 | FX37: =SUM(FX6:FX36) -> 1 | FY37: =SUM(FY6:FY36) -> 1 | FZ37: =SUM(FZ6:FZ36) -> 1 | GC37: =SUM(GC6:GC36) -> 1 | GD37: =SUM(GD6:GD36) -> 1 | GE37: =SUM(GE6:GE36) -> 1 | GF37: =SUM(GF6:GF36) -> 1 | GG37: =SUM(GG6:GG36) -> 1 | GH37: =SUM(GH6:GH36) -> 1 | GI37: =SUM(GI6:GI36) -> 1 | GL37: =SUM(GL6:GL36) -> 1 | GM37: =SUM(GM6:GM36) -> 1 | GN37: 1 | GO37: 1 | GP37: 1 | GQ37: 1 | GR37: 1 | GU37: =SUM(GU6:GU36) -> 1 | GV37: =SUM(GV6:GV36) -> 1 | GW37: =SUM(GW6:GW36) -> 1 | GX37: =SUM(GX6:GX36) -> 1 | GY37: =SUM(GY6:GY36) -> 1 | GZ37: =SUM(GZ6:GZ36) -> 1 | HA37: =SUM(HA6:HA36) -> 1 | HD37: =SUM(HD6:HD36) -> 1 | HE37: =SUM(HE6:HE36) -> 1 | HF37: =SUM(HF6:HF36) -> 1 | HG37: =SUM(HG6:HG36) -> 1 | HH37: =SUM(HH6:HH36) -> 1 | HI37: =SUM(HI6:HI36) -> 1 | HJ37: =SUM(HJ6:HJ36) -> 1 | HM37: =SUM(HM6:HM36) -> 1 | HN37: =SUM(HN6:HN36) -> 1 | HO37: =SUM(HO6:HO36) -> 1 | HP37: =SUM(HP6:HP36) -> 1 | HQ37: =SUM(HQ6:HQ36) -> 1 | HR37: =SUM(HR6:HR36) -> 1 | HS37: =SUM(HS6:HS36) -> 1 | HV37: =SUM(HV6:HV36) -> 1 | HW37: =SUM(HW6:HW36) -> 1 | HX37: =SUM(HX6:HX36) -> 1 | HY37: =SUM(HY6:HY36) -> 1 | HZ37: =SUM(HZ6:HZ36) -> 1 | IA37: =SUM(IA6:IA36) -> 1 | IB37: =SUM(IB6:IB36) -> 1 | IE37: =SUM(IE6:IE36) -> 1 | IF37: =SUM(IF6:IF36) -> 1 | IG37: =SUM(IG6:IG36) -> 1 | IH37: =SUM(IH6:IH36) -> 1 | II37: =SUM(II6:II36) -> 1 | IJ37: =SUM(IJ6:IJ36) -> 1 | IK37: =SUM(IK6:IK36) -> 1 | IN37: =SUM(IN6:IN36) -> 1 | IO37: =SUM(IO6:IO36) -> 1 | IP37: =SUM(IP6:IP36) -> 1 | IQ37: =SUM(IQ6:IQ36) -> 1 | IR37: =SUM(IR6:IR36) -> 1 | IS37: =SUM(IS6:IS36) -> 1 | IT37: =SUM(IT6:IT36) -> 1
B38: 28 | K38: 28 | BV38: 32 | BW38: 28 | BX38: 0.002775407652 | BY38: 0.002219809994 | BZ38: 0.009088555938 | CA38: 0.0009175524622 | CB38: 0.001082758689 | CC38: 0.007777020567 | CD38: 0.004631982609 | CF38: 28 | CG38: 5242.649095 | CH38: 6266.064579 | CI38: 2336.900641 | CJ38: 5242.649095 | CK38: 6266.103242 | CL38: 4757.827726 | CM38: 548.0892549 | DH38: Source: US Inventory 1990-2020. Mobile19.xls. | DR38: Distributions are taken from mobile19.xslx. These distributions are generated from MOVES2014b and were updated on 11/13/18 by Emily Peterson using Seth Hartley's MOVES2014b runs
B39: 29 | K39: 29 | BV39: 33 | BW39: 29 | BX39: 0.002307219045 | BY39: 0.001964633207 | BZ39: 0.01226541906 | CA39: 0.0002869617615 | CB39: 0.0008513539363 | CC39: 0.009530128733 | CD39: 0.003754528717 | CF39: 29 | CG39: 5191.714021 | CH39: 6266.096781 | CI39: 2122.390882 | CJ39: 5191.714021 | CK39: 6266.102723 | CL39: 3806.024078 | CM39: 509.4889995 | DH39: From (or estimated from) Office of Transportation and Air Quality data received on 8/14/00.
B40: 30 | K40: 30 | BV40: 34 | BW40: 30 | BX40: 0.003082780713 | BY40: 0.001978263432 | BZ40: 0.02071856138 | CA40: 0.000328095871 | CB40: 0.000758797885 | CC40: 0.01626907727 | CD40: 0.003428893517 | CF40: 30 | CG40: 5191.741201 | CH40: 6266.092353 | CI40: 2148.675266 | CJ40: 5191.741201 | CK40: 6266.11048 | CL40: 3141.899376 | CM40: 470.8911236 | DR40: 2014LDGV | DS40: 2014LDGT | DT40: 2014HDGV | DU40: 2014LDDV | DV40: 2014LDDT | DW40: 2014HDDV | DX40: 2014MC | EA40: 2015LDGV | EB40: 2015LDGT | EC40: 2015HDGV | ED40: 2015LDDV | EE40: 2015LDDT | EF40: 2015HDDV | EG40: 2015MC | EJ40: 2016LDGV | EK40: 2016LDGT | EL40: 2016HDGV | EM40: 2016LDDV | EN40: 2016LDDT | EO40: 2016HDDV | EP40: 2016MC | ES40: 2017LDGV | ET40: 2017LDGT | EU40: 2017HDGV | EV40: 2017LDDV | EW40: 2017LDDT | EX40: 2017HDDV | EY40: 2017MC | FB40: 2018LDGV | FC40: 2018LDGT | FD40: 2018HDGV | FE40: 2018LDDV | FF40: 2018LDDT | FG40: 2018HDDV | FH40: 2018MC | FK40: 2019LDGV | FL40: 2019LDGT | FM40: 2019HDGV | FN40: 2019LDDV | FO40: 2019LDDT | FP40: 2019HDDV | FQ40: 2019MC | FT40: 2020LDGV | FU40: 2020LDGT | FV40: 2020HDGV | FW40: 2020LDDV | FX40: 2020LDDT | FY40: 2020HDDV | FZ40: 2020MC
C41: =SUM(C10:C40) -> 0 | D41: 0 | E41: 0 | F41: 0 | G41: 0 | H41: 0 | I41: 0 | L41: =SUM(L10:L40) -> 0 | M41: =SUM(M10:M40) -> 0 | N41: 0 | O41: 0 | P41: 0 | Q41: 0 | R41: 0 | BX41: =SUM(BX10:BX40) -> 1 | BY41: 1 | BZ41: 1 | CA41: 1 | CB41: 1 | CC41: 1 | CD41: 1 | CG41: =SUM(CG10:CG40) -> 269515.4953 | CH41: 298490.6976 | CI41: 255949.4554 | CJ41: 269515.4953 | CK41: =SUM(CK10:CK40) -> 298491.4557 | CL41: =SUM(CL10:CL40) -> 693994.8092 | CM41: =SUM(CM10:CM40) -> 46471.73955 | DQ41: Table IIh: Age Distribution, 2014. Each column must add up to 100%. | DZ41: Table IIh: Age Distribution, 2015. Each column must add up to 100%. | EI41: Table IIh: Age Distribution, 2016. Each column must add up to 100%. | ER41: Table IIh: Age Distribution, 2017. Each column must add up to 100%. | FA41: Table IIh: Age Distribution, 2018. Each column must add up to 100%. | FJ41: Table IIh: Age Distribution, 2019. Each column must add up to 100%. | FS41: Table IIh: Age Distribution, 2020. Each column must add up to 100%.
L42: =IF(L41>1,1,0) -> 0 | M42: =IF(M41>1,1,0) -> 0 | N42: 0 | O42: 0 | P42: 0 | Q42: 0 | R42: 0 | S42: =SUM(L42:R42) -> 0 | CF42: Source: US Inventory 1990-2020. Mobile19.xls. | DQ42: MY | DR42: LDGV | DS42: LDGT | DT42: HDGV | DU42: LDDV | DV42: LDDT | DW42: HDDV | DX42: MC | DZ42: MY | EA42: LDGV | EB42: LDGT | EC42: HDGV | ED42: LDDV | EE42: LDDT | EF42: HDDV | EG42: MC | EI42: MY | EJ42: LDGV | EK42: LDGT | EL42: HDGV | EM42: LDDV | EN42: LDDT | EO42: HDDV | EP42: MC | ER42: MY | ES42: LDGV | ET42: LDGT | EU42: HDGV | EV42: LDDV | EW42: LDDT | EX42: HDDV | EY42: MC | FA42: MY | FB42: LDGV | FC42: LDGT | FD42: HDGV | FE42: LDDV | FF42: LDDT | FG42: HDDV | FH42: MC | FJ42: MY | FK42: LDGV | FL42: LDGT | FM42: HDGV | FN42: LDDV | FO42: LDDT | FP42: HDDV | FQ42: MC | FS42: MY | FT42: LDGV | FU42: LDGT | FV42: HDGV | FW42: LDDV | FX42: LDDT | FY42: HDDV | FZ42: MC
B43: Source: All default data from EPA, 2021. Inventory of U.S. Greenhouse Gas Emissions and Sinks: 1990-2019. Data generated by EPA's MOVES 2014 model. | DQ43: 0 | DR43: 0.07136888007 | DS43: 0.07904680198 | DT43: 0.06188778221 | DU43: 0.1471915614 | DV43: 0.08615199626 | DW43: 0.05981125298 | DX43: 0.07182200866 | DZ43: 0 | EA43: 0.07214346728 | EB43: 0.08178678816 | EC43: 0.06453385839 | ED43: 0.1358240176 | EE43: 0.08792202352 | EF43: 0.0621789674 | EG43: 0.07255484632 | EI43: 0 | EJ43: 0.07305692179 | EK43: 0.08327877898 | EL43: 0.06482782648 | EM43: 0.1268790913 | EN43: 0.08856033753 | EO43: 0.06201334404 | EP43: 0.0734418212 | ER43: 0 | ES43: 0.07254378069 | ET43: 0.08161233683 | EU43: 0.06455222854 | EV43: 0.1159137465 | EW43: 0.08602175609 | EX43: 0.06076439961 | EY43: 0.07289484723 | FA43: 0 | FB43: 0.07080270054 | FC43: 0.0798178263 | FD43: 0.06561478921 | FE43: 0.1055004599 | FF43: 0.08341075671 | FG43: 0.06150772491 | FH43: 0.0711140385 | FJ43: 0 | FK43: 0.07040021278 | FL43: 0.07739498896 | FM43: 0.06490942046 | FN43: 0.0982280152 | FO43: 0.08033137333 | FP43: 0.06064660624 | FQ43: 0.07067896742 | FS43: 0 | FT43: =FK43 -> 0.07040021278 | FU43: 0.07739498896 | FV43: 0.06490942046 | FW43: 0.0982280152 | FX43: 0.08033137333 | FY43: 0.06064660624 | FZ43: 0.07067896742
DQ44: 1 | DR44: 0.06821446303 | DS44: 0.0746689013 | DT44: 0.05575517668 | DU44: 0.1406873117 | DV44: 0.08128425021 | DW44: 0.05366786976 | DX44: 0.06884313363 | DZ44: 1 | EA44: 0.07087778153 | EB44: 0.07767816816 | EC44: 0.05953817911 | ED44: 0.1334412047 | EE44: 0.08340317068 | EF44: 0.0571206296 | EG44: 0.07148546052 | EI44: 1 | EJ44: 0.07118785915 | EK44: 0.07981225373 | EL44: 0.06223626092 | EM44: 0.1236330501 | EN44: 0.08478227093 | EO44: 0.05958882756 | EP44: 0.07175817182 | ER44: 1 | ES44: 0.07208591794 | ET44: 0.08123841063 | EU44: 0.06393322715 | EV44: 0.1151813741 | EW44: 0.08555181236 | EX44: 0.06015405272 | EY44: 0.07263598249 | FA44: 1 | FB44: 0.07176123395 | FC44: 0.0798238685 | FD44: 0.06415794193 | FE44: 0.1069234512 | FF44: 0.08334053309 | FG44: 0.05958068204 | FH44: 0.07228208364 | FJ44: 1 | FK44: 0.07001321989 | FL44: 0.07807909748 | FM44: 0.06511598196 | FN44: 0.0976768616 | FO44: 0.08096567457 | FP44: 0.060407378 | FQ44: 0.07049024149 | FS44: 1 | FT44: 0.07001321989 | FU44: 0.07807909748 | FV44: 0.06511598196 | FW44: 0.0976768616 | FX44: 0.08096567457 | FY44: 0.060407378 | FZ44: 0.07049024149
DQ45: 2 | DR45: 0.06590753271 | DS45: 0.07135014057 | DT45: 0.05126083531 | DU45: 0.1360315814 | DV45: 0.07762925451 | DW45: 0.05017083673 | DX45: 0.06477527216 | DZ45: 2 | EA45: 0.06774505419 | EB45: 0.07336614297 | EC45: 0.05363840126 | ED45: 0.1275424845 | EE45: 0.07867824028 | EF45: 0.05125361958 | EG45: 0.06672224082 | EI45: 2 | EJ45: 0.06993900188 | EK45: 0.07578095741 | EL45: 0.05741844269 | EM45: 0.1214637937 | EN45: 0.08041247406 | EO45: 0.05474120092 | EP45: 0.06897989431 | ER45: 2 | ES45: 0.07024183728 | ET45: 0.07783945328 | EU45: 0.0613774242 | EV45: 0.1122355641 | EW45: 0.08188976424 | EX45: 0.05780224045 | EY45: 0.06926410045 | FA45: 2 | FB45: 0.07130856799 | FC45: 0.07944632715 | FD45: 0.06354272141 | FE45: 0.1062478134 | FF45: 0.08287230677 | FG45: 0.05898221326 | FH45: 0.07028337159 | FJ45: 2 | FK45: 0.07096227925 | FL45: 0.0780792892 | FM45: 0.06367020971 | FN45: 0.09899384708 | FO45: 0.0808852063 | FP45: 0.05851480648 | FQ45: 0.06993800243 | FS45: 2 | FT45: 0.07096227925 | FU45: 0.0780792892 | FV45: 0.06367020971 | FW45: 0.09899384708 | FX45: 0.0808852063 | FY45: 0.05851480648 | FZ45: 0.06993800243
B46: Table IIa: Age Distribution, 1998 and earlier Each column must add up to 100%. | K46: Table IIb: Age Distribution, 1999. Each column must add up to 100%. | T46: Table IIc: Age Distribution, 2000. Each column must add up to 100%. | AC46: Table IId: Age Distribution, 2001. Each column must add up to 100%. | AL46: Table IIe: Age Distribution, 2002. Each column must add up to 100%. | AU46: Table IIf: Age Distribution, 2003. Each column must add up to 100%. | BD46: Table IIg: Age Distribution, 2004. Each column must add up to 100%. | BM46: Table IIh: Age Distribution, 2005. Each column must add up to 100%. | DQ46: 3 | DR46: 0.04075296511 | DS46: 0.04787840627 | DT46: 0.02909527861 | DU46: 0.0840853517 | DV46: 0.05335451252 | DW46: 0.03142017011 | DX46: 0.05196245646 | DZ46: 3 | EA46: 0.0654606155 | EB46: 0.07011476592 | EC46: 0.04931468999 | ED46: 0.1233121016 | EE46: 0.07512852777 | EF46: 0.04791388637 | EG46: 0.05963718596 | EI46: 3 | EJ46: 0.06684212149 | EK46: 0.07155882659 | EL46: 0.0517287145 | EM46: 0.1160854719 | EN46: 0.07584562486 | EO46: 0.04911858827 | EP46: 0.06140102547 | ER46: 3 | ES46: 0.06900413185 | ET46: 0.07387577114 | EU46: 0.05662609004 | EV46: 0.1102567305 | EW46: 0.07765739571 | EX46: 0.05309995591 | EY46: 0.06353576143 | FA46: 3 | FB46: 0.06947833142 | FC46: 0.0761058697 | FD46: 0.06100252937 | FE46: 0.1035197844 | FF46: 0.07931258879 | FG46: 0.0566762158 | FH46: 0.06393590675 | FJ46: 3 | FK46: 0.07050842371 | FL46: 0.07769862739 | FM46: 0.06305966613 | FN46: 0.09835945088 | FO46: 0.08041854447 | FP46: 0.05792704397 | FQ46: 0.06491618904 | FS46: 3 | FT46: 0.07050842371 | FU46: 0.07769862739 | FV46: 0.06305966613 | FW46: 0.09835945088 | FX46: 0.08041854447 | FY46: 0.05792704397 | FZ46: 0.06491618904
B47: MY | C47: LDGV | D47: LDGT | E47: HDGV | F47: LDDV | G47: LDDT | H47: HDDV | I47: MC | K47: MY | L47: LDGV | M47: LDGT | N47: HDGV | O47: LDDV | P47: LDDT | Q47: HDDV | R47: MC | T47: MY | U47: LDGV | V47: LDGT | W47: HDGV | X47: LDDV | Y47: LDDT | Z47: HDDV | AA47: MC | AC47: MY | AD47: LDGV | AE47: LDGT | AF47: HDGV | AG47: LDDV | AH47: LDDT | AI47: HDDV | AJ47: MC | AL47: MY | AM47: LDGV | AN47: LDGT | AO47: HDGV | AP47: LDDV | AQ47: LDDT | AR47: HDDV | AS47: MC | AU47: MY | AV47: LDGV | AW47: LDGT | AX47: HDGV | AY47: LDDV | AZ47: LDDT | BA47: HDDV | BB47: MC | BD47: MY | BE47: LDGV | BF47: LDGT | BG47: HDGV | BH47: LDDV | BI47: LDDT | BJ47: HDDV | BK47: MC | BM47: MY | BN47: LDGV | BO47: LDGT | BP47: HDGV | BQ47: LDDV | BR47: LDDT | BS47: HDDV | BT47: MC | DQ47: 4 | DR47: 0.04573600938 | DS47: 0.04233029907 | DT47: 0.01942517041 | DU47: 0.08116242265 | DV47: 0.03120655949 | DW47: 0.02077665189 | DX47: 0.04692583635 | DZ47: 4 | EA47: 0.04034706809 | EB47: 0.04664657159 | EC47: 0.02799066064 | ED47: 0.07598533736 | EE47: 0.05119547462 | EF47: 0.03000673054 | EG47: 0.04784068927 | EI47: 4 | EJ47: 0.06436099285 | EK47: 0.06776794854 | EL47: 0.0475587775 | EM47: 0.1119004654 | EN47: 0.07182894578 | EO47: 0.045917901 | EP47: 0.05488093822 | ER47: 4 | ES47: 0.06574788925 | ET47: 0.06918114409 | EU47: 0.05101487793 | EV47: 0.1050546423 | EW47: 0.07264932552 | EX47: 0.04764590903 | EY47: 0.05655496728 | FA47: 4 | FB47: 0.06803818862 | FC47: 0.07160353992 | FD47: 0.05628021648 | FE47: 0.1013730303 | FF47: 0.07457896595 | FG47: 0.05206553477 | FH47: 0.05864811979 | FJ47: 4 | FK47: 0.06847687988 | FL47: 0.07381328795 | FM47: 0.06053878478 | FN47: 0.09552482144 | FO47: 0.07632962545 | FP47: 0.05566231109 | FQ47: 0.05905351645 | FS47: 4 | FT47: 0.06847687988 | FU47: 0.07381328795 | FV47: 0.06053878478 | FW47: 0.09552482144 | FX47: 0.07632962545 | FY47: 0.05566231109 | FZ47: 0.05905351645
B48: 0 | K48: 0 | T48: 0 | AC48: 0 | AL48: 0 | AU48: 0 | BD48: 0 | BM48: 0 | DQ48: 5 | DR48: 0.04156610372 | DS48: 0.0317624081 | DT48: 0.01742935838 | DU48: 0.05353077137 | DV48: 0.0280694131 | DW48: 0.02542835343 | DX48: 0.04860151135 | DZ48: 5 | EA48: 0.0451504696 | EB48: 0.04090600178 | EC48: 0.01860557879 | ED48: 0.07314007953 | EE48: 0.02970997298 | EF48: 0.01977359842 | EG48: 0.04320357747 | EI48: 5 | EJ48: 0.03957343354 | EK48: 0.04475131194 | EL48: 0.02685831346 | EM48: 0.06877058298 | EN48: 0.04857934924 | EO48: 0.02864324567 | EP48: 0.04402524047 | ER48: 5 | ES48: 0.06306454571 | ET48: 0.06491047504 | EU48: 0.04655902275 | EV48: 0.1009927294 | EW48: 0.06828884789 | EX48: 0.04425545206 | EY48: 0.050549643 | FA48: 5 | FB48: 0.06464425186 | FC48: 0.06652767773 | FD48: 0.05021772849 | FE48: 0.09631801423 | FF48: 0.06923088642 | FG48: 0.04632152688 | FH48: 0.05220434089 | FJ48: 5 | FK48: 0.06686467215 | FL48: 0.06890509963 | FM48: 0.05528167576 | FN48: 0.09327464265 | FO48: 0.07123250022 | FP48: 0.05067675344 | FQ48: 0.05416954158 | FS48: 5 | FT48: 0.06686467215 | FU48: 0.06890509963 | FV48: 0.05528167576 | FW48: 0.09327464265 | FX48: 0.07123250022 | FY48: 0.05067675344 | FZ48: 0.05416954158
B49: 1 | K49: 1 | T49: 1 | AC49: 1 | AL49: 1 | AU49: 1 | BD49: 1 | BM49: 1 | DQ49: 6 | DR49: 0.05255741674 | DS49: 0.05423376021 | DT49: 0.03350454758 | DU49: 0.004868303271 | DV49: 0.06877722713 | DW49: 0.03805276086 | DX49: 0.08612067815 | DZ49: 6 | EA49: 0.04088909491 | EB49: 0.03042928223 | EC49: 0.01662028285 | ED49: 0.04807143933 | EE49: 0.02649587458 | EF49: 0.02412021896 | EG49: 0.04474632815 | EI49: 6 | EJ49: 0.04414899349 | EK49: 0.03895919821 | EL49: 0.01776255133 | EM49: 0.06597508822 | EN49: 0.02796097468 | EO49: 0.01880751197 | EP49: 0.03975790909 | ER49: 6 | ES49: 0.03866368685 | ET49: 0.04252525462 | EU49: 0.02609970081 | EV49: 0.06185619541 | EW49: 0.04580955706 | EX49: 0.02744156467 | EY49: 0.0405507111 | FA49: 6 | FB49: 0.06172595442 | FC49: 0.06179821067 | FD49: 0.0453885126 | FE49: 0.09226579179 | FF49: 0.06452803804 | FG49: 0.04266163723 | FH49: 0.04666098127 | FJ49: 6 | FK49: 0.06329948983 | FL49: 0.06348639616 | FM49: 0.04881740864 | FN49: 0.0883028691 | FO49: 0.06558103423 | FP49: 0.04467814006 | FQ49: 0.04821792663 | FS49: 6 | FT49: 0.06329948983 | FU49: 0.06348639616 | FV49: 0.04881740864 | FW49: 0.0883028691 | FX49: 0.06558103423 | FY49: 0.04467814006 | FZ49: 0.04821792663
B50: 2 | K50: 2 | T50: 2 | AC50: 2 | AL50: 2 | AU50: 2 | BD50: 2 | BM50: 2 | DQ50: 7 | DR50: 0.05711504308 | DS50: 0.05657411308 | DT50: 0.03093505589 | DU50: 0.003393025485 | DV50: 0.06140747096 | DW50: 0.07429420993 | DX50: 0.07662441577 | DZ50: 7 | EA50: 0.05149471942 | EB50: 0.05146289532 | EC50: 0.0319490626 | ED50: 0.004354213064 | EE50: 0.06432231063 | EF50: 0.03606133189 | EG50: 0.07928942248 | EI50: 7 | EJ50: 0.03983374012 | EK50: 0.02873269561 | EL50: 0.01586729698 | EM50: 0.04319576681 | EN50: 0.02471473443 | EO50: 0.02294608731 | EP50: 0.04117765965 | ER50: 7 | ES50: 0.04298896062 | ET50: 0.03676730137 | EU50: 0.0172608232 | EV50: 0.05910939081 | EW50: 0.0261342919 | EX50: 0.01802600705 | EY50: 0.03662013142 | FA50: 7 | FB50: 0.03770458121 | FC50: 0.04012455466 | FD50: 0.0254434694 | FE50: 0.05628024857 | FF50: 0.04289155514 | FG50: 0.02646997998 | FH50: 0.03743123729 | FJ50: 7 | FK50: 0.06012940496 | FL50: 0.05835210495 | FM50: 0.04412280379 | FN50: 0.08423554826 | FO50: 0.06058113445 | FP50: 0.04115309833 | FQ50: 0.04309776779 | FS50: 7 | FT50: 0.06012940496 | FU50: 0.05835210495 | FV50: 0.04412280379 | FW50: 0.08423554826 | FX50: 0.06058113445 | FY50: 0.04115309833 | FZ50: 0.04309776779
B51: 3 | K51: 3 | T51: 3 | AC51: 3 | AL51: 3 | AU51: 3 | BD51: 3 | BM51: 3 | DQ51: 8 | DR51: 0.05280026791 | DS51: 0.05677045609 | DT51: 0.0436280844 | DU51: 0.06356152069 | DV51: 0.07767309697 | DW51: 0.06400268232 | DX51: 0.07259655316 | DZ51: 8 | EA51: 0.0557060716 | EB51: 0.05315349052 | EC51: 0.02936816552 | ED51: 0.003021139124 | EE51: 0.05685741792 | EF51: 0.07021960013 | EG51: 0.07054643992 | EI51: 8 | EJ51: 0.04994745685 | EK51: 0.04816801792 | EL51: 0.03034651881 | EM51: 0.003895876978 | EN51: 0.05942321117 | EO51: 0.0341143545 | EP51: 0.07296591571 | ER51: 8 | ES51: 0.03862815646 | ET51: 0.02687533318 | EU51: 0.01530443128 | EV51: 0.03853186771 | EW51: 0.0228802015 | EX51: 0.02186634995 | EY51: 0.03792784854 | FA51: 8 | FB51: 0.04175197418 | FC51: 0.03440901308 | FD51: 0.01666260095 | FE51: 0.05353646095 | FF51: 0.02422842299 | FG51: 0.01725796511 | FH51: 0.03380311009 | FJ51: 8 | FK51: 0.036574993 | FL51: 0.03752994264 | FM51: 0.02447596343 | FN51: 0.0511435497 | FO51: 0.03988040852 | FP51: 0.02533079941 | FQ51: 0.03457279844 | FS51: 8 | FT51: 0.036574993 | FU51: 0.03752994264 | FV51: 0.02447596343 | FW51: 0.0511435497 | FX51: 0.03988040852 | FY51: 0.02533079941 | FZ51: 0.03457279844
B52: 4 | K52: 4 | T52: 4 | AC52: 4 | AL52: 4 | AU52: 4 | BD52: 4 | BM52: 4 | DQ52: 9 | DR52: 0.05230428451 | DS52: 0.05820668992 | DT52: 0.03444436917 | DU52: 0.04367029108 | DV52: 0.06642752564 | DW52: 0.05853283481 | DX52: 0.06357403456 | DZ52: 9 | EA52: 0.05124739884 | EB52: 0.05277397609 | EC52: 0.04141815901 | ED52: 0.05632044047 | EE52: 0.07118166026 | EF52: 0.0604673481 | EG52: 0.06683810821 | EI52: 9 | EJ52: 0.05379208515 | EK52: 0.04924753682 | EL52: 0.02789505766 | EM52: 0.00269061749 | EN52: 0.05201020962 | EO52: 0.06653896783 | EP52: 0.06492013146 | ER52: 9 | ES52: 0.04819922267 | ET52: 0.04469275113 | EU52: 0.02927019232 | EV52: 0.00345880728 | EW52: 0.05447515264 | EX52: 0.03244329864 | EY52: 0.06720713872 | FA52: 9 | FB52: 0.0373402569 | FC52: 0.02491102103 | FD52: 0.014773977 | FE52: 0.03472702634 | FF52: 0.02099703486 | FG52: 0.0209427395 | FH52: 0.03501021654 | FJ52: 9 | FK52: 0.04031727504 | FL52: 0.03192299795 | FM52: 0.01602904614 | FN52: 0.04840548168 | FO52: 0.02230501349 | FP52: 0.01653069473 | FQ52: 0.03122175161 | FS52: 9 | FT52: 0.04031727504 | FU52: 0.03192299795 | FV52: 0.01602904614 | FW52: 0.04840548168 | FX52: 0.02230501349 | FY52: 0.01653069473 | FZ52: 0.03122175161
B53: 5 | K53: 5 | T53: 5 | AC53: 5 | AL53: 5 | AU53: 5 | BD53: 5 | BM53: 5 | DQ53: 10 | DR53: 0.04841126657 | DS53: 0.05752484125 | DT53: 0.04277710766 | DU53: 0.02616633848 | DV53: 0.0586386311 | DW53: 0.04089839153 | DX53: 0.05393477045 | DZ53: 10 | EA53: 0.05050411868 | EB53: 0.0535610184 | EC53: 0.03269961669 | ED53: 0.03849636169 | EE53: 0.06025635898 | EF53: 0.05530513602 | EG53: 0.05853132552 | EI53: 10 | EJ53: 0.04924524339 | EK53: 0.04846582282 | EL53: 0.03934066091 | EM53: 0.04991284245 | EN53: 0.06447681549 | EO53: 0.05726576248 | EP53: 0.0615076547 | ER53: 10 | ES53: 0.05166925629 | ET53: 0.0452247393 | EU53: 0.02690559818 | EV53: 0.002376813723 | EW53: 0.04721665359 | EX53: 0.06339264578 | EY53: 0.05979640401 | FA53: 10 | FB53: 0.0463425663 | FC53: 0.04107200309 | FD53: 0.02825572376 | FE53: 0.003100998063 | FF53: 0.04948885782 | FG53: 0.03099315622 | FH53: 0.06203719169 | FJ53: 10 | FK53: 0.03587342299 | FL53: 0.02289759305 | FM53: 0.01421226651 | FN53: 0.03123148273 | FO53: 0.01914041326 | FP53: 0.02006918997 | FQ53: 0.03233662847 | FS53: 10 | FT53: 0.03587342299 | FU53: 0.02289759305 | FV53: 0.01421226651 | FW53: 0.03123148273 | FX53: 0.01914041326 | FY53: 0.02006918997 | FZ53: 0.03233662847
B54: 6 | K54: 6 | T54: 6 | AC54: 6 | AL54: 6 | AU54: 6 | BD54: 6 | BM54: 6 | DQ54: 11 | DR54: 0.04989859367 | DS54: 0.05200997148 | DT54: 0.03724208571 | DU54: 0.0340686575 | DV54: 0.05318508554 | DW54: 0.0361785287 | DX54: 0.04616955722 | DZ54: 11 | EA54: 0.04650759184 | EB54: 0.05240565209 | EC54: 0.04042947598 | ED54: 0.02294902931 | EE54: 0.05266236981 | EF54: 0.03848702648 | EG54: 0.04965659702 | EI54: 11 | EJ54: 0.0482984646 | EK54: 0.04871260316 | EL54: 0.03090083437 | EM54: 0.03395144021 | EN54: 0.05405969727 | EO54: 0.05217837137 | EP54: 0.05386335169 | ER54: 11 | ES54: 0.04707054305 | ET54: 0.04417636462 | EU54: 0.03766115357 | EV54: 0.04387359633 | EW54: 0.05797932575 | EX54: 0.05418363814 | EY54: 0.05665311078 | FA54: 11 | FB54: 0.04943890731 | FC54: 0.04113193366 | FD54: 0.02571700707 | FE54: 0.002119936167 | FF54: 0.04247327709 | FG54: 0.06020923446 | FH54: 0.05519643816 | FJ54: 11 | FK54: 0.04428138197 | FL54: 0.03744921189 | FM54: 0.02689478283 | FN54: 0.002774169026 | FO54: 0.04468013628 | FP54: 0.02933655291 | FQ54: 0.05729978128 | FS54: 11 | FT54: 0.04428138197 | FU54: 0.03744921189 | FV54: 0.02689478283 | FW54: 0.002774169026 | FX54: 0.04468013628 | FY54: 0.02933655291 | FZ54: 0.05729978128
B55: 7 | K55: 7 | T55: 7 | AC55: 7 | AL55: 7 | AU55: 7 | BD55: 7 | BM55: 7 | DQ55: 12 | DR55: 0.0490852214 | DS55: 0.04948712766 | DT55: 0.0372129842 | DU55: 0.03681902207 | DV55: 0.04549079054 | DW55: 0.02912253628 | DX55: 0.04066705437 | DZ55: 12 | EA55: 0.04768447794 | EB55: 0.04692536944 | EC55: 0.03519808907 | ED55: 0.02972181588 | EE55: 0.04730119926 | EF55: 0.03405230188 | EG55: 0.04250722253 | EI55: 12 | EJ55: 0.04425296255 | EK55: 0.04722228899 | EL55: 0.03820529623 | EM55: 0.02013766906 | EN55: 0.04680652308 | EO55: 0.03628862884 | EP55: 0.04569625821 | ER55: 12 | ES55: 0.04593319006 | ET55: 0.04397879014 | EU55: 0.02958155857 | EV55: 0.0296900517 | EW55: 0.04816260643 | EX55: 0.04938030376 | EY55: 0.04961221499 | FA55: 12 | FB55: 0.04479904336 | FC55: 0.03986472531 | FD55: 0.03599747786 | FE55: 0.03892192535 | FF55: 0.05165494672 | FG55: 0.05141063681 | FH55: 0.05229507476 | FJ55: 12 | FK55: 0.04699723609 | FL55: 0.03713383965 | FM55: 0.02447829022 | FN55: 0.001886119492 | FO55: 0.03798759294 | FP55: 0.05719304327 | FQ55: 0.05098144509 | FS55: 12 | FT55: 0.04699723609 | FU55: 0.03713383965 | FV55: 0.02447829022 | FW55: 0.001886119492 | FX55: 0.03798759294 | FY55: 0.05719304327 | FZ55: 0.05098144509
B56: 8 | K56: 8 | T56: 8 | AC56: 8 | AL56: 8 | AU56: 8 | BD56: 8 | BM56: 8 | DQ56: 13 | DR56: 0.0455299208 | DS56: 0.04335451415 | DT56: 0.03064645564 | DU56: 0.02357368543 | DV56: 0.05141909047 | DW56: 0.0384142892 | DX56: 0.03446410896 | DZ56: 13 | EA56: 0.04514573879 | EB56: 0.04424215827 | EC56: 0.03501324966 | ED56: 0.03091543204 | EE56: 0.040089585 | EF56: 0.02730196828 | EG56: 0.03744127482 | EI56: 13 | EJ56: 0.04374617099 | EK56: 0.04190515222 | EL56: 0.03309112526 | EM56: 0.02514791189 | EN56: 0.041674062 | EO56: 0.03198667901 | EP56: 0.03911722332 | ER56: 13 | ES56: 0.04054908015 | ET56: 0.04227146366 | EU56: 0.03629837527 | EV56: 0.01696676385 | EW56: 0.04133871068 | EX56: 0.03409983531 | EY56: 0.04208971824 | FA56: 13 | FB56: 0.0420531973 | FC56: 0.03931982964 | FD56: 0.02799335089 | FE56: 0.02533462338 | FF56: 0.04252270902 | FG56: 0.04647710842 | FH56: 0.04579571719 | FJ56: 13 | FK56: 0.0409301451 | FL56: 0.03573984712 | FM56: 0.03389844456 | FN56: 0.03328065256 | FO56: 0.04579392958 | FP56: 0.04834979663 | FQ56: 0.04830166962 | FS56: 13 | FT56: 0.0409301451 | FU56: 0.03573984712 | FV56: 0.03389844456 | FW56: 0.03328065256 | FX56: 0.04579392958 | FY56: 0.04834979663 | FZ56: 0.04830166962
B57: 9 | K57: 9 | T57: 9 | AC57: 9 | AL57: 9 | AU57: 9 | BD57: 9 | BM57: 9 | DQ57: 14 | DR57: 0.04480635205 | DS57: 0.04035235791 | DT57: 0.0600462633 | DU57: 0.02004678069 | DV57: 0.02730061899 | DW57: 0.05917915426 | DX57: 0.02751147384 | DZ57: 14 | EA57: 0.03963341367 | EB57: 0.03838692174 | EC57: 0.02883500079 | ED57: 0.01873485101 | EE57: 0.04488174091 | EF57: 0.03602034344 | EG57: 0.03173028981 | EI57: 14 | EJ57: 0.03931074658 | EK57: 0.03914827575 | EL57: 0.03291720635 | EM57: 0.02482666921 | EN57: 0.03499721216 | EO57: 0.02563502708 | EP57: 0.0344552386 | ER57: 14 | ES57: 0.03799355473 | ET57: 0.0371537415 | EU57: 0.03143932501 | EV57: 0.02008607877 | EW57: 0.03647147635 | EX57: 0.03006880282 | EY57: 0.03602991981 | FA57: 14 | FB57: 0.03510541706 | FC57: 0.03744358842 | FD57: 0.03434941707 | FE57: 0.01369044053 | FF57: 0.03615401177 | FG57: 0.03206145908 | FH57: 0.03885184177 | FJ57: 14 | FK57: 0.03628960732 | FL57: 0.03491879365 | FM57: 0.02636100733 | FN57: 0.02045875176 | FO57: 0.03735139594 | FP57: 0.04372775351 | FQ57: 0.04229850351 | FS57: 14 | FT57: 0.03628960732 | FU57: 0.03491879365 | FV57: 0.02636100733 | FW57: 0.02045875176 | FX57: 0.03735139594 | FY57: 0.04372775351 | FZ57: 0.04229850351
B58: 10 | K58: 10 | T58: 10 | AC58: 10 | AL58: 10 | AU58: 10 | BD58: 10 | BM58: 10 | DQ58: 15 | DR58: 0.03521435401 | DS58: 0.03427755268 | DT58: 0.05767267007 | DU58: 0.01149409072 | DV58: 0.03886050298 | DW58: 0.04710102096 | DX58: 0.02079420776 | DZ58: 15 | EA58: 0.03813227314 | EB58: 0.0347464854 | EC58: 0.0564968403 | ED58: 0.01557605871 | EE58: 0.02317442807 | EF58: 0.0554842837 | EG58: 0.02532927826 | EI58: 15 | EJ58: 0.03378426137 | EK58: 0.03307902877 | EL58: 0.02710888183 | EM58: 0.01472629307 | EN58: 0.03814786411 | EO58: 0.03383042548 | EP58: 0.02919979451 | ER58: 15 | ES58: 0.03340366703 | ET58: 0.03380260489 | EU58: 0.0312741087 | EV58: 0.01939970912 | EW58: 0.02982687724 | EX58: 0.0240869861 | EY58: 0.03173591655 | FA58: 15 | FB58: 0.03214079505 | FC58: 0.03200359784 | FD58: 0.02975124911 | FE58: 0.01583908187 | FF58: 0.03103099206 | FG58: 0.02828509367 | FH58: 0.03325826045 | FJ58: 15 | FK58: 0.02959021032 | FL58: 0.03237767687 | FM58: 0.03234654756 | FN58: 0.01079857999 | FO58: 0.03091633755 | FP58: 0.03012829602 | FQ58: 0.03588502998 | FS58: 15 | FT58: 0.02959021032 | FU58: 0.03237767687 | FV58: 0.03234654756 | FW58: 0.01079857999 | FX58: 0.03091633755 | FY58: 0.03012829602 | FZ58: 0.03588502998
B59: 11 | K59: 11 | T59: 11 | AC59: 11 | AL59: 11 | AU59: 11 | BD59: 11 | BM59: 11 | DQ59: 16 | DR59: 0.02841171738 | DS59: 0.02691562452 | DT59: 0.02431323494 | DU59: 0.01089850021 | DV59: 0.0144703989 | DW59: 0.03153938689 | DX59: 0.01774377407 | DZ59: 16 | EA59: 0.0294049356 | EB59: 0.02922176849 | EC59: 0.05401967435 | ED59: 0.008762822027 | EE59: 0.03266049455 | EF59: 0.04399703197 | EG59: 0.01914469824 | EI59: 16 | EJ59: 0.03192610242 | EK59: 0.02965789381 | EL59: 0.05284074254 | EM59: 0.01202525508 | EN59: 0.01951065737 | EO59: 0.05188841262 | EP59: 0.02330912698 | ER59: 16 | ES59: 0.02819203549 | ET59: 0.02830622409 | EU59: 0.0255599196 | EV59: 0.01129740566 | EW59: 0.03220599019 | EX59: 0.0315932075 | EY59: 0.02689514594 | FA59: 16 | FB59: 0.02771887578 | FC59: 0.02883315273 | FD59: 0.0292973997 | FE59: 0.01500510329 | FF59: 0.02512935074 | FG59: 0.0224505634 | FH59: 0.0292946523 | FJ59: 16 | FK59: 0.02655662731 | FL59: 0.02739851148 | FM59: 0.02771481618 | FN59: 0.01224857838 | FO59: 0.02628262427 | FP59: 0.02635782981 | FQ59: 0.03071851933 | FS59: 16 | FT59: 0.02655662731 | FU59: 0.02739851148 | FV59: 0.02771481618 | FW59: 0.01224857838 | FX59: 0.02628262427 | FY59: 0.02635782981 | FZ59: 0.03071851933
B60: 12 | K60: 12 | T60: 12 | AC60: 12 | AL60: 12 | AU60: 12 | BD60: 12 | BM60: 12 | DQ60: 17 | DR60: 0.02574502774 | DS60: 0.02328892373 | DT60: 0.04500479914 | DU60: 0.004053563972 | DV60: 0.01812223629 | DW60: 0.03037981088 | DX60: 0.01697628139 | DZ60: 17 | EA60: 0.02336927423 | EB60: 0.02273100261 | EC60: 0.02277320113 | ED60: 0.00818463696 | EE60: 0.01204890992 | EF60: 0.02949072724 | EG60: 0.01633626607 | EI60: 17 | EJ60: 0.02427262837 | EK60: 0.02472457237 | EL60: 0.05052376248 | EM60: 0.006669555924 | EN60: 0.0272527829 | EO60: 0.04114742387 | EP60: 0.01761783449 | ER60: 17 | ES60: 0.02625650401 | ET60: 0.02515472475 | EU60: 0.04982146425 | EV60: 0.009091699844 | EW60: 0.01632654793 | EX60: 0.04844721424 | EY60: 0.02146956612 | FA60: 17 | FB60: 0.02304394723 | FC60: 0.02393325432 | FD60: 0.02394436008 | FE60: 0.008605266085 | FF60: 0.02688529927 | FG60: 0.02946093893 | FH60: 0.02482626026 | FJ60: 17 | FK60: 0.02254764511 | FL60: 0.02446485941 | FM60: 0.02729196259 | FN60: 0.01142289945 | FO60: 0.02109409629 | FP60: 0.02090437476 | FQ60: 0.0270576124 | FS60: 17 | FT60: 0.02254764511 | FU60: 0.02446485941 | FV60: 0.02729196259 | FW60: 0.01142289945 | FX60: 0.02109409629 | FY60: 0.02090437476 | FZ60: 0.0270576124
B61: 13 | K61: 13 | T61: 13 | AC61: 13 | AL61: 13 | AU61: 13 | BD61: 13 | BM61: 13 | DQ61: 18 | DR61: 0.02081790622 | DS61: 0.0169689177 | DT61: 0.02674673045 | DU61: 0.004492442167 | DV61: 0.01392809425 | DW61: 0.02702710611 | DX61: 0.01487819062 | DZ61: 18 | EA61: 0.020922592 | EB61: 0.01950374288 | EC61: 0.04196379933 | ED61: 0.003007880814 | EE61: 0.01496500088 | EF61: 0.02825476613 | EG61: 0.01562978568 | EI61: 18 | EJ61: 0.01907486659 | EK61: 0.01908517788 | EL61: 0.02118901106 | EM61: 0.006159242831 | EN61: 0.009974484922 | EO61: 0.02751107415 | EP61: 0.01503346969 | ER61: 18 | ES61: 0.0197342042 | ET61: 0.02081277996 | EU61: 0.04727212077 | EV61: 0.00498426356 | EW61: 0.02262636387 | EX61: 0.03817164146 | EY61: 0.01622744261 | FA61: 18 | FB61: 0.02120177056 | FC61: 0.02109490201 | FD61: 0.04619819245 | FE61: 0.00684109661 | FF61: 0.01351810216 | FG61: 0.04477621199 | FH61: 0.01981792915 | FJ61: 18 | FK61: 0.01851622528 | FL61: 0.02015422258 | FM61: 0.02206246314 | FN61: 0.00646941299 | FO61: 0.02238889413 | FP61: 0.02719938812 | FQ61: 0.02293031125 | FS61: 18 | FT61: 0.01851622528 | FU61: 0.02015422258 | FV61: 0.02206246314 | FW61: 0.00646941299 | FX61: 0.02238889413 | FY61: 0.02719938812 | FZ61: 0.02293031125
B62: 14 | K62: 14 | T62: 14 | AC62: 14 | AL62: 14 | AU62: 14 | BD62: 14 | BM62: 14 | DQ62: 19 | DR62: 0.02091316183 | DS62: 0.01636876378 | DT62: 0.03727690366 | DU62: 0.00342082754 | DV62: 0.01017702265 | DW62: 0.03330547044 | DX62: 0.01120705778 | DZ62: 19 | EA62: 0.01676800955 | EB62: 0.01410827148 | EC62: 0.02493947214 | ED62: 0.003303921684 | EE62: 0.01141846809 | EF62: 0.02518758136 | EG62: 0.01369801054 | EI62: 19 | EJ62: 0.01693628298 | EK62: 0.01626701084 | EL62: 0.03904455777 | EM62: 0.002244530522 | EN62: 0.01230294853 | EO62: 0.02629469266 | EP62: 0.01438322484 | ER62: 19 | ES62: 0.01537804106 | ET62: 0.01596341856 | EU62: 0.01982518151 | EV62: 0.004563271817 | EW62: 0.0082244536 | EX62: 0.02556615623 | EY62: 0.01384701252 | FA62: 19 | FB62: 0.01579260118 | FC62: 0.01733420071 | FD62: 0.04383420123 | FE62: 0.003716470098 | FF62: 0.01860073296 | FG62: 0.0352825997 | FH62: 0.01497912418 | FJ62: 19 | FK62: 0.0168783531 | FL62: 0.01764064688 | FM62: 0.04256739653 | FN62: 0.005095366896 | FO62: 0.01117919635 | FP62: 0.04132590592 | FQ62: 0.01830453469 | FS62: 19 | FT62: 0.0168783531 | FU62: 0.01764064688 | FV62: 0.04256739653 | FW62: 0.005095366896 | FX62: 0.01117919635 | FY62: 0.04132590592 | FZ62: 0.01830453469
B63: 15 | K63: 15 | T63: 15 | AC63: 15 | AL63: 15 | AU63: 15 | BD63: 15 | BM63: 15 | DQ63: 20 | DR63: 0.01611533247 | DS63: 0.01397184823 | DT63: 0.02921502681 | DU63: 0.0004194262086 | DV63: 0.005964338209 | DW63: 0.02504348015 | DX63: 0.0128951255 | DZ63: 20 | EA63: 0.01671697884 | EB63: 0.0135154646 | EC63: 0.03460109687 | ED63: 0.002496736145 | EE63: 0.008285759144 | EF63: 0.030893927 | EG63: 0.01031808866 | EI63: 20 | EJ63: 0.0134760484 | EK63: 0.01168943352 | EL63: 0.02308343988 | EM63: 0.002447775059 | EN63: 0.009325398096 | EO63: 0.02341403839 | EP63: 0.01260557787 | ER63: 20 | ES63: 0.01355693723 | ET63: 0.0135251016 | EU63: 0.03624962612 | EV63: 0.001650714405 | EW63: 0.01007804926 | EX63: 0.02420992673 | EY63: 0.01324802202 | FA63: 20 | FB63: 0.01221366837 | FC63: 0.01321043661 | FD63: 0.01819469677 | FE63: 0.003376282708 | FF63: 0.006715164761 | FG63: 0.0234864918 | FH63: 0.01278175741 | FJ63: 20 | FK63: 0.01247412337 | FL63: 0.01440377723 | FM63: 0.03994466619 | FN63: 0.002746164464 | FO63: 0.01528049537 | FP63: 0.03226976098 | FQ63: 0.01383529224 | FS63: 20 | FT63: 0.01247412337 | FU63: 0.01440377723 | FV63: 0.03994466619 | FW63: 0.002746164464 | FX63: 0.01528049537 | FY63: 0.03226976098 | FZ63: 0.01383529224
B64: 16 | K64: 16 | T64: 16 | AC64: 16 | AL64: 16 | AU64: 16 | BD64: 16 | BM64: 16 | DQ64: 21 | DR64: 0.01358307551 | DS64: 0.01001129128 | DT64: 0.02327559281 | DU64: 0.001630005203 | DV64: 0.006332267241 | DW64: 0.01845657902 | DX64: 0.0105091585 | DZ64: 21 | EA64: 0.01281382734 | EB64: 0.01147356229 | EC64: 0.02711749702 | ED64: 0.0003045077739 | EE64: 0.004829502194 | EF64: 0.02323302042 | EG64: 0.01187220745 | EI64: 21 | EJ64: 0.01336808644 | EK64: 0.01113988062 | EL64: 0.03202707742 | EM64: 0.001840540127 | EN64: 0.006731694878 | EO64: 0.02867524571 | EP64: 0.009495190709 | ER64: 21 | ES64: 0.01073208077 | ET64: 0.009668882372 | EU64: 0.02143110349 | EV64: 0.001791007585 | EW64: 0.007599506266 | EX64: 0.02163210093 | EY64: 0.01161064627 | FA64: 21 | FB64: 0.01071170909 | FC64: 0.01113809412 | FD64: 0.0332683012 | FE64: 0.001214770284 | FF64: 0.008184342745 | FG64: 0.02215536826 | FH64: 0.0122289839 | FJ64: 21 | FK64: 0.009595877815 | FL64: 0.01092450954 | FM64: 0.01658024922 | FN64: 0.002481049941 | FO64: 0.005487638405 | FP64: 0.0215465192 | FQ64: 0.0118056588 | FS64: 21 | FT64: 0.009595877815 | FU64: 0.01092450954 | FV64: 0.01658024922 | FW64: 0.002481049941 | FX64: 0.005487638405 | FY64: 0.0215465192 | FZ64: 0.0118056588
B65: 17 | K65: 17 | T65: 17 | AC65: 17 | AL65: 17 | AU65: 17 | BD65: 17 | BM65: 17 | DQ65: 22 | DR65: 0.01123081505 | DS65: 0.007541381234 | DT65: 0.0181836172 | DU65: 0.002271491383 | DV65: 0.005859148084 | DW65: 0.01281868454 | DX65: 0.008793091581 | DZ65: 22 | EA65: 0.01075956974 | EB65: 0.008174598645 | EC65: 0.02160536671 | ED65: 0.001178927675 | EE65: 0.005098387379 | EF65: 0.0171185054 | EG65: 0.009675548188 | EI65: 22 | EJ65: 0.01021031428 | EK65: 0.009405728029 | EL65: 0.02509944511 | EM65: 0.000223676557 | EN65: 0.003902465029 | EO65: 0.0215680336 | EP65: 0.01092538798 | ER65: 22 | ES65: 0.01060715378 | ET65: 0.009164868906 | EU65: 0.02973536354 | EV65: 0.001341771564 | EW65: 0.005456374916 | EX65: 0.02644933361 | EY65: 0.008745801467 | FA65: 22 | FB65: 0.008446867852 | FC65: 0.007917937919 | FD65: 0.01966853003 | FE65: 0.00131291705 | FF65: 0.006137052241 | FG65: 0.0198840947 | FH65: 0.01071752278 | FJ65: 22 | FK65: 0.008384320666 | FL65: 0.009165429145 | FM65: 0.03031622798 | FN65: 0.0008891360688 | FO65: 0.006651852179 | FP65: 0.02023456976 | FQ65: 0.01129501466 | FS65: 22 | FT65: 0.008384320666 | FU65: 0.009165429145 | FV65: 0.03031622798 | FW65: 0.0008891360688 | FX65: 0.006651852179 | FY65: 0.02023456976 | FZ65: 0.01129501466
B66: 18 | K66: 18 | T66: 18 | AC66: 18 | AL66: 18 | AU66: 18 | BD66: 18 | BM66: 18 | DQ66: 23 | DR66: 0.009399617548 | DS66: 0.006422712192 | DT66: 0.01459738667 | DU66: 0.004613763909 | DV66: 0.003358969786 | DW66: 0.01235599231 | DX66: 0.006961802494 | DZ66: 23 | EA66: 0.008862359537 | EB66: 0.00613444178 | EC66: 0.01680209828 | ED66: 0.001636627852 | EE66: 0.004699543136 | EF66: 0.01184962335 | EG66: 0.008095609488 | EI66: 23 | EJ66: 0.008542586098 | EK66: 0.006677018167 | EL66: 0.01989382303 | EM66: 0.000862867684 | EN66: 0.004104778309 | EO66: 0.01582197502 | EP66: 0.008903904884 | ER66: 23 | ES66: 0.008071714059 | ET66: 0.007710313316 | EU66: 0.02312142025 | EV66: 0.0001624622362 | EW66: 0.003151756679 | EX66: 0.01976934965 | EY66: 0.01006310785 | FA66: 23 | FB66: 0.008316282411 | FC66: 0.007477082731 | FD66: 0.02700830254 | FE66: 0.0009797974343 | FF66: 0.004389837599 | FG66: 0.02405177848 | FH66: 0.008073015477 | FJ66: 23 | FK66: 0.00658536279 | FL66: 0.00649184713 | FM66: 0.01772380517 | FN66: 0.0009571584129 | FO66: 0.004969736873 | FP66: 0.01809472579 | FQ66: 0.009899095457 | FS66: 23 | FT66: 0.00658536279 | FU66: 0.00649184713 | FV66: 0.01772380517 | FW66: 0.0009571584129 | FX66: 0.004969736873 | FY66: 0.01809472579 | FZ66: 0.009899095457
B67: 19 | K67: 19 | T67: 19 | AC67: 19 | AL67: 19 | AU67: 19 | BD67: 19 | BM67: 19 | DQ67: 24 | DR67: 0.007855277278 | DS67: 0.005760148119 | DT67: 0.02003229367 | DU67: 0.001450567848 | DV67: 0.002676292734 | DW67: 0.01540085819 | DX67: 0.005643007538 | DZ67: 24 | EA67: 0.007396366609 | EB67: 0.005197594824 | EC67: 0.0134875891 | ED67: 0.003314872066 | EE67: 0.002680321217 | EF67: 0.0114162038 | EG67: 0.006409583667 | EI67: 24 | EJ67: 0.007017550461 | EK67: 0.004985978983 | EL67: 0.0154713844 | EM67: 0.001194670917 | EN67: 0.00376506294 | EO67: 0.01095790543 | EP67: 0.007449957861 | ER67: 24 | ES67: 0.00673482025 | ET67: 0.005446770403 | EU67: 0.01832743565 | EV67: 0.0006250054034 | EW67: 0.00329899064 | EX67: 0.01449739881 | EY67: 0.008201172567 | FA67: 24 | FB67: 0.006310140906 | FC67: 0.00625844781 | FD67: 0.02099982867 | FE67: 0.0001182903961 | FF67: 0.002522817672 | FG67: 0.01798253653 | FH67: 0.009288994432 | FJ67: 24 | FK67: 0.006464289621 | FL67: 0.006100111927 | FM67: 0.02433921889 | FN67: 0.0007121850929 | FO67: 0.003537301385 | FP67: 0.02182767073 | FQ67: 0.007456532773 | FS67: 24 | FT67: 0.006464289621 | FU67: 0.006100111927 | FV67: 0.02433921889 | FW67: 0.0007121850929 | FX67: 0.003537301385 | FY67: 0.02182767073 | FZ67: 0.007456532773
B68: 20 | K68: 20 | T68: 20 | AC68: 20 | AL68: 20 | AU68: 20 | BD68: 20 | BM68: 20 | DQ68: 25 | DR68: 0.006473144142 | DS68: 0.005869173775 | DT68: 0.02385868953 | DU68: 0.001022853684 | DV68: 0.002413734279 | DW68: 0.01482853708 | DX68: 0.004183095199 | DZ68: 25 | EA68: 0.006180462948 | EB68: 0.004647117427 | EC68: 0.0185093196 | ED68: 0.001042073683 | EE68: 0.002129021978 | EF68: 0.01422377325 | EG68: 0.005195392399 | EI68: 25 | EJ68: 0.005856099377 | EK68: 0.004212163528 | EL68: 0.01241839185 | EM68: 0.002419460436 | EN68: 0.002141071843 | EO68: 0.01054991133 | EP68: 0.005898405832 | ER68: 25 | ES68: 0.005531899609 | ET68: 0.004055493016 | EU68: 0.01425336311 | EV68: 0.0008652500792 | EW68: 0.003017169548 | EX68: 0.01004619487 | EY68: 0.00686198649 | FA68: 25 | FB68: 0.005264429623 | FC68: 0.004407771063 | FD68: 0.01664716976 | FE68: 0.0004550241074 | FF68: 0.002632687002 | FG68: 0.01318103462 | FH68: 0.007570285101 | FJ68: 25 | FK68: 0.00490434882 | FL68: 0.00509088005 | FM68: 0.01892352492 | FN68: 8.597225167e-05 | FO68: 0.002026887163 | FP68: 0.01632519414 | FQ68: 0.008579651187 | FS68: 25 | FT68: 0.00490434882 | FU68: 0.00509088005 | FV68: 0.01892352492 | FW68: 8.597225167e-05 | FX68: 0.002026887163 | FY68: 0.01632519414 | FZ68: 0.008579651187
B69: 21 | K69: 21 | T69: 21 | AC69: 21 | AL69: 21 | AU69: 21 | BD69: 21 | BM69: 21 | DQ69: 26 | DR69: 0.005032627031 | DS69: 0.004979872247 | DT69: 0.01955818937 | DU69: 0.0002268939373 | DV69: 0.001997494822 | DW69: 0.01270809586 | DX69: 0.00354074348 | DZ69: 26 | EA69: 0.005077997923 | EB69: 0.004723252314 | EC69: 0.02194579929 | ED69: 0.0007326443757 | EE69: 0.001915356116 | EF69: 0.01364770213 | EG69: 0.003851273174 | EI69: 26 | EJ69: 0.004879773108 | EK69: 0.003757077461 | EL69: 0.01695218966 | EM69: 0.0007584710979 | EN69: 0.001696635875 | EO69: 0.01308237353 | EP69: 0.004781052125 | ER69: 26 | ES69: 0.004603148828 | ET69: 0.003417988496 | EU69: 0.01135003804 | EV69: 0.001747299843 | EW69: 0.001711708347 | EX69: 0.009601821805 | EY69: 0.005432873053 | FA69: 26 | FB69: 0.004311133234 | FC69: 0.003273802794 | FD69: 0.01281148329 | FE69: 0.0006280355008 | FF69: 0.002401856451 | FG69: 0.009061812271 | FH69: 0.006334117022 | FJ69: 26 | FK69: 0.004078981609 | FL69: 0.003576863161 | FM69: 0.01483420963 | FN69: 0.0003296862427 | FO69: 0.002110084656 | FP69: 0.01185033895 | FQ69: 0.006992196183 | FS69: 26 | FT69: 0.004078981609 | FU69: 0.003576863161 | FV69: 0.01483420963 | FW69: 0.0003296862427 | FX69: 0.002110084656 | FY69: 0.01185033895 | FZ69: 0.006992196183
B70: 22 | K70: 22 | T70: 22 | AC70: 22 | AL70: 22 | AU70: 22 | BD70: 22 | BM70: 22 | DQ70: 27 | DR70: 0.004100625311 | DS70: 0.003777009922 | DT70: 0.0182762002 | DU70: 0.009193338987 | DV70: 0.0007974512957 | DW70: 0.01077052743 | DX70: 0.003498941198 | DZ70: 27 | EA70: 0.003947078235 | EB70: 0.003992140863 | EC70: 0.01798945103 | ED70: 0.0001624818136 | EE70: 0.001578953483 | EF70: 0.01170027417 | EG70: 0.00325988925 | EI70: 27 | EJ70: 0.004008490909 | EK70: 0.003804580164 | EL70: 0.02010200176 | EM70: 0.0005331418274 | EN70: 0.001520744986 | EO70: 0.01255813793 | EP70: 0.003544130294 | ER70: 27 | ES70: 0.003834901082 | ET70: 0.003037581649 | EU70: 0.01549378513 | EV70: 0.0005476432109 | EW70: 0.001351449249 | EX70: 0.01189903275 | EY70: 0.004403705637 | FA70: 27 | FB70: 0.003586535178 | FC70: 0.002748678328 | FD70: 0.01020056242 | FE70: 0.001267981476 | FF70: 0.00135744635 | FG70: 0.008652024279 | FH70: 0.005014938054 | FJ70: 27 | FK70: 0.003339582802 | FL70: 0.002646840288 | FM70: 0.01141662337 | FN70: 0.0004549365569 | FO70: 0.001917961827 | FP70: 0.00815523122 | FQ70: 0.005850415362 | FS70: 27 | FT70: 0.003339582802 | FU70: 0.002646840288 | FV70: 0.01141662337 | FW70: 0.0004549365569 | FX70: 0.001917961827 | FY70: 0.00815523122 | FZ70: 0.005850415362
B71: 23 | K71: 23 | T71: 23 | AC71: 23 | AL71: 23 | AU71: 23 | BD71: 23 | BM71: 23 | DQ71: 28 | DR71: 0.003332855783 | DS71: 0.003697797083 | DT71: 0.01840362394 | DU71: 0.005178136181 | DV71: 0.002801094527 | DW71: 0.008037174119 | DX71: 0.002907154518 | DZ71: 28 | EA71: 0.003212933968 | EB71: 0.003024348872 | EC71: 0.01681025976 | ED71: 0.006577005522 | EE71: 0.0006296276355 | EF71: 0.009915551381 | EG71: 0.003221401026 | EI71: 28 | EJ71: 0.003112859679 | EK71: 0.003212105502 | EL71: 0.01647740777 | EM71: 0.0001181269932 | EN71: 0.001252261531 | EO71: 0.01077146796 | EP71: 0.002999900165 | ER71: 28 | ES71: 0.003147178749 | ET71: 0.003072603537 | EU71: 0.01837522461 | EV71: 0.0003845812045 | EW71: 0.001210015362 | EX71: 0.01142783008 | EY71: 0.003264408158 | FA71: 28 | FB71: 0.002984950421 | FC71: 0.002439975356 | FD71: 0.01392468408 | FE71: 0.0003970145658 | FF71: 0.001070521619 | FG71: 0.01071307595 | FH71: 0.004064944381 | FJ71: 28 | FK71: 0.002775407652 | FL71: 0.002219809994 | FM71: 0.009088555938 | FN71: 0.0009175524622 | FO71: 0.001082758689 | FP71: 0.007777020567 | FQ71: 0.004631982609 | FS71: 28 | FT71: 0.002775407652 | FU71: 0.002219809994 | FV71: 0.009088555938 | FW71: 0.0009175524622 | FX71: 0.001082758689 | FY71: 0.007777020567 | FZ71: 0.004631982609
B72: 24 | K72: 24 | T72: 24 | AC72: 24 | AL72: 24 | AU72: 24 | BD72: 24 | BM72: 24 | DQ72: 29 | DR72: 0.002635807506 | DS72: 0.002528536188 | DT72: 0.01406443899 | DU72: 0.01596032415 | DV72: 0.002030249211 | DW72: 0.007738437664 | DX72: 0.002447005723 | DZ72: 29 | EA72: 0.002608506979 | EB72: 0.00295174689 | EC72: 0.01684987449 | ED72: 0.003700418803 | EE72: 0.002204758469 | EF72: 0.007361843564 | EG72: 0.002676548157 | EI72: 29 | EJ72: 0.002531262609 | EK72: 0.002426218234 | EL72: 0.01531577147 | EM72: 0.004776655594 | EN72: 0.0004978775659 | EO72: 0.009089844386 | EP72: 0.002964486059 | ER72: 29 | ES72: 0.002441402108 | ET72: 0.002586508507 | EU72: 0.01494228855 | EV72: 8.51206481e-05 | EW72: 0.0009934650511 | EX72: 0.009743056405 | EY72: 0.002763144729 | FA72: 29 | FB72: 0.002446905154 | FC72: 0.002460560377 | FD72: 0.0163427295 | FE72: 0.0002784892063 | FF72: 0.0009555603527 | FG72: 0.01020440264 | FH72: 0.003013290827 | FJ72: 29 | FK72: 0.002307219045 | FL72: 0.001964633207 | FM72: 0.01226541906 | FN72: 0.0002869617615 | FO72: 0.0008513539363 | FP72: 0.009530128733 | FQ72: 0.003754528717 | FS72: 29 | FT72: 0.002307219045 | FU72: 0.001964633207 | FV72: 0.01226541906 | FW72: 0.0002869617615 | FX72: 0.0008513539363 | FY72: 0.009530128733 | FZ72: 0.003754528717
B73: 25 | K73: 25 | T73: 25 | AC73: 25 | AL73: 25 | AU73: 25 | BD73: 25 | BM73: 25 | DQ73: 30 | DR73: 0.003084334453 | DS73: 0.002069658269 | DT73: 0.02423004741 | DU73: 0.02481714889 | DV73: 0.002195181317 | DW73: 0.01253831557 | DX73: 0.002428497578 | DZ73: 30 | EA73: 0.003289751476 | EB73: 0.002015257949 | EC73: 0.02893619028 | ED73: 0.01818843678 | EE73: 0.001595540544 | EF73: 0.01594247804 | EG73: 0.002555410932 | EI73: 30 | EJ73: 0.003466592511 | EK73: 0.00236446344 | EL73: 0.0354972285 | EM73: 0.004533398584 | EN73: 0.001740828804 | EO73: 0.01705454007 | EP73: 0.002940121792 | ER73: 30 | ES73: 0.003390558138 | ET73: 0.001950805426 | EU73: 0.02908352784 | EV73: 0.00587844133 | EW73: 0.0003944041356 | EX73: 0.01823429294 | EY73: 0.00330754853 | FA73: 30 | FB73: 0.003214215531 | FC73: 0.00206811643 | FD73: 0.02251084566 | FE73: 0.0001043747115 | FF73: 0.000783344839 | FG73: 0.0167541583 | FH73: 0.003186254361 | FJ73: 30 | FK73: 0.003082780713 | FL73: 0.001978263432 | FM73: 0.02071856138 | FN73: 0.000328095871 | FO73: 0.000758797885 | FP73: 0.01626907727 | FQ73: 0.003428893517 | FS73: 30 | FT73: 0.003082780713 | FU73: 0.001978263432 | FV73: 0.02071856138 | FW73: 0.000328095871 | FX73: 0.000758797885 | FY73: 0.01626907727 | FZ73: 0.003428893517
B74: 26 | K74: 26 | T74: 26 | AC74: 26 | AL74: 26 | AU74: 26 | BD74: 26 | BM74: 26 | DR74: 1 | DS74: 1 | DT74: 1 | DU74: 1 | DV74: 1 | DW74: 1 | DX74: 1 | EA74: 1 | EB74: 1 | EC74: 1 | ED74: 1 | EE74: 1 | EF74: 1 | EG74: 1 | EJ74: 1 | EK74: 1 | EL74: 1 | EM74: 1 | EN74: 1 | EO74: 1 | EP74: 1 | ES74: 1 | ET74: 1 | EU74: 1 | EV74: 1 | EW74: 1 | EX74: 1 | EY74: 1 | FB74: 1 | FC74: 1 | FD74: 1 | FE74: 1 | FF74: 1 | FG74: 1 | FH74: 1 | FK74: 1 | FL74: 1 | FM74: 1 | FN74: 1 | FO74: 1 | FP74: 1 | FQ74: 1 | FT74: 1 | FU74: 1 | FV74: 1 | FW74: 1 | FX74: 1 | FY74: 1 | FZ74: 1
B75: 27 | K75: 27 | T75: 27 | AC75: 27 | AL75: 27 | AU75: 27 | BD75: 27 | BM75: 27
B76: 28 | K76: 28 | T76: 28 | AC76: 28 | AL76: 28 | AU76: 28 | BD76: 28 | BM76: 28
B77: 29 | K77: 29 | T77: 29 | AC77: 29 | AL77: 29 | AU77: 29 | BD77: 29 | BM77: 29
B78: 30 | K78: 30 | T78: 30 | AC78: 30 | AL78: 30 | AU78: 30 | BD78: 30 | BM78: 30
C79: =SUM(C48:C78) -> 0 | D79: 0 | E79: 0 | F79: 0 | G79: 0 | H79: 0 | I79: 0 | L79: =SUM(L48:L78) -> 0 | M79: 0 | N79: 0 | O79: 0 | P79: 0 | Q79: 0 | R79: 0 | U79: =SUM(U48:U78) -> 0 | V79: 0 | W79: 0 | X79: 0 | Y79: 0 | Z79: 0 | AA79: 0 | AD79: =SUM(AD48:AD78) -> 0 | AE79: 0 | AF79: 0 | AG79: 0 | AH79: 0 | AI79: 0 | AJ79: 0 | AM79: =SUM(AM48:AM78) -> 0 | AN79: 0 | AO79: 0 | AP79: 0 | AQ79: 0 | AR79: 0 | AS79: 0 | AV79: =SUM(AV48:AV78) -> 0 | AW79: 0 | AX79: 0 | AY79: 0 | AZ79: 0 | BA79: 0 | BB79: 0 | BE79: =SUM(BE48:BE78) -> 0 | BF79: 0 | BG79: 0 | BH79: 0 | BI79: 0 | BJ79: 0 | BK79: 0 | BN79: =SUM(BN48:BN78) -> 0 | BO79: 0 | BP79: 0 | BQ79: 0 | BR79: 0 | BS79: 0 | BT79: 0
B80: Source: All default data from EPA, 2021. Inventory of U.S. Greenhouse Gas Emissions and Sinks: 1990-2019. Data generated by EPA's MOVES 2014 model.
B81: Table IIIa: Weighted averages, 1998 and earlier | K81: Table IIIb: Weighted averages, 1999 | T81: Table IIIc: Weighted averages, 2000 | AC81: Table IIId: Weighted averages, 2001 | AL81: Table IIIe: Weighted averages, 2002 | AU81: Table IIIf: Weighted averages, 2003 | BD81: Table IIIg: Weighted averages, 2004 | BM81: Table IIIh: Weighted averages, 2005
B82: Used to weight age distribution by annual vehicle mileage accumulation. | K82: Used to weight age distribution by annual vehicle mileage accumulation. | T82: Used to weight age distribution by annual vehicle mileage accumulation. | AC82: Used to weight age distribution by annual vehicle mileage accumulation. | AL82: Used to weight age distribution by annual vehicle mileage accumulation. | AU82: Used to weight age distribution by annual vehicle mileage accumulation. | BD82: Used to weight age distribution by annual vehicle mileage accumulation. | BM82: Used to weight age distribution by annual vehicle mileage accumulation.
B83: MY | C83: LDGV | D83: LDGT | E83: HDGV | F83: LDDV | G83: LDDT | H83: HDDV | I83: MC | K83: MY | L83: LDGV | M83: LDGT | N83: HDGV | O83: LDDV | P83: LDDT | Q83: HDDV | R83: MC | T83: MY | U83: LDGV | V83: LDGT | W83: HDGV | X83: LDDV | Y83: LDDT | Z83: HDDV | AA83: MC | AC83: MY | AD83: LDGV | AE83: LDGT | AF83: HDGV | AG83: LDDV | AH83: LDDT | AI83: HDDV | AJ83: MC | AL83: MY | AM83: LDGV | AN83: LDGT | AO83: HDGV | AP83: LDDV | AQ83: LDDT | AR83: HDDV | AS83: MC | AU83: MY | AV83: LDGV | AW83: LDGT | AX83: HDGV | AY83: LDDV | AZ83: LDDT | BA83: HDDV | BB83: MC | BD83: MY | BE83: LDGV | BF83: LDGT | BG83: HDGV | BH83: LDDV | BI83: LDDT | BJ83: HDDV | BK83: MC | BM83: MY | BN83: LDGV | BO83: LDGT | BP83: HDGV | BQ83: LDDV | BR83: LDDT | BS83: HDDV | BT83: MC
B84: 0 | C84: =IF(C$41=0,0,C48*C10/C$41) -> 0 | D84: =IF(D$41=0,0,D48*D10/D$41) -> 0 | E84: 0 | F84: 0 | G84: 0 | H84: 0 | I84: 0 | K84: 0 | L84: =IF(C$41=0,0,L48*C10/C$41) -> 0 | M84: =IF(D$41=0,0,M48*D10/D$41) -> 0 | N84: 0 | O84: 0 | P84: 0 | Q84: 0 | R84: 0 | T84: 0 | U84: =IF(C$41=0,0,U48*C10/C$41) -> 0 | V84: =IF(D$41=0,0,V48*D10/D$41) -> 0 | W84: 0 | X84: 0 | Y84: 0 | Z84: 0 | AA84: 0 | AC84: 0 | AD84: =IF(C$41=0,0,AD48*C10/C$41) -> 0 | AE84: =IF(D$41=0,0,AE48*D10/D$41) -> 0 | AF84: 0 | AG84: 0 | AH84: 0 | AI84: 0 | AJ84: 0 | AL84: 0 | AM84: =IF(C$41=0,0,AM48*C10/C$41) -> 0 | AN84: =IF(D$41=0,0,AN48*D10/D$41) -> 0 | AO84: 0 | AP84: 0 | AQ84: 0 | AR84: 0 | AS84: 0 | AU84: 0 | AV84: =IF(C$41=0,0,AV48*C10/C$41) -> 0 | AW84: =IF(D$41=0,0,AW48*D10/D$41) -> 0 | AX84: 0 | AY84: 0 | AZ84: 0 | BA84: 0 | BB84: 0 | BD84: 0 | BE84: =IF(C$41=0,0,BE48*C10/C$41) -> 0 | BF84: =IF(D$41=0,0,BF48*D10/D$41) -> 0 | BG84: 0 | BH84: 0 | BI84: 0 | BJ84: 0 | BK84: 0 | BM84: 0 | BN84: =IF(C$41=0,0,BN48*C10/C$41) -> 0 | BO84: =IF(D$41=0,0,BO48*D10/D$41) -> 0 | BP84: 0 | BQ84: 0 | BR84: 0 | BS84: 0 | BT84: 0
B85: 1 | C85: =IF(C$41=0,0,C49*C11/C$41) -> 0 | D85: 0 | E85: 0 | F85: 0 | G85: 0 | H85: 0 | I85: 0 | K85: 1 | L85: =IF(C$41=0,0,L49*C11/C$41) -> 0 | M85: =IF(D$41=0,0,M49*D11/D$41) -> 0 | N85: =IF(E$41=0,0,N49*E11/E$41) -> 0 | O85: =IF(F$41=0,0,O49*F11/F$41) -> 0 | P85: =IF(G$41=0,0,P49*G11/G$41) -> 0 | Q85: =IF(H$41=0,0,Q49*H11/H$41) -> 0 | R85: =IF(I$41=0,0,R49*I11/I$41) -> 0 | T85: 1 | U85: =IF(C$41=0,0,U49*C11/C$41) -> 0 | V85: =IF(D$41=0,0,V49*D11/D$41) -> 0 | W85: =IF(E$41=0,0,W49*E11/E$41) -> 0 | X85: =IF(F$41=0,0,X49*F11/F$41) -> 0 | Y85: =IF(G$41=0,0,Y49*G11/G$41) -> 0 | Z85: =IF(H$41=0,0,Z49*H11/H$41) -> 0 | AA85: =IF(I$41=0,0,AA49*I11/I$41) -> 0 | AC85: 1 | AD85: =IF(C$41=0,0,AD49*C11/C$41) -> 0 | AE85: =IF(D$41=0,0,AE49*D11/D$41) -> 0 | AF85: =IF(E$41=0,0,AF49*E11/E$41) -> 0 | AG85: =IF(F$41=0,0,AG49*F11/F$41) -> 0 | AH85: =IF(G$41=0,0,AH49*G11/G$41) -> 0 | AI85: =IF(H$41=0,0,AI49*H11/H$41) -> 0 | AJ85: =IF(I$41=0,0,AJ49*I11/I$41) -> 0 | AL85: 1 | AM85: =IF(C$41=0,0,AM49*C11/C$41) -> 0 | AN85: 0 | AO85: 0 | AP85: 0 | AQ85: 0 | AR85: 0 | AS85: 0 | AU85: 1 | AV85: =IF(C$41=0,0,AV49*C11/C$41) -> 0 | AW85: 0 | AX85: 0 | AY85: 0 | AZ85: 0 | BA85: 0 | BB85: 0 | BD85: 1 | BE85: =IF(C$41=0,0,BE49*C11/C$41) -> 0 | BF85: 0 | BG85: 0 | BH85: 0 | BI85: 0 | BJ85: 0 | BK85: 0 | BM85: 1 | BN85: =IF(C$41=0,0,BN49*C11/C$41) -> 0 | BO85: 0 | BP85: 0 | BQ85: 0 | BR85: 0 | BS85: 0 | BT85: 0
B86: 2 | C86: =IF(C$41=0,0,C50*C12/C$41) -> 0 | D86: 0 | E86: 0 | F86: 0 | G86: 0 | H86: 0 | I86: 0 | K86: 2 | L86: 0 | M86: 0 | N86: 0 | O86: 0 | P86: 0 | Q86: 0 | R86: 0 | T86: 2 | U86: 0 | V86: 0 | W86: 0 | X86: 0 | Y86: 0 | Z86: 0 | AA86: 0 | AC86: 2 | AD86: 0 | AE86: 0 | AF86: 0 | AG86: 0 | AH86: 0 | AI86: 0 | AJ86: 0 | AL86: 2 | AM86: 0 | AN86: 0 | AO86: 0 | AP86: 0 | AQ86: 0 | AR86: 0 | AS86: 0 | AU86: 2 | AV86: 0 | AW86: 0 | AX86: 0 | AY86: 0 | AZ86: 0 | BA86: 0 | BB86: 0 | BD86: 2 | BE86: 0 | BF86: 0 | BG86: 0 | BH86: 0 | BI86: 0 | BJ86: 0 | BK86: 0 | BM86: 2 | BN86: 0 | BO86: 0 | BP86: 0 | BQ86: 0 | BR86: 0 | BS86: 0 | BT86: 0
B87: 3 | C87: =IF(C$41=0,0,C51*C13/C$41) -> 0 | D87: 0 | E87: 0 | F87: 0 | G87: 0 | H87: 0 | I87: 0 | K87: 3 | L87: 0 | M87: 0 | N87: 0 | O87: 0 | P87: 0 | Q87: 0 | R87: 0 | T87: 3 | U87: 0 | V87: 0 | W87: 0 | X87: 0 | Y87: 0 | Z87: 0 | AA87: 0 | AC87: 3 | AD87: 0 | AE87: 0 | AF87: 0 | AG87: 0 | AH87: 0 | AI87: 0 | AJ87: 0 | AL87: 3 | AM87: 0 | AN87: 0 | AO87: 0 | AP87: 0 | AQ87: 0 | AR87: 0 | AS87: 0 | AU87: 3 | AV87: 0 | AW87: 0 | AX87: 0 | AY87: 0 | AZ87: 0 | BA87: 0 | BB87: 0 | BD87: 3 | BE87: 0 | BF87: 0 | BG87: 0 | BH87: 0 | BI87: 0 | BJ87: 0 | BK87: 0 | BM87: 3 | BN87: 0 | BO87: 0 | BP87: 0 | BQ87: 0 | BR87: 0 | BS87: 0 | BT87: 0
B88: 4 | C88: =IF(C$41=0,0,C52*C14/C$41) -> 0 | D88: 0 | E88: 0 | F88: 0 | G88: 0 | H88: 0 | I88: 0 | K88: 4 | L88: 0 | M88: 0 | N88: 0 | O88: 0 | P88: 0 | Q88: 0 | R88: 0 | T88: 4 | U88: 0 | V88: 0 | W88: 0 | X88: 0 | Y88: 0 | Z88: 0 | AA88: 0 | AC88: 4 | AD88: 0 | AE88: 0 | AF88: 0 | AG88: 0 | AH88: 0 | AI88: 0 | AJ88: 0 | AL88: 4 | AM88: 0 | AN88: 0 | AO88: 0 | AP88: 0 | AQ88: 0 | AR88: 0 | AS88: 0 | AU88: 4 | AV88: 0 | AW88: 0 | AX88: 0 | AY88: 0 | AZ88: 0 | BA88: 0 | BB88: 0 | BD88: 4 | BE88: 0 | BF88: 0 | BG88: 0 | BH88: 0 | BI88: 0 | BJ88: 0 | BK88: 0 | BM88: 4 | BN88: 0 | BO88: 0 | BP88: 0 | BQ88: 0 | BR88: 0 | BS88: 0 | BT88: 0
B89: 5 | C89: =IF(C$41=0,0,C53*C15/C$41) -> 0 | D89: 0 | E89: 0 | F89: 0 | G89: 0 | H89: 0 | I89: 0 | K89: 5 | L89: 0 | M89: 0 | N89: 0 | O89: 0 | P89: 0 | Q89: 0 | R89: 0 | T89: 5 | U89: 0 | V89: 0 | W89: 0 | X89: 0 | Y89: 0 | Z89: 0 | AA89: 0 | AC89: 5 | AD89: 0 | AE89: 0 | AF89: 0 | AG89: 0 | AH89: 0 | AI89: 0 | AJ89: 0 | AL89: 5 | AM89: 0 | AN89: 0 | AO89: 0 | AP89: 0 | AQ89: 0 | AR89: 0 | AS89: 0 | AU89: 5 | AV89: 0 | AW89: 0 | AX89: 0 | AY89: 0 | AZ89: 0 | BA89: 0 | BB89: 0 | BD89: 5 | BE89: 0 | BF89: 0 | BG89: 0 | BH89: 0 | BI89: 0 | BJ89: 0 | BK89: 0 | BM89: 5 | BN89: 0 | BO89: 0 | BP89: 0 | BQ89: 0 | BR89: 0 | BS89: 0 | BT89: 0
B90: 6 | C90: =IF(C$41=0,0,C54*C16/C$41) -> 0 | D90: 0 | E90: 0 | F90: 0 | G90: 0 | H90: 0 | I90: 0 | K90: 6 | L90: 0 | M90: 0 | N90: 0 | O90: 0 | P90: 0 | Q90: 0 | R90: 0 | T90: 6 | U90: 0 | V90: 0 | W90: 0 | X90: 0 | Y90: 0 | Z90: 0 | AA90: 0 | AC90: 6 | AD90: 0 | AE90: 0 | AF90: 0 | AG90: 0 | AH90: 0 | AI90: 0 | AJ90: 0 | AL90: 6 | AM90: 0 | AN90: 0 | AO90: 0 | AP90: 0 | AQ90: 0 | AR90: 0 | AS90: 0 | AU90: 6 | AV90: 0 | AW90: 0 | AX90: 0 | AY90: 0 | AZ90: 0 | BA90: 0 | BB90: 0 | BD90: 6 | BE90: 0 | BF90: 0 | BG90: 0 | BH90: 0 | BI90: 0 | BJ90: 0 | BK90: 0 | BM90: 6 | BN90: 0 | BO90: 0 | BP90: 0 | BQ90: 0 | BR90: 0 | BS90: 0 | BT90: 0
B91: 7 | C91: =IF(C$41=0,0,C55*C17/C$41) -> 0 | D91: 0 | E91: 0 | F91: 0 | G91: 0 | H91: 0 | I91: 0 | K91: 7 | L91: 0 | M91: 0 | N91: 0 | O91: 0 | P91: 0 | Q91: 0 | R91: 0 | T91: 7 | U91: 0 | V91: 0 | W91: 0 | X91: 0 | Y91: 0 | Z91: 0 | AA91: 0 | AC91: 7 | AD91: 0 | AE91: 0 | AF91: 0 | AG91: 0 | AH91: 0 | AI91: 0 | AJ91: 0 | AL91: 7 | AM91: 0 | AN91: 0 | AO91: 0 | AP91: 0 | AQ91: 0 | AR91: 0 | AS91: 0 | AU91: 7 | AV91: 0 | AW91: 0 | AX91: 0 | AY91: 0 | AZ91: 0 | BA91: 0 | BB91: 0 | BD91: 7 | BE91: 0 | BF91: 0 | BG91: 0 | BH91: 0 | BI91: 0 | BJ91: 0 | BK91: 0 | BM91: 7 | BN91: 0 | BO91: 0 | BP91: 0 | BQ91: 0 | BR91: 0 | BS91: 0 | BT91: 0
B92: 8 | C92: =IF(C$41=0,0,C56*C18/C$41) -> 0 | D92: 0 | E92: 0 | F92: 0 | G92: 0 | H92: 0 | I92: 0 | K92: 8 | L92: 0 | M92: 0 | N92: 0 | O92: 0 | P92: 0 | Q92: 0 | R92: 0 | T92: 8 | U92: 0 | V92: 0 | W92: 0 | X92: 0 | Y92: 0 | Z92: 0 | AA92: 0 | AC92: 8 | AD92: 0 | AE92: 0 | AF92: 0 | AG92: 0 | AH92: 0 | AI92: 0 | AJ92: 0 | AL92: 8 | AM92: 0 | AN92: 0 | AO92: 0 | AP92: 0 | AQ92: 0 | AR92: 0 | AS92: 0 | AU92: 8 | AV92: 0 | AW92: 0 | AX92: 0 | AY92: 0 | AZ92: 0 | BA92: 0 | BB92: 0 | BD92: 8 | BE92: 0 | BF92: 0 | BG92: 0 | BH92: 0 | BI92: 0 | BJ92: 0 | BK92: 0 | BM92: 8 | BN92: 0 | BO92: 0 | BP92: 0 | BQ92: 0 | BR92: 0 | BS92: 0 | BT92: 0
B93: 9 | C93: =IF(C$41=0,0,C57*C19/C$41) -> 0 | D93: 0 | E93: 0 | F93: 0 | G93: 0 | H93: 0 | I93: 0 | K93: 9 | L93: 0 | M93: 0 | N93: 0 | O93: 0 | P93: 0 | Q93: 0 | R93: 0 | T93: 9 | U93: 0 | V93: 0 | W93: 0 | X93: 0 | Y93: 0 | Z93: 0 | AA93: 0 | AC93: 9 | AD93: 0 | AE93: 0 | AF93: 0 | AG93: 0 | AH93: 0 | AI93: 0 | AJ93: 0 | AL93: 9 | AM93: 0 | AN93: 0 | AO93: 0 | AP93: 0 | AQ93: 0 | AR93: 0 | AS93: 0 | AU93: 9 | AV93: 0 | AW93: 0 | AX93: 0 | AY93: 0 | AZ93: 0 | BA93: 0 | BB93: 0 | BD93: 9 | BE93: 0 | BF93: 0 | BG93: 0 | BH93: 0 | BI93: 0 | BJ93: 0 | BK93: 0 | BM93: 9 | BN93: 0 | BO93: 0 | BP93: 0 | BQ93: 0 | BR93: 0 | BS93: 0 | BT93: 0
B94: 10 | C94: =IF(C$41=0,0,C58*C20/C$41) -> 0 | D94: 0 | E94: 0 | F94: 0 | G94: 0 | H94: 0 | I94: 0 | K94: 10 | L94: 0 | M94: 0 | N94: 0 | O94: 0 | P94: 0 | Q94: 0 | R94: 0 | T94: 10 | U94: 0 | V94: 0 | W94: 0 | X94: 0 | Y94: 0 | Z94: 0 | AA94: 0 | AC94: 10 | AD94: 0 | AE94: 0 | AF94: 0 | AG94: 0 | AH94: 0 | AI94: 0 | AJ94: 0 | AL94: 10 | AM94: 0 | AN94: 0 | AO94: 0 | AP94: 0 | AQ94: 0 | AR94: 0 | AS94: 0 | AU94: 10 | AV94: 0 | AW94: 0 | AX94: 0 | AY94: 0 | AZ94: 0 | BA94: 0 | BB94: 0 | BD94: 10 | BE94: 0 | BF94: 0 | BG94: 0 | BH94: 0 | BI94: 0 | BJ94: 0 | BK94: 0 | BM94: 10 | BN94: 0 | BO94: 0 | BP94: 0 | BQ94: 0 | BR94: 0 | BS94: 0 | BT94: 0
B95: 11 | C95: =IF(C$41=0,0,C59*C21/C$41) -> 0 | D95: 0 | E95: 0 | F95: 0 | G95: 0 | H95: 0 | I95: 0 | K95: 11 | L95: 0 | M95: 0 | N95: 0 | O95: 0 | P95: 0 | Q95: 0 | R95: 0 | T95: 11 | U95: 0 | V95: 0 | W95: 0 | X95: 0 | Y95: 0 | Z95: 0 | AA95: 0 | AC95: 11 | AD95: 0 | AE95: 0 | AF95: 0 | AG95: 0 | AH95: 0 | AI95: 0 | AJ95: 0 | AL95: 11 | AM95: 0 | AN95: 0 | AO95: 0 | AP95: 0 | AQ95: 0 | AR95: 0 | AS95: 0 | AU95: 11 | AV95: 0 | AW95: 0 | AX95: 0 | AY95: 0 | AZ95: 0 | BA95: 0 | BB95: 0 | BD95: 11 | BE95: 0 | BF95: 0 | BG95: 0 | BH95: 0 | BI95: 0 | BJ95: 0 | BK95: 0 | BM95: 11 | BN95: 0 | BO95: 0 | BP95: 0 | BQ95: 0 | BR95: 0 | BS95: 0 | BT95: 0
B96: 12 | C96: =IF(C$41=0,0,C60*C22/C$41) -> 0 | D96: 0 | E96: 0 | F96: 0 | G96: 0 | H96: 0 | I96: 0 | K96: 12 | L96: 0 | M96: 0 | N96: 0 | O96: 0 | P96: 0 | Q96: 0 | R96: 0 | T96: 12 | U96: 0 | V96: 0 | W96: 0 | X96: 0 | Y96: 0 | Z96: 0 | AA96: 0 | AC96: 12 | AD96: 0 | AE96: 0 | AF96: 0 | AG96: 0 | AH96: 0 | AI96: 0 | AJ96: 0 | AL96: 12 | AM96: 0 | AN96: 0 | AO96: 0 | AP96: 0 | AQ96: 0 | AR96: 0 | AS96: 0 | AU96: 12 | AV96: 0 | AW96: 0 | AX96: 0 | AY96: 0 | AZ96: 0 | BA96: 0 | BB96: 0 | BD96: 12 | BE96: 0 | BF96: 0 | BG96: 0 | BH96: 0 | BI96: 0 | BJ96: 0 | BK96: 0 | BM96: 12 | BN96: 0 | BO96: 0 | BP96: 0 | BQ96: 0 | BR96: 0 | BS96: 0 | BT96: 0
B97: 13 | C97: =IF(C$41=0,0,C61*C23/C$41) -> 0 | D97: 0 | E97: 0 | F97: 0 | G97: 0 | H97: 0 | I97: 0 | K97: 13 | L97: 0 | M97: 0 | N97: 0 | O97: 0 | P97: 0 | Q97: 0 | R97: 0 | T97: 13 | U97: 0 | V97: 0 | W97: 0 | X97: 0 | Y97: 0 | Z97: 0 | AA97: 0 | AC97: 13 | AD97: 0 | AE97: 0 | AF97: 0 | AG97: 0 | AH97: 0 | AI97: 0 | AJ97: 0 | AL97: 13 | AM97: 0 | AN97: 0 | AO97: 0 | AP97: 0 | AQ97: 0 | AR97: 0 | AS97: 0 | AU97: 13 | AV97: 0 | AW97: 0 | AX97: 0 | AY97: 0 | AZ97: 0 | BA97: 0 | BB97: 0 | BD97: 13 | BE97: 0 | BF97: 0 | BG97: 0 | BH97: 0 | BI97: 0 | BJ97: 0 | BK97: 0 | BM97: 13 | BN97: 0 | BO97: 0 | BP97: 0 | BQ97: 0 | BR97: 0 | BS97: 0 | BT97: 0
B98: 14 | C98: =IF(C$41=0,0,C62*C24/C$41) -> 0 | D98: 0 | E98: 0 | F98: 0 | G98: 0 | H98: 0 | I98: 0 | K98: 14 | L98: 0 | M98: 0 | N98: 0 | O98: 0 | P98: 0 | Q98: 0 | R98: 0 | T98: 14 | U98: 0 | V98: 0 | W98: 0 | X98: 0 | Y98: 0 | Z98: 0 | AA98: 0 | AC98: 14 | AD98: 0 | AE98: 0 | AF98: 0 | AG98: 0 | AH98: 0 | AI98: 0 | AJ98: 0 | AL98: 14 | AM98: 0 | AN98: 0 | AO98: 0 | AP98: 0 | AQ98: 0 | AR98: 0 | AS98: 0 | AU98: 14 | AV98: 0 | AW98: 0 | AX98: 0 | AY98: 0 | AZ98: 0 | BA98: 0 | BB98: 0 | BD98: 14 | BE98: 0 | BF98: 0 | BG98: 0 | BH98: 0 | BI98: 0 | BJ98: 0 | BK98: 0 | BM98: 14 | BN98: 0 | BO98: 0 | BP98: 0 | BQ98: 0 | BR98: 0 | BS98: 0 | BT98: 0
B99: 15 | C99: =IF(C$41=0,0,C63*C25/C$41) -> 0 | D99: 0 | E99: 0 | F99: 0 | G99: 0 | H99: 0 | I99: 0 | K99: 15 | L99: 0 | M99: 0 | N99: 0 | O99: 0 | P99: 0 | Q99: 0 | R99: 0 | T99: 15 | U99: 0 | V99: 0 | W99: 0 | X99: 0 | Y99: 0 | Z99: 0 | AA99: 0 | AC99: 15 | AD99: 0 | AE99: 0 | AF99: 0 | AG99: 0 | AH99: 0 | AI99: 0 | AJ99: 0 | AL99: 15 | AM99: 0 | AN99: 0 | AO99: 0 | AP99: 0 | AQ99: 0 | AR99: 0 | AS99: 0 | AU99: 15 | AV99: 0 | AW99: 0 | AX99: 0 | AY99: 0 | AZ99: 0 | BA99: 0 | BB99: 0 | BD99: 15 | BE99: 0 | BF99: 0 | BG99: 0 | BH99: 0 | BI99: 0 | BJ99: 0 | BK99: 0 | BM99: 15 | BN99: 0 | BO99: 0 | BP99: 0 | BQ99: 0 | BR99: 0 | BS99: 0 | BT99: 0
B100: 16 | C100: =IF(C$41=0,0,C64*C26/C$41) -> 0 | D100: 0 | E100: 0 | F100: 0 | G100: 0 | H100: 0 | I100: 0 | K100: 16 | L100: 0 | M100: 0 | N100: 0 | O100: 0 | P100: 0 | Q100: 0 | R100: 0 | T100: 16 | U100: 0 | V100: 0 | W100: 0 | X100: 0 | Y100: 0 | Z100: 0 | AA100: 0 | AC100: 16 | AD100: 0 | AE100: 0 | AF100: 0 | AG100: 0 | AH100: 0 | AI100: 0 | AJ100: 0 | AL100: 16 | AM100: 0 | AN100: =IF(D$41=0,0,AN64*D26/D$41) -> 0 | AO100: =IF(E$41=0,0,AO64*E26/E$41) -> 0 | AP100: =IF(F$41=0,0,AP64*F26/F$41) -> 0 | AQ100: =IF(G$41=0,0,AQ64*G26/G$41) -> 0 | AR100: =IF(H$41=0,0,AR64*H26/H$41) -> 0 | AS100: =IF(I$41=0,0,AS64*I26/I$41) -> 0 | AU100: 16 | AV100: 0 | AW100: =IF(D$41=0,0,AW64*D26/D$41) -> 0 | AX100: =IF(E$41=0,0,AX64*E26/E$41) -> 0 | AY100: =IF(F$41=0,0,AY64*F26/F$41) -> 0 | AZ100: =IF(G$41=0,0,AZ64*G26/G$41) -> 0 | BA100: =IF(H$41=0,0,BA64*H26/H$41) -> 0 | BB100: =IF(I$41=0,0,BB64*I26/I$41) -> 0 | BD100: 16 | BE100: 0 | BF100: =IF(D$41=0,0,BF64*D26/D$41) -> 0 | BG100: =IF(E$41=0,0,BG64*E26/E$41) -> 0 | BH100: =IF(F$41=0,0,BH64*F26/F$41) -> 0 | BI100: =IF(G$41=0,0,BI64*G26/G$41) -> 0 | BJ100: =IF(H$41=0,0,BJ64*H26/H$41) -> 0 | BK100: =IF(I$41=0,0,BK64*I26/I$41) -> 0 | BM100: 16 | BN100: 0 | BO100: =IF(D$41=0,0,BO64*D26/D$41) -> 0 | BP100: =IF(E$41=0,0,BP64*E26/E$41) -> 0 | BQ100: =IF(F$41=0,0,BQ64*F26/F$41) -> 0 | BR100: =IF(G$41=0,0,BR64*G26/G$41) -> 0 | BS100: =IF(H$41=0,0,BS64*H26/H$41) -> 0 | BT100: =IF(I$41=0,0,BT64*I26/I$41) -> 0
B101: 17 | C101: =IF(C$41=0,0,C65*C27/C$41) -> 0 | D101: 0 | E101: 0 | F101: 0 | G101: 0 | H101: 0 | I101: 0 | K101: 17 | L101: 0 | M101: 0 | N101: 0 | O101: 0 | P101: 0 | Q101: 0 | R101: 0 | T101: 17 | U101: 0 | V101: 0 | W101: 0 | X101: 0 | Y101: 0 | Z101: 0 | AA101: 0 | AC101: 17 | AD101: 0 | AE101: 0 | AF101: 0 | AG101: 0 | AH101: 0 | AI101: 0 | AJ101: 0 | AL101: 17 | AM101: 0 | AN101: 0 | AO101: 0 | AP101: 0 | AQ101: 0 | AR101: 0 | AS101: 0 | AU101: 17 | AV101: 0 | AW101: 0 | AX101: 0 | AY101: 0 | AZ101: 0 | BA101: 0 | BB101: 0 | BD101: 17 | BE101: 0 | BF101: 0 | BG101: 0 | BH101: 0 | BI101: 0 | BJ101: 0 | BK101: 0 | BM101: 17 | BN101: 0 | BO101: 0 | BP101: 0 | BQ101: 0 | BR101: 0 | BS101: 0 | BT101: 0
B102: 18 | C102: =IF(C$41=0,0,C66*C28/C$41) -> 0 | D102: 0 | E102: 0 | F102: 0 | G102: 0 | H102: 0 | I102: 0 | K102: 18 | L102: 0 | M102: 0 | N102: 0 | O102: 0 | P102: 0 | Q102: 0 | R102: 0 | T102: 18 | U102: 0 | V102: 0 | W102: 0 | X102: 0 | Y102: 0 | Z102: 0 | AA102: 0 | AC102: 18 | AD102: 0 | AE102: 0 | AF102: 0 | AG102: 0 | AH102: 0 | AI102: 0 | AJ102: 0 | AL102: 18 | AM102: 0 | AN102: 0 | AO102: 0 | AP102: 0 | AQ102: 0 | AR102: 0 | AS102: 0 | AU102: 18 | AV102: 0 | AW102: 0 | AX102: 0 | AY102: 0 | AZ102: 0 | BA102: 0 | BB102: 0 | BD102: 18 | BE102: 0 | BF102: 0 | BG102: 0 | BH102: 0 | BI102: 0 | BJ102: 0 | BK102: 0 | BM102: 18 | BN102: 0 | BO102: 0 | BP102: 0 | BQ102: 0 | BR102: 0 | BS102: 0 | BT102: 0
B103: 19 | C103: =IF(C$41=0,0,C67*C29/C$41) -> 0 | D103: 0 | E103: 0 | F103: 0 | G103: 0 | H103: 0 | I103: 0 | K103: 19 | L103: 0 | M103: 0 | N103: 0 | O103: 0 | P103: 0 | Q103: 0 | R103: 0 | T103: 19 | U103: 0 | V103: 0 | W103: 0 | X103: 0 | Y103: 0 | Z103: 0 | AA103: 0 | AC103: 19 | AD103: 0 | AE103: 0 | AF103: 0 | AG103: 0 | AH103: 0 | AI103: 0 | AJ103: 0 | AL103: 19 | AM103: 0 | AN103: 0 | AO103: 0 | AP103: 0 | AQ103: 0 | AR103: 0 | AS103: 0 | AU103: 19 | AV103: 0 | AW103: 0 | AX103: 0 | AY103: 0 | AZ103: 0 | BA103: 0 | BB103: 0 | BD103: 19 | BE103: 0 | BF103: 0 | BG103: 0 | BH103: 0 | BI103: 0 | BJ103: 0 | BK103: 0 | BM103: 19 | BN103: 0 | BO103: 0 | BP103: 0 | BQ103: 0 | BR103: 0 | BS103: 0 | BT103: 0
B104: 20 | C104: =IF(C$41=0,0,C68*C30/C$41) -> 0 | D104: 0 | E104: 0 | F104: 0 | G104: 0 | H104: 0 | I104: 0 | K104: 20 | L104: 0 | M104: 0 | N104: 0 | O104: 0 | P104: 0 | Q104: 0 | R104: 0 | T104: 20 | U104: 0 | V104: 0 | W104: 0 | X104: 0 | Y104: 0 | Z104: 0 | AA104: 0 | AC104: 20 | AD104: 0 | AE104: 0 | AF104: 0 | AG104: 0 | AH104: 0 | AI104: 0 | AJ104: 0 | AL104: 20 | AM104: 0 | AN104: 0 | AO104: 0 | AP104: 0 | AQ104: 0 | AR104: 0 | AS104: 0 | AU104: 20 | AV104: 0 | AW104: 0 | AX104: 0 | AY104: 0 | AZ104: 0 | BA104: 0 | BB104: 0 | BD104: 20 | BE104: 0 | BF104: 0 | BG104: 0 | BH104: 0 | BI104: 0 | BJ104: 0 | BK104: 0 | BM104: 20 | BN104: 0 | BO104: 0 | BP104: 0 | BQ104: 0 | BR104: 0 | BS104: 0 | BT104: 0
B105: 21 | C105: =IF(C$41=0,0,C69*C31/C$41) -> 0 | D105: 0 | E105: 0 | F105: 0 | G105: 0 | H105: 0 | I105: 0 | K105: 21 | L105: 0 | M105: 0 | N105: 0 | O105: 0 | P105: 0 | Q105: 0 | R105: 0 | T105: 21 | U105: 0 | V105: 0 | W105: 0 | X105: 0 | Y105: 0 | Z105: 0 | AA105: 0 | AC105: 21 | AD105: 0 | AE105: 0 | AF105: 0 | AG105: 0 | AH105: 0 | AI105: 0 | AJ105: 0 | AL105: 21 | AM105: 0 | AN105: 0 | AO105: 0 | AP105: 0 | AQ105: 0 | AR105: 0 | AS105: 0 | AU105: 21 | AV105: 0 | AW105: 0 | AX105: 0 | AY105: 0 | AZ105: 0 | BA105: 0 | BB105: 0 | BD105: 21 | BE105: 0 | BF105: 0 | BG105: 0 | BH105: 0 | BI105: 0 | BJ105: 0 | BK105: 0 | BM105: 21 | BN105: 0 | BO105: 0 | BP105: 0 | BQ105: 0 | BR105: 0 | BS105: 0 | BT105: 0
B106: 22 | C106: =IF(C$41=0,0,C70*C32/C$41) -> 0 | D106: 0 | E106: 0 | F106: 0 | G106: 0 | H106: 0 | I106: 0 | K106: 22 | L106: 0 | M106: 0 | N106: 0 | O106: 0 | P106: 0 | Q106: 0 | R106: 0 | T106: 22 | U106: 0 | V106: 0 | W106: 0 | X106: 0 | Y106: 0 | Z106: 0 | AA106: 0 | AC106: 22 | AD106: 0 | AE106: 0 | AF106: 0 | AG106: 0 | AH106: 0 | AI106: 0 | AJ106: 0 | AL106: 22 | AM106: 0 | AN106: 0 | AO106: 0 | AP106: 0 | AQ106: 0 | AR106: 0 | AS106: 0 | AU106: 22 | AV106: 0 | AW106: 0 | AX106: 0 | AY106: 0 | AZ106: 0 | BA106: 0 | BB106: 0 | BD106: 22 | BE106: 0 | BF106: 0 | BG106: 0 | BH106: 0 | BI106: 0 | BJ106: 0 | BK106: 0 | BM106: 22 | BN106: 0 | BO106: 0 | BP106: 0 | BQ106: 0 | BR106: 0 | BS106: 0 | BT106: 0
B107: 23 | C107: =IF(C$41=0,0,C71*C33/C$41) -> 0 | D107: 0 | E107: 0 | F107: 0 | G107: 0 | H107: 0 | I107: 0 | K107: 23 | L107: 0 | M107: 0 | N107: 0 | O107: 0 | P107: 0 | Q107: 0 | R107: 0 | T107: 23 | U107: 0 | V107: 0 | W107: 0 | X107: 0 | Y107: 0 | Z107: 0 | AA107: 0 | AC107: 23 | AD107: 0 | AE107: 0 | AF107: 0 | AG107: 0 | AH107: 0 | AI107: 0 | AJ107: 0 | AL107: 23 | AM107: 0 | AN107: 0 | AO107: 0 | AP107: 0 | AQ107: 0 | AR107: 0 | AS107: 0 | AU107: 23 | AV107: 0 | AW107: 0 | AX107: 0 | AY107: 0 | AZ107: 0 | BA107: 0 | BB107: 0 | BD107: 23 | BE107: 0 | BF107: 0 | BG107: 0 | BH107: 0 | BI107: 0 | BJ107: 0 | BK107: 0 | BM107: 23 | BN107: 0 | BO107: 0 | BP107: 0 | BQ107: 0 | BR107: 0 | BS107: 0 | BT107: 0
B108: 24 | C108: =IF(C$41=0,0,C72*C34/C$41) -> 0 | D108: 0 | E108: 0 | F108: 0 | G108: 0 | H108: 0 | I108: 0 | K108: 24 | L108: 0 | M108: 0 | N108: 0 | O108: 0 | P108: 0 | Q108: 0 | R108: 0 | T108: 24 | U108: 0 | V108: 0 | W108: 0 | X108: 0 | Y108: 0 | Z108: 0 | AA108: 0 | AC108: 24 | AD108: 0 | AE108: 0 | AF108: 0 | AG108: 0 | AH108: 0 | AI108: 0 | AJ108: 0 | AL108: 24 | AM108: 0 | AN108: 0 | AO108: 0 | AP108: 0 | AQ108: 0 | AR108: 0 | AS108: 0 | AU108: 24 | AV108: 0 | AW108: 0 | AX108: 0 | AY108: 0 | AZ108: 0 | BA108: 0 | BB108: 0 | BD108: 24 | BE108: 0 | BF108: 0 | BG108: 0 | BH108: 0 | BI108: 0 | BJ108: 0 | BK108: 0 | BM108: 24 | BN108: 0 | BO108: 0 | BP108: 0 | BQ108: 0 | BR108: 0 | BS108: 0 | BT108: 0
B109: 25 | C109: =IF(C$41=0,0,C73*C35/C$41) -> 0 | D109: 0 | E109: 0 | F109: 0 | G109: 0 | H109: 0 | I109: 0 | K109: 25 | L109: 0 | M109: 0 | N109: 0 | O109: 0 | P109: 0 | Q109: 0 | R109: 0 | T109: 25 | U109: 0 | V109: 0 | W109: 0 | X109: 0 | Y109: 0 | Z109: 0 | AA109: 0 | AC109: 25 | AD109: 0 | AE109: 0 | AF109: 0 | AG109: 0 | AH109: 0 | AI109: 0 | AJ109: 0 | AL109: 25 | AM109: 0 | AN109: 0 | AO109: 0 | AP109: 0 | AQ109: 0 | AR109: 0 | AS109: 0 | AU109: 25 | AV109: 0 | AW109: 0 | AX109: 0 | AY109: 0 | AZ109: 0 | BA109: 0 | BB109: 0 | BD109: 25 | BE109: 0 | BF109: 0 | BG109: 0 | BH109: 0 | BI109: 0 | BJ109: 0 | BK109: 0 | BM109: 25 | BN109: 0 | BO109: 0 | BP109: 0 | BQ109: 0 | BR109: 0 | BS109: 0 | BT109: 0
B110: 26 | C110: =IF(C$41=0,0,C74*C36/C$41) -> 0 | D110: 0 | E110: 0 | F110: 0 | G110: 0 | H110: 0 | I110: 0 | K110: 26 | L110: 0 | M110: 0 | N110: 0 | O110: 0 | P110: 0 | Q110: 0 | R110: 0 | T110: 26 | U110: 0 | V110: 0 | W110: 0 | X110: 0 | Y110: 0 | Z110: 0 | AA110: 0 | AC110: 26 | AD110: 0 | AE110: 0 | AF110: 0 | AG110: 0 | AH110: 0 | AI110: 0 | AJ110: 0 | AL110: 26 | AM110: 0 | AN110: 0 | AO110: 0 | AP110: 0 | AQ110: 0 | AR110: 0 | AS110: 0 | AU110: 26 | AV110: 0 | AW110: 0 | AX110: 0 | AY110: 0 | AZ110: 0 | BA110: 0 | BB110: 0 | BD110: 26 | BE110: 0 | BF110: 0 | BG110: 0 | BH110: 0 | BI110: 0 | BJ110: 0 | BK110: 0 | BM110: 26 | BN110: 0 | BO110: 0 | BP110: 0 | BQ110: 0 | BR110: 0 | BS110: 0 | BT110: 0
B111: 27 | C111: =IF(C$41=0,0,C75*C37/C$41) -> 0 | D111: 0 | E111: 0 | F111: 0 | G111: 0 | H111: 0 | I111: 0 | K111: 27 | L111: 0 | M111: 0 | N111: 0 | O111: 0 | P111: 0 | Q111: 0 | R111: 0 | T111: 27 | U111: 0 | V111: 0 | W111: 0 | X111: 0 | Y111: 0 | Z111: 0 | AA111: 0 | AC111: 27 | AD111: 0 | AE111: 0 | AF111: 0 | AG111: 0 | AH111: 0 | AI111: 0 | AJ111: 0 | AL111: 27 | AM111: 0 | AN111: 0 | AO111: 0 | AP111: 0 | AQ111: 0 | AR111: 0 | AS111: 0 | AU111: 27 | AV111: 0 | AW111: 0 | AX111: 0 | AY111: 0 | AZ111: 0 | BA111: 0 | BB111: 0 | BD111: 27 | BE111: 0 | BF111: 0 | BG111: 0 | BH111: 0 | BI111: 0 | BJ111: 0 | BK111: 0 | BM111: 27 | BN111: 0 | BO111: 0 | BP111: 0 | BQ111: 0 | BR111: 0 | BS111: 0 | BT111: 0
B112: 28 | C112: =IF(C$41=0,0,C76*C38/C$41) -> 0 | D112: 0 | E112: 0 | F112: 0 | G112: 0 | H112: 0 | I112: 0 | K112: 28 | L112: 0 | M112: 0 | N112: 0 | O112: 0 | P112: 0 | Q112: 0 | R112: 0 | T112: 28 | U112: 0 | V112: 0 | W112: 0 | X112: 0 | Y112: 0 | Z112: 0 | AA112: 0 | AC112: 28 | AD112: 0 | AE112: 0 | AF112: 0 | AG112: 0 | AH112: 0 | AI112: 0 | AJ112: 0 | AL112: 28 | AM112: 0 | AN112: 0 | AO112: 0 | AP112: 0 | AQ112: 0 | AR112: 0 | AS112: 0 | AU112: 28 | AV112: 0 | AW112: 0 | AX112: 0 | AY112: 0 | AZ112: 0 | BA112: 0 | BB112: 0 | BD112: 28 | BE112: 0 | BF112: 0 | BG112: 0 | BH112: 0 | BI112: 0 | BJ112: 0 | BK112: 0 | BM112: 28 | BN112: 0 | BO112: 0 | BP112: 0 | BQ112: 0 | BR112: 0 | BS112: 0 | BT112: 0
B113: 29 | C113: =IF(C$41=0,0,C77*C39/C$41) -> 0 | D113: 0 | E113: 0 | F113: 0 | G113: 0 | H113: 0 | I113: 0 | K113: 29 | L113: 0 | M113: 0 | N113: 0 | O113: 0 | P113: 0 | Q113: 0 | R113: 0 | T113: 29 | U113: 0 | V113: 0 | W113: 0 | X113: 0 | Y113: 0 | Z113: 0 | AA113: 0 | AC113: 29 | AD113: 0 | AE113: 0 | AF113: 0 | AG113: 0 | AH113: 0 | AI113: 0 | AJ113: 0 | AL113: 29 | AM113: 0 | AN113: 0 | AO113: 0 | AP113: 0 | AQ113: 0 | AR113: 0 | AS113: 0 | AU113: 29 | AV113: 0 | AW113: 0 | AX113: 0 | AY113: 0 | AZ113: 0 | BA113: 0 | BB113: 0 | BD113: 29 | BE113: 0 | BF113: 0 | BG113: 0 | BH113: 0 | BI113: 0 | BJ113: 0 | BK113: 0 | BM113: 29 | BN113: 0 | BO113: 0 | BP113: 0 | BQ113: 0 | BR113: 0 | BS113: 0 | BT113: 0
B114: 30 | C114: =IF(C$41=0,0,C78*C40/C$41) -> 0 | D114: 0 | E114: 0 | F114: 0 | G114: 0 | H114: 0 | I114: 0 | K114: 30 | L114: 0 | M114: 0 | N114: 0 | O114: 0 | P114: 0 | Q114: 0 | R114: 0 | T114: 30 | U114: 0 | V114: 0 | W114: 0 | X114: 0 | Y114: 0 | Z114: 0 | AA114: 0 | AC114: 30 | AD114: 0 | AE114: 0 | AF114: 0 | AG114: 0 | AH114: 0 | AI114: 0 | AJ114: 0 | AL114: 30 | AM114: 0 | AN114: 0 | AO114: 0 | AP114: 0 | AQ114: 0 | AR114: 0 | AS114: 0 | AU114: 30 | AV114: 0 | AW114: 0 | AX114: 0 | AY114: 0 | AZ114: 0 | BA114: 0 | BB114: 0 | BD114: 30 | BE114: 0 | BF114: 0 | BG114: 0 | BH114: 0 | BI114: 0 | BJ114: 0 | BK114: 0 | BM114: 30 | BN114: 0 | BO114: 0 | BP114: 0 | BQ114: 0 | BR114: 0 | BS114: 0 | BT114: 0
C115: =SUM(C84:C114) -> 0 | D115: 0 | E115: 0 | F115: 0 | G115: 0 | H115: 0 | I115: 0 | L115: =SUM(L84:L114) -> 0 | M115: 0 | N115: 0 | O115: 0 | P115: 0 | Q115: 0 | R115: 0 | U115: =SUM(U84:U114) -> 0 | V115: 0 | W115: 0 | X115: 0 | Y115: 0 | Z115: 0 | AA115: 0 | AD115: =SUM(AD84:AD114) -> 0 | AE115: 0 | AF115: 0 | AG115: 0 | AH115: 0 | AI115: 0 | AJ115: 0 | AM115: =SUM(AM84:AM114) -> 0 | AN115: 0 | AO115: 0 | AP115: 0 | AQ115: 0 | AR115: 0 | AS115: 0 | AV115: =SUM(AV84:AV114) -> 0 | AW115: 0 | AX115: 0 | AY115: 0 | AZ115: 0 | BA115: 0 | BB115: 0 | BE115: =SUM(BE84:BE114) -> 0 | BF115: 0 | BG115: 0 | BH115: 0 | BI115: 0 | BJ115: 0 | BK115: 0 | BN115: =SUM(BN84:BN114) -> 0 | BO115: 0 | BP115: 0 | BQ115: 0 | BR115: 0 | BS115: 0 | BT115: 0
B117: Table IVa: Percentage of VMT Allocated to Model Year, 1998 and earlier | K117: Table IVb: Percentage of VMT Allocated to Model Year, 1999 | T117: Table IVc: Percentage of VMT Allocated to Model Year, 2000 | AC117: Table IVd: Percentage of VMT Allocated to Model Year, 2001 | AL117: Table IVe: Percentage of VMT Allocated to Model Year, 2002 | AU117: Table IVf: Percentage of VMT Allocated to Model Year, 2003 | BD117: Table IVg: Percentage of VMT Allocated to Model Year, 2004 | BM117: Table IVh: Percentage of VMT Allocated to Model Year, 2005
B118: Calculated based on above inputs, this data is used to distribute VMT. | K118: Calculated based on above inputs, this data is used to distribute VMT. | T118: Calculated based on above inputs, this data is used to distribute VMT. | AC118: Calculated based on above inputs, this data is used to distribute VMT. | AL118: Calculated based on above inputs, this data is used to distribute VMT. | AU118: Calculated based on above inputs, this data is used to distribute VMT. | BD118: Calculated based on above inputs, this data is used to distribute VMT. | BM118: Calculated based on above inputs, this data is used to distribute VMT.
B119: MY | C119: LDGV | D119: LDGT | E119: HDGV | F119: LDDV | G119: LDDT | H119: HDDV | I119: MC | K119: MY | L119: LDGV | M119: LDGT | N119: HDGV | O119: LDDV | P119: LDDT | Q119: HDDV | R119: MC | T119: MY | U119: LDGV | V119: LDGT | W119: HDGV | X119: LDDV | Y119: LDDT | Z119: HDDV | AA119: MC | AC119: MY | AD119: LDGV | AE119: LDGT | AF119: HDGV | AG119: LDDV | AH119: LDDT | AI119: HDDV | AJ119: MC | AL119: MY | AM119: LDGV | AN119: LDGT | AO119: HDGV | AP119: LDDV | AQ119: LDDT | AR119: HDDV | AS119: MC | AU119: MY | AV119: LDGV | AW119: LDGT | AX119: HDGV | AY119: LDDV | AZ119: LDDT | BA119: HDDV | BB119: MC | BD119: MY | BE119: LDGV | BF119: LDGT | BG119: HDGV | BH119: LDDV | BI119: LDDT | BJ119: HDDV | BK119: MC | BM119: MY | BN119: LDGV | BO119: LDGT | BP119: HDGV | BQ119: LDDV | BR119: LDDT | BS119: HDDV | BT119: MC
B120: 0 | C120: =IF(C$115=0,0,C84/C$115) -> 0 | D120: =IF(D$115=0,0,D84/D$115) -> 0 | E120: 0 | F120: 0 | G120: 0 | H120: 0 | I120: 0 | K120: 0 | L120: =IF(L$115=0,0,L84/L$115) -> 0 | M120: =IF(M$115=0,0,M84/M$115) -> 0 | N120: 0 | O120: 0 | P120: 0 | Q120: 0 | R120: 0 | T120: 0 | U120: =IF(U$115=0,0,U84/U$115) -> 0 | V120: =IF(V$115=0,0,V84/V$115) -> 0 | W120: 0 | X120: 0 | Y120: 0 | Z120: 0 | AA120: 0 | AC120: 0 | AD120: =IF(AD$115=0,0,AD84/AD$115) -> 0 | AE120: =IF(AE$115=0,0,AE84/AE$115) -> 0 | AF120: 0 | AG120: 0 | AH120: 0 | AI120: 0 | AJ120: 0 | AL120: 0 | AM120: =IF(AM$115=0,0,AM84/AM$115) -> 0 | AN120: =IF(AN$115=0,0,AN84/AN$115) -> 0 | AO120: 0 | AP120: 0 | AQ120: 0 | AR120: 0 | AS120: 0 | AU120: 0 | AV120: =IF(AV$115=0,0,AV84/AV$115) -> 0 | AW120: =IF(AW$115=0,0,AW84/AW$115) -> 0 | AX120: 0 | AY120: 0 | AZ120: 0 | BA120: 0 | BB120: 0 | BD120: 0 | BE120: =IF(BE$115=0,0,BE84/BE$115) -> 0 | BF120: =IF(BF$115=0,0,BF84/BF$115) -> 0 | BG120: 0 | BH120: 0 | BI120: 0 | BJ120: 0 | BK120: 0 | BM120: 0 | BN120: =IF(BN$115=0,0,BN84/BN$115) -> 0 | BO120: =IF(BO$115=0,0,BO84/BO$115) -> 0 | BP120: 0 | BQ120: 0 | BR120: 0 | BS120: 0 | BT120: 0
B121: 1 | C121: =IF(C$115=0,0,C85/C$115) -> 0 | D121: 0 | E121: 0 | F121: =IF(F$115=0,0,F85/F$115) -> 0 | G121: 0 | H121: 0 | I121: 0 | K121: 1 | L121: =IF(L$115=0,0,L85/L$115) -> 0 | M121: 0 | N121: 0 | O121: 0 | P121: 0 | Q121: 0 | R121: 0 | T121: 1 | U121: =IF(U$115=0,0,U85/U$115) -> 0 | V121: 0 | W121: 0 | X121: 0 | Y121: 0 | Z121: 0 | AA121: 0 | AC121: 1 | AD121: =IF(AD$115=0,0,AD85/AD$115) -> 0 | AE121: 0 | AF121: 0 | AG121: 0 | AH121: 0 | AI121: 0 | AJ121: 0 | AL121: 1 | AM121: =IF(AM$115=0,0,AM85/AM$115) -> 0 | AN121: 0 | AO121: 0 | AP121: 0 | AQ121: 0 | AR121: 0 | AS121: 0 | AU121: 1 | AV121: =IF(AV$115=0,0,AV85/AV$115) -> 0 | AW121: 0 | AX121: 0 | AY121: 0 | AZ121: 0 | BA121: 0 | BB121: 0 | BD121: 1 | BE121: =IF(BE$115=0,0,BE85/BE$115) -> 0 | BF121: 0 | BG121: 0 | BH121: 0 | BI121: 0 | BJ121: 0 | BK121: 0 | BM121: 1 | BN121: =IF(BN$115=0,0,BN85/BN$115) -> 0 | BO121: 0 | BP121: 0 | BQ121: 0 | BR121: 0 | BS121: 0 | BT121: 0
B122: 2 | C122: =IF(C$115=0,0,C86/C$115) -> 0 | D122: 0 | E122: 0 | F122: 0 | G122: 0 | H122: 0 | I122: 0 | K122: 2 | L122: =IF(L$115=0,0,L86/L$115) -> 0 | M122: 0 | N122: 0 | O122: 0 | P122: 0 | Q122: 0 | R122: 0 | T122: 2 | U122: =IF(U$115=0,0,U86/U$115) -> 0 | V122: 0 | W122: 0 | X122: 0 | Y122: 0 | Z122: 0 | AA122: 0 | AC122: 2 | AD122: =IF(AD$115=0,0,AD86/AD$115) -> 0 | AE122: 0 | AF122: 0 | AG122: 0 | AH122: 0 | AI122: 0 | AJ122: 0 | AL122: 2 | AM122: =IF(AM$115=0,0,AM86/AM$115) -> 0 | AN122: 0 | AO122: 0 | AP122: 0 | AQ122: 0 | AR122: 0 | AS122: 0 | AU122: 2 | AV122: =IF(AV$115=0,0,AV86/AV$115) -> 0 | AW122: 0 | AX122: 0 | AY122: 0 | AZ122: 0 | BA122: 0 | BB122: 0 | BD122: 2 | BE122: =IF(BE$115=0,0,BE86/BE$115) -> 0 | BF122: 0 | BG122: 0 | BH122: 0 | BI122: 0 | BJ122: 0 | BK122: 0 | BM122: 2 | BN122: =IF(BN$115=0,0,BN86/BN$115) -> 0 | BO122: 0 | BP122: 0 | BQ122: 0 | BR122: 0 | BS122: 0 | BT122: 0
B123: 3 | C123: =IF(C$115=0,0,C87/C$115) -> 0 | D123: 0 | E123: 0 | F123: 0 | G123: 0 | H123: 0 | I123: 0 | K123: 3 | L123: =IF(L$115=0,0,L87/L$115) -> 0 | M123: 0 | N123: 0 | O123: 0 | P123: 0 | Q123: 0 | R123: 0 | T123: 3 | U123: =IF(U$115=0,0,U87/U$115) -> 0 | V123: 0 | W123: 0 | X123: 0 | Y123: 0 | Z123: 0 | AA123: 0 | AC123: 3 | AD123: =IF(AD$115=0,0,AD87/AD$115) -> 0 | AE123: 0 | AF123: 0 | AG123: 0 | AH123: 0 | AI123: 0 | AJ123: 0 | AL123: 3 | AM123: =IF(AM$115=0,0,AM87/AM$115) -> 0 | AN123: 0 | AO123: 0 | AP123: 0 | AQ123: 0 | AR123: 0 | AS123: 0 | AU123: 3 | AV123: =IF(AV$115=0,0,AV87/AV$115) -> 0 | AW123: 0 | AX123: 0 | AY123: 0 | AZ123: 0 | BA123: 0 | BB123: 0 | BD123: 3 | BE123: =IF(BE$115=0,0,BE87/BE$115) -> 0 | BF123: 0 | BG123: 0 | BH123: 0 | BI123: 0 | BJ123: 0 | BK123: 0 | BM123: 3 | BN123: =IF(BN$115=0,0,BN87/BN$115) -> 0 | BO123: 0 | BP123: 0 | BQ123: 0 | BR123: 0 | BS123: 0 | BT123: 0
B124: 4 | C124: =IF(C$115=0,0,C88/C$115) -> 0 | D124: 0 | E124: 0 | F124: 0 | G124: 0 | H124: 0 | I124: 0 | K124: 4 | L124: =IF(L$115=0,0,L88/L$115) -> 0 | M124: 0 | N124: 0 | O124: 0 | P124: 0 | Q124: 0 | R124: 0 | T124: 4 | U124: =IF(U$115=0,0,U88/U$115) -> 0 | V124: 0 | W124: 0 | X124: 0 | Y124: 0 | Z124: 0 | AA124: 0 | AC124: 4 | AD124: =IF(AD$115=0,0,AD88/AD$115) -> 0 | AE124: 0 | AF124: 0 | AG124: 0 | AH124: 0 | AI124: 0 | AJ124: 0 | AL124: 4 | AM124: =IF(AM$115=0,0,AM88/AM$115) -> 0 | AN124: 0 | AO124: 0 | AP124: 0 | AQ124: 0 | AR124: 0 | AS124: 0 | AU124: 4 | AV124: =IF(AV$115=0,0,AV88/AV$115) -> 0 | AW124: 0 | AX124: 0 | AY124: 0 | AZ124: 0 | BA124: 0 | BB124: 0 | BD124: 4 | BE124: =IF(BE$115=0,0,BE88/BE$115) -> 0 | BF124: 0 | BG124: 0 | BH124: 0 | BI124: 0 | BJ124: 0 | BK124: 0 | BM124: 4 | BN124: =IF(BN$115=0,0,BN88/BN$115) -> 0 | BO124: 0 | BP124: 0 | BQ124: 0 | BR124: 0 | BS124: 0 | BT124: 0
B125: 5 | C125: =IF(C$115=0,0,C89/C$115) -> 0 | D125: 0 | E125: 0 | F125: 0 | G125: 0 | H125: 0 | I125: 0 | K125: 5 | L125: =IF(L$115=0,0,L89/L$115) -> 0 | M125: 0 | N125: 0 | O125: 0 | P125: 0 | Q125: 0 | R125: 0 | T125: 5 | U125: =IF(U$115=0,0,U89/U$115) -> 0 | V125: 0 | W125: 0 | X125: 0 | Y125: 0 | Z125: 0 | AA125: 0 | AC125: 5 | AD125: =IF(AD$115=0,0,AD89/AD$115) -> 0 | AE125: 0 | AF125: 0 | AG125: 0 | AH125: 0 | AI125: 0 | AJ125: 0 | AL125: 5 | AM125: =IF(AM$115=0,0,AM89/AM$115) -> 0 | AN125: 0 | AO125: 0 | AP125: 0 | AQ125: 0 | AR125: 0 | AS125: 0 | AU125: 5 | AV125: =IF(AV$115=0,0,AV89/AV$115) -> 0 | AW125: 0 | AX125: 0 | AY125: 0 | AZ125: 0 | BA125: 0 | BB125: 0 | BD125: 5 | BE125: =IF(BE$115=0,0,BE89/BE$115) -> 0 | BF125: 0 | BG125: 0 | BH125: 0 | BI125: 0 | BJ125: 0 | BK125: 0 | BM125: 5 | BN125: =IF(BN$115=0,0,BN89/BN$115) -> 0 | BO125: 0 | BP125: 0 | BQ125: 0 | BR125: 0 | BS125: 0 | BT125: 0
B126: 6 | C126: =IF(C$115=0,0,C90/C$115) -> 0 | D126: 0 | E126: 0 | F126: 0 | G126: 0 | H126: 0 | I126: 0 | K126: 6 | L126: =IF(L$115=0,0,L90/L$115) -> 0 | M126: 0 | N126: 0 | O126: 0 | P126: 0 | Q126: 0 | R126: 0 | T126: 6 | U126: =IF(U$115=0,0,U90/U$115) -> 0 | V126: 0 | W126: 0 | X126: 0 | Y126: 0 | Z126: 0 | AA126: 0 | AC126: 6 | AD126: =IF(AD$115=0,0,AD90/AD$115) -> 0 | AE126: 0 | AF126: 0 | AG126: 0 | AH126: 0 | AI126: 0 | AJ126: 0 | AL126: 6 | AM126: =IF(AM$115=0,0,AM90/AM$115) -> 0 | AN126: 0 | AO126: 0 | AP126: 0 | AQ126: 0 | AR126: 0 | AS126: 0 | AU126: 6 | AV126: =IF(AV$115=0,0,AV90/AV$115) -> 0 | AW126: 0 | AX126: 0 | AY126: 0 | AZ126: 0 | BA126: 0 | BB126: 0 | BD126: 6 | BE126: =IF(BE$115=0,0,BE90/BE$115) -> 0 | BF126: 0 | BG126: 0 | BH126: 0 | BI126: 0 | BJ126: 0 | BK126: 0 | BM126: 6 | BN126: =IF(BN$115=0,0,BN90/BN$115) -> 0 | BO126: 0 | BP126: 0 | BQ126: 0 | BR126: 0 | BS126: 0 | BT126: 0
B127: 7 | C127: =IF(C$115=0,0,C91/C$115) -> 0 | D127: 0 | E127: 0 | F127: 0 | G127: 0 | H127: 0 | I127: 0 | K127: 7 | L127: =IF(L$115=0,0,L91/L$115) -> 0 | M127: 0 | N127: 0 | O127: 0 | P127: 0 | Q127: 0 | R127: 0 | T127: 7 | U127: =IF(U$115=0,0,U91/U$115) -> 0 | V127: 0 | W127: 0 | X127: 0 | Y127: 0 | Z127: 0 | AA127: 0 | AC127: 7 | AD127: =IF(AD$115=0,0,AD91/AD$115) -> 0 | AE127: 0 | AF127: 0 | AG127: 0 | AH127: 0 | AI127: 0 | AJ127: 0 | AL127: 7 | AM127: =IF(AM$115=0,0,AM91/AM$115) -> 0 | AN127: 0 | AO127: 0 | AP127: 0 | AQ127: 0 | AR127: 0 | AS127: 0 | AU127: 7 | AV127: =IF(AV$115=0,0,AV91/AV$115) -> 0 | AW127: 0 | AX127: 0 | AY127: 0 | AZ127: 0 | BA127: 0 | BB127: 0 | BD127: 7 | BE127: =IF(BE$115=0,0,BE91/BE$115) -> 0 | BF127: 0 | BG127: 0 | BH127: 0 | BI127: 0 | BJ127: 0 | BK127: 0 | BM127: 7 | BN127: =IF(BN$115=0,0,BN91/BN$115) -> 0 | BO127: 0 | BP127: 0 | BQ127: 0 | BR127: 0 | BS127: 0 | BT127: 0
B128: 8 | C128: =IF(C$115=0,0,C92/C$115) -> 0 | D128: 0 | E128: 0 | F128: 0 | G128: 0 | H128: 0 | I128: 0 | K128: 8 | L128: =IF(L$115=0,0,L92/L$115) -> 0 | M128: 0 | N128: 0 | O128: 0 | P128: 0 | Q128: 0 | R128: 0 | T128: 8 | U128: =IF(U$115=0,0,U92/U$115) -> 0 | V128: 0 | W128: 0 | X128: 0 | Y128: 0 | Z128: 0 | AA128: 0 | AC128: 8 | AD128: =IF(AD$115=0,0,AD92/AD$115) -> 0 | AE128: 0 | AF128: 0 | AG128: 0 | AH128: 0 | AI128: 0 | AJ128: 0 | AL128: 8 | AM128: =IF(AM$115=0,0,AM92/AM$115) -> 0 | AN128: 0 | AO128: 0 | AP128: 0 | AQ128: 0 | AR128: 0 | AS128: 0 | AU128: 8 | AV128: =IF(AV$115=0,0,AV92/AV$115) -> 0 | AW128: 0 | AX128: 0 | AY128: 0 | AZ128: 0 | BA128: 0 | BB128: 0 | BD128: 8 | BE128: =IF(BE$115=0,0,BE92/BE$115) -> 0 | BF128: 0 | BG128: 0 | BH128: 0 | BI128: 0 | BJ128: 0 | BK128: 0 | BM128: 8 | BN128: =IF(BN$115=0,0,BN92/BN$115) -> 0 | BO128: 0 | BP128: 0 | BQ128: 0 | BR128: 0 | BS128: 0 | BT128: 0
B129: 9 | C129: =IF(C$115=0,0,C93/C$115) -> 0 | D129: 0 | E129: 0 | F129: 0 | G129: 0 | H129: 0 | I129: 0 | K129: 9 | L129: =IF(L$115=0,0,L93/L$115) -> 0 | M129: 0 | N129: 0 | O129: 0 | P129: 0 | Q129: 0 | R129: 0 | T129: 9 | U129: =IF(U$115=0,0,U93/U$115) -> 0 | V129: 0 | W129: 0 | X129: 0 | Y129: 0 | Z129: 0 | AA129: 0 | AC129: 9 | AD129: =IF(AD$115=0,0,AD93/AD$115) -> 0 | AE129: 0 | AF129: 0 | AG129: 0 | AH129: 0 | AI129: 0 | AJ129: 0 | AL129: 9 | AM129: =IF(AM$115=0,0,AM93/AM$115) -> 0 | AN129: 0 | AO129: 0 | AP129: 0 | AQ129: 0 | AR129: 0 | AS129: 0 | AU129: 9 | AV129: =IF(AV$115=0,0,AV93/AV$115) -> 0 | AW129: 0 | AX129: 0 | AY129: 0 | AZ129: 0 | BA129: 0 | BB129: 0 | BD129: 9 | BE129: =IF(BE$115=0,0,BE93/BE$115) -> 0 | BF129: 0 | BG129: 0 | BH129: 0 | BI129: 0 | BJ129: 0 | BK129: 0 | BM129: 9 | BN129: =IF(BN$115=0,0,BN93/BN$115) -> 0 | BO129: 0 | BP129: 0 | BQ129: 0 | BR129: 0 | BS129: 0 | BT129: 0
B130: 10 | C130: =IF(C$115=0,0,C94/C$115) -> 0 | D130: 0 | E130: 0 | F130: 0 | G130: 0 | H130: 0 | I130: 0 | K130: 10 | L130: =IF(L$115=0,0,L94/L$115) -> 0 | M130: 0 | N130: 0 | O130: 0 | P130: 0 | Q130: 0 | R130: 0 | T130: 10 | U130: =IF(U$115=0,0,U94/U$115) -> 0 | V130: 0 | W130: 0 | X130: 0 | Y130: 0 | Z130: 0 | AA130: 0 | AC130: 10 | AD130: =IF(AD$115=0,0,AD94/AD$115) -> 0 | AE130: 0 | AF130: 0 | AG130: 0 | AH130: 0 | AI130: 0 | AJ130: 0 | AL130: 10 | AM130: =IF(AM$115=0,0,AM94/AM$115) -> 0 | AN130: 0 | AO130: 0 | AP130: 0 | AQ130: 0 | AR130: 0 | AS130: 0 | AU130: 10 | AV130: =IF(AV$115=0,0,AV94/AV$115) -> 0 | AW130: 0 | AX130: 0 | AY130: 0 | AZ130: 0 | BA130: 0 | BB130: 0 | BD130: 10 | BE130: =IF(BE$115=0,0,BE94/BE$115) -> 0 | BF130: 0 | BG130: 0 | BH130: 0 | BI130: 0 | BJ130: 0 | BK130: 0 | BM130: 10 | BN130: =IF(BN$115=0,0,BN94/BN$115) -> 0 | BO130: 0 | BP130: 0 | BQ130: 0 | BR130: 0 | BS130: 0 | BT130: 0
B131: 11 | C131: =IF(C$115=0,0,C95/C$115) -> 0 | D131: 0 | E131: 0 | F131: 0 | G131: 0 | H131: 0 | I131: 0 | K131: 11 | L131: =IF(L$115=0,0,L95/L$115) -> 0 | M131: 0 | N131: 0 | O131: 0 | P131: 0 | Q131: 0 | R131: 0 | T131: 11 | U131: =IF(U$115=0,0,U95/U$115) -> 0 | V131: 0 | W131: 0 | X131: 0 | Y131: 0 | Z131: 0 | AA131: 0 | AC131: 11 | AD131: =IF(AD$115=0,0,AD95/AD$115) -> 0 | AE131: 0 | AF131: 0 | AG131: 0 | AH131: 0 | AI131: 0 | AJ131: 0 | AL131: 11 | AM131: =IF(AM$115=0,0,AM95/AM$115) -> 0 | AN131: 0 | AO131: 0 | AP131: 0 | AQ131: 0 | AR131: 0 | AS131: 0 | AU131: 11 | AV131: =IF(AV$115=0,0,AV95/AV$115) -> 0 | AW131: 0 | AX131: 0 | AY131: 0 | AZ131: 0 | BA131: 0 | BB131: 0 | BD131: 11 | BE131: =IF(BE$115=0,0,BE95/BE$115) -> 0 | BF131: 0 | BG131: 0 | BH131: 0 | BI131: 0 | BJ131: 0 | BK131: 0 | BM131: 11 | BN131: =IF(BN$115=0,0,BN95/BN$115) -> 0 | BO131: 0 | BP131: 0 | BQ131: 0 | BR131: 0 | BS131: 0 | BT131: 0
B132: 12 | C132: =IF(C$115=0,0,C96/C$115) -> 0 | D132: 0 | E132: 0 | F132: 0 | G132: 0 | H132: 0 | I132: 0 | K132: 12 | L132: =IF(L$115=0,0,L96/L$115) -> 0 | M132: 0 | N132: 0 | O132: 0 | P132: 0 | Q132: 0 | R132: 0 | T132: 12 | U132: =IF(U$115=0,0,U96/U$115) -> 0 | V132: 0 | W132: 0 | X132: 0 | Y132: 0 | Z132: 0 | AA132: 0 | AC132: 12 | AD132: =IF(AD$115=0,0,AD96/AD$115) -> 0 | AE132: 0 | AF132: 0 | AG132: 0 | AH132: 0 | AI132: 0 | AJ132: 0 | AL132: 12 | AM132: =IF(AM$115=0,0,AM96/AM$115) -> 0 | AN132: 0 | AO132: 0 | AP132: 0 | AQ132: 0 | AR132: 0 | AS132: 0 | AU132: 12 | AV132: =IF(AV$115=0,0,AV96/AV$115) -> 0 | AW132: 0 | AX132: 0 | AY132: 0 | AZ132: 0 | BA132: 0 | BB132: 0 | BD132: 12 | BE132: =IF(BE$115=0,0,BE96/BE$115) -> 0 | BF132: 0 | BG132: 0 | BH132: 0 | BI132: 0 | BJ132: 0 | BK132: 0 | BM132: 12 | BN132: =IF(BN$115=0,0,BN96/BN$115) -> 0 | BO132: 0 | BP132: 0 | BQ132: 0 | BR132: 0 | BS132: 0 | BT132: 0
B133: 13 | C133: =IF(C$115=0,0,C97/C$115) -> 0 | D133: 0 | E133: 0 | F133: 0 | G133: 0 | H133: 0 | I133: 0 | K133: 13 | L133: =IF(L$115=0,0,L97/L$115) -> 0 | M133: 0 | N133: 0 | O133: 0 | P133: 0 | Q133: 0 | R133: 0 | T133: 13 | U133: =IF(U$115=0,0,U97/U$115) -> 0 | V133: 0 | W133: 0 | X133: 0 | Y133: 0 | Z133: 0 | AA133: 0 | AC133: 13 | AD133: =IF(AD$115=0,0,AD97/AD$115) -> 0 | AE133: 0 | AF133: 0 | AG133: 0 | AH133: 0 | AI133: 0 | AJ133: 0 | AL133: 13 | AM133: =IF(AM$115=0,0,AM97/AM$115) -> 0 | AN133: 0 | AO133: 0 | AP133: 0 | AQ133: 0 | AR133: 0 | AS133: 0 | AU133: 13 | AV133: =IF(AV$115=0,0,AV97/AV$115) -> 0 | AW133: 0 | AX133: 0 | AY133: 0 | AZ133: 0 | BA133: 0 | BB133: 0 | BD133: 13 | BE133: =IF(BE$115=0,0,BE97/BE$115) -> 0 | BF133: 0 | BG133: 0 | BH133: 0 | BI133: 0 | BJ133: 0 | BK133: 0 | BM133: 13 | BN133: =IF(BN$115=0,0,BN97/BN$115) -> 0 | BO133: 0 | BP133: 0 | BQ133: 0 | BR133: 0 | BS133: 0 | BT133: 0
B134: 14 | C134: =IF(C$115=0,0,C98/C$115) -> 0 | D134: 0 | E134: 0 | F134: 0 | G134: 0 | H134: 0 | I134: 0 | K134: 14 | L134: =IF(L$115=0,0,L98/L$115) -> 0 | M134: 0 | N134: 0 | O134: 0 | P134: 0 | Q134: 0 | R134: 0 | T134: 14 | U134: =IF(U$115=0,0,U98/U$115) -> 0 | V134: 0 | W134: 0 | X134: 0 | Y134: 0 | Z134: 0 | AA134: 0 | AC134: 14 | AD134: =IF(AD$115=0,0,AD98/AD$115) -> 0 | AE134: 0 | AF134: 0 | AG134: 0 | AH134: 0 | AI134: 0 | AJ134: 0 | AL134: 14 | AM134: =IF(AM$115=0,0,AM98/AM$115) -> 0 | AN134: 0 | AO134: 0 | AP134: 0 | AQ134: 0 | AR134: 0 | AS134: 0 | AU134: 14 | AV134: =IF(AV$115=0,0,AV98/AV$115) -> 0 | AW134: 0 | AX134: 0 | AY134: 0 | AZ134: 0 | BA134: 0 | BB134: 0 | BD134: 14 | BE134: =IF(BE$115=0,0,BE98/BE$115) -> 0 | BF134: 0 | BG134: 0 | BH134: 0 | BI134: 0 | BJ134: 0 | BK134: 0 | BM134: 14 | BN134: =IF(BN$115=0,0,BN98/BN$115) -> 0 | BO134: 0 | BP134: 0 | BQ134: 0 | BR134: 0 | BS134: 0 | BT134: 0
B135: 15 | C135: =IF(C$115=0,0,C99/C$115) -> 0 | D135: 0 | E135: 0 | F135: 0 | G135: 0 | H135: 0 | I135: 0 | K135: 15 | L135: =IF(L$115=0,0,L99/L$115) -> 0 | M135: 0 | N135: 0 | O135: 0 | P135: 0 | Q135: 0 | R135: 0 | T135: 15 | U135: =IF(U$115=0,0,U99/U$115) -> 0 | V135: 0 | W135: 0 | X135: 0 | Y135: 0 | Z135: 0 | AA135: 0 | AC135: 15 | AD135: =IF(AD$115=0,0,AD99/AD$115) -> 0 | AE135: 0 | AF135: 0 | AG135: 0 | AH135: 0 | AI135: 0 | AJ135: 0 | AL135: 15 | AM135: =IF(AM$115=0,0,AM99/AM$115) -> 0 | AN135: 0 | AO135: 0 | AP135: 0 | AQ135: 0 | AR135: 0 | AS135: 0 | AU135: 15 | AV135: =IF(AV$115=0,0,AV99/AV$115) -> 0 | AW135: 0 | AX135: 0 | AY135: 0 | AZ135: 0 | BA135: 0 | BB135: 0 | BD135: 15 | BE135: =IF(BE$115=0,0,BE99/BE$115) -> 0 | BF135: 0 | BG135: 0 | BH135: 0 | BI135: 0 | BJ135: 0 | BK135: 0 | BM135: 15 | BN135: =IF(BN$115=0,0,BN99/BN$115) -> 0 | BO135: 0 | BP135: 0 | BQ135: 0 | BR135: 0 | BS135: 0 | BT135: 0
B136: 16 | C136: =IF(C$115=0,0,C100/C$115) -> 0 | D136: 0 | E136: 0 | F136: 0 | G136: 0 | H136: 0 | I136: 0 | K136: 16 | L136: =IF(L$115=0,0,L100/L$115) -> 0 | M136: 0 | N136: 0 | O136: 0 | P136: 0 | Q136: 0 | R136: 0 | T136: 16 | U136: =IF(U$115=0,0,U100/U$115) -> 0 | V136: 0 | W136: 0 | X136: 0 | Y136: 0 | Z136: 0 | AA136: 0 | AC136: 16 | AD136: =IF(AD$115=0,0,AD100/AD$115) -> 0 | AE136: 0 | AF136: 0 | AG136: 0 | AH136: 0 | AI136: 0 | AJ136: 0 | AL136: 16 | AM136: =IF(AM$115=0,0,AM100/AM$115) -> 0 | AN136: 0 | AO136: 0 | AP136: 0 | AQ136: 0 | AR136: 0 | AS136: 0 | AU136: 16 | AV136: =IF(AV$115=0,0,AV100/AV$115) -> 0 | AW136: 0 | AX136: 0 | AY136: 0 | AZ136: 0 | BA136: 0 | BB136: 0 | BD136: 16 | BE136: =IF(BE$115=0,0,BE100/BE$115) -> 0 | BF136: 0 | BG136: 0 | BH136: 0 | BI136: 0 | BJ136: 0 | BK136: 0 | BM136: 16 | BN136: =IF(BN$115=0,0,BN100/BN$115) -> 0 | BO136: 0 | BP136: 0 | BQ136: 0 | BR136: 0 | BS136: 0 | BT136: 0
B137: 17 | C137: =IF(C$115=0,0,C101/C$115) -> 0 | D137: 0 | E137: 0 | F137: 0 | G137: 0 | H137: 0 | I137: 0 | K137: 17 | L137: =IF(L$115=0,0,L101/L$115) -> 0 | M137: 0 | N137: 0 | O137: 0 | P137: 0 | Q137: 0 | R137: 0 | T137: 17 | U137: =IF(U$115=0,0,U101/U$115) -> 0 | V137: 0 | W137: 0 | X137: 0 | Y137: 0 | Z137: 0 | AA137: 0 | AC137: 17 | AD137: =IF(AD$115=0,0,AD101/AD$115) -> 0 | AE137: 0 | AF137: 0 | AG137: 0 | AH137: 0 | AI137: 0 | AJ137: 0 | AL137: 17 | AM137: =IF(AM$115=0,0,AM101/AM$115) -> 0 | AN137: 0 | AO137: 0 | AP137: 0 | AQ137: 0 | AR137: 0 | AS137: 0 | AU137: 17 | AV137: =IF(AV$115=0,0,AV101/AV$115) -> 0 | AW137: 0 | AX137: 0 | AY137: 0 | AZ137: 0 | BA137: 0 | BB137: 0 | BD137: 17 | BE137: =IF(BE$115=0,0,BE101/BE$115) -> 0 | BF137: 0 | BG137: 0 | BH137: 0 | BI137: 0 | BJ137: 0 | BK137: 0 | BM137: 17 | BN137: =IF(BN$115=0,0,BN101/BN$115) -> 0 | BO137: 0 | BP137: 0 | BQ137: 0 | BR137: 0 | BS137: 0 | BT137: 0
B138: 18 | C138: =IF(C$115=0,0,C102/C$115) -> 0 | D138: 0 | E138: 0 | F138: 0 | G138: 0 | H138: 0 | I138: 0 | K138: 18 | L138: =IF(L$115=0,0,L102/L$115) -> 0 | M138: 0 | N138: 0 | O138: 0 | P138: 0 | Q138: 0 | R138: 0 | T138: 18 | U138: =IF(U$115=0,0,U102/U$115) -> 0 | V138: 0 | W138: 0 | X138: 0 | Y138: 0 | Z138: 0 | AA138: 0 | AC138: 18 | AD138: =IF(AD$115=0,0,AD102/AD$115) -> 0 | AE138: 0 | AF138: 0 | AG138: 0 | AH138: 0 | AI138: 0 | AJ138: 0 | AL138: 18 | AM138: =IF(AM$115=0,0,AM102/AM$115) -> 0 | AN138: 0 | AO138: 0 | AP138: 0 | AQ138: 0 | AR138: 0 | AS138: 0 | AU138: 18 | AV138: =IF(AV$115=0,0,AV102/AV$115) -> 0 | AW138: 0 | AX138: 0 | AY138: 0 | AZ138: 0 | BA138: 0 | BB138: 0 | BD138: 18 | BE138: =IF(BE$115=0,0,BE102/BE$115) -> 0 | BF138: 0 | BG138: 0 | BH138: 0 | BI138: 0 | BJ138: 0 | BK138: 0 | BM138: 18 | BN138: =IF(BN$115=0,0,BN102/BN$115) -> 0 | BO138: 0 | BP138: 0 | BQ138: 0 | BR138: 0 | BS138: 0 | BT138: 0
B139: 19 | C139: =IF(C$115=0,0,C103/C$115) -> 0 | D139: 0 | E139: 0 | F139: 0 | G139: 0 | H139: 0 | I139: 0 | K139: 19 | L139: =IF(L$115=0,0,L103/L$115) -> 0 | M139: 0 | N139: 0 | O139: 0 | P139: 0 | Q139: 0 | R139: 0 | T139: 19 | U139: =IF(U$115=0,0,U103/U$115) -> 0 | V139: 0 | W139: 0 | X139: 0 | Y139: 0 | Z139: 0 | AA139: 0 | AC139: 19 | AD139: =IF(AD$115=0,0,AD103/AD$115) -> 0 | AE139: 0 | AF139: 0 | AG139: 0 | AH139: 0 | AI139: 0 | AJ139: 0 | AL139: 19 | AM139: =IF(AM$115=0,0,AM103/AM$115) -> 0 | AN139: 0 | AO139: 0 | AP139: 0 | AQ139: 0 | AR139: 0 | AS139: 0 | AU139: 19 | AV139: =IF(AV$115=0,0,AV103/AV$115) -> 0 | AW139: 0 | AX139: 0 | AY139: 0 | AZ139: 0 | BA139: 0 | BB139: 0 | BD139: 19 | BE139: =IF(BE$115=0,0,BE103/BE$115) -> 0 | BF139: 0 | BG139: 0 | BH139: 0 | BI139: 0 | BJ139: 0 | BK139: 0 | BM139: 19 | BN139: =IF(BN$115=0,0,BN103/BN$115) -> 0 | BO139: 0 | BP139: 0 | BQ139: 0 | BR139: 0 | BS139: 0 | BT139: 0
B140: 20 | C140: =IF(C$115=0,0,C104/C$115) -> 0 | D140: 0 | E140: 0 | F140: 0 | G140: 0 | H140: 0 | I140: 0 | K140: 20 | L140: =IF(L$115=0,0,L104/L$115) -> 0 | M140: 0 | N140: 0 | O140: 0 | P140: 0 | Q140: 0 | R140: 0 | T140: 20 | U140: =IF(U$115=0,0,U104/U$115) -> 0 | V140: 0 | W140: 0 | X140: 0 | Y140: 0 | Z140: 0 | AA140: 0 | AC140: 20 | AD140: =IF(AD$115=0,0,AD104/AD$115) -> 0 | AE140: 0 | AF140: 0 | AG140: 0 | AH140: 0 | AI140: 0 | AJ140: 0 | AL140: 20 | AM140: =IF(AM$115=0,0,AM104/AM$115) -> 0 | AN140: 0 | AO140: 0 | AP140: 0 | AQ140: 0 | AR140: 0 | AS140: 0 | AU140: 20 | AV140: =IF(AV$115=0,0,AV104/AV$115) -> 0 | AW140: 0 | AX140: 0 | AY140: 0 | AZ140: 0 | BA140: 0 | BB140: 0 | BD140: 20 | BE140: =IF(BE$115=0,0,BE104/BE$115) -> 0 | BF140: 0 | BG140: 0 | BH140: 0 | BI140: 0 | BJ140: 0 | BK140: 0 | BM140: 20 | BN140: =IF(BN$115=0,0,BN104/BN$115) -> 0 | BO140: 0 | BP140: 0 | BQ140: 0 | BR140: 0 | BS140: 0 | BT140: 0
B141: 21 | C141: =IF(C$115=0,0,C105/C$115) -> 0 | D141: 0 | E141: 0 | F141: 0 | G141: 0 | H141: 0 | I141: 0 | K141: 21 | L141: =IF(L$115=0,0,L105/L$115) -> 0 | M141: 0 | N141: 0 | O141: 0 | P141: 0 | Q141: 0 | R141: 0 | T141: 21 | U141: =IF(U$115=0,0,U105/U$115) -> 0 | V141: 0 | W141: 0 | X141: 0 | Y141: 0 | Z141: 0 | AA141: 0 | AC141: 21 | AD141: =IF(AD$115=0,0,AD105/AD$115) -> 0 | AE141: 0 | AF141: 0 | AG141: 0 | AH141: 0 | AI141: 0 | AJ141: 0 | AL141: 21 | AM141: =IF(AM$115=0,0,AM105/AM$115) -> 0 | AN141: 0 | AO141: 0 | AP141: 0 | AQ141: 0 | AR141: 0 | AS141: 0 | AU141: 21 | AV141: =IF(AV$115=0,0,AV105/AV$115) -> 0 | AW141: 0 | AX141: 0 | AY141: 0 | AZ141: 0 | BA141: 0 | BB141: 0 | BD141: 21 | BE141: =IF(BE$115=0,0,BE105/BE$115) -> 0 | BF141: 0 | BG141: 0 | BH141: 0 | BI141: 0 | BJ141: 0 | BK141: 0 | BM141: 21 | BN141: =IF(BN$115=0,0,BN105/BN$115) -> 0 | BO141: 0 | BP141: 0 | BQ141: 0 | BR141: 0 | BS141: 0 | BT141: 0
B142: 22 | C142: =IF(C$115=0,0,C106/C$115) -> 0 | D142: 0 | E142: 0 | F142: 0 | G142: 0 | H142: 0 | I142: 0 | K142: 22 | L142: =IF(L$115=0,0,L106/L$115) -> 0 | M142: 0 | N142: 0 | O142: 0 | P142: 0 | Q142: 0 | R142: 0 | T142: 22 | U142: =IF(U$115=0,0,U106/U$115) -> 0 | V142: 0 | W142: 0 | X142: 0 | Y142: 0 | Z142: 0 | AA142: 0 | AC142: 22 | AD142: =IF(AD$115=0,0,AD106/AD$115) -> 0 | AE142: 0 | AF142: 0 | AG142: 0 | AH142: 0 | AI142: 0 | AJ142: 0 | AL142: 22 | AM142: =IF(AM$115=0,0,AM106/AM$115) -> 0 | AN142: 0 | AO142: 0 | AP142: 0 | AQ142: 0 | AR142: 0 | AS142: 0 | AU142: 22 | AV142: =IF(AV$115=0,0,AV106/AV$115) -> 0 | AW142: 0 | AX142: 0 | AY142: 0 | AZ142: 0 | BA142: 0 | BB142: 0 | BD142: 22 | BE142: =IF(BE$115=0,0,BE106/BE$115) -> 0 | BF142: 0 | BG142: 0 | BH142: 0 | BI142: 0 | BJ142: 0 | BK142: 0 | BM142: 22 | BN142: =IF(BN$115=0,0,BN106/BN$115) -> 0 | BO142: 0 | BP142: 0 | BQ142: 0 | BR142: 0 | BS142: 0 | BT142: 0
B143: 23 | C143: =IF(C$115=0,0,C107/C$115) -> 0 | D143: 0 | E143: 0 | F143: 0 | G143: 0 | H143: 0 | I143: 0 | K143: 23 | L143: =IF(L$115=0,0,L107/L$115) -> 0 | M143: 0 | N143: 0 | O143: 0 | P143: 0 | Q143: 0 | R143: 0 | T143: 23 | U143: =IF(U$115=0,0,U107/U$115) -> 0 | V143: 0 | W143: 0 | X143: 0 | Y143: 0 | Z143: 0 | AA143: 0 | AC143: 23 | AD143: =IF(AD$115=0,0,AD107/AD$115) -> 0 | AE143: 0 | AF143: 0 | AG143: 0 | AH143: 0 | AI143: 0 | AJ143: 0 | AL143: 23 | AM143: =IF(AM$115=0,0,AM107/AM$115) -> 0 | AN143: 0 | AO143: 0 | AP143: 0 | AQ143: 0 | AR143: 0 | AS143: 0 | AU143: 23 | AV143: =IF(AV$115=0,0,AV107/AV$115) -> 0 | AW143: 0 | AX143: 0 | AY143: 0 | AZ143: 0 | BA143: 0 | BB143: 0 | BD143: 23 | BE143: =IF(BE$115=0,0,BE107/BE$115) -> 0 | BF143: 0 | BG143: 0 | BH143: 0 | BI143: 0 | BJ143: 0 | BK143: 0 | BM143: 23 | BN143: =IF(BN$115=0,0,BN107/BN$115) -> 0 | BO143: 0 | BP143: 0 | BQ143: 0 | BR143: 0 | BS143: 0 | BT143: 0
B144: 24 | C144: =IF(C$115=0,0,C108/C$115) -> 0 | D144: 0 | E144: 0 | F144: 0 | G144: 0 | H144: 0 | I144: 0 | K144: 24 | L144: =IF(L$115=0,0,L108/L$115) -> 0 | M144: 0 | N144: 0 | O144: 0 | P144: 0 | Q144: 0 | R144: 0 | T144: 24 | U144: =IF(U$115=0,0,U108/U$115) -> 0 | V144: 0 | W144: 0 | X144: 0 | Y144: 0 | Z144: 0 | AA144: 0 | AC144: 24 | AD144: =IF(AD$115=0,0,AD108/AD$115) -> 0 | AE144: 0 | AF144: 0 | AG144: 0 | AH144: 0 | AI144: 0 | AJ144: 0 | AL144: 24 | AM144: =IF(AM$115=0,0,AM108/AM$115) -> 0 | AN144: 0 | AO144: 0 | AP144: 0 | AQ144: 0 | AR144: 0 | AS144: 0 | AU144: 24 | AV144: =IF(AV$115=0,0,AV108/AV$115) -> 0 | AW144: 0 | AX144: 0 | AY144: 0 | AZ144: 0 | BA144: 0 | BB144: 0 | BD144: 24 | BE144: =IF(BE$115=0,0,BE108/BE$115) -> 0 | BF144: 0 | BG144: 0 | BH144: 0 | BI144: 0 | BJ144: 0 | BK144: 0 | BM144: 24 | BN144: =IF(BN$115=0,0,BN108/BN$115) -> 0 | BO144: 0 | BP144: 0 | BQ144: 0 | BR144: 0 | BS144: 0 | BT144: 0
B145: 25 | C145: =IF(C$115=0,0,C109/C$115) -> 0 | D145: 0 | E145: 0 | F145: 0 | G145: 0 | H145: 0 | I145: 0 | K145: 25 | L145: =IF(L$115=0,0,L109/L$115) -> 0 | M145: 0 | N145: 0 | O145: 0 | P145: 0 | Q145: 0 | R145: 0 | T145: 25 | U145: =IF(U$115=0,0,U109/U$115) -> 0 | V145: 0 | W145: 0 | X145: 0 | Y145: 0 | Z145: 0 | AA145: 0 | AC145: 25 | AD145: =IF(AD$115=0,0,AD109/AD$115) -> 0 | AE145: 0 | AF145: 0 | AG145: 0 | AH145: 0 | AI145: 0 | AJ145: 0 | AL145: 25 | AM145: =IF(AM$115=0,0,AM109/AM$115) -> 0 | AN145: 0 | AO145: 0 | AP145: 0 | AQ145: 0 | AR145: 0 | AS145: 0 | AU145: 25 | AV145: =IF(AV$115=0,0,AV109/AV$115) -> 0 | AW145: 0 | AX145: 0 | AY145: 0 | AZ145: 0 | BA145: 0 | BB145: 0 | BD145: 25 | BE145: =IF(BE$115=0,0,BE109/BE$115) -> 0 | BF145: 0 | BG145: 0 | BH145: 0 | BI145: 0 | BJ145: 0 | BK145: 0 | BM145: 25 | BN145: =IF(BN$115=0,0,BN109/BN$115) -> 0 | BO145: 0 | BP145: 0 | BQ145: 0 | BR145: 0 | BS145: 0 | BT145: 0
B146: 26 | C146: =IF(C$115=0,0,C110/C$115) -> 0 | D146: 0 | E146: 0 | F146: 0 | G146: 0 | H146: 0 | I146: 0 | K146: 26 | L146: =IF(L$115=0,0,L110/L$115) -> 0 | M146: 0 | N146: 0 | O146: 0 | P146: 0 | Q146: 0 | R146: 0 | T146: 26 | U146: =IF(U$115=0,0,U110/U$115) -> 0 | V146: 0 | W146: 0 | X146: 0 | Y146: 0 | Z146: 0 | AA146: 0 | AC146: 26 | AD146: =IF(AD$115=0,0,AD110/AD$115) -> 0 | AE146: 0 | AF146: 0 | AG146: 0 | AH146: 0 | AI146: 0 | AJ146: 0 | AL146: 26 | AM146: =IF(AM$115=0,0,AM110/AM$115) -> 0 | AN146: 0 | AO146: 0 | AP146: 0 | AQ146: 0 | AR146: 0 | AS146: 0 | AU146: 26 | AV146: =IF(AV$115=0,0,AV110/AV$115) -> 0 | AW146: 0 | AX146: 0 | AY146: 0 | AZ146: 0 | BA146: 0 | BB146: 0 | BD146: 26 | BE146: =IF(BE$115=0,0,BE110/BE$115) -> 0 | BF146: 0 | BG146: 0 | BH146: 0 | BI146: 0 | BJ146: 0 | BK146: 0 | BM146: 26 | BN146: =IF(BN$115=0,0,BN110/BN$115) -> 0 | BO146: 0 | BP146: 0 | BQ146: 0 | BR146: 0 | BS146: 0 | BT146: 0
B147: 27 | C147: =IF(C$115=0,0,C111/C$115) -> 0 | D147: 0 | E147: 0 | F147: 0 | G147: 0 | H147: 0 | I147: 0 | K147: 27 | L147: =IF(L$115=0,0,L111/L$115) -> 0 | M147: 0 | N147: 0 | O147: 0 | P147: 0 | Q147: 0 | R147: 0 | T147: 27 | U147: =IF(U$115=0,0,U111/U$115) -> 0 | V147: 0 | W147: 0 | X147: 0 | Y147: 0 | Z147: 0 | AA147: 0 | AC147: 27 | AD147: =IF(AD$115=0,0,AD111/AD$115) -> 0 | AE147: 0 | AF147: 0 | AG147: 0 | AH147: 0 | AI147: 0 | AJ147: 0 | AL147: 27 | AM147: =IF(AM$115=0,0,AM111/AM$115) -> 0 | AN147: 0 | AO147: 0 | AP147: 0 | AQ147: 0 | AR147: 0 | AS147: 0 | AU147: 27 | AV147: =IF(AV$115=0,0,AV111/AV$115) -> 0 | AW147: 0 | AX147: 0 | AY147: 0 | AZ147: 0 | BA147: 0 | BB147: 0 | BD147: 27 | BE147: =IF(BE$115=0,0,BE111/BE$115) -> 0 | BF147: 0 | BG147: 0 | BH147: 0 | BI147: 0 | BJ147: 0 | BK147: 0 | BM147: 27 | BN147: =IF(BN$115=0,0,BN111/BN$115) -> 0 | BO147: 0 | BP147: 0 | BQ147: 0 | BR147: 0 | BS147: 0 | BT147: 0
B148: 28 | C148: =IF(C$115=0,0,C112/C$115) -> 0 | D148: 0 | E148: 0 | F148: 0 | G148: 0 | H148: 0 | I148: 0 | K148: 28 | L148: =IF(L$115=0,0,L112/L$115) -> 0 | M148: 0 | N148: 0 | O148: 0 | P148: 0 | Q148: 0 | R148: 0 | T148: 28 | U148: =IF(U$115=0,0,U112/U$115) -> 0 | V148: 0 | W148: 0 | X148: 0 | Y148: 0 | Z148: 0 | AA148: 0 | AC148: 28 | AD148: =IF(AD$115=0,0,AD112/AD$115) -> 0 | AE148: 0 | AF148: 0 | AG148: 0 | AH148: 0 | AI148: 0 | AJ148: 0 | AL148: 28 | AM148: =IF(AM$115=0,0,AM112/AM$115) -> 0 | AN148: 0 | AO148: 0 | AP148: 0 | AQ148: 0 | AR148: 0 | AS148: 0 | AU148: 28 | AV148: =IF(AV$115=0,0,AV112/AV$115) -> 0 | AW148: 0 | AX148: 0 | AY148: 0 | AZ148: 0 | BA148: 0 | BB148: 0 | BD148: 28 | BE148: =IF(BE$115=0,0,BE112/BE$115) -> 0 | BF148: 0 | BG148: 0 | BH148: 0 | BI148: 0 | BJ148: 0 | BK148: 0 | BM148: 28 | BN148: =IF(BN$115=0,0,BN112/BN$115) -> 0 | BO148: 0 | BP148: 0 | BQ148: 0 | BR148: 0 | BS148: 0 | BT148: 0
B149: 29 | C149: =IF(C$115=0,0,C113/C$115) -> 0 | D149: 0 | E149: 0 | F149: 0 | G149: 0 | H149: 0 | I149: 0 | K149: 29 | L149: =IF(L$115=0,0,L113/L$115) -> 0 | M149: 0 | N149: 0 | O149: 0 | P149: 0 | Q149: 0 | R149: 0 | T149: 29 | U149: =IF(U$115=0,0,U113/U$115) -> 0 | V149: 0 | W149: 0 | X149: 0 | Y149: 0 | Z149: 0 | AA149: 0 | AC149: 29 | AD149: =IF(AD$115=0,0,AD113/AD$115) -> 0 | AE149: 0 | AF149: 0 | AG149: 0 | AH149: 0 | AI149: 0 | AJ149: 0 | AL149: 29 | AM149: =IF(AM$115=0,0,AM113/AM$115) -> 0 | AN149: 0 | AO149: 0 | AP149: 0 | AQ149: 0 | AR149: 0 | AS149: 0 | AU149: 29 | AV149: =IF(AV$115=0,0,AV113/AV$115) -> 0 | AW149: 0 | AX149: 0 | AY149: 0 | AZ149: 0 | BA149: 0 | BB149: 0 | BD149: 29 | BE149: =IF(BE$115=0,0,BE113/BE$115) -> 0 | BF149: 0 | BG149: 0 | BH149: 0 | BI149: 0 | BJ149: 0 | BK149: 0 | BM149: 29 | BN149: =IF(BN$115=0,0,BN113/BN$115) -> 0 | BO149: 0 | BP149: 0 | BQ149: 0 | BR149: 0 | BS149: 0 | BT149: 0
B150: 30 | C150: =IF(C$115=0,0,C114/C$115) -> 0 | D150: 0 | E150: 0 | F150: 0 | G150: 0 | H150: 0 | I150: 0 | K150: 30 | L150: =IF(L$115=0,0,L114/L$115) -> 0 | M150: 0 | N150: 0 | O150: 0 | P150: 0 | Q150: 0 | R150: 0 | T150: 30 | U150: =IF(U$115=0,0,U114/U$115) -> 0 | V150: 0 | W150: 0 | X150: 0 | Y150: 0 | Z150: 0 | AA150: 0 | AC150: 30 | AD150: =IF(AD$115=0,0,AD114/AD$115) -> 0 | AE150: 0 | AF150: 0 | AG150: 0 | AH150: 0 | AI150: 0 | AJ150: 0 | AL150: 30 | AM150: =IF(AM$115=0,0,AM114/AM$115) -> 0 | AN150: 0 | AO150: 0 | AP150: 0 | AQ150: 0 | AR150: 0 | AS150: 0 | AU150: 30 | AV150: =IF(AV$115=0,0,AV114/AV$115) -> 0 | AW150: 0 | AX150: 0 | AY150: 0 | AZ150: 0 | BA150: 0 | BB150: 0 | BD150: 30 | BE150: =IF(BE$115=0,0,BE114/BE$115) -> 0 | BF150: 0 | BG150: 0 | BH150: 0 | BI150: 0 | BJ150: 0 | BK150: 0 | BM150: 30 | BN150: =IF(BN$115=0,0,BN114/BN$115) -> 0 | BO150: 0 | BP150: 0 | BQ150: 0 | BR150: 0 | BS150: 0 | BT150: 0
C151: =SUM(C120:C150) -> 0 | D151: 0 | E151: 0 | F151: 0 | G151: 0 | H151: 0 | I151: 0 | L151: =SUM(L120:L150) -> 0 | M151: 0 | N151: 0 | O151: 0 | P151: 0 | Q151: 0 | R151: 0 | U151: =SUM(U120:U150) -> 0 | V151: 0 | W151: 0 | X151: 0 | Y151: 0 | Z151: 0 | AA151: 0 | AD151: =SUM(AD120:AD150) -> 0 | AE151: 0 | AF151: 0 | AG151: 0 | AH151: 0 | AI151: 0 | AJ151: 0 | AM151: =SUM(AM120:AM150) -> 0 | AN151: 0 | AO151: 0 | AP151: 0 | AQ151: 0 | AR151: 0 | AS151: 0 | AV151: =SUM(AV120:AV150) -> 0 | AW151: 0 | AX151: 0 | AY151: 0 | AZ151: 0 | BA151: 0 | BB151: 0 | BE151: =SUM(BE120:BE150) -> 0 | BF151: 0 | BG151: 0 | BH151: 0 | BI151: 0 | BJ151: 0 | BK151: 0 | BN151: =SUM(BN120:BN150) -> 0 | BO151: 0 | BP151: 0 | BQ151: 0 | BR151: 0 | BS151: 0 | BT151: 0
B154: Table IIi: Age Distribution, 2006. Each column must add up to 100%. | K154: Table IIj: Age Distribution, 2007. Each column must add up to 100%. | T154: Table IIk: Age Distribution, 2008. Each column must add up to 100%. | AC154: Table IIl: Age Distribution, 2009. Each column must add up to 100%. | AL154: Table IIm: Age Distribution, 2010. Each column must add up to 100%. | AU154: Table IIn: Age Distribution, 2011. Each column must add up to 100%. | BD154: Table IIo: Age Distribution, 2012. Each column must add up to 100%. | BM154: Table IIp: Age Distribution, 2013. Each column must add up to 100%.
B155: MY | C155: LDGV | D155: LDGT | E155: HDGV | F155: LDDV | G155: LDDT | H155: HDDV | I155: MC | K155: MY | L155: LDGV | M155: LDGT | N155: HDGV | O155: LDDV | P155: LDDT | Q155: HDDV | R155: MC | T155: MY | U155: LDGV | V155: LDGT | W155: HDGV | X155: LDDV | Y155: LDDT | Z155: HDDV | AA155: MC | AC155: MY | AD155: LDGV | AE155: LDGT | AF155: HDGV | AG155: LDDV | AH155: LDDT | AI155: HDDV | AJ155: MC | AL155: MY | AM155: LDGV | AN155: LDGT | AO155: HDGV | AP155: LDDV | AQ155: LDDT | AR155: HDDV | AS155: MC | AU155: MY | AV155: LDGV | AW155: LDGT | AX155: HDGV | AY155: LDDV | AZ155: LDDT | BA155: HDDV | BB155: MC | BD155: MY | BE155: LDGV | BF155: LDGT | BG155: HDGV | BH155: LDDV | BI155: LDDT | BJ155: HDDV | BK155: MC | BM155: MY | BN155: LDGV | BO155: LDGT | BP155: HDGV | BQ155: LDDV | BR155: LDDT | BS155: HDDV | BT155: MC
B156: 0 | K156: 0 | T156: 0 | AC156: 0 | AL156: 0 | AU156: 0 | BD156: 0 | BM156: 0
B157: 1 | K157: 1 | T157: 1 | AC157: 1 | AL157: 1 | AU157: 1 | BD157: 1 | BM157: 1
B158: 2 | K158: 2 | T158: 2 | AC158: 2 | AL158: 2 | AU158: 2 | BD158: 2 | BM158: 2
B159: 3 | K159: 3 | T159: 3 | AC159: 3 | AL159: 3 | AU159: 3 | BD159: 3 | BM159: 3
B160: 4 | K160: 4 | T160: 4 | AC160: 4 | AL160: 4 | AU160: 4 | BD160: 4 | BM160: 4
B161: 5 | K161: 5 | T161: 5 | AC161: 5 | AL161: 5 | AU161: 5 | BD161: 5 | BM161: 5
B162: 6 | K162: 6 | T162: 6 | AC162: 6 | AL162: 6 | AU162: 6 | BD162: 6 | BM162: 6
B163: 7 | K163: 7 | T163: 7 | AC163: 7 | AL163: 7 | AU163: 7 | BD163: 7 | BM163: 7
B164: 8 | K164: 8 | T164: 8 | AC164: 8 | AL164: 8 | AU164: 8 | BD164: 8 | BM164: 8
B165: 9 | K165: 9 | T165: 9 | AC165: 9 | AL165: 9 | AU165: 9 | BD165: 9 | BM165: 9
B166: 10 | K166: 10 | T166: 10 | AC166: 10 | AL166: 10 | AU166: 10 | BD166: 10 | BM166: 10
B167: 11 | K167: 11 | T167: 11 | AC167: 11 | AL167: 11 | AU167: 11 | BD167: 11 | BM167: 11
B168: 12 | K168: 12 | T168: 12 | AC168: 12 | AL168: 12 | AU168: 12 | BD168: 12 | BM168: 12
B169: 13 | K169: 13 | T169: 13 | AC169: 13 | AL169: 13 | AU169: 13 | BD169: 13 | BM169: 13
B170: 14 | K170: 14 | T170: 14 | AC170: 14 | AL170: 14 | AU170: 14 | BD170: 14 | BM170: 14
B171: 15 | K171: 15 | T171: 15 | AC171: 15 | AL171: 15 | AU171: 15 | BD171: 15 | BM171: 15
B172: 16 | K172: 16 | T172: 16 | AC172: 16 | AL172: 16 | AU172: 16 | BD172: 16 | BM172: 16
B173: 17 | K173: 17 | T173: 17 | AC173: 17 | AL173: 17 | AU173: 17 | BD173: 17 | BM173: 17
B174: 18 | K174: 18 | T174: 18 | AC174: 18 | AL174: 18 | AU174: 18 | BD174: 18 | BM174: 18
B175: 19 | K175: 19 | T175: 19 | AC175: 19 | AL175: 19 | AU175: 19 | BD175: 19 | BM175: 19
B176: 20 | K176: 20 | T176: 20 | AC176: 20 | AL176: 20 | AU176: 20 | BD176: 20 | BM176: 20
B177: 21 | K177: 21 | T177: 21 | AC177: 21 | AL177: 21 | AU177: 21 | BD177: 21 | BM177: 21
B178: 22 | K178: 22 | T178: 22 | AC178: 22 | AL178: 22 | AU178: 22 | BD178: 22 | BM178: 22
B179: 23 | K179: 23 | T179: 23 | AC179: 23 | AL179: 23 | AU179: 23 | BD179: 23 | BM179: 23
B180: 24 | K180: 24 | T180: 24 | AC180: 24 | AL180: 24 | AU180: 24 | BD180: 24 | BM180: 24
B181: 25 | K181: 25 | T181: 25 | AC181: 25 | AL181: 25 | AU181: 25 | BD181: 25 | BM181: 25
B182: 26 | K182: 26 | T182: 26 | AC182: 26 | AL182: 26 | AU182: 26 | BD182: 26 | BM182: 26
B183: 27 | K183: 27 | T183: 27 | AC183: 27 | AL183: 27 | AU183: 27 | BD183: 27 | BM183: 27
B184: 28 | K184: 28 | T184: 28 | AC184: 28 | AL184: 28 | AU184: 28 | BD184: 28 | BM184: 28
B185: 29 | K185: 29 | T185: 29 | AC185: 29 | AL185: 29 | AU185: 29 | BD185: 29 | BM185: 29
B186: 30 | K186: 30 | T186: 30 | AC186: 30 | AL186: 30 | AU186: 30 | BD186: 30 | BM186: 30
C187: =SUM(C156:C186) -> 0 | D187: 0 | E187: 0 | F187: 0 | G187: 0 | H187: 0 | I187: 0 | L187: =SUM(L156:L186) -> 0 | M187: 0 | N187: 0 | O187: 0 | P187: 0 | Q187: 0 | R187: 0 | U187: =SUM(U156:U186) -> 0 | V187: 0 | W187: 0 | X187: 0 | Y187: 0 | Z187: 0 | AA187: 0 | AD187: =SUM(AD156:AD186) -> 0 | AE187: 0 | AF187: 0 | AG187: 0 | AH187: 0 | AI187: 0 | AJ187: 0 | AM187: =SUM(AM156:AM186) -> 0 | AN187: 0 | AO187: 0 | AP187: 0 | AQ187: 0 | AR187: 0 | AS187: 0 | AV187: =SUM(AV156:AV186) -> 0 | AW187: 0 | AX187: 0 | AY187: 0 | AZ187: 0 | BA187: 0 | BB187: 0 | BE187: =SUM(BE156:BE186) -> 0 | BF187: 0 | BG187: 0 | BH187: 0 | BI187: 0 | BJ187: 0 | BK187: 0 | BN187: =SUM(BN156:BN186) -> 0 | BO187: 0 | BP187: 0 | BQ187: 0 | BR187: 0 | BS187: 0 | BT187: 0
B188: Source: All default data from EPA, 2021. Inventory of U.S. Greenhouse Gas Emissions and Sinks: 1990-2019. Data generated by EPA's MOVES 2014 model.
B189: Table IIIi: Weighted averages, 2006 | K189: Table IIIj: Weighted averages, 2007 | T189: Table IIIk: Weighted averages, 2008 | AC189: Table IIIl: Weighted averages, 2009 | AL189: Table IIIm: Weighted averages, 2010 | AU189: Table IIIn: Weighted averages, 2011 | BD189: Table IIIo: Weighted averages, 2012 | BM189: Table IIIp: Weighted averages, 2013
B190: Used to weight age distribution by annual vehicle mileage accumulation. | K190: Used to weight age distribution by annual vehicle mileage accumulation. | T190: Used to weight age distribution by annual vehicle mileage accumulation. | AC190: Used to weight age distribution by annual vehicle mileage accumulation. | AL190: Used to weight age distribution by annual vehicle mileage accumulation. | AU190: Used to weight age distribution by annual vehicle mileage accumulation. | BD190: Used to weight age distribution by annual vehicle mileage accumulation. | BM190: Used to weight age distribution by annual vehicle mileage accumulation.
B191: MY | C191: LDGV | D191: LDGT | E191: HDGV | F191: LDDV | G191: LDDT | H191: HDDV | I191: MC | K191: MY | L191: LDGV | M191: LDGT | N191: HDGV | O191: LDDV | P191: LDDT | Q191: HDDV | R191: MC | T191: MY | U191: LDGV | V191: LDGT | W191: HDGV | X191: LDDV | Y191: LDDT | Z191: HDDV | AA191: MC | AC191: MY | AD191: LDGV | AE191: LDGT | AF191: HDGV | AG191: LDDV | AH191: LDDT | AI191: HDDV | AJ191: MC | AL191: MY | AM191: LDGV | AN191: LDGT | AO191: HDGV | AP191: LDDV | AQ191: LDDT | AR191: HDDV | AS191: MC | AU191: MY | AV191: LDGV | AW191: LDGT | AX191: HDGV | AY191: LDDV | AZ191: LDDT | BA191: HDDV | BB191: MC | BD191: MY | BE191: LDGV | BF191: LDGT | BG191: HDGV | BH191: LDDV | BI191: LDDT | BJ191: HDDV | BK191: MC | BM191: MY | BN191: LDGV | BO191: LDGT | BP191: HDGV | BQ191: LDDV | BR191: LDDT | BS191: HDDV | BT191: MC
